Workbook

Sheet 主菜单
C5: 工具使用注意事项
J9: 城市基本情况
J10: 城市名
J11: 城市所在省份 | L11: 安徽
J12: 省份所在地区 | L12: =VLOOKUP(L11,名称代码!B10:C40,2,) -> 华东
J13: 核算年度 | L13: 2010
J14: 常驻人口 | M14: 万人
J15: 城镇人口 | M15: 万人
J16: 农村人口 | M16: 万人
J17: 辖区面积 | M17: 平方公里
J18: 建成区面积 | M18: 平方公里
J19: GDP | M19: 亿元人民币
J20: 第一产业产值 | M20: 亿元人民币
J21: 第二产业产值 | M21: 亿元人民币
J22: 第三产业产值 | M22: 亿元人民币
J24: 全球增温潜势(GWP)是将不同温室气体按照其对气候变化的影响折算成等当量二氧化碳的系数。随着对气候变化的科学研究的进步，GWP值会有所修正。工具默认使用1995年政府间气候变化专门委员会第二次报告的全球变暖潜势值，用户也可以根据您的需要在下方下拉菜单中而选择其他值。
J29: 1995年 IPCC第二次报告

Sheet 使用说明
B1: 工具使用注意事项
B2: 1、 | C2: 工具运行需要Office 2007及以上版本；
B3: 2、 | C3: 请确保excel程序中“宏”文件的运行（参见《指南》第五章5.2节中“第一步：阅读工具使用注意事项”）；
B4: 3、 | C4: 请首先填写“城市基本情况数据表（参见《指南》第五章5.2节中“第二步：填写‘城市基本情况’表”）；
B5: 4、 | C5: 请首先选择“全球增温潜势”（参见《指南》第五章5.2节中“第三步：选择‘全球增温潜势’值”）；
B6: 5、 | C6: 请依次填入活动水平数据（参见《指南》第五章5.2节中“第四步：填写活动水平数据”）；
B7: 6、 | C7: 请确认使用默认排放因子数据或输入实测排放因子数据（参见《指南》第五章5.2节中“第五步：确认使用工具默认排放因子或填写自定义排放因子”）；
B8: 7、 | C8: 除另外标注外，工具表格中不同颜色的含义如下：
C9: ——白色单元格为必填，主要出现在活动水平数据表中； | E9: 必填
C10: ——绿色单元格为选填，主要出现在排放因子数据表中； | E10: 选填
C11: ——灰色单元格为不填，如表头信息、单位、默认数值等。灰色可能表现为深灰或者浅灰； | E11: 不填
C12: ——紫色单元格为锁定，表示根据其他录入数据或默认数值从工具后台自动引用的数值，工具对其进行了锁定，用户不能进行更改。 | E12: 锁定
B13: 8、 | C13: 活动水平数据和排放因子数据输入、校对和确认后，请依次点击“计算GHG排放”和“查看核算结果”。（参见《指南》第五章5.2节中“第六步：运行计算”和“第七步：查看结果”）。需要注意：在点击“计算GHG排放”后，如果进行了任何数据修改或新增了数据，都需要再次点击“计算GHG排放”，以保证工具计算结果保持更新。
B14: 9、 | C14: 数据录入时不能录入非数值型字符，如“NA”、“-”、“/”、“无”等字母、符号或汉字。如无相关数据，请空缺该单元格，或者填写数字“0”；
B15: 10、 | C15: 请勿随意变更工具中的计算公式和排版顺序，以免影响正常使用。如想进行更为个性化的操作，如更新默认排放因子、增加其他排放项目、调整汇总报告格式等，或者希望查看、修改计算公式，了解运算过程，请确保在专业人员指导下进行操作。
B16: 工具开发参考依据
B17: 1、 | C17: WRI，C40，ICLEI， 2012，Global Protocol for Community-Scale Greenhouse Gas Emissions（Pilot Version 1.0）
B18: 2、 | C18: 国家发改委， 2011， 《省级温室气体清单编制指南（试行）》
B19: 3、 | C19: IPCC，2006，《2006年IPCC国家清单指南》
B20: 4、 | C20: 社科院城市发展与环境研究所、WRI、WWF，《中国城镇温室气体清单编制指南》（尚未出版）

Sheet 能源数据录入导引表
B1: 能源活动水平数据录入导引表
B2: 能源活动水平数据录入及查询 | C2: 步骤 | F2: 数据需求
C3: 第一步：填写化石燃料燃烧数据 | D3: 必填 | F3: 选择一 | G3: 能源平衡表
E4: 简单数据收集 | F4: 选择二 | G4: 农、林、牧、渔业
E5: “选择一”和“选择二”选择其一填写即可。 | G5: 采矿业
G6: 制造业
G7: 电力、热力、燃气及水生产和供应业
G8: 建筑业
E9: 请选择数据输入方式： | G9: 交通运输、仓储和邮政业
G10: 批发零售、住宿餐饮业
G11: 其他
G12: 居民生活
D13: 选填 | E13: 详细数据收集 | F13: 工业 | G13: 公用电力部门
G14: 公用热力部门
G15: 石油、天然气开采与加工业
G16: 固体燃料和其他能源工业
G17: 钢铁
G18: 水泥
G19: 有色金属
G20: 石化和化工
G21: 食品、饮料、烟草
G22: 造纸、纸浆
G23: 机械、电子
G24: 纺织
G25: 其他
F26: 建筑 | G26: 建筑
F27: 交通 | G27: 交通
C28: 第二步：填写生物质燃料燃烧数据 | D28: 必填 | F28: 生物质燃料燃烧
C29: 第三步：填写燃料逃逸排放数据 | D29: 必填 | F29: 燃料逃逸排放
C30: 第四步：填写“信息项”数据 | D30: 必填 | F30: 信息项
B31: 说明：1.所有“必填”数据是城市必须收集和填写的数据，是确保完整计算城市能源活动温室气体排放的必要部分。
B32: 2.第一步中的“选填”数据中，城市可以根据自身情况决定是否进行核算和报告。例如，如果希望了解具体某一能源加工转换行业的排放，可以选择“公用电力部门”或“公用热力部门”进行数据填写；如果希望了解制造业行业的排放，可以选择“钢铁”、“水泥”、“有色金属”、“石化和化工”等行业进行数据填写。

Sheet 工业过程活动水平
B1: 工业过程活动水平数据表
B2: 类别 | D2: 年产量 | E2: 单位
B3: 1.水泥生产 | C3: 水泥熟料产量 | E3: 万吨 | H3: 必填
C4: 电石渣生产的熟料产量 | E4: 万吨 | H4: 选填
B5: 2.石灰生产 | C5: 石灰产量 | E5: 万吨 | H5: 不填
B6: 3.钢铁生产 | C6: 石灰石消耗量 | E6: 万吨 | H6: 锁定
C7: 白云石消耗量 | E7: 万吨
C8: 炼钢用生铁量 | E8: 万吨
C9: 钢材产量 | E9: 万吨
B10: 4.电石生产 | C10: 电石产量 | E10: 吨
B11: 5.己二酸生产 | C11: 己二酸产量 | E11: 吨
B12: 6.硝酸生产 | C12: 高压法，无尾气处理装置 | E12: 吨
C13: 高压法，有尾气处理装置 | E13: 吨
C14: 中压法产量 | E14: 吨
C15: 常压法产量 | E15: 吨
C16: 双加压产量 | E16: 吨
C17: 综合法产量 | E17: 吨
C18: 低压法产量 | E18: 吨
B19: 7.HCFC-22生产 | C19: HCFC-22产量 | E19: 吨
B20: 8.铝生产 | C20: 点式下料预焙槽技术产量 | E20: 万吨
C21: 侧插阳极棒自焙槽技术产量 | E21: 万吨
B22: 9.镁生产 | C22: SF6保护剂的原镁产量 | E22: 万吨
C23: 镁加工量 | E23: 万吨
B24: 10.电力设备生产 | C24: SF6使用量 | E24: 吨
B25: 11.半导体生产 | C25: CHF3使用量 | E25: 千克
C26: CF4使用量 | E26: 千克
C27: C2F6使用量 | E27: 千克
C28: SF6使用量 | E28: 千克
B29: 12.氢氟烃生产 | C29: HFC-23产量 | E29: 千克
C30: HFC-32产量 | E30: 千克
C31: HFC-125产量 | E31: 千克
C32: HFC-134a产量 | E32: 千克
C33: HFC-143a产量 | E33: 千克
C34: HFC-152a产量 | E34: 千克
C35: HFC-227ea产量 | E35: 千克
C36: HFC-236fa产量 | E36: 千克
C37: HFC-245fa产量 | E37: 千克
B38: 注：填写时请注意单位。

Sheet 农业活动水平
B1: 农业活动活动水平数据表
B2: 1. 稻田CH4排放活动水平数据 | J2: 必填
B3: 稻田类型 | C3: 播种面积 | D3: 单位 | J3: 选填
B4: 单季稻 | D4: 公顷 | J4: 不填
B5: 双季早稻 | D5: 公顷 | J5: 锁定
B6: 双季晚稻 | D6: 公顷
B8: 2. 农田N2O排放活动水平数据
B9: 农作物名称 | C9: 播种面积 | D9: 产量 | E9: 粪肥使用量 | F9: 化肥氮施用量 | G9: 秸秆还田率
C10: 公顷 | D10: 吨 | E10: 吨/公顷 | F10: 吨氮/公顷 | G10: %
B11: 水稻 | C11: =SUM(C4:C6) -> 0
B12: 小麦
B13: 玉米
B14: 高粱
B15: 谷子
B16: 其他谷类
B17: 大豆
B18: 其他豆类
B19: 油菜籽
B20: 花生
B21: 芝麻
B22: 籽棉
B23: 甜菜
B24: 甘蔗
B25: 麻类
B26: 薯类
B27: 蔬菜
B28: 烟叶
B30: 3. 动物肠道发酵和动物粪便管理活动水平数据
B31: 动物种类 | C31: 存栏量（头、只 ） | F31: 总计
C32: 规模化饲养 | D32: 农户饲养 | E32: 放牧饲养
B33: 奶牛 | F33: =SUM(C33:E33) -> 0
B34: 非奶牛 | F34: =SUM(C34:E34) -> 0
B35: 水牛 | F35: 0
B36: 绵羊 | F36: 0
B37: 山羊 | F37: 0
B38: 猪 | F38: 0
B39: 家禽 | F39: 0
B40: 马 | F40: 0
B41: 驴/骡 | F41: 0
B42: 骆驼 | F42: =SUM(C42:E42) -> 0

Sheet 土地利用变化和林业活动水平
B1: 土地利用变化和林业活动水平统计表
B2: 1. 林业活动水平数据
C3: 蓄积量 | D3: 单位 | E3: 年面积变化量 | F3: 单位 | G3: 总面积 | H3: 单位
B4: 乔木林（林分） | D4: 立方米 | F4: 公顷 | H4: 公顷 | K4: 必填
B5: 疏林、散生木、四旁树 | D5: 立方米 | F5: 公顷 | H5: 公顷 | K5: 选填
B6: 竹林 | D6: 立方米 | F6: 公顷 | H6: 公顷 | K6: 不填
B7: 经济林 | D7: 立方米 | F7: 公顷 | H7: 公顷 | K7: 锁定
B8: 灌木林 | D8: 立方米 | F8: 公顷 | H8: 公顷
B9: 活立木消耗* | C9: =SUM(C4:C8) -> 0 | D9: 立方米 | F9: 公顷 | H9: 公顷
B10: 注：*“活立木消耗”的蓄积量为为乔木林、疏林、散生木、四旁树、竹林、经济林、灌木林蓄积量之和。“年面积变化量”中，如果面积变化为增加，请填写正数，如面积变化为减少，请填写负数
B12: 2. 土地利用变化活动水平数据
C13: 当年转化面积 | D13: 单位 | E13: 10年平均 年转化面积 | F13: 单位
B14: 乔木林 | D14: 公顷 | F14: 公顷
B15: 竹林 | D15: 公顷 | F15: 公顷
B16: 经济林 | D16: 公顷 | F16: 公顷
B17: 注：“当年转化面积”用于燃烧排放量的计算，“10年平均年转化面积”用于分解排放量的计算。

Sheet 废弃物活动水平
B1: 废弃物处理活动水平统计表
B2: 1. 垃圾填埋CH4排放活动水平数据
D3: 数据 | E3: 单位 | F3: 填埋场类型 | G3: 数据 | H3: 单位 | I3: 甲烷回收量 | J3: 单位 | M3: 必填
B4: 垃圾填埋量 | C4: 边界内产生 边界内处理 | E4: 万吨 | F4: 管理 | H4: % | J4: 万吨 | M4: 选填
F5: 非管理--深埋（>5米） | H5: % | M5: 不填
F6: 非管理--浅埋（<5米） | H6: % | M6: 锁定
F7: 未分类 | H7: %
C8: 边界外产生 边界内处理 | E8: 万吨 | F8: 管理 | H8: % | J8: 万吨
F9: 非管理--深埋（>5米） | H9: %
F10: 非管理--浅埋（<5米） | H10: %
F11: 未分类 | H11: %
C12: 边界内产生 边界外处理 | E12: 万吨 | F12: 管理 | H12: % | J12: 万吨
F13: 非管理--深埋（>5米） | H13: %
F14: 非管理--浅埋（<5米） | H14: %
F15: 未分类 | H15: %
B16: 填埋垃圾成分 | C16: 食品废弃物 | E16: %
C17: 纺织品 | E17: %
C18: 花园、公园废弃物等 | E18: %
C19: 纸张 | E19: %
C20: 木材或秸秆 | E20: %
B22: 2. 垃圾焚烧CO2排放活动水平数据
D23: 数据 | E23: 单位
B24: 垃圾焚烧量 | C24: 边界内产生边界内处理 | E24: 万吨
C25: 边界外产生边界内处理 | E25: 万吨
C26: 边界内产生边界外处理 | E26: 万吨
B27: 焚烧垃圾成分 | C27: 城市生活垃圾 | E27: %
C28: 危险废弃物 | E28: %
C29: 污泥 | E29: %
B31: 3. 生活污水处理CH4排放活动水平数据
D32: 数据 | E32: 单位 | F32: 甲烷回收量 | G32: 单位
B33: 直接排入环境的生活污水COD含量 | C33: 边界内产生边界内处理 | E33: 千克COD/年
C34: 边界外产生边界内处理 | E34: 千克COD/年
C35: 边界内产生边界外处理 | E35: 千克COD/年 | G35: 万吨
B36: 污水处理厂去除的生活污水COD含量 | C36: 边界内产生边界内处理 | E36: 千克COD/年 | G36: 万吨
C37: 边界外产生边界内处理 | E37: 千克COD/年 | G37: 万吨
C38: 边界内产生边界外处理 | E38: 千克COD/年 | G38: 万吨
B40: 3.1 生活污水排放附表--BOD/COD 转换系数
B41: 地区 | C41: 自定义值 | D41: 默认值
B42: 全国 | D42: 0.46
B43: 华北 | D43: 0.45
B44: 东北 | D44: 0.46
B45: 华东 | D45: 0.43
B46: 华中 | D46: 0.49
B47: 华南 | D47: 0.47
B48: 西南 | D48: 0.51
B49: 西北 | D49: 0.41
B51: 4. 工业废水处理CH4排放活动水平数据
D52: 数据 | E52: 单位 | F52: 甲烷回收量 | G52: 单位
B53: 直接排入环境的工业废水量 | C53: 边界内产生边界内处理 | E53: 吨/年 | G53: -
C54: 边界外产生边界内处理 | E54: 吨/年
C55: 边界内产生边界外处理 | E55: 吨/年
B56: 直接排入环境工业废水的COD排放标准 | E56: 千克COD/吨废水 | G56: -
B57: 工厂污水处理系统去除的工业废水COD量 | C57: 边界内产生边界内处理 | E57: 千克COD/年 | G57: 万吨
C58: 边界外产生边界内处理 | E58: 千克COD/年 | G58: 万吨
C59: 边界内产生边界外处理 | E59: 千克COD/年 | G59: 万吨
B60: 污泥方式清除的COD总量 | C60: 边界内产生边界内处理 | E60: 千克COD/年
C61: 边界外产生边界内处理 | E61: 千克COD/年
C62: 边界内产生边界外处理 | E62: 千克COD/年 | G62: -
B63: 工业废水COD总量 | C63: 边界内产生边界内处理 | D63: =D53*D56+D57-D60 -> 0 | E63: 千克COD/年
C64: 边界外产生边界内处理 | D64: =D54*D56+D58-D61 -> 0 | E64: 千克COD/年
C65: 边界内产生边界外处理 | D65: =D55*D56+D59-D62 -> 0 | E65: 千克COD/年 | G65: -
B66: 说明：工业废水COD总量是按照表中其他数据计算得出
B68: 5. 生活污水和工业废水N2O排放活动水平数据
D69: 自定义值 | E69: 默认值 | F69: 单位
B70: 人口数 | D70: =主菜单!L14 -> 0 | F70: 万人
B71: 年人均蛋白质消费量 | F71: 千克蛋白质/人.年
B72: 蛋白质含氮量 | E72: 0.16 | F72: 千克氮/千克蛋白质
B73: 污水/废水中非消耗蛋白质的比例系数 | E73: 1.5
B74: 工业和商业来源的蛋白质比例系数 | E74: 1.25
B75: 随污泥清除的氮 | E75: 0 | F75: 克
B76: 说明：人口数为工具主菜单“城市基本情况表”中的“常驻人口”数

Sheet 能源平衡表
B1: 能源平衡表（实物量）
B2: 项 目 | C2: 煤合计 | D2: 原煤 | E2: 洗精煤 | F2: 其他洗煤 | G2: 型煤 | H2: 煤矸石 | I2: 焦炭 | J2: 焦炉煤气 | K2: 高炉煤气 | L2: 转炉煤气 | M2: 其他煤气 | N2: 其他焦化产品 | O2: 油品合计 | P2: 原油 | Q2: 汽油 | R2: 煤油 | S2: 柴油 | T2: 燃料油 | U2: 石脑油 | V2: 润滑油 | W2: 石蜡 | X2: 溶剂油 | Y2: 石油沥青 | Z2: 石油焦 | AA2: 液化石油气 | AB2: 炼厂干气 | AC2: 其他石油制品 | AD2: 天然气 | AE2: 液化天然气 | AF2: 热力 | AG2: 电力 | AH2: 其他能源
C3: (万吨) | D3: (万吨) | E3: (万吨) | F3: (万吨) | G3: (万吨) | H3: (万吨) | I3: (万吨) | J3: (亿立方米) | K3: (亿立方米) | L3: (亿立方米) | M3: (亿立方米) | N3: (万吨) | O3: (万吨) | P3: (万吨) | Q3: (万吨) | R3: (万吨) | S3: (万吨) | T3: (万吨) | U3: (万吨) | V3: (万吨) | W3: (万吨) | X3: (万吨) | Y3: (万吨) | Z3: (万吨) | AA3: (万吨) | AB3: (万吨) | AC3: (万吨) | AD3: (亿立方米) | AE3: (万吨) | AF3: (万百万千焦) | AG3: (亿千瓦小时) | AH3: (万吨标煤)
B4: 一.可供本地区消费的能源量
B5: 1.一次能源生产量
B6: 2.回收能
B7: 3.外省(区、市)调入量
B8: 4.进口量
B9: 5.境内轮船和飞机在境外的加油量
B10: 6.本省(区、市)调出量(-)
B11: 7.出口量(-)
B12: 8.境外轮船和飞机在境内的加油量(-)
B13: 9.库存增(-)、减(+)量
B14: 二.加工转换投入(-)产出(+)量
B15: 1.火力发电
B16: 2.供 热
B17: 3.洗 选 煤
B18: 4.炼 焦
B19: 5.炼油及煤制油
B20: #油品再投入量(-)
B21: 6.制 气
B22: #焦炭再投入量(-)
B23: 7.天然气液化
B24: 8.煤制品加工
B25: 三.损 失 量
B26: 四.终端消费量
B27: 1.农、林、牧、渔业
B28: 2.工业
B29: #用作原料、材料
B30: 3.建筑业
B31: 4.交通运输、仓储和邮政业
B32: 5.批发、零售业和住宿、餐饮业
B33: 6.其他
B34: 7.生活消费
B35: 城 镇
B36: 乡 村
B37: 五.平衡差额
B38: 六.消费量合计
B39: 注1：表中颜色代表的意义如下所示
C40: “范围一”排放计算所需数据
C41: “范围二”排放计算所需数据
C42: “范围三”排放计算所需部分数据
B43: 注2：对于洗选煤、炼焦、炼油及煤制品、制气、天然气液化、煤制品加工这几个行业，严格来讲，应该将能源投入量和产出量分别折算成热值，用投入量减去产出量作为计算温室气体排放的活动水平数据。但由于上述能源加工转换业投入的能源多为能源加工转换中用于非燃料、动力的部分，不需要计算温室气体排放。因此，工具做简化处理，不计算上述行业能源活动引起的温室气体排放。

Sheet A
B1: 农、林、牧、渔业能源活动水平数据表
B2: 能源名称 | D2: 计量单位 | E2: 能源消费总量 | G2: 采用折标 系数 | H2: 参考折标 系数
F3: 其中:交通运输工具
B4: 原煤 | D4: 万吨 | H4: 0.7143 | K4: 必填
B5: 洗精煤 | D5: 万吨 | H5: 0.9 | K5: 选填
B6: 其它洗煤 | D6: 万吨 | H6: 0.2-0.8 | K6: 不填
B7: 型煤 | D7: 万吨 | H7: 0.5-0.7 | K7: 锁定
B8: 煤矸石 | D8: 万吨标煤 | H8: 1
B9: 焦炭 | D9: 万吨 | H9: 0.9714
B10: 焦炉煤气 | D10: 亿立方米 | H10: 5.714-6.143
B11: 高炉煤气 | D11: 亿立方米 | H11: 1.286
B12: 转炉煤气 | D12: 亿立方米 | H12: 2.714
B13: 其他煤气 | D13: 亿立方米 | H13: 1.7-12.1
B14: 其他焦化产品 | D14: 万吨 | H14: 1.1-1.5
B15: 原油 | D15: 万吨 | H15: 1.4286
B16: 汽油 | D16: 万吨 | H16: 1.4714
B17: 煤油 | D17: 万吨 | H17: 1.4714
B18: 柴油 | D18: 万吨 | H18: 1.4571
B19: 燃料油 | D19: 万吨 | H19: 1.4286
B20: 石脑油 | D20: 万吨 | H20: 1.5
B21: 润滑油 | D21: 万吨 | H21: 1.4143
B22: 石蜡 | D22: 万吨 | H22: 1.3648
B23: 溶剂油 | D23: 万吨 | H23: 1.4672
B24: 石油沥青 | D24: 万吨 | H24: 1.3307
B25: 石油焦 | D25: 万吨 | H25: 1.0918
B26: 液化石油气 | D26: 万吨 | H26: 1.7143
B27: 炼厂干气 | D27: 万吨 | H27: 1.5714
B28: 其他石油制品 | D28: 万吨 | H28: 1.0-1.4
B29: 天然气 | D29: 亿立方米 | H29: 11.0-13.3
B30: 液化天然气 | D30: 万吨 | H30: 1.7572
B31: 热力 | D31: 万百万千焦 | H31: 0.0341
B32: 调入热力 | D32: 万百万千焦 | H32: 0.0341
B33: 电力 | D33: 亿千瓦时 | H33: 1.229
H34: 3.66
B35: 其他能源 | D35: 万吨标煤 | H35: 1
B36: 能源合计 | C36: 当量值 | D36: 吨标煤
C37: 等价值 | D37: 吨标煤
B38: 说明：1.“农、林、牧、渔业”包括“农业”、“林业”、“畜牧业”、“渔业”和“农林牧渔服务业”。
B39: 2.表中逻辑关系为：“能源消费总量”≥“其中：交通运输工具”。

Sheet B
B1: 采矿业能源活动水平数据表
B2: 能源名称 | D2: 计量单位 | E2: 能源消费总量 | J2: 采用折标 系数 | K2: 参考折标 系数
F3: 其中:原材料 | G3: 其中：能源加工转换中不作为燃料、动力的投入 | H3: 其中：回收利用量 | I3: 其中:交通运输工具
B4: 原煤 | D4: 万吨 | K4: 0.7143 | N4: 必填
B5: 洗精煤 | D5: 万吨 | K5: 0.9 | N5: 选填
B6: 其它洗煤 | D6: 万吨 | K6: 0.2-0.8 | N6: 不填
B7: 型煤 | D7: 万吨 | K7: 0.5-0.7 | N7: 锁定
B8: 煤矸石 | D8: 万吨 | K8: 1
B9: 焦炭 | D9: 万吨 | K9: 0.9714
B10: 焦炉煤气 | D10: 亿立方米 | K10: 5.714-6.143
B11: 高炉煤气 | D11: 亿立方米 | K11: 1.286
B12: 转炉煤气 | D12: 亿立方米 | K12: 2.714
B13: 其他煤气 | D13: 亿立方米 | K13: 1.7-12.1
B14: 其他焦化产品 | D14: 万吨 | K14: 1.1-1.5
B15: 原油 | D15: 万吨 | K15: 1.4286
B16: 汽油 | D16: 万吨 | K16: 1.4714
B17: 煤油 | D17: 万吨 | K17: 1.4714
B18: 柴油 | D18: 万吨 | K18: 1.4571
B19: 燃料油 | D19: 万吨 | K19: 1.4286
B20: 石脑油 | D20: 万吨 | K20: 1.5
B21: 润滑油 | D21: 万吨 | K21: 1.4143
B22: 石蜡 | D22: 万吨 | K22: 1.3648
B23: 溶剂油 | D23: 万吨 | K23: 1.4672
B24: 石油沥青 | D24: 万吨 | K24: 1.3307
B25: 石油焦 | D25: 万吨 | K25: 1.0918
B26: 液化石油气 | D26: 万吨 | K26: 1.7143
B27: 炼厂干气 | D27: 万吨 | K27: 1.5714
B28: 其他石油制品 | D28: 万吨 | K28: 1.0-1.4
B29: 天然气 | D29: 亿立方米 | K29: 11.0-13.3
B30: 液化天然气 | D30: 万吨 | K30: 1.7572
B31: 热力 | D31: 万百万千焦 | K31: 0.0341
B32: 调入热力 | D32: 万百万千焦 | K32: 0.0341
B33: 电力 | D33: 亿千瓦时 | K33: 1.229
K34: 3.66
B35: 其他能源 | D35: 万吨标煤 | K35: 1
B36: 能源合计 | C36: 当量值 | D36: 吨标煤
C37: 等价值 | D37: 吨标煤
B38: 说明：1. “采矿业”包括“煤炭开采和洗选业”、“石油和天然气开采业”、“黑色金属矿采选业”、“有色金属矿采选业”、“非金属矿采选业”和“其他采矿业”。
B39: 2. 表中逻辑关系为：“能源消费总量”≥“其中：原材料”＋“其中：能源加工转换中不作为燃料、动力的投入”+“其中：回收利用量”+“其中：交通运输工具”。
B40: 3. 用于计算温室气体排放的能源消费量＝“能源消费总量”－“其中：原材料”－“其中：能源加工转换中不作为燃料、动力的投入”－“其中：回收利用量”－“其中：交通运输工具”。

Sheet C
B1: 制造业能源活动水平数据表
B2: 能源名称 | D2: 计量单位 | E2: 能源消费总量 | J2: 采用折标 系数 | K2: 参考折标 系数
F3: 其中:原材料 | G3: 其中：能源加工转换中不作为燃料、动力的投入 | H3: 其中：回收利用量 | I3: 其中:交通运输工具
B4: 原煤 | D4: 万吨 | E4: 0 | K4: 0.7143 | N4: 必填
B5: 洗精煤 | D5: 万吨 | E5: 0 | K5: 0.9 | N5: 选填
B6: 其它洗煤 | D6: 万吨 | E6: 0 | K6: 0.2-0.8 | N6: 不填
B7: 型煤 | D7: 万吨 | E7: 0 | K7: 0.5-0.7 | N7: 锁定
B8: 煤矸石 | D8: 万吨 | E8: 0 | K8: 1
B9: 焦炭 | D9: 万吨 | E9: 0 | K9: 0.9714
B10: 焦炉煤气 | D10: 亿立方米 | E10: 0 | K10: 5.714-6.143
B11: 高炉煤气 | D11: 亿立方米 | E11: 0 | K11: 1.286
B12: 转炉煤气 | D12: 亿立方米 | E12: 0 | K12: 2.714
B13: 其他煤气 | D13: 亿立方米 | E13: 0 | K13: 1.7-12.1
B14: 其他焦化产品 | D14: 万吨 | E14: 0 | K14: 1.1-1.5
B15: 原油 | D15: 万吨 | E15: 0 | K15: 1.4286
B16: 汽油 | D16: 万吨 | E16: 0 | K16: 1.4714
B17: 煤油 | D17: 万吨 | E17: 0 | K17: 1.4714
B18: 柴油 | D18: 万吨 | E18: 0 | K18: 1.4571
B19: 燃料油 | D19: 万吨 | E19: 0 | K19: 1.4286
B20: 石脑油 | D20: 万吨 | E20: 0 | K20: 1.5
B21: 润滑油 | D21: 万吨 | E21: 0 | K21: 1.4143
B22: 石蜡 | D22: 万吨 | E22: 0 | K22: 1.3648
B23: 溶剂油 | D23: 万吨 | E23: 0 | K23: 1.4672
B24: 石油沥青 | D24: 万吨 | E24: 0 | K24: 1.3307
B25: 石油焦 | D25: 万吨 | E25: 0 | K25: 1.0918
B26: 液化石油气 | D26: 万吨 | E26: 0 | K26: 1.7143
B27: 炼厂干气 | D27: 万吨 | E27: 0 | K27: 1.5714
B28: 其他石油制品 | D28: 万吨 | E28: 0 | K28: 1.0-1.4
B29: 天然气 | D29: 亿立方米 | E29: 0 | K29: 11.0-13.3
B30: 液化天然气 | D30: 万吨 | E30: 0 | K30: 1.7572
B31: 热力 | D31: 万百万千焦 | E31: 0 | K31: 0.0341
B32: 调入热力 | D32: 万百万千焦 | K32: 0.0341
B33: 电力 | D33: 亿千瓦时 | E33: 0 | K33: 1.229
K34: 3.66
B35: 其他能源 | D35: 万吨标煤 | E35: 0 | K35: 1
B36: 能源合计 | C36: 当量值 | D36: 吨标煤
C37: 等价值 | D37: 吨标煤
B38: 说明：1.”制造业“包括“农副食品加工业”、“食品制造业”、“饮料制造业”、“烟草制造业”、“纺织业”、“纺织服装、鞋、帽制造业”、“皮革、毛皮、羽毛（绒）及其制品业”、“木材加工及木、竹、藤、棕、草制品业”、“家具制造业”、“造纸及纸制品业”、“印刷业和记录媒介的复制”、“文教体育用品制造业”、“石油加工、炼焦及核燃料加工业”、“化学原料及化学制品制造业”、”医药制造业“、”化学纤维制造业“、”橡胶制品业“、”塑料制品业“、”非金属矿物制品业“、”黑色金属冶炼及延压加工业“、”有色金属冶炼及延压加工业“|”金属制品业“、”通用设备制造业“、”专用设备制造业“、”交通运输设备制造业“、”电器机械及器材制造业“、”通信设备、计算机及其他电子设备制造业“、”仪器仪表及文化办公用机械制造业“、”工艺品及其他制造业“以及”废弃资源和废旧材料回收加工业“。
B39: 2. 表中逻辑关系为：“能源消费总量”≥“其中：原材料”＋“其中：能源加工转换中不作为燃料、动力的投入”+“其中：回收利用量”+“其中：交通运输工具”。
B40: 3. 用于计算温室气体排放的能源消费量＝“能源消费总量”－“其中：原材料”－“其中：能源加工转换中不作为燃料、动力的投入”－“其中：回收利用量”－“其中：交通运输工具”。

Sheet D
B1: 电力、热力、燃气及水生产和供应业能源活动水平数据
B2: 能源名称 | D2: 计量单位 | E2: 能源消费总量 | J2: 采用折标 系数 | K2: 参考折标 系数
F3: 其中:原材料 | G3: 其中：能源加工转换中不作为燃料、动力的投入 | H3: 其中：回收利用量 | I3: 其中:交通运输工具
B4: 原煤 | D4: 万吨 | E4: 0 | K4: 0.7143 | N4: 必填
B5: 洗精煤 | D5: 万吨 | E5: 0 | K5: 0.9 | N5: 选填
B6: 其它洗煤 | D6: 万吨 | E6: 0 | K6: 0.2-0.8 | N6: 不填
B7: 型煤 | D7: 万吨 | E7: 0 | K7: 0.5-0.7 | N7: 锁定
B8: 煤矸石 | D8: 万吨 | E8: 0 | K8: 1
B9: 焦炭 | D9: 万吨 | E9: 0 | K9: 0.9714
B10: 焦炉煤气 | D10: 亿立方米 | E10: 0 | K10: 5.714-6.143
B11: 高炉煤气 | D11: 亿立方米 | E11: 0 | K11: 1.286
B12: 转炉煤气 | D12: 亿立方米 | E12: 0 | K12: 2.714
B13: 其他煤气 | D13: 亿立方米 | E13: 0 | K13: 1.7-12.1
B14: 其他焦化产品 | D14: 万吨 | E14: 0 | K14: 1.1-1.5
B15: 原油 | D15: 万吨 | E15: 0 | K15: 1.4286
B16: 汽油 | D16: 万吨 | E16: 0 | K16: 1.4714
B17: 煤油 | D17: 万吨 | E17: 0 | K17: 1.4714
B18: 柴油 | D18: 万吨 | E18: 0 | K18: 1.4571
B19: 燃料油 | D19: 万吨 | E19: 0 | K19: 1.4286
B20: 石脑油 | D20: 万吨 | E20: 0 | K20: 1.5
B21: 润滑油 | D21: 万吨 | E21: 0 | K21: 1.4143
B22: 石蜡 | D22: 万吨 | E22: 0 | K22: 1.3648
B23: 溶剂油 | D23: 万吨 | E23: 0 | K23: 1.4672
B24: 石油沥青 | D24: 万吨 | E24: 0 | K24: 1.3307
B25: 石油焦 | D25: 万吨 | E25: 0 | K25: 1.0918
B26: 液化石油气 | D26: 万吨 | E26: 0 | K26: 1.7143
B27: 炼厂干气 | D27: 万吨 | E27: 0 | K27: 1.5714
B28: 其他石油制品 | D28: 万吨 | E28: 0 | K28: 1.0-1.4
B29: 天然气 | D29: 亿立方米 | E29: 0 | K29: 11.0-13.3
B30: 液化天然气 | D30: 万吨 | E30: 0 | K30: 1.7572
B31: 热力 | D31: 万百万千焦 | E31: 0 | K31: 0.0341
B32: 调入热力 | D32: 万百万千焦 | K32: 0.0341
B33: 电力 | D33: 亿千瓦时 | E33: 0 | K33: 1.229
K34: 3.66
B35: 其他能源 | D35: 万吨标煤 | E35: 0 | K35: 1
B36: 能源合计 | C36: 当量值 | D36: 吨标煤
C37: 等价值 | D37: 吨标煤
B38: 说明：1. ”电力、热力、燃气及水生产和供应业“包括“电力、热力的生产和供应业”、“燃气生产和供应业”以及“水的生产和供应业”。
B39: 2. 表中逻辑关系为：“能源消费总量”≥“其中：原材料”＋“其中：能源加工转换中不作为燃料、动力的投入”+“其中：回收利用量”+“其中：交通运输工具”。
B40: 3. 用于计算温室气体排放的能源消费量＝“能源消费总量”－“其中：原材料”－“其中：能源加工转换中不作为燃料、动力的投入”－“其中：回收利用量”－“其中：交通运输工具”。

Sheet E
B1: 建筑业能源活动水平数据表
B2: 能源名称 | D2: 计量单位 | E2: 能源消费总量 | G2: 采用折标 系数 | H2: 参考折标 系数
F3: 其中:交通运输工具
B4: 原煤 | D4: 万吨 | H4: 0.7143 | K4: 必填
B5: 洗精煤 | D5: 万吨 | H5: 0.9 | K5: 选填
B6: 其它洗煤 | D6: 万吨 | H6: 0.2-0.8 | K6: 不填
B7: 型煤 | D7: 万吨 | H7: 0.5-0.7 | K7: 锁定
B8: 煤矸石 | D8: 万吨标煤 | H8: 1
B9: 焦炭 | D9: 万吨 | H9: 0.9714
B10: 焦炉煤气 | D10: 亿立方米 | H10: 5.714-6.143
B11: 高炉煤气 | D11: 亿立方米 | H11: 1.286
B12: 转炉煤气 | D12: 亿立方米 | H12: 2.714
B13: 其他煤气 | D13: 亿立方米 | H13: 1.7-12.1
B14: 其他焦化产品 | D14: 万吨 | H14: 1.1-1.5
B15: 原油 | D15: 万吨 | H15: 1.4286
B16: 汽油 | D16: 万吨 | H16: 1.4714
B17: 煤油 | D17: 万吨 | H17: 1.4714
B18: 柴油 | D18: 万吨 | H18: 1.4571
B19: 燃料油 | D19: 万吨 | H19: 1.4286
B20: 石脑油 | D20: 万吨 | H20: 1.5
B21: 润滑油 | D21: 万吨 | H21: 1.4143
B22: 石蜡 | D22: 万吨 | H22: 1.3648
B23: 溶剂油 | D23: 万吨 | H23: 1.4672
B24: 石油沥青 | D24: 万吨 | H24: 1.3307
B25: 石油焦 | D25: 万吨 | H25: 1.0918
B26: 液化石油气 | D26: 万吨 | H26: 1.7143
B27: 炼厂干气 | D27: 万吨 | H27: 1.5714
B28: 其他石油制品 | D28: 万吨 | H28: 1.0-1.4
B29: 天然气 | D29: 亿立方米 | H29: 11.0-13.3
B30: 液化天然气 | D30: 万吨 | H30: 1.7572
B31: 热力 | D31: 万百万千焦 | H31: 0.0341
B32: 调入热力 | D32: 万百万千焦 | H32: 0.0341
B33: 电力 | D33: 亿千瓦时 | H33: 1.229
H34: 3.66
B35: 其他能源 | D35: 万吨标煤 | H35: 1
B36: 能源合计 | C36: 当量值 | D36: 吨标煤
C37: 等价值 | D37: 吨标煤
B38: 说明：1. “建筑业”包括“房屋和土木工程建筑业”、“建筑安装业”、“建筑装饰业”和“其他建筑业”。
B39: 2.表中逻辑关系为：“能源消费总量”≥“其中：交通运输工具”。

Sheet F
B1: 交通运输、仓储和邮政业能源活动水平数据表
B2: 能源名称 | D2: 计量单位 | E2: 能源消费总量 | G2: 采用折标 系数 | H2: 参考折标 系数
F3: 其中:交通运输工具
B4: 原煤 | D4: 万吨 | H4: 0.7143 | K4: 必填
B5: 洗精煤 | D5: 万吨 | H5: 0.9 | K5: 选填
B6: 其它洗煤 | D6: 万吨 | H6: 0.2-0.8 | K6: 不填
B7: 型煤 | D7: 万吨 | H7: 0.5-0.7 | K7: 锁定
B8: 煤矸石 | D8: 万吨标煤 | H8: 1
B9: 焦炭 | D9: 万吨 | H9: 0.9714
B10: 焦炉煤气 | D10: 亿立方米 | H10: 5.714-6.143
B11: 高炉煤气 | D11: 亿立方米 | H11: 1.286
B12: 转炉煤气 | D12: 亿立方米 | H12: 2.714
B13: 其他煤气 | D13: 亿立方米 | H13: 1.7-12.1
B14: 其他焦化产品 | D14: 万吨 | H14: 1.1-1.5
B15: 原油 | D15: 万吨 | H15: 1.4286
B16: 汽油 | D16: 万吨 | H16: 1.4714
B17: 煤油 | D17: 万吨 | H17: 1.4714
B18: 柴油 | D18: 万吨 | H18: 1.4571
B19: 燃料油 | D19: 万吨 | H19: 1.4286
B20: 石脑油 | D20: 万吨 | H20: 1.5
B21: 润滑油 | D21: 万吨 | H21: 1.4143
B22: 石蜡 | D22: 万吨 | H22: 1.3648
B23: 溶剂油 | D23: 万吨 | H23: 1.4672
B24: 石油沥青 | D24: 万吨 | H24: 1.3307
B25: 石油焦 | D25: 万吨 | H25: 1.0918
B26: 液化石油气 | D26: 万吨 | H26: 1.7143
B27: 炼厂干气 | D27: 万吨 | H27: 1.5714
B28: 其他石油制品 | D28: 万吨 | H28: 1.0-1.4
B29: 天然气 | D29: 亿立方米 | H29: 11.0-13.3
B30: 液化天然气 | D30: 万吨 | H30: 1.7572
B31: 热力 | D31: 万百万千焦 | H31: 0.0341
B32: 调入热力 | D32: 万百万千焦 | H32: 0.0341
B33: 电力 | D33: 亿千瓦时 | H33: 1.229
H34: 3.66
B35: 其他能源 | D35: 万吨标煤 | H35: 1
B36: 能源合计 | C36: 当量值 | D36: 吨标煤
C37: 等价值 | D37: 吨标煤
B38: 说明：1. 此表中“交通运输业”指运营交通。
B39: 2.“交通运输业”包括“市内加油站”、“铁路运输业”、“公路运输业”、“水路运输业”、“城市公共交通业”和“管道运输业”。
B40: 3.“其中：交通运输工具”不需要填写。

Sheet G
B1: 批发零售、住宿餐饮业能源统计表
B2: 能源名称 | D2: 计量单位 | E2: 能源消费总量 | G2: 采用折标 系数 | H2: 参考折标 系数
F3: 其中:交通运输工具
B4: 原煤 | D4: 万吨 | H4: 0.7143 | K4: 必填
B5: 洗精煤 | D5: 万吨 | H5: 0.9 | K5: 选填
B6: 其它洗煤 | D6: 万吨 | H6: 0.2-0.8 | K6: 不填
B7: 型煤 | D7: 万吨 | H7: 0.5-0.7 | K7: 锁定
B8: 煤矸石 | D8: 万吨标煤 | H8: 1
B9: 焦炭 | D9: 万吨 | H9: 0.9714
B10: 焦炉煤气 | D10: 亿立方米 | H10: 5.714-6.143
B11: 高炉煤气 | D11: 亿立方米 | H11: 1.286
B12: 转炉煤气 | D12: 亿立方米 | H12: 2.714
B13: 其他煤气 | D13: 亿立方米 | H13: 1.7-12.1
B14: 其他焦化产品 | D14: 万吨 | H14: 1.1-1.5
B15: 原油 | D15: 万吨 | H15: 1.4286
B16: 汽油 | D16: 万吨 | H16: 1.4714
B17: 煤油 | D17: 万吨 | H17: 1.4714
B18: 柴油 | D18: 万吨 | H18: 1.4571
B19: 燃料油 | D19: 万吨 | H19: 1.4286
B20: 石脑油 | D20: 万吨 | H20: 1.5
B21: 润滑油 | D21: 万吨 | H21: 1.4143
B22: 石蜡 | D22: 万吨 | H22: 1.3648
B23: 溶剂油 | D23: 万吨 | H23: 1.4672
B24: 石油沥青 | D24: 万吨 | H24: 1.3307
B25: 石油焦 | D25: 万吨 | H25: 1.0918
B26: 液化石油气 | D26: 万吨 | H26: 1.7143
B27: 炼厂干气 | D27: 万吨 | H27: 1.5714
B28: 其他石油制品 | D28: 万吨 | H28: 1.0-1.4
B29: 天然气 | D29: 亿立方米 | H29: 11.0-13.3
B30: 液化天然气 | D30: 万吨 | H30: 1.7572
B31: 热力 | D31: 万百万千焦 | H31: 0.0341
B32: 调入热力 | D32: 万百万千焦 | H32: 0.0341
B33: 电力 | D33: 亿千瓦时 | H33: 1.229
H34: 3.66
B35: 其他能源 | D35: 万吨标煤 | H35: 1
B36: 能源合计 | C36: 当量值 | D36: 吨标煤
C37: 等价值 | D37: 吨标煤
B38: 说明：1. “批发零售、住宿餐饮业”包括“批发零售业”、“住宿餐饮业”。
B39: 2.表中逻辑关系为：“能源消费总量”≥“其中：交通运输工具”。

Sheet H
B1: “其他”能源活动水平数据表
B2: 能源名称 | D2: 计量单位 | E2: 能源消费总量 | G2: 采用折标 系数 | H2: 参考折标 系数
F3: 其中:交通运输工具
B4: 原煤 | D4: 万吨 | H4: 0.7143 | K4: 必填
B5: 洗精煤 | D5: 万吨 | H5: 0.9 | K5: 选填
B6: 其它洗煤 | D6: 万吨 | H6: 0.2-0.8 | K6: 不填
B7: 型煤 | D7: 万吨 | H7: 0.5-0.7 | K7: 锁定
B8: 煤矸石 | D8: 万吨标煤 | H8: 1
B9: 焦炭 | D9: 万吨 | H9: 0.9714
B10: 焦炉煤气 | D10: 亿立方米 | H10: 5.714-6.143
B11: 高炉煤气 | D11: 亿立方米 | H11: 1.286
B12: 转炉煤气 | D12: 亿立方米 | H12: 2.714
B13: 其他煤气 | D13: 亿立方米 | H13: 1.7-12.1
B14: 其他焦化产品 | D14: 万吨 | H14: 1.1-1.5
B15: 原油 | D15: 万吨 | H15: 1.4286
B16: 汽油 | D16: 万吨 | H16: 1.4714
B17: 煤油 | D17: 万吨 | H17: 1.4714
B18: 柴油 | D18: 万吨 | H18: 1.4571
B19: 燃料油 | D19: 万吨 | H19: 1.4286
B20: 石脑油 | D20: 万吨 | H20: 1.5
B21: 润滑油 | D21: 万吨 | H21: 1.4143
B22: 石蜡 | D22: 万吨 | H22: 1.3648
B23: 溶剂油 | D23: 万吨 | H23: 1.4672
B24: 石油沥青 | D24: 万吨 | H24: 1.3307
B25: 石油焦 | D25: 万吨 | H25: 1.0918
B26: 液化石油气 | D26: 万吨 | H26: 1.7143
B27: 炼厂干气 | D27: 万吨 | H27: 1.5714
B28: 其他石油制品 | D28: 万吨 | H28: 1.0-1.4
B29: 天然气 | D29: 亿立方米 | H29: 11.0-13.3
B30: 液化天然气 | D30: 万吨 | H30: 1.7572
B31: 热力 | D31: 万百万千焦 | H31: 0.0341
B32: 调入热力 | D32: 万百万千焦 | H32: 0.0341
B33: 电力 | D33: 亿千瓦时 | H33: 1.229
H34: 3.66
B35: 其他能源 | D35: 万吨标煤 | H35: 1
B36: 能源合计 | C36: 当量值 | D36: 吨标煤
C37: 等价值 | D37: 吨标煤
B38: 说明：1.“其他”包括“信息传输、软件和信息技术服务业”、“金融业”、“房地产业”、“租赁和商务服务业”、“科学研究和技术服务业”、“水利、环境和公共设施管理业”、“居民服务、修理和其他服务业”、“教育”、“卫生和社会工作”、“文化、体育和娱乐业”、“公共管理、社会保障和社会组织”、“国际组织”。
B39: 2.表中逻辑关系为：“能源消费总量”≥“其中：交通运输工具”。

Sheet I
B1: 居民生活能源活动水平数据表
B2: 能源名称 | D2: 计量单位 | E2: 能源消费总量 | G2: 采用折标 系数 | H2: 参考折标 系数
F3: 其中:交通运输工具
B4: 原煤 | D4: 万吨 | H4: 0.7143 | K4: 必填
B5: 洗精煤 | D5: 万吨 | H5: 0.9 | K5: 选填
B6: 其它洗煤 | D6: 万吨 | H6: 0.2-0.8 | K6: 不填
B7: 型煤 | D7: 万吨 | H7: 0.5-0.7 | K7: 锁定
B8: 煤矸石 | D8: 万吨标煤 | H8: 1
B9: 焦炭 | D9: 万吨 | H9: 0.9714
B10: 焦炉煤气 | D10: 亿立方米 | H10: 5.714-6.143
B11: 高炉煤气 | D11: 亿立方米 | H11: 1.286
B12: 转炉煤气 | D12: 亿立方米 | H12: 2.714
B13: 其他煤气 | D13: 亿立方米 | H13: 1.7-12.1
B14: 其他焦化产品 | D14: 万吨 | H14: 1.1-1.5
B15: 原油 | D15: 万吨 | H15: 1.4286
B16: 汽油 | D16: 万吨 | H16: 1.4714
B17: 煤油 | D17: 万吨 | H17: 1.4714
B18: 柴油 | D18: 万吨 | H18: 1.4571
B19: 燃料油 | D19: 万吨 | H19: 1.4286
B20: 石脑油 | D20: 万吨 | H20: 1.5
B21: 润滑油 | D21: 万吨 | H21: 1.4143
B22: 石蜡 | D22: 万吨 | H22: 1.3648
B23: 溶剂油 | D23: 万吨 | H23: 1.4672
B24: 石油沥青 | D24: 万吨 | H24: 1.3307
B25: 石油焦 | D25: 万吨 | H25: 1.0918
B26: 液化石油气 | D26: 万吨 | H26: 1.7143
B27: 炼厂干气 | D27: 万吨 | H27: 1.5714
B28: 其他石油制品 | D28: 万吨 | H28: 1.0-1.4
B29: 天然气 | D29: 亿立方米 | H29: 11.0-13.3
B30: 液化天然气 | D30: 万吨 | H30: 1.7572
B31: 热力 | D31: 万百万千焦 | H31: 0.0341
B32: 调入热力 | D32: 万百万千焦 | H32: 0.0341
B33: 电力 | D33: 亿千瓦时 | H33: 1.229
H34: 3.66
B35: 其他能源 | D35: 万吨标煤 | H35: 1
B36: 能源合计 | C36: 当量值 | D36: 吨标煤
C37: 等价值 | D37: 吨标煤
B38: 说明：1.“居民生活“包括城镇居民生活和农村居民生活。
B39: 2.表中逻辑关系为：“能源消费总量”≥“其中：交通运输工具”。

Sheet J
B1: 生物质燃料燃烧活动水平数据表
C2: 活动水平数据（吨） | F2: 必填
B3: 秸秆 | F3: 选填
B4: 薪柴 | F4: 不填
B5: 木炭 | F5: 锁定
B6: 动物粪便

Sheet K
B1: 逃逸排放活动水平数据表
B2: 煤炭开采和矿后活动逃逸排放
B3: 活动水平 | E3: 活动水平数据 | F3: 活动水平单位 | I3: 必填
B4: 国有重点 | C4: 井工开采 | D4: 高瓦斯矿 | F4: 万吨 | I4: 选填
D5: 低瓦斯矿 | F5: 万吨 | I5: 不填
C6: 露天开采 | F6: 万吨 | I6: 锁定
C7: CH4回收利用 | F7: 立方米
B8: 国有地方 | C8: 井工开采 | D8: 高瓦斯矿 | F8: 万吨
D9: 低瓦斯矿 | F9: 万吨
C10: 露天开采 | F10: 万吨
C11: CH4回收利用 | F11: 立方米
B12: 乡镇（包括个体） | C12: 井工开采 | D12: 高瓦斯矿 | F12: 万吨
D13: 低瓦斯矿 | F13: 万吨
C14: 露天开采 | F14: 万吨
C15: CH4回收利用 | F15: 立方米
B16: 石油和天然气系统逃逸排放
B17: 活动水平 | E17: 活动水平数据 | F17: 活动水平单位
B18: 石油系统 | C18: 常规油开采 | D18: 井口装置 | F18: （装置）个数
D19: 单井储油装置 | F19: （装置）个数
D20: 转接站 | F20: （装置）个数
D21: 联合站 | F21: （装置）个数
C22: 稠油开采量 | F22: 万吨
C23: 原油储运量 | F23: 亿吨
C24: 原油炼制量 | F24: 亿吨
B25: 天然气系统 | C25: 天然气开采 | D25: 井口装置 | F25: （装置）个数
D26: 常规集气系统 | F26: （装置）个数
D27: 计量/配气站 | F27: （装置）个数
D28: 储气总站 | F28: （装置）个数
C29: 天然气加工处理量 | F29: 亿立方米
C30: 天然气输送 | D30: 增压站 | F30: （装置）个数
D31: 计量站 | F31: （装置）个数
D32: 管线（逆止阀） | F32: （装置）个数
C33: 天然气消费量 | F33: 亿立方米

Sheet C1
B1: 制造业能源统计表--钢铁
B2: 能源名称 | D2: 计量单位 | E2: 能源消费总量 | J2: 采用折标 系数 | K2: 参考折标 系数
F3: 其中:原材料 | G3: 其中：能源加工转换中不作为燃料、动力的投入 | H3: 其中：回收利用量 | I3: 其中:交通运输工具
B4: 原煤 | D4: 万吨 | K4: 0.7143
B5: 洗精煤 | D5: 万吨 | K5: 0.9 | N5: 必填
B6: 其它洗煤 | D6: 万吨 | K6: 0.2-0.8 | N6: 选填
B7: 型煤 | D7: 万吨 | K7: 0.5-0.7 | N7: 不填
B8: 煤矸石 | D8: 万吨 | K8: 1 | N8: 锁定
B9: 焦炭 | D9: 万吨 | K9: 0.9714
B10: 焦炉煤气 | D10: 亿立方米 | K10: 5.714-6.143
B11: 高炉煤气 | D11: 亿立方米 | K11: 1.286
B12: 转炉煤气 | D12: 亿立方米 | K12: 2.714
B13: 其他煤气 | D13: 亿立方米 | K13: 1.7-12.1
B14: 其他焦化产品 | D14: 万吨 | K14: 1.1-1.5
B15: 原油 | D15: 万吨 | K15: 1.4286
B16: 汽油 | D16: 万吨 | K16: 1.4714
B17: 煤油 | D17: 万吨 | K17: 1.4714
B18: 柴油 | D18: 万吨 | K18: 1.4571
B19: 燃料油 | D19: 万吨 | K19: 1.4286
B20: 石脑油 | D20: 万吨 | K20: 1.5
B21: 润滑油 | D21: 万吨 | K21: 1.4143
B22: 石蜡 | D22: 万吨 | K22: 1.3648
B23: 溶剂油 | D23: 万吨 | K23: 1.4672
B24: 石油沥青 | D24: 万吨 | K24: 1.3307
B25: 石油焦 | D25: 万吨 | K25: 1.0918
B26: 液化石油气 | D26: 万吨 | K26: 1.7143
B27: 炼厂干气 | D27: 万吨 | K27: 1.5714
B28: 其他石油制品 | D28: 万吨 | K28: 1.0-1.4
B29: 天然气 | D29: 亿立方米 | K29: 11.0-13.3
B30: 液化天然气 | D30: 万吨 | K30: 1.7572
B31: 热力 | D31: 万百万千焦 | K31: 0.0341
B32: 调入热力 | D32: 万百万千焦 | K32: 0.0341
B33: 电力 | D33: 亿千瓦时 | K33: 1.229
K34: 3.66
B35: 其他能源 | D35: 万吨标煤 | K35: 1
B36: 能源合计 | C36: 当量值 | D36: 吨标煤
C37: 等价值 | D37: 吨标煤
B38: 说明：1. 表中逻辑关系为：“能源消费总量”≥“其中：原材料”＋“其中：能源加工转换中不作为燃料、动力的投入”+“其中：回收利用量”+“其中：交通运输工具”。
B39: 2. 用于计算温室气体排放的能源消费量＝“能源消费总量”－“其中：原材料”－“其中：能源加工转换中不作为燃料、动力的投入”－“其中：回收利用量”－“其中：交通运输工具”。

Sheet C2
B1: 制造业能源统计表--水泥
B2: 能源名称 | D2: 计量单位 | E2: 能源消费总量 | J2: 采用折标 系数 | K2: 参考折标 系数
F3: 其中:原材料 | G3: 其中：能源加工转换中不作为燃料、动力的投入 | H3: 其中：回收利用量 | I3: 其中:交通运输工具
B4: 原煤 | D4: 万吨 | K4: 0.7143
B5: 洗精煤 | D5: 万吨 | K5: 0.9 | N5: 必填
B6: 其它洗煤 | D6: 万吨 | K6: 0.2-0.8 | N6: 选填
B7: 型煤 | D7: 万吨 | K7: 0.5-0.7 | N7: 不填
B8: 煤矸石 | D8: 万吨 | K8: 1 | N8: 锁定
B9: 焦炭 | D9: 万吨 | K9: 0.9714
B10: 焦炉煤气 | D10: 亿立方米 | K10: 5.714-6.143
B11: 高炉煤气 | D11: 亿立方米 | K11: 1.286
B12: 转炉煤气 | D12: 亿立方米 | K12: 2.714
B13: 其他煤气 | D13: 亿立方米 | K13: 1.7-12.1
B14: 其他焦化产品 | D14: 万吨 | K14: 1.1-1.5
B15: 原油 | D15: 万吨 | K15: 1.4286
B16: 汽油 | D16: 万吨 | K16: 1.4714
B17: 煤油 | D17: 万吨 | K17: 1.4714
B18: 柴油 | D18: 万吨 | K18: 1.4571
B19: 燃料油 | D19: 万吨 | K19: 1.4286
B20: 石脑油 | D20: 万吨 | K20: 1.5
B21: 润滑油 | D21: 万吨 | K21: 1.4143
B22: 石蜡 | D22: 万吨 | K22: 1.3648
B23: 溶剂油 | D23: 万吨 | K23: 1.4672
B24: 石油沥青 | D24: 万吨 | K24: 1.3307
B25: 石油焦 | D25: 万吨 | K25: 1.0918
B26: 液化石油气 | D26: 万吨 | K26: 1.7143
B27: 炼厂干气 | D27: 万吨 | K27: 1.5714
B28: 其他石油制品 | D28: 万吨 | K28: 1.0-1.4
B29: 天然气 | D29: 亿立方米 | K29: 11.0-13.3
B30: 液化天然气 | D30: 万吨 | K30: 1.7572
B31: 热力 | D31: 万百万千焦 | K31: 0.0341
B32: 调入热力 | D32: 万百万千焦 | K32: 0.0341
B33: 电力 | D33: 亿千瓦时 | K33: 1.229
K34: 3.66
B35: 其他能源 | D35: 万吨标煤 | K35: 1
B36: 能源合计 | C36: 当量值 | D36: 吨标煤
C37: 等价值 | D37: 吨标煤
B38: 说明：1. 表中逻辑关系为：“能源消费总量”≥“其中：原材料”＋“其中：能源加工转换中不作为燃料、动力的投入”+“其中：回收利用量”+“其中：交通运输工具”。
B39: 2. 用于计算温室气体排放的能源消费量＝“能源消费总量”－“其中：原材料”－“其中：能源加工转换中不作为燃料、动力的投入”－“其中：回收利用量”－“其中：交通运输工具”。

Sheet C3
B1: 制造业能源统计表--有色金属
B2: 能源名称 | D2: 计量单位 | E2: 能源消费总量 | J2: 采用折标 系数 | K2: 参考折标 系数
F3: 其中:原材料 | G3: 其中：能源加工转换中不作为燃料、动力的投入 | H3: 其中：回收利用量 | I3: 其中:交通运输工具
B4: 原煤 | D4: 万吨 | K4: 0.7143
B5: 洗精煤 | D5: 万吨 | K5: 0.9 | N5: 必填
B6: 其它洗煤 | D6: 万吨 | K6: 0.2-0.8 | N6: 选填
B7: 型煤 | D7: 万吨 | K7: 0.5-0.7 | N7: 不填
B8: 煤矸石 | D8: 万吨 | K8: 1 | N8: 锁定
B9: 焦炭 | D9: 万吨 | K9: 0.9714
B10: 焦炉煤气 | D10: 亿立方米 | K10: 5.714-6.143
B11: 高炉煤气 | D11: 亿立方米 | K11: 1.286
B12: 转炉煤气 | D12: 亿立方米 | K12: 2.714
B13: 其他煤气 | D13: 亿立方米 | K13: 1.7-12.1
B14: 其他焦化产品 | D14: 万吨 | K14: 1.1-1.5
B15: 原油 | D15: 万吨 | K15: 1.4286
B16: 汽油 | D16: 万吨 | K16: 1.4714
B17: 煤油 | D17: 万吨 | K17: 1.4714
B18: 柴油 | D18: 万吨 | K18: 1.4571
B19: 燃料油 | D19: 万吨 | K19: 1.4286
B20: 石脑油 | D20: 万吨 | K20: 1.5
B21: 润滑油 | D21: 万吨 | K21: 1.4143
B22: 石蜡 | D22: 万吨 | K22: 1.3648
B23: 溶剂油 | D23: 万吨 | K23: 1.4672
B24: 石油沥青 | D24: 万吨 | K24: 1.3307
B25: 石油焦 | D25: 万吨 | K25: 1.0918
B26: 液化石油气 | D26: 万吨 | K26: 1.7143
B27: 炼厂干气 | D27: 万吨 | K27: 1.5714
B28: 其他石油制品 | D28: 万吨 | K28: 1.0-1.4
B29: 天然气 | D29: 亿立方米 | K29: 11.0-13.3
B30: 液化天然气 | D30: 万吨 | K30: 1.7572
B31: 热力 | D31: 万百万千焦 | K31: 0.0341
B32: 调入热力 | D32: 万百万千焦 | K32: 0.0341
B33: 电力 | D33: 亿千瓦时 | K33: 1.229
K34: 3.66
B35: 其他能源 | D35: 万吨标煤 | K35: 1
B36: 能源合计 | C36: 当量值 | D36: 吨标煤
C37: 等价值 | D37: 吨标煤
B38: 说明：1. 表中逻辑关系为：“能源消费总量”≥“其中：原材料”＋“其中：能源加工转换中不作为燃料、动力的投入”+“其中：回收利用量”+“其中：交通运输工具”。
B39: 2. 用于计算温室气体排放的能源消费量＝“能源消费总量”－“其中：原材料”－“其中：能源加工转换中不作为燃料、动力的投入”－“其中：回收利用量”－“其中：交通运输工具”。

Sheet C4
B1: 制造业能源统计表--石油化工
B2: 能源名称 | D2: 计量单位 | E2: 能源消费总量 | J2: 采用折标 系数 | K2: 参考折标 系数
F3: 其中:原材料 | G3: 其中：能源加工转换中不作为燃料、动力的投入 | H3: 其中：回收利用量 | I3: 其中:交通运输工具
B4: 原煤 | D4: 万吨 | K4: 0.7143
B5: 洗精煤 | D5: 万吨 | K5: 0.9 | N5: 必填
B6: 其它洗煤 | D6: 万吨 | K6: 0.2-0.8 | N6: 选填
B7: 型煤 | D7: 万吨 | K7: 0.5-0.7 | N7: 不填
B8: 煤矸石 | D8: 万吨 | K8: 1 | N8: 锁定
B9: 焦炭 | D9: 万吨 | K9: 0.9714
B10: 焦炉煤气 | D10: 亿立方米 | K10: 5.714-6.143
B11: 高炉煤气 | D11: 亿立方米 | K11: 1.286
B12: 转炉煤气 | D12: 亿立方米 | K12: 2.714
B13: 其他煤气 | D13: 亿立方米 | K13: 1.7-12.1
B14: 其他焦化产品 | D14: 万吨 | K14: 1.1-1.5
B15: 原油 | D15: 万吨 | K15: 1.4286
B16: 汽油 | D16: 万吨 | K16: 1.4714
B17: 煤油 | D17: 万吨 | K17: 1.4714
B18: 柴油 | D18: 万吨 | K18: 1.4571
B19: 燃料油 | D19: 万吨 | K19: 1.4286
B20: 石脑油 | D20: 万吨 | K20: 1.5
B21: 润滑油 | D21: 万吨 | K21: 1.4143
B22: 石蜡 | D22: 万吨 | K22: 1.3648
B23: 溶剂油 | D23: 万吨 | K23: 1.4672
B24: 石油沥青 | D24: 万吨 | K24: 1.3307
B25: 石油焦 | D25: 万吨 | K25: 1.0918
B26: 液化石油气 | D26: 万吨 | K26: 1.7143
B27: 炼厂干气 | D27: 万吨 | K27: 1.5714
B28: 其他石油制品 | D28: 万吨 | K28: 1.0-1.4
B29: 天然气 | D29: 亿立方米 | K29: 11.0-13.3
B30: 液化天然气 | D30: 万吨 | K30: 1.7572
B31: 热力 | D31: 万百万千焦 | K31: 0.0341
B32: 调入热力 | D32: 万百万千焦 | K32: 0.0341
B33: 电力 | D33: 亿千瓦时 | K33: 1.229
K34: 3.66
B35: 其他能源 | D35: 万吨标煤 | K35: 1
B36: 能源合计 | C36: 当量值 | D36: 吨标煤
C37: 等价值 | D37: 吨标煤
B38: 说明：1. 表中逻辑关系为：“能源消费总量”≥“其中：原材料”＋“其中：能源加工转换中不作为燃料、动力的投入”+“其中：回收利用量”+“其中：交通运输工具”。
B39: 2. 用于计算温室气体排放的能源消费量＝“能源消费总量”－“其中：原材料”－“其中：能源加工转换中不作为燃料、动力的投入”－“其中：回收利用量”－“其中：交通运输工具”。

Sheet C5
B1: 制造业能源统计表--食品、饮料、烟草
B2: 能源名称 | D2: 计量单位 | E2: 能源消费总量 | J2: 采用折标 系数 | K2: 参考折标 系数
F3: 其中:原材料 | G3: 其中：能源加工转换中不作为燃料、动力的投入 | H3: 其中：回收利用量 | I3: 其中:交通运输工具
B4: 原煤 | D4: 万吨 | K4: 0.7143
B5: 洗精煤 | D5: 万吨 | K5: 0.9 | N5: 必填
B6: 其它洗煤 | D6: 万吨 | K6: 0.2-0.8 | N6: 选填
B7: 型煤 | D7: 万吨 | K7: 0.5-0.7 | N7: 不填
B8: 煤矸石 | D8: 万吨 | K8: 1 | N8: 锁定
B9: 焦炭 | D9: 万吨 | K9: 0.9714
B10: 焦炉煤气 | D10: 亿立方米 | K10: 5.714-6.143
B11: 高炉煤气 | D11: 亿立方米 | K11: 1.286
B12: 转炉煤气 | D12: 亿立方米 | K12: 2.714
B13: 其他煤气 | D13: 亿立方米 | K13: 1.7-12.1
B14: 其他焦化产品 | D14: 万吨 | K14: 1.1-1.5
B15: 原油 | D15: 万吨 | K15: 1.4286
B16: 汽油 | D16: 万吨 | K16: 1.4714
B17: 煤油 | D17: 万吨 | K17: 1.4714
B18: 柴油 | D18: 万吨 | K18: 1.4571
B19: 燃料油 | D19: 万吨 | K19: 1.4286
B20: 石脑油 | D20: 万吨 | K20: 1.5
B21: 润滑油 | D21: 万吨 | K21: 1.4143
B22: 石蜡 | D22: 万吨 | K22: 1.3648
B23: 溶剂油 | D23: 万吨 | K23: 1.4672
B24: 石油沥青 | D24: 万吨 | K24: 1.3307
B25: 石油焦 | D25: 万吨 | K25: 1.0918
B26: 液化石油气 | D26: 万吨 | K26: 1.7143
B27: 炼厂干气 | D27: 万吨 | K27: 1.5714
B28: 其他石油制品 | D28: 万吨 | K28: 1.0-1.4
B29: 天然气 | D29: 亿立方米 | K29: 11.0-13.3
B30: 液化天然气 | D30: 万吨 | K30: 1.7572
B31: 热力 | D31: 万百万千焦 | K31: 0.0341
B32: 调入热力 | D32: 万百万千焦 | K32: 0.0341
B33: 电力 | D33: 亿千瓦时 | K33: 1.229
K34: 3.66
B35: 其他能源 | D35: 万吨标煤 | K35: 1
B36: 能源合计 | C36: 当量值 | D36: 吨标煤
C37: 等价值 | D37: 吨标煤
B38: 说明：1. 表中逻辑关系为：“能源消费总量”≥“其中：原材料”＋“其中：能源加工转换中不作为燃料、动力的投入”+“其中：回收利用量”+“其中：交通运输工具”。
B39: 2. 用于计算温室气体排放的能源消费量＝“能源消费总量”－“其中：原材料”－“其中：能源加工转换中不作为燃料、动力的投入”－“其中：回收利用量”－“其中：交通运输工具”。

Sheet C6
B1: 制造业能源统计表--造纸、纸浆
B2: 能源名称 | D2: 计量单位 | E2: 能源消费总量 | J2: 采用折标 系数 | K2: 参考折标 系数
F3: 其中:原材料 | G3: 其中：能源加工转换中不作为燃料、动力的投入 | H3: 其中：回收利用量 | I3: 其中:交通运输工具
B4: 原煤 | D4: 万吨 | K4: 0.7143
B5: 洗精煤 | D5: 万吨 | K5: 0.9 | N5: 必填
B6: 其它洗煤 | D6: 万吨 | K6: 0.2-0.8 | N6: 选填
B7: 型煤 | D7: 万吨 | K7: 0.5-0.7 | N7: 不填
B8: 煤矸石 | D8: 万吨 | K8: 1 | N8: 锁定
B9: 焦炭 | D9: 万吨 | K9: 0.9714
B10: 焦炉煤气 | D10: 亿立方米 | K10: 5.714-6.143
B11: 高炉煤气 | D11: 亿立方米 | K11: 1.286
B12: 转炉煤气 | D12: 亿立方米 | K12: 2.714
B13: 其他煤气 | D13: 亿立方米 | K13: 1.7-12.1
B14: 其他焦化产品 | D14: 万吨 | K14: 1.1-1.5
B15: 原油 | D15: 万吨 | K15: 1.4286
B16: 汽油 | D16: 万吨 | K16: 1.4714
B17: 煤油 | D17: 万吨 | K17: 1.4714
B18: 柴油 | D18: 万吨 | K18: 1.4571
B19: 燃料油 | D19: 万吨 | K19: 1.4286
B20: 石脑油 | D20: 万吨 | K20: 1.5
B21: 润滑油 | D21: 万吨 | K21: 1.4143
B22: 石蜡 | D22: 万吨 | K22: 1.3648
B23: 溶剂油 | D23: 万吨 | K23: 1.4672
B24: 石油沥青 | D24: 万吨 | K24: 1.3307
B25: 石油焦 | D25: 万吨 | K25: 1.0918
B26: 液化石油气 | D26: 万吨 | K26: 1.7143
B27: 炼厂干气 | D27: 万吨 | K27: 1.5714
B28: 其他石油制品 | D28: 万吨 | K28: 1.0-1.4
B29: 天然气 | D29: 亿立方米 | K29: 11.0-13.3
B30: 液化天然气 | D30: 万吨 | K30: 1.7572
B31: 热力 | D31: 万百万千焦 | K31: 0.0341
B32: 调入热力 | D32: 万百万千焦 | K32: 0.0341
B33: 电力 | D33: 亿千瓦时 | K33: 1.229
K34: 3.66
B35: 其他能源 | D35: 万吨标煤 | K35: 1
B36: 能源合计 | C36: 当量值 | D36: 吨标煤
C37: 等价值 | D37: 吨标煤
B38: 说明：1. 表中逻辑关系为：“能源消费总量”≥“其中：原材料”＋“其中：能源加工转换中不作为燃料、动力的投入”+“其中：回收利用量”+“其中：交通运输工具”。
B39: 2. 用于计算温室气体排放的能源消费量＝“能源消费总量”－“其中：原材料”－“其中：能源加工转换中不作为燃料、动力的投入”－“其中：回收利用量”－“其中：交通运输工具”。

Sheet C7
B1: 制造业能源统计表--机械、电子
B2: 能源名称 | D2: 计量单位 | E2: 能源消费总量 | J2: 采用折标 系数 | K2: 参考折标 系数
F3: 其中:原材料 | G3: 其中：能源加工转换中不作为燃料、动力的投入 | H3: 其中：回收利用量 | I3: 其中:交通运输工具
B4: 原煤 | D4: 万吨 | K4: 0.7143
B5: 洗精煤 | D5: 万吨 | K5: 0.9 | N5: 必填
B6: 其它洗煤 | D6: 万吨 | K6: 0.2-0.8 | N6: 选填
B7: 型煤 | D7: 万吨 | K7: 0.5-0.7 | N7: 不填
B8: 煤矸石 | D8: 万吨 | K8: 1 | N8: 锁定
B9: 焦炭 | D9: 万吨 | K9: 0.9714
B10: 焦炉煤气 | D10: 亿立方米 | K10: 5.714-6.143
B11: 高炉煤气 | D11: 亿立方米 | K11: 1.286
B12: 转炉煤气 | D12: 亿立方米 | K12: 2.714
B13: 其他煤气 | D13: 亿立方米 | K13: 1.7-12.1
B14: 其他焦化产品 | D14: 万吨 | K14: 1.1-1.5
B15: 原油 | D15: 万吨 | K15: 1.4286
B16: 汽油 | D16: 万吨 | K16: 1.4714
B17: 煤油 | D17: 万吨 | K17: 1.4714
B18: 柴油 | D18: 万吨 | K18: 1.4571
B19: 燃料油 | D19: 万吨 | K19: 1.4286
B20: 石脑油 | D20: 万吨 | K20: 1.5
B21: 润滑油 | D21: 万吨 | K21: 1.4143
B22: 石蜡 | D22: 万吨 | K22: 1.3648
B23: 溶剂油 | D23: 万吨 | K23: 1.4672
B24: 石油沥青 | D24: 万吨 | K24: 1.3307
B25: 石油焦 | D25: 万吨 | K25: 1.0918
B26: 液化石油气 | D26: 万吨 | K26: 1.7143
B27: 炼厂干气 | D27: 万吨 | K27: 1.5714
B28: 其他石油制品 | D28: 万吨 | K28: 1.0-1.4
B29: 天然气 | D29: 亿立方米 | K29: 11.0-13.3
B30: 液化天然气 | D30: 万吨 | K30: 1.7572
B31: 热力 | D31: 万百万千焦 | K31: 0.0341
B32: 调入热力 | D32: 万百万千焦 | K32: 0.0341
B33: 电力 | D33: 亿千瓦时 | K33: 1.229
K34: 3.66
B35: 其他能源 | D35: 万吨标煤 | K35: 1
B36: 能源合计 | C36: 当量值 | D36: 吨标煤
C37: 等价值 | D37: 吨标煤
B38: 说明：1. 表中逻辑关系为：“能源消费总量”≥“其中：原材料”＋“其中：能源加工转换中不作为燃料、动力的投入”+“其中：回收利用量”+“其中：交通运输工具”。
B39: 2. 用于计算温室气体排放的能源消费量＝“能源消费总量”－“其中：原材料”－“其中：能源加工转换中不作为燃料、动力的投入”－“其中：回收利用量”－“其中：交通运输工具”。

Sheet C8
B1: 制造业能源统计表--纺织
B2: 能源名称 | D2: 计量单位 | E2: 能源消费总量 | J2: 采用折标 系数 | K2: 参考折标 系数
F3: 其中:原材料 | G3: 其中：能源加工转换中不作为燃料、动力的投入 | H3: 其中：回收利用量 | I3: 其中:交通运输工具
B4: 原煤 | D4: 万吨 | K4: 0.7143
B5: 洗精煤 | D5: 万吨 | K5: 0.9 | N5: 必填
B6: 其它洗煤 | D6: 万吨 | K6: 0.2-0.8 | N6: 选填
B7: 型煤 | D7: 万吨 | K7: 0.5-0.7 | N7: 不填
B8: 煤矸石 | D8: 万吨 | K8: 1 | N8: 锁定
B9: 焦炭 | D9: 万吨 | K9: 0.9714
B10: 焦炉煤气 | D10: 亿立方米 | K10: 5.714-6.143
B11: 高炉煤气 | D11: 亿立方米 | K11: 1.286
B12: 转炉煤气 | D12: 亿立方米 | K12: 2.714
B13: 其他煤气 | D13: 亿立方米 | K13: 1.7-12.1
B14: 其他焦化产品 | D14: 万吨 | K14: 1.1-1.5
B15: 原油 | D15: 万吨 | K15: 1.4286
B16: 汽油 | D16: 万吨 | K16: 1.4714
B17: 煤油 | D17: 万吨 | K17: 1.4714
B18: 柴油 | D18: 万吨 | K18: 1.4571
B19: 燃料油 | D19: 万吨 | K19: 1.4286
B20: 石脑油 | D20: 万吨 | K20: 1.5
B21: 润滑油 | D21: 万吨 | K21: 1.4143
B22: 石蜡 | D22: 万吨 | K22: 1.3648
B23: 溶剂油 | D23: 万吨 | K23: 1.4672
B24: 石油沥青 | D24: 万吨 | K24: 1.3307
B25: 石油焦 | D25: 万吨 | K25: 1.0918
B26: 液化石油气 | D26: 万吨 | K26: 1.7143
B27: 炼厂干气 | D27: 万吨 | K27: 1.5714
B28: 其他石油制品 | D28: 万吨 | K28: 1.0-1.4
B29: 天然气 | D29: 亿立方米 | K29: 11.0-13.3
B30: 液化天然气 | D30: 万吨 | K30: 1.7572
B31: 热力 | D31: 万百万千焦 | K31: 0.0341
B32: 调入热力 | D32: 万百万千焦 | K32: 0.0341
B33: 电力 | D33: 亿千瓦时 | K33: 1.229
K34: 3.66
B35: 其他能源 | D35: 万吨标煤 | K35: 1
B36: 能源合计 | C36: 当量值 | D36: 吨标煤
C37: 等价值 | D37: 吨标煤
B38: 说明：1. 表中逻辑关系为：“能源消费总量”≥“其中：原材料”＋“其中：能源加工转换中不作为燃料、动力的投入”+“其中：回收利用量”+“其中：交通运输工具”。
B39: 2. 用于计算温室气体排放的能源消费量＝“能源消费总量”－“其中：原材料”－“其中：能源加工转换中不作为燃料、动力的投入”－“其中：回收利用量”－“其中：交通运输工具”。

Sheet C-其他
B1: 制造业能源统计表--其他
B2: 能源名称 | D2: 计量单位 | E2: 能源消费总量 | J2: 采用折标 系数 | K2: 参考折标 系数
F3: 其中:原材料 | G3: 其中：能源加工转换中不作为燃料、动力的投入 | H3: 其中：回收利用量 | I3: 其中:交通运输工具
B4: 原煤 | D4: 万吨 | K4: 0.7143
B5: 洗精煤 | D5: 万吨 | K5: 0.9 | N5: 必填
B6: 其它洗煤 | D6: 万吨 | K6: 0.2-0.8 | N6: 选填
B7: 型煤 | D7: 万吨 | K7: 0.5-0.7 | N7: 不填
B8: 煤矸石 | D8: 万吨 | K8: 1 | N8: 锁定
B9: 焦炭 | D9: 万吨 | K9: 0.9714
B10: 焦炉煤气 | D10: 亿立方米 | K10: 5.714-6.143
B11: 高炉煤气 | D11: 亿立方米 | K11: 1.286
B12: 转炉煤气 | D12: 亿立方米 | K12: 2.714
B13: 其他煤气 | D13: 亿立方米 | K13: 1.7-12.1
B14: 其他焦化产品 | D14: 万吨 | K14: 1.1-1.5
B15: 原油 | D15: 万吨 | K15: 1.4286
B16: 汽油 | D16: 万吨 | K16: 1.4714
B17: 煤油 | D17: 万吨 | K17: 1.4714
B18: 柴油 | D18: 万吨 | K18: 1.4571
B19: 燃料油 | D19: 万吨 | K19: 1.4286
B20: 石脑油 | D20: 万吨 | K20: 1.5
B21: 润滑油 | D21: 万吨 | K21: 1.4143
B22: 石蜡 | D22: 万吨 | K22: 1.3648
B23: 溶剂油 | D23: 万吨 | K23: 1.4672
B24: 石油沥青 | D24: 万吨 | K24: 1.3307
B25: 石油焦 | D25: 万吨 | K25: 1.0918
B26: 液化石油气 | D26: 万吨 | K26: 1.7143
B27: 炼厂干气 | D27: 万吨 | K27: 1.5714
B28: 其他石油制品 | D28: 万吨 | K28: 1.0-1.4
B29: 天然气 | D29: 亿立方米 | K29: 11.0-13.3
B30: 液化天然气 | D30: 万吨 | K30: 1.7572
B31: 热力 | D31: 万百万千焦 | K31: 0.0341
B32: 调入热力 | D32: 万百万千焦 | K32: 0.0341
B33: 电力 | D33: 亿千瓦时 | K33: 1.229
K34: 3.66
B35: 其他能源 | D35: 万吨标煤 | K35: 1
B36: 能源合计 | C36: 当量值 | D36: 吨标煤
C37: 等价值 | D37: 吨标煤
B38: 说明：1. 表中逻辑关系为：“能源消费总量”≥“其中：原材料”＋“其中：能源加工转换中不作为燃料、动力的投入”+“其中：回收利用量”+“其中：交通运输工具”。
B39: 2. 用于计算温室气体排放的能源消费量＝“能源消费总量”－“其中：原材料”－“其中：能源加工转换中不作为燃料、动力的投入”－“其中：回收利用量”－“其中：交通运输工具”。

Sheet D1
B1: =能源数据录入导引表!G13 -> 公用电力部门 | C1: 部门能源活动水平数据表
B2: 能源名称 | D2: 计量单位 | E2: 能源消费总量 | J2: 采用折标 系数 | K2: 参考折标 系数
F3: 其中:原材料 | G3: 其中：能源加工转换中不作为燃料、动力的投入 | H3: 其中：回收利用量 | I3: 其中:交通运输工具
B4: 原煤 | D4: 万吨 | K4: 0.7143 | N4: 必填
B5: 洗精煤 | D5: 万吨 | K5: 0.9 | N5: 选填
B6: 其它洗煤 | D6: 万吨 | K6: 0.2-0.8 | N6: 不填
B7: 型煤 | D7: 万吨 | K7: 0.5-0.7 | N7: 锁定
B8: 煤矸石 | D8: 万吨 | K8: 1
B9: 焦炭 | D9: 万吨 | K9: 0.9714
B10: 焦炉煤气 | D10: 亿立方米 | K10: 5.714-6.143
B11: 高炉煤气 | D11: 亿立方米 | K11: 1.286
B12: 转炉煤气 | D12: 亿立方米 | K12: 2.714
B13: 其他煤气 | D13: 亿立方米 | K13: 1.7-12.1
B14: 其他焦化产品 | D14: 万吨 | K14: 1.1-1.5
B15: 原油 | D15: 万吨 | K15: 1.4286
B16: 汽油 | D16: 万吨 | K16: 1.4714
B17: 煤油 | D17: 万吨 | K17: 1.4714
B18: 柴油 | D18: 万吨 | K18: 1.4571
B19: 燃料油 | D19: 万吨 | K19: 1.4286
B20: 石脑油 | D20: 万吨 | K20: 1.5
B21: 润滑油 | D21: 万吨 | K21: 1.4143
B22: 石蜡 | D22: 万吨 | K22: 1.3648
B23: 溶剂油 | D23: 万吨 | K23: 1.4672
B24: 石油沥青 | D24: 万吨 | K24: 1.3307
B25: 石油焦 | D25: 万吨 | K25: 1.0918
B26: 液化石油气 | D26: 万吨 | K26: 1.7143
B27: 炼厂干气 | D27: 万吨 | K27: 1.5714
B28: 其他石油制品 | D28: 万吨 | K28: 1.0-1.4
B29: 天然气 | D29: 亿立方米 | K29: 11.0-13.3
B30: 液化天然气 | D30: 万吨 | K30: 1.7572
B31: 热力 | D31: 万百万千焦 | K31: 0.0341
B32: 调入热力 | D32: 万百万千焦 | K32: 0.0341
B33: 电力 | D33: 亿千瓦时 | K33: 1.229
K34: 3.66
B35: 其他能源 | D35: 万吨标煤 | K35: 1
B36: 能源合计 | C36: 当量值 | D36: 吨标煤
C37: 等价值 | D37: 吨标煤
B38: 说明：1. 表中逻辑关系为：“能源消费总量”≥“其中：原材料”＋“其中：能源加工转换中不作为燃料、动力的投入”+“其中：回收利用量”+“其中：交通运输工具”。
B39: 2. 用于计算温室气体排放的能源消费量＝“能源消费总量”－“其中：原材料”－“其中：能源加工转换中不作为燃料、动力的投入”－“其中：回收利用量”－“其中：交通运输工具”。

Sheet D2
B1: 公用热力行业能源活动水平数据表
B2: 能源名称 | D2: 计量单位 | E2: 能源消费总量 | J2: 采用折标 系数 | K2: 参考折标 系数
F3: 其中:原材料 | G3: 其中：能源加工转换中不作为燃料、动力的投入 | H3: 其中：回收利用量 | I3: 其中:交通运输工具
B4: 原煤 | D4: 万吨 | K4: 0.7143 | N4: 必填
B5: 洗精煤 | D5: 万吨 | K5: 0.9 | N5: 选填
B6: 其它洗煤 | D6: 万吨 | K6: 0.2-0.8 | N6: 不填
B7: 型煤 | D7: 万吨 | K7: 0.5-0.7 | N7: 锁定
B8: 煤矸石 | D8: 万吨 | K8: 1
B9: 焦炭 | D9: 万吨 | K9: 0.9714
B10: 焦炉煤气 | D10: 亿立方米 | K10: 5.714-6.143
B11: 高炉煤气 | D11: 亿立方米 | K11: 1.286
B12: 转炉煤气 | D12: 亿立方米 | K12: 2.714
B13: 其他煤气 | D13: 亿立方米 | K13: 1.7-12.1
B14: 其他焦化产品 | D14: 万吨 | K14: 1.1-1.5
B15: 原油 | D15: 万吨 | K15: 1.4286
B16: 汽油 | D16: 万吨 | K16: 1.4714
B17: 煤油 | D17: 万吨 | K17: 1.4714
B18: 柴油 | D18: 万吨 | K18: 1.4571
B19: 燃料油 | D19: 万吨 | K19: 1.4286
B20: 石脑油 | D20: 万吨 | K20: 1.5
B21: 润滑油 | D21: 万吨 | K21: 1.4143
B22: 石蜡 | D22: 万吨 | K22: 1.3648
B23: 溶剂油 | D23: 万吨 | K23: 1.4672
B24: 石油沥青 | D24: 万吨 | K24: 1.3307
B25: 石油焦 | D25: 万吨 | K25: 1.0918
B26: 液化石油气 | D26: 万吨 | K26: 1.7143
B27: 炼厂干气 | D27: 万吨 | K27: 1.5714
B28: 其他石油制品 | D28: 万吨 | K28: 1.0-1.4
B29: 天然气 | D29: 亿立方米 | K29: 11.0-13.3
B30: 液化天然气 | D30: 万吨 | K30: 1.7572
B31: 热力 | D31: 万百万千焦 | K31: 0.0341
B32: 调入热力 | D32: 万百万千焦 | K32: 0.0341
B33: 电力 | D33: 亿千瓦时 | K33: 1.229
K34: 3.66
B35: 其他能源 | D35: 万吨标煤 | K35: 1
B36: 能源合计 | C36: 当量值 | D36: 吨标煤
C37: 等价值 | D37: 吨标煤
B38: 说明：1. 表中逻辑关系为：“能源消费总量”≥“其中：原材料”＋“其中：能源加工转换中不作为燃料、动力的投入”+“其中：回收利用量”+“其中：交通运输工具”。
B39: 2. 用于计算温室气体排放的能源消费量＝“能源消费总量”－“其中：原材料”－“其中：能源加工转换中不作为燃料、动力的投入”－“其中：回收利用量”－“其中：交通运输工具”。

Sheet D3
B1: 石油、天然气开采与加工业能源活动水平数据表
B2: 能源名称 | D2: 计量单位 | E2: 能源消费总量 | J2: 采用折标 系数 | K2: 参考折标 系数
F3: 其中:原材料 | G3: 其中：能源加工转换中不作为燃料、动力的投入 | H3: 其中：回收利用量 | I3: 其中:交通运输工具
B4: 原煤 | D4: 万吨 | K4: 0.7143 | N4: 必填
B5: 洗精煤 | D5: 万吨 | K5: 0.9 | N5: 选填
B6: 其它洗煤 | D6: 万吨 | K6: 0.2-0.8 | N6: 不填
B7: 型煤 | D7: 万吨 | K7: 0.5-0.7 | N7: 锁定
B8: 煤矸石 | D8: 万吨 | K8: 1
B9: 焦炭 | D9: 万吨 | K9: 0.9714
B10: 焦炉煤气 | D10: 亿立方米 | K10: 5.714-6.143
B11: 高炉煤气 | D11: 亿立方米 | K11: 1.286
B12: 转炉煤气 | D12: 亿立方米 | K12: 2.714
B13: 其他煤气 | D13: 亿立方米 | K13: 1.7-12.1
B14: 其他焦化产品 | D14: 万吨 | K14: 1.1-1.5
B15: 原油 | D15: 万吨 | K15: 1.4286
B16: 汽油 | D16: 万吨 | K16: 1.4714
B17: 煤油 | D17: 万吨 | K17: 1.4714
B18: 柴油 | D18: 万吨 | K18: 1.4571
B19: 燃料油 | D19: 万吨 | K19: 1.4286
B20: 石脑油 | D20: 万吨 | K20: 1.5
B21: 润滑油 | D21: 万吨 | K21: 1.4143
B22: 石蜡 | D22: 万吨 | K22: 1.3648
B23: 溶剂油 | D23: 万吨 | K23: 1.4672
B24: 石油沥青 | D24: 万吨 | K24: 1.3307
B25: 石油焦 | D25: 万吨 | K25: 1.0918
B26: 液化石油气 | D26: 万吨 | K26: 1.7143
B27: 炼厂干气 | D27: 万吨 | K27: 1.5714
B28: 其他石油制品 | D28: 万吨 | K28: 1.0-1.4
B29: 天然气 | D29: 亿立方米 | K29: 11.0-13.3
B30: 液化天然气 | D30: 万吨 | K30: 1.7572
B31: 热力 | D31: 万百万千焦 | K31: 0.0341
B32: 调入热力 | D32: 万百万千焦 | K32: 0.0341
B33: 电力 | D33: 亿千瓦时 | K33: 1.229
K34: 3.66
B35: 其他能源 | D35: 万吨标煤 | K35: 1
B36: 能源合计 | C36: 当量值 | D36: 吨标煤
C37: 等价值 | D37: 吨标煤
B38: 说明：1. 表中逻辑关系为：“能源消费总量”≥“其中：原材料”＋“其中：能源加工转换中不作为燃料、动力的投入”+“其中：回收利用量”+“其中：交通运输工具”。
B39: 2. 用于计算温室气体排放的能源消费量＝“能源消费总量”－“其中：原材料”－“其中：能源加工转换中不作为燃料、动力的投入”－“其中：回收利用量”－“其中：交通运输工具”。

Sheet D4
B1: 固体燃料和其他能源工业能源活动水平数据表
B2: 能源名称 | D2: 计量单位 | E2: 能源消费总量 | J2: 采用折标 系数 | K2: 参考折标 系数
F3: 其中:原材料 | G3: 其中：能源加工转换中不作为燃料、动力的投入 | H3: 其中：回收利用量 | I3: 其中:交通运输工具
B4: 原煤 | D4: 万吨 | K4: 0.7143 | N4: 必填
B5: 洗精煤 | D5: 万吨 | K5: 0.9 | N5: 选填
B6: 其它洗煤 | D6: 万吨 | K6: 0.2-0.8 | N6: 不填
B7: 型煤 | D7: 万吨 | K7: 0.5-0.7 | N7: 锁定
B8: 煤矸石 | D8: 万吨 | K8: 1
B9: 焦炭 | D9: 万吨 | K9: 0.9714
B10: 焦炉煤气 | D10: 亿立方米 | K10: 5.714-6.143
B11: 高炉煤气 | D11: 亿立方米 | K11: 1.286
B12: 转炉煤气 | D12: 亿立方米 | K12: 2.714
B13: 其他煤气 | D13: 亿立方米 | K13: 1.7-12.1
B14: 其他焦化产品 | D14: 万吨 | K14: 1.1-1.5
B15: 原油 | D15: 万吨 | K15: 1.4286
B16: 汽油 | D16: 万吨 | K16: 1.4714
B17: 煤油 | D17: 万吨 | K17: 1.4714
B18: 柴油 | D18: 万吨 | K18: 1.4571
B19: 燃料油 | D19: 万吨 | K19: 1.4286
B20: 石脑油 | D20: 万吨 | K20: 1.5
B21: 润滑油 | D21: 万吨 | K21: 1.4143
B22: 石蜡 | D22: 万吨 | K22: 1.3648
B23: 溶剂油 | D23: 万吨 | K23: 1.4672
B24: 石油沥青 | D24: 万吨 | K24: 1.3307
B25: 石油焦 | D25: 万吨 | K25: 1.0918
B26: 液化石油气 | D26: 万吨 | K26: 1.7143
B27: 炼厂干气 | D27: 万吨 | K27: 1.5714
B28: 其他石油制品 | D28: 万吨 | K28: 1.0-1.4
B29: 天然气 | D29: 亿立方米 | K29: 11.0-13.3
B30: 液化天然气 | D30: 万吨 | K30: 1.7572
B31: 热力 | D31: 万百万千焦 | K31: 0.0341
B32: 调入热力 | D32: 万百万千焦 | K32: 0.0341
B33: 电力 | D33: 亿千瓦时 | K33: 1.229
K34: 3.66
B35: 其他能源 | D35: 万吨标煤 | K35: 1
B36: 能源合计 | C36: 当量值 | D36: 吨标煤
C37: 等价值 | D37: 吨标煤
B38: 说明：1. 表中逻辑关系为：“能源消费总量”≥“其中：原材料”＋“其中：能源加工转换中不作为燃料、动力的投入”+“其中：回收利用量”+“其中：交通运输工具”。
B39: 2. 用于计算温室气体排放的能源消费量＝“能源消费总量”－“其中：原材料”－“其中：能源加工转换中不作为燃料、动力的投入”－“其中：回收利用量”－“其中：交通运输工具”。

Sheet 名称代码 (hidden)
B2: CO2 | C2: CH4 | D2: N2O | E2: HFCs | N2: PFCs | P2: SF6
E3: HFC-23 | F3: HFC-32 | G3: HFC-125 | H3: HFC-134a | I3: HFC-143a | J3: HFC-152a | K3: HFC-227ea | L3: HFC-236fa | M3: HFC-245fa | N3: CF4 | O3: C2F6
A4: 1995年 IPCC第二次报告 | B4: 1 | C4: 21 | D4: 310 | E4: 11700 | F4: 650 | G4: 2800 | H4: 1300 | I4: 3800 | J4: 140 | K4: 2900 | L4: 6300 | N4: 6500 | O4: 9200 | P4: 23900
A5: 2001年 IPCC第三次报告 | B5: 1 | C5: 23 | D5: 296 | E5: 12000 | F5: 550 | G5: 3400 | H5: 1300 | I5: 4300 | J5: 120 | K5: 3500 | L5: 9400 | M5: 950 | N5: 5700 | O5: 11900 | P5: 22200
A6: 2007年 IPCC第四次报告 | B6: 1 | C6: 25 | D6: 298 | E6: 14800 | F6: 675 | G6: 3500 | H6: 1430 | I6: 4470 | J6: 124 | K6: 3220 | L6: 9810 | M6: 1030 | N6: 7390 | O6: 9200 | P6: 22800
A8: 编制年份 | B8: 省份 | C8: 地区 | E8: 省份 | F8: 农业N2O区域 | H8: 简单数据收集option
A9: 2000
A10: 2001 | B10: 北京 | C10: 华北 | E10: 北京 | F10: III区 | H10: 选择一
A11: 2002 | B11: 天津 | C11: 华北 | E11: 天津 | F11: III区 | H11: 选择二
A12: 2003 | B12: 河北 | C12: 华北 | E12: 河北 | F12: III区 | J12: =VLOOKUP(主菜单!J29,名称代码!A4:P6,5) -> 11700
A13: 2004 | B13: 山西 | C13: 华北 | E13: 山西 | F13: I区
A14: 2005 | B14: 内蒙古西 | C14: 华北 | E14: 内蒙古西 | F14: I区
A15: 2006 | B15: 内蒙古东 | C15: 东北 | E15: 内蒙古东 | F15: I区
A16: 2007 | B16: 辽宁 | C16: 东北 | E16: 辽宁 | F16: II区
A17: 2008 | B17: 吉林 | C17: 东北 | E17: 吉林 | F17: II区
A18: 2009 | B18: 黑龙江 | C18: 东北 | E18: 黑龙江 | F18: II区
A19: 2010 | B19: 上海 | C19: 华东 | E19: 上海 | F19: IV区
A20: 2011 | B20: 江苏 | C20: 华东 | E20: 江苏 | F20: IV区
A21: 2012 | B21: 浙江 | C21: 华东 | E21: 浙江 | F21: IV区
A22: 2013 | B22: 安徽 | C22: 华东 | E22: 安徽 | F22: IV区
A23: 2014 | B23: 福建 | C23: 华东 | E23: 福建 | F23: V区
A24: 2015 | B24: 江西 | C24: 华东 | E24: 江西 | F24: IV区
A25: 2016 | B25: 山东 | C25: 华东 | E25: 山东 | F25: III区
A26: 2017 | B26: 河南 | C26: 华中 | E26: 河南 | F26: III区
A27: 2018 | B27: 湖北 | C27: 华中 | E27: 湖北 | F27: IV区
A28: 2019 | B28: 湖南 | C28: 华中 | E28: 湖南 | F28: IV区
A29: 2020 | B29: 广东 | C29: 华南 | E29: 广东 | F29: V区
A30: 2021 | B30: 广西 | C30: 华南 | E30: 广西 | F30: V区
A31: 2022 | B31: 海南 | C31: 华南 | E31: 海南 | F31: V区
A32: 2023 | B32: 重庆 | C32: 西南 | E32: 重庆 | F32: IV区
A33: 2024 | B33: 四川 | C33: 西南 | E33: 四川 | F33: IV区
A34: 2025 | B34: 贵州 | C34: 西南 | E34: 贵州 | F34: VI区
A35: 2026 | B35: 云南 | C35: 西南 | E35: 云南 | F35: VI区
A36: 2027 | B36: 陕西 | C36: 西北 | E36: 陕西 | F36: I区
A37: 2028 | B37: 甘肃 | C37: 西北 | E37: 甘肃 | F37: I区
A38: 2029 | B38: 青海 | C38: 西北 | E38: 青海 | F38: I区
A39: 2030 | B39: 宁夏 | C39: 西北 | E39: 宁夏 | F39: I区
B40: 新疆 | C40: 西北 | E40: 新疆 | F40: I区

Sheet 交通详细数据
B1: 交通能源统计表
B2: 能源名称 | D2: 计量单位 | E2: 交通总计 | AF2: 采用折标 系数 | AG2: 参考折标 系数
F3: 运营总计 | X3: 非运营总计
G4: 道路 | O4: 轨道 | S4: 民航 | U4: 水运 | Y4: 道路 | AE4: 民航
G5: 出租车 | I5: 公交车 | K5: 城市内其他 | M5: 城际 客运 | N5: 城际 货运 | O5: 城市内地铁/轻轨 | P5: 城际轻轨 | Q5: 火车 客运 | R5: 火车 货运 | S5: 客运 | T5: 货运 | U5: 城市内水运 | V5: 城际客运 | W5: 城际货运 | Y5: 摩托车 | AA5: 私家车 | AC5: 机构用车 | AE5: 私人 飞机
G6: 范围一 | H6: 范围三 | I6: 范围一 | J6: 范围三 | K6: 范围一 | L6: 范围三 | M6: 范围三 | N6: 范围三 | O6: 范围一 | P6: 范围三 | Q6: 范围三 | R6: 范围三 | S6: 范围三 | T6: 范围三 | U6: 范围一 | V6: 范围三 | W6: 范围三 | Y6: 范围一 | Z6: 范围三 | AA6: 范围一 | AB6: 范围三 | AC6: 范围一 | AD6: 范围三 | AE6: 范围三
B7: 原煤 | D7: 万吨 | AG7: 0.7143
B8: 洗精煤 | D8: 万吨 | AG8: 0.9
B9: 其它洗煤 | D9: 万吨 | AG9: 0.2-0.8
B10: 型煤 | D10: 万吨 | AG10: 0.5-0.7
B11: 煤矸石 | D11: 万吨标煤 | AG11: 1
B12: 焦炭 | D12: 万吨 | AG12: 0.9714
B13: 焦炉煤气 | D13: 亿立方米 | AG13: 5.714-6.143
B14: 高炉煤气 | D14: 亿立方米 | AG14: 1.286
B15: 转炉煤气 | D15: 亿立方米 | AG15: 2.714
B16: 其他煤气 | D16: 亿立方米 | AG16: 1.7-12.1
B17: 其他焦化产品 | D17: 万吨 | AG17: 1.1-1.5
B18: 原油 | D18: 万吨 | AG18: 1.4286
B19: 汽油 | D19: 万吨 | E19: =F19+X19 -> 0 | F19: =SUM(H19:W19) -> 0 | X19: =SUM(Y19:AE19) -> 0 | AG19: 1.4714
B20: 煤油 | D20: 万吨 | E20: =F20+X20 -> 0 | F20: =SUM(H20:W20) -> 0 | X20: =SUM(Y20:AE20) -> 0 | AG20: 1.4714
B21: 柴油 | D21: 万吨 | E21: =F21+X21 -> 0 | F21: =SUM(H21:W21) -> 0 | X21: 0 | AG21: 1.4571
B22: 燃料油 | D22: 万吨 | E22: =F22+X22 -> 0 | F22: =SUM(H22:W22) -> 0 | X22: 0 | AG22: 1.4286
B23: 石脑油 | D23: 万吨 | AG23: 1.5
B24: 润滑油 | D24: 万吨 | AG24: 1.4143
B25: 石蜡 | D25: 万吨 | AG25: 1.3648
B26: 溶剂油 | D26: 万吨 | AG26: 1.4672
B27: 石油沥青 | D27: 万吨 | AG27: 1.3307
B28: 石油焦 | D28: 万吨 | AG28: 1.0918
B29: 液化石油气 | D29: 万吨 | E29: =F29+X29 -> 0 | F29: =SUM(H29:W29) -> 0 | X29: =SUM(Y29:AE29) -> 0 | AG29: 1.7143
B30: 炼厂干气 | D30: 万吨 | AG30: 1.5714
B31: 其他石油制品 | D31: 万吨 | AG31: 1.0-1.4
B32: 天然气 | D32: 亿立方米 | E32: =F32+X32 -> 0 | F32: =SUM(H32:W32) -> 0 | X32: =SUM(Y32:AE32) -> 0 | AG32: 11.0-13.3
B33: 液化天然气 | D33: 万吨 | E33: =F33+X33 -> 0 | F33: =SUM(H33:W33) -> 0 | X33: =SUM(Y33:AE33) -> 0 | AG33: 1.7572
B34: 热力 | D34: 万百万千焦 | AG34: 0.0341
B35: 调入热力
B36: 电力 | D36: 亿千瓦时 | E36: =F36+X36 -> 0 | F36: =SUM(H36:W37) -> 0 | X36: =SUM(Y36:AE37) -> 0 | AG36: 1.229
AG37: 3.66
B38: 其他能源 | D38: 万吨标煤 | E38: =F38+X38 -> 0 | F38: =SUM(H38:W38) -> 0 | X38: =SUM(Y38:AE38) -> 0 | AG38: 1
B39: 能源合计 | C39: 当量值 | D39: 吨标煤
C40: 等价值 | D40: 吨标煤
B41: 说明：1.此表适用于“详细数据收集”中的交通领域。
B42: 2.表中逻辑关系为：“交通总计”＝“运营总计”＋“非运营总计”，
B43: “运营总计”＝“道路”＋“轨道”＋“民航”＋“水运”，
B44: “非运营总计”＝“道路”＋“民航”。
B45: 3.如《指南》4.1 活动活动水平数据->能源活动水平数据->（1）化石燃料燃烧活动水平数据->详细数据收集->②交通 中所述，出租车、公交车、城市内其他、摩托车、私家车和机构用车可能同时存在“范围一”
B46: 和“范围三”排放，需要通过调研进行区分。表中绿色单元格为选填部分，代表上述交通类型的“范围三”排放，如城市不希望区分上述交通类型的“范围一”和“范围三”排放，则只需填写“范围一” 一列数据，
B47: 工具将视所有排放视为“范围一”排放。

Sheet 信息项
B1: 信息项
D2: 活动水平 | E2: 单位 | H2: 必填
B3: 城市电力净调入量 | E3: 亿千瓦时 | H3: 选填
B4: 城市热力净调入量 | E4: 万百万千焦 | H4: 不填
B5: 加油站/加气站数据 | C5: 汽油 | E5: 万吨 | H5: 锁定
C6: 柴油 | E6: 万吨
C7: 液化天然气 | E7: 万吨
C8: 液化石油气 | E8: 万吨
B9: 注1：净调入量是指调入量减去调出量。

Sheet 排放因子录入导引表
B1: 排放因子录入导引表
B2: 排放因子录入及查询 | C2: 能源活动排放因子
C3: 能源排放因子
C4: 能源排放因子——电和热
C5: 生物燃料排放因子
C6: 逃逸排放排放因子
C7: 工业过程排放因子
C8: 农业活动排放因子
C9: 土地利用变化和林业排放因子
C10: 废弃物排放因子
B11: 注意 | C11: 如希望使用实测排放因子，则在"自定义排放因子“单元格中填入数据，否则将”自定义排放因子“一项空缺，工具将自动使用默认排放因子和排放系数。

Sheet 能源排放因子
B1: 能源排放因子
C2: 能源品种 | D2: CO2排放因子 单位 | E2: CH4排放因子 单位 | F2: N2O排放因子 单位 | G2: 实测 CO2 排放因子 | H2: 实测 CH4 排放因子 | I2: 实测 N2O 排放因子 | J2: 默认CO2 排放因子 | K2: 默认CH4排放因子 | O2: 默认N2O 排放因子
K3: 能源行业 | L3: 制造业和 建筑业 | M3: 商业和 机构 | N3: 住宅和 农林牧渔业
B4: 煤油气 | C4: 原煤 | D4: 吨CO2/吨 | E4: 克CH4/吨 | F4: 克N2O/吨 | J4: 1.981 | K4: 20.908 | L4: 209.08 | M4: 209.08 | N4: 6272.4 | O4: 31.362 | R4: 必填
C5: 洗精煤 | D5: 吨CO2/吨 | E5: 克CH4/吨 | F5: 克N2O/吨 | J5: 2.405 | K5: 26.344 | L5: 263.44 | M5: 263.44 | N5: 7903.2 | O5: 39.516 | R5: 选填
C6: 其它洗煤 | D6: 吨CO2/吨 | E6: 克CH4/吨 | F6: 克N2O/吨 | J6: 0.955 | K6: 10.454 | L6: 104.54 | M6: 104.54 | N6: 3136.2 | O6: 15.681 | R6: 不填
C7: 型煤 | D7: 吨CO2/吨 | E7: 克CH4/吨 | F7: 克N2O/吨 | J7: 1.95 | K7: 17.584 | L7: 175.84 | M7: 175.84 | N7: 5275.2 | O7: 26.376 | R7: 锁定
C8: 煤矸石 | D8: 吨CO2/吨标准煤 | E8: 克CH4/吨标准煤 | F8: 克N2O/吨标准煤 | J8: 2.86 | K8: 29.27061459 | L8: 292.7061459 | M8: 292.7061459 | N8: 8781.184376 | O8: 43.90592188
C9: 焦炭 | D9: 吨CO2/吨 | E9: 克CH4/吨 | F9: 克N2O/吨 | J9: 2.86 | K9: 28.435 | L9: 284.35 | M9: 284.35 | N9: 8530.5 | O9: 42.6525
C10: 焦炉煤气 | D10: 吨CO2/万立方米 | E10: 克CH4/万立方米 | F10: 克N2O/万立方米 | J10: 8.555 | K10: 173.54 | L10: 173.54 | M10: 867.7 | N10: 867.7 | O10: 17.354
C11: 高炉煤气 | D11: 吨CO2/万立方米 | E11: 克CH4/万立方米 | F11: 克N2O/万立方米 | J11: 9.784 | K11: 37.688 | L11: 37.688 | M11: 188.44 | N11: 188.44 | O11: 3.7688
C12: 转炉煤气 | D12: 吨CO2/万立方米 | E12: 克CH4/万立方米 | F12: 克N2O/万立方米 | J12: 2.773344533 | K12: 79.44044799 | L12: 794.4044799 | M12: 794.4044799 | N12: 23832.1344 | O12: 119.160672
C13: 其他煤气 | D13: 吨CO2/万立方米 | E13: 克CH4/万立方米 | F13: 克N2O/万立方米 | J13: 9.968 | K13: 202.218 | L13: 202.218 | M13: 1011.09 | N13: 1011.09 | O13: 20.2218
C14: 其他焦化产品 | D14: 吨CO2/吨 | E14: 克CH4/吨 | F14: 克N2O/吨 | J14: 3.833 | K14: 38.099 | L14: 380.99 | M14: 380.99 | N14: 11429.7 | O14: 57.1485
C15: 原油 | D15: 吨CO2/吨 | E15: 克CH4/吨 | F15: 克N2O/吨 | J15: 3.02 | K15: 125.448 | L15: 125.448 | M15: 418.16 | N15: 418.16 | O15: 25.0896
C16: 汽油 | D16: 吨CO2/吨 | E16: 克CH4/吨 | F16: 克N2O/吨 | J16: 2.925 | K16: 129.21 | L16: 129.21 | M16: 430.7 | N16: 430.7 | O16: 25.842
C17: 煤油 | D17: 吨CO2/吨 | E17: 克CH4/吨 | F17: 克N2O/吨 | J17: 3.033 | K17: 129.21 | L17: 129.21 | M17: 430.7 | N17: 430.7 | O17: 25.842
C18: 柴油 | D18: 吨CO2/吨 | E18: 克CH4/吨 | F18: 克N2O/吨 | J18: 3.096 | K18: 127.956 | L18: 127.956 | M18: 426.52 | N18: 426.52 | O18: 25.5912
C19: 燃料油 | D19: 吨CO2/吨 | E19: 克CH4/吨 | F19: 克N2O/吨 | J19: 3.17 | K19: 125.448 | L19: 125.448 | M19: 418.16 | N19: 418.16 | O19: 25.0896
C20: 石脑油 | D20: 吨CO2/吨 | E20: 克CH4/吨 | F20: 克N2O/吨 | J20: 4.1600168 | K20: 43.90592188 | L20: 439.0592188 | M20: 439.0592188 | N20: 13171.77656 | O20: 65.85888282
C21: 润滑油 | D21: 吨CO2/吨 | E21: 克CH4/吨 | F21: 克N2O/吨 | J21: 3.922341173 | K21: 41.39743021 | L21: 413.9743021 | M21: 413.9743021 | N21: 12419.22906 | O21: 62.09614532
C22: 石蜡 | D22: 吨CO2/吨 | E22: 克CH4/吨 | F22: 克N2O/吨 | J22: 3.785060619 | K22: 39.94853479 | L22: 399.4853479 | M22: 399.4853479 | N22: 11984.56044 | O22: 59.92280218
C23: 溶剂油 | D23: 吨CO2/吨 | E23: 克CH4/吨 | F23: 克N2O/吨 | J23: 4.069051099 | K23: 42.94584572 | L23: 429.4584572 | M23: 429.4584572 | N23: 12883.75372 | O23: 64.41876858
C24: 石油沥青 | D24: 吨CO2/吨 | E24: 克CH4/吨 | F24: 克N2O/吨 | J24: 3.69048957 | K24: 38.95040683 | L24: 389.5040683 | M24: 389.5040683 | N24: 11685.12205 | O24: 58.42561025
C25: 石油焦 | D25: 吨CO2/吨 | E25: 克CH4/吨 | F25: 克N2O/吨 | J25: 3.027937561 | K25: 31.95765701 | L25: 319.5765701 | M25: 319.5765701 | N25: 9587.297102 | O25: 47.93648551
C26: 液化石油气 | D26: 吨CO2/吨 | E26: 克CH4/吨 | F26: 克N2O/吨 | J26: 3.101 | K26: 50.179 | L26: 50.179 | M26: 250.895 | N26: 250.895 | O26: 5.0179
C27: 炼厂干气 | D27: 吨CO2/吨 | E27: 克CH4/吨 | F27: 克N2O/吨 | J27: 3.012 | K27: 46.055 | L27: 46.055 | M27: 230.275 | N27: 230.275 | O27: 4.6055
C28: 其他石油制品 | D28: 吨CO2/吨 | E28: 克CH4/吨 | F28: 克N2O/吨 | J28: 2.527 | K28: 105.504 | L28: 105.504 | M28: 351.68 | N28: 351.68 | O28: 21.1008
C29: 天然气 | D29: 吨CO2/万立方米 | E29: 克CH4/万立方米 | F29: 克N2O/万立方米 | J29: 21.622 | K29: 389.31 | L29: 389.31 | M29: 1946.55 | N29: 1946.55 | O29: 38.931
C30: 液化天然气 | D30: 吨CO2/万吨 | E30: 克CH4/万吨 | F30: 克N2O/万吨 | J30: 2.889 | K30: 51.498 | L30: 51.498 | M30: 257.49 | N30: 257.49 | O30: 5.1498
B31: 电、热 | C31: 热力 | D31: 吨CO2/百万千焦耳 | E31: 克CH4/百万千焦耳 | F31: 克N2O/百万千焦耳 | J31: 0.1441490182 | K31: 1.310557883 | O31: 1.669590823
C32: 外调热力 | D32: 吨CO2/百万千焦耳 | E32: 克CH4/百万千焦耳 | F32: 克N2O/百万千焦耳 | J32: =J31 -> 0.1441490182 | K32: =K31 -> 1.310557883 | O32: =O31 -> 1.669590823
C33: 电力 | D33: 吨CO2/万千瓦时 | E33: 克CH4/万千瓦时 | F33: 克N2O/万千瓦时 | J33: 7.735690485 | K33: 81.49805121 | O33: 114.2227872
B35: 其他能源（标煤计） | D35: 吨CO2/吨标煤 | E35: 克CH4/吨标煤 | F35: 克N2O/吨标煤 | J35: 2.773344533 | K35: 29.27061459 | L35: 292.7061459 | M35: 292.7061459 | N35: 8781.184376 | O35: 43.90592188
B36: 数据来源：WRI，《能源消耗引起的温室气体排放计算工具指南（2.1版）》
B37: 说明：电、热排放因子为根据城市所在省份和核算年度从“二次能源排放因子”数据表格中调用的数据。
C59: 其他燃料
C61: 生物质能 | D61: 吨CO2/吨标准煤 | E61: 克CH4/吨标准煤 | F61: 克N2O/吨标准煤 | J61: 2.933 | K61: 879.2 | O61: 117.22
C62: 工业废料 | D62: 吨CO2/吨标准煤 | J62: 3.772
C63: 城市固体垃圾 | D63: 吨CO2/吨标准煤 | J63: 0.967

Sheet 二次能源排放因子
B1: 电、热排放因子
B2: 地区 | C2: 实测排放因子 | K2: 默认排放因子 | BI2: 必填
C3: 电网排放因子 | G3: 供热排放因子 | K3: 电网排放因子 | AI3: 供热排放因子 | BI3: 选填
C4: 核算年份 | G4: 核算年份 | K4: 2006年 | O4: 2007年 | S4: 2008 | W4: 2009 | AA4: 2010 | AE4: 2011 | AI4: 2006年 | AM4: 2007年 | AQ4: 2008 | AU4: 2009 | AY4: 2010 | BC4: 2011 | BI4: 不填
C5: CO2 | D5: CH4 | E5: N2O | F5: CO2 当量 | G5: CO2 | H5: CH4 | I5: N2O | J5: CO2 当量 | K5: CO2 | L5: CH4 | M5: N2O | N5: CO2 当量 | O5: CO2 | P5: CH4 | Q5: N2O | R5: CO2 当量 | S5: CO2 | T5: CH4 | U5: N2O | V5: CO2 当量 | W5: CO2 | X5: CH4 | Y5: N2O | Z5: CO2 当量 | AA5: CO2 | AB5: CH4 | AC5: N2O | AD5: CO2 当量 | AE5: CO2 | AF5: CH4 | AG5: N2O | AH5: CO2 当量 | AI5: CO2 | AJ5: CH4 | AK5: N2O | AL5: CO2 当量 | AM5: CO2 | AN5: CH4 | AO5: N2O | AP5: CO2 当量 | AQ5: CO2 | AR5: CH4 | AS5: N2O | AT5: CO2 当量 | AU5: CO2 | AV5: CH4 | AW5: N2O | AX5: CO2 当量 | AY5: CO2 | AZ5: CH4 | BA5: N2O | BB5: CO2 当量 | BC5: CO2 | BD5: CH4 | BE5: N2O | BF5: CO2 当量 | BI5: 锁定
C6: 吨CO2/万千瓦时 | D6: 克CH4/万千瓦时 | E6: 克CH4/万千瓦时 | F6: 吨CO2e/万千瓦时 | G6: 吨CO2/万千瓦时 | H6: 克CH4/万千瓦时 | I6: 克CH4/万千瓦时 | J6: 吨CO2e/万千瓦时 | K6: 吨CO2/万千瓦时 | L6: 克CH4/万千瓦时 | M6: 克CH4/万千瓦时 | N6: 吨CO2e/万千瓦时 | O6: 吨CO2/万千瓦时 | P6: 克CH4/万千瓦时 | Q6: 克CH4/万千瓦时 | R6: 吨CO2e/万千瓦时 | S6: 吨CO2/万千瓦时 | T6: 克CH4/万千瓦时 | U6: 克CH4/万千瓦时 | V6: 吨CO2e/万千瓦时 | W6: 吨CO2/万千瓦时 | X6: 克CH4/万千瓦时 | Y6: 克CH4/万千瓦时 | Z6: 吨CO2e/万千瓦时 | AA6: 吨CO2/万千瓦时 | AB6: 克CH4/万千瓦时 | AC6: 克CH4/万千瓦时 | AD6: 吨CO2e/万千瓦时 | AE6: 吨CO2/万千瓦时 | AF6: 克CH4/万千瓦时 | AG6: 克CH4/万千瓦时 | AH6: 吨CO2e/万千瓦时 | AI6: 吨 CO2/百万千焦 | AJ6: 克 CH4/百万千焦 | AK6: 克 N2O/百万千焦 | AL6: 吨 CO2e/百万千焦 | AM6: 吨 CO2/百万千焦 | AN6: 克 CH4/百万千焦 | AO6: 克 N2O/百万千焦 | AP6: 吨 CO2e/百万千焦 | AQ6: 吨 CO2/百万千焦 | AR6: 克 CH4/百万千焦 | AS6: 克 N2O/百万千焦 | AT6: 吨 CO2e/百万千焦 | AU6: 吨 CO2/百万千焦 | AV6: 克 CH4/百万千焦 | AW6: 克 N2O/百万千焦 | AX6: 吨 CO2e/百万千焦 | AY6: 吨 CO2/百万千焦 | AZ6: 克 CH4/百万千焦 | BA6: 克 N2O/百万千焦 | BB6: 吨 CO2e/百万千焦 | BC6: 吨 CO2/百万千焦 | BD6: 克 CH4/百万千焦 | BE6: 克 N2O/百万千焦 | BF6: 吨 CO2e/百万千焦
B7: 北 京 | K7: 10.96326181 | L7: 118.6351782 | M7: 169.798133 | N7: 11.01682753 | O7: 10.72768252 | P7: 117.1162142 | Q7: 164.5239357 | R7: 10.77963856 | S7: 11.10558714 | T7: 121.8200726 | U7: 169.2640538 | V7: 11.15907333 | W7: 10.61739287 | X7: 117.4268053 | Y7: 160.8184469 | Z7: 10.66825243 | AA7: 10.9077006 | AB7: 112.469349 | AC7: 161.839152 | AD7: 10.9587404 | AE7: 11.28163753 | AF7: 116.8758829 | AG7: 169.2222215 | AH7: 11.33498764 | AI7: 0.1057637594 | AJ7: 1.595259653 | AK7: 1.325667946 | AL7: 0.10619869 | AM7: 0.1151907041 | AN7: 1.621909805 | AO7: 1.46135887 | AP7: 0.1156667367 | AQ7: 0.1126072051 | AR7: 1.454610362 | AS7: 1.467730127 | AT7: 0.113080954 | AU7: 0.1067301543 | AV7: 1.361613131 | AW7: 1.381579111 | AX7: 0.1071759052 | AY7: 0.1039584725 | AZ7: 1.363657844 | BA7: 1.297989796 | BB7: 0.1043793649 | BC7: 0.1026117768 | BD7: 1.362478059 | BE7: 1.323497056 | BF7: 0.1030402409
B8: 天 津 | K8: 10.96326181 | L8: 118.6351782 | M8: 169.798133 | N8: 11.01682753 | O8: 10.72768252 | P8: 117.1162142 | Q8: 164.5239357 | R8: 10.77963856 | S8: 11.10558714 | T8: 121.8200726 | U8: 169.2640538 | V8: 11.15907333 | W8: 10.61739287 | X8: 117.4268053 | Y8: 160.8184469 | Z8: 10.66825243 | AA8: 10.9077006 | AB8: 112.469349 | AC8: 161.839152 | AD8: 10.9587404 | AE8: 11.28163753 | AF8: 116.8758829 | AG8: 169.2222215 | AH8: 11.33498764 | AI8: 0.1167068477 | AJ8: 1.246037021 | AK8: 1.838754342 | AL8: 0.1172859474 | AM8: 0.1123084035 | AN8: 1.195637731 | AO8: 1.7743531 | AP8: 0.1128670516 | AQ8: 0.1154887068 | AR8: 1.227783784 | AS8: 1.825812944 | AT8: 0.1160634937 | AU8: 0.1149988014 | AV8: 1.220088516 | AW8: 1.81806254 | AX8: 0.1155710863 | AY8: 0.114857607 | AZ8: 1.370171021 | BA8: 1.737804936 | BB8: 0.1154097271 | BC8: 0.1148059704 | BD8: 1.316888973 | BE8: 1.762123498 | BF8: 0.1153640054
B9: 河 北 | K9: 10.96326181 | L9: 118.6351782 | M9: 169.798133 | N9: 11.01682753 | O9: 10.72768252 | P9: 117.1162142 | Q9: 164.5239357 | R9: 10.77963856 | S9: 11.10558714 | T9: 121.8200726 | U9: 169.2640538 | V9: 11.15907333 | W9: 10.61739287 | X9: 117.4268053 | Y9: 160.8184469 | Z9: 10.66825243 | AA9: 10.9077006 | AB9: 112.469349 | AC9: 161.839152 | AD9: 10.9587404 | AE9: 11.28163753 | AF9: 116.8758829 | AG9: 169.2222215 | AH9: 11.33498764 | AI9: 0.1352193455 | AJ9: 1.474066378 | AK9: 2.080482524 | AL9: 0.1358761809 | AM9: 0.1457541274 | AN9: 1.867083998 | AO9: 1.846358545 | AP9: 0.1463510193 | AQ9: 0.158668912 | AR9: 2.076365473 | AS9: 1.947415422 | AT9: 0.1593011509 | AU9: 0.1676761342 | AV9: 2.281660555 | AW9: 1.932869865 | AX9: 0.168309171 | AY9: 0.2102968273 | AZ9: 1.718745648 | BA9: 1.926963969 | BB9: 0.2109140312 | BC9: 0.1891810725 | BD9: 1.543971615 | BE9: 1.740130042 | BF9: 0.1897382305
B10: 山 西 | K10: 10.96326181 | L10: 118.6351782 | M10: 169.798133 | N10: 11.01682753 | O10: 10.72768252 | P10: 117.1162142 | Q10: 164.5239357 | R10: 10.77963856 | S10: 11.10558714 | T10: 121.8200726 | U10: 169.2640538 | V10: 11.15907333 | W10: 10.61739287 | X10: 117.4268053 | Y10: 160.8184469 | Z10: 10.66825243 | AA10: 10.9077006 | AB10: 112.469349 | AC10: 161.839152 | AD10: 10.9587404 | AE10: 11.28163753 | AF10: 116.8758829 | AG10: 169.2222215 | AH10: 11.33498764 | AI10: 0.1228758086 | AJ10: 1.297314645 | AK10: 1.945971967 | AL10: 0.1234881411 | AM10: 0.122800793 | AN10: 1.296925939 | AO10: 1.945388908 | AP10: 0.1234129421 | AQ10: 0.1297646999 | AR10: 1.553590302 | AS10: 1.790325268 | AT10: 0.1303370566 | AU10: 0.1301961915 | AV10: 1.591141501 | AW10: 1.751057389 | AX10: 0.1307577851 | AY10: 0.1431012832 | AZ10: 1.388951017 | BA10: 1.872441193 | BB10: 0.1436939945 | BC10: 0.1407169732 | BD10: 1.363061178 | BE10: 1.91529547 | BF10: 0.1413218078
B11: 内蒙古西 | K11: 10.96326181 | L11: 118.6351782 | M11: 169.798133 | N11: 11.01682753 | O11: 10.72768252 | P11: 117.1162142 | Q11: 164.5239357 | R11: 10.77963856 | S11: 11.10558714 | T11: 121.8200726 | U11: 169.2640538 | V11: 11.15907333 | W11: 10.61739287 | X11: 117.4268053 | Y11: 160.8184469 | Z11: 10.66825243 | AA11: 10.9077006 | AB11: 112.469349 | AC11: 161.839152 | AD11: 10.9587404 | AE11: 11.28163753 | AF11: 116.8758829 | AG11: 169.2222215 | AH11: 11.33498764 | AI11: 0.1752527685 | AJ11: 2.024092565 | AK11: 2.523861223 | AL11: 0.1760554815 | AM11: 0.1688057118 | AN11: 1.952732605 | AO11: 2.423535145 | AP11: 0.1695767436 | AQ11: 0.1784248654 | AR11: 2.026847257 | AS11: 2.614608562 | AT11: 0.1792546899 | AU11: 0.1749257153 | AV11: 1.966469948 | AW11: 2.5949072 | AX11: 0.1757481594 | AY11: 0.1746034539 | AZ11: 1.785197603 | BA11: 2.607142847 | BB11: 0.1754250124 | BC11: 0.1727953145 | BD11: 1.767529658 | BE11: 2.576853117 | BF11: 0.173607405
B12: 内蒙古东 | K12: 11.97161768 | L12: 130.4796429 | M12: 184.6768308 | N12: 12.02991337 | O12: 11.42500075 | P12: 125.3113133 | Q12: 175.0165155 | R12: 11.48028846 | S12: 11.576381 | T12: 126.5901745 | U12: 177.9825383 | V12: 11.63258455 | W12: 11.13573082 | X12: 122.414779 | Y12: 169.8296254 | Z12: 11.18940042 | AA12: 10.76006114 | AB12: 112.1205957 | AC12: 163.2735423 | AD12: 10.81151967 | AE12: 11.36716872 | AF12: 118.5488895 | AG12: 173.5464175 | AH12: 11.42184927 | AI12: 0.1752527685 | AJ12: 2.024092565 | AK12: 2.523861223 | AL12: 0.1760554815 | AM12: 0.1688057118 | AN12: 1.952732605 | AO12: 2.423535145 | AP12: 0.1695767436 | AQ12: 0.1784248654 | AR12: 2.026847257 | AS12: 2.614608562 | AT12: 0.1792546899 | AU12: 0.1749257153 | AV12: 1.966469948 | AW12: 2.5949072 | AX12: 0.1757481594 | AY12: 0.1746034539 | AZ12: 1.785197603 | BA12: 2.607142847 | BB12: 0.1754250124 | BC12: 0.1727953145 | BD12: 1.767529658 | BE12: 2.576853117 | BF12: 0.173607405
B13: 辽 宁 | K13: 11.97161768 | L13: 130.4796429 | M13: 184.6768308 | N13: 12.02991337 | O13: 11.42500075 | P13: 125.3113133 | Q13: 175.0165155 | R13: 11.48028846 | S13: 11.576381 | T13: 126.5901745 | U13: 177.9825383 | V13: 11.63258455 | W13: 11.13573082 | X13: 122.414779 | Y13: 169.8296254 | Z13: 11.18940042 | AA13: 10.76006114 | AB13: 112.1205957 | AC13: 163.2735423 | AD13: 10.81151967 | AE13: 11.36716872 | AF13: 118.5488895 | AG13: 173.5464175 | AH13: 11.42184927 | AI13: 0.1358978526 | AJ13: 1.670682995 | AK13: 1.912514506 | AL13: 0.136509549 | AM13: 0.1410189211 | AN13: 1.755164222 | AO13: 1.956606811 | AP13: 0.141645869 | AQ13: 0.1359542702 | AR13: 1.731244237 | AS13: 1.858307037 | AT13: 0.1365513268 | AU13: 0.1493919107 | AV13: 1.875096652 | AW13: 2.000331651 | AX13: 0.1500348869 | AY13: 0.1474471406 | AZ13: 1.594677353 | BA13: 1.947208458 | BB13: 0.1480672756 | BC13: 0.1526780661 | BD13: 1.566234623 | BE13: 1.990398438 | BF13: 0.1533103607
B14: 吉 林 | K14: 11.97161768 | L14: 130.4796429 | M14: 184.6768308 | N14: 12.02991337 | O14: 11.42500075 | P14: 125.3113133 | Q14: 175.0165155 | R14: 11.48028846 | S14: 11.576381 | T14: 126.5901745 | U14: 177.9825383 | V14: 11.63258455 | W14: 11.13573082 | X14: 122.414779 | Y14: 169.8296254 | Z14: 11.18940042 | AA14: 10.76006114 | AB14: 112.1205957 | AC14: 163.2735423 | AD14: 10.81151967 | AE14: 11.36716872 | AF14: 118.5488895 | AG14: 173.5464175 | AH14: 11.42184927 | AI14: 0.1340886804 | AJ14: 1.529261153 | AK14: 2.024045117 | AL14: 0.1347300774 | AM14: 0.1325376917 | AN14: 1.412175578 | AO14: 2.085011562 | AP14: 0.1331943296 | AQ14: 0.1397659818 | AR14: 1.529194281 | AS14: 2.186081829 | AT14: 0.140455664 | AU14: 0.1245608671 | AV14: 1.356285255 | AW14: 1.940390385 | AX14: 0.1251730105 | AY14: 0.1355485393 | AZ14: 1.470780557 | BA14: 2.109683739 | BB14: 0.1362139946 | BC14: 0.1341621066 | BD14: 1.444877873 | BE14: 2.091270277 | BF14: 0.1348214271
B15: 黑龙江 | K15: 11.97161768 | L15: 130.4796429 | M15: 184.6768308 | N15: 12.02991337 | O15: 11.42500075 | P15: 125.3113133 | Q15: 175.0165155 | R15: 11.48028846 | S15: 11.576381 | T15: 126.5901745 | U15: 177.9825383 | V15: 11.63258455 | W15: 11.13573082 | X15: 122.414779 | Y15: 169.8296254 | Z15: 11.18940042 | AA15: 10.76006114 | AB15: 112.1205957 | AC15: 163.2735423 | AD15: 10.81151967 | AE15: 11.36716872 | AF15: 118.5488895 | AG15: 173.5464175 | AH15: 11.42184927 | AI15: 0.1705550764 | AJ15: 2.193717005 | AK15: 2.455471248 | AL15: 0.1713416497 | AM15: 0.1733876011 | AN15: 2.197184105 | AO15: 2.517027246 | AP15: 0.1741926048 | AQ15: 0.18800778 | AR15: 2.150793845 | AS15: 2.766449896 | AT15: 0.1888859519 | AU15: 0.1514829762 | AV15: 1.765464769 | AW15: 2.203484547 | AX15: 0.1521837512 | AY15: 0.1626972041 | AZ15: 1.78116032 | BA15: 2.199945809 | BB15: 0.163397317 | BC15: 0.1713323248 | BD15: 1.866158673 | BE15: 2.297539929 | BF15: 0.1720636457
B16: 上 海 | K16: 8.648365428 | L16: 97.74294801 | M16: 130.2607155 | N16: 8.689626695 | O16: 8.392965794 | P16: 93.79082239 | Q16: 126.8549854 | R16: 8.43311335 | S16: 8.152374878 | T16: 90.35033229 | U16: 123.7284538 | V16: 8.191504716 | W16: 8.003628323 | X16: 88.76881654 | Y16: 120.8819421 | Z16: 8.041870362 | AA16: 7.735690485 | AB16: 81.49805121 | AC16: 114.2227872 | AD16: 7.771766327 | AE16: 7.84565096 | AF16: 85.05322496 | AG16: 119.8504744 | AH16: 7.883492732 | AI16: 0.1019102092 | AJ16: 1.51891212 | AK16: 1.428532327 | AL16: 0.1023738846 | AM16: 0.106226944 | AN16: 1.505073774 | AO16: 1.507436373 | AP16: 0.1067137869 | AQ16: 0.110117752 | AR16: 1.427939567 | AS16: 1.625707403 | AT16: 0.1106379113 | AU16: 0.1090966956 | AV16: 1.478242783 | AW16: 1.587541113 | AX16: 0.1096067389 | AY16: 0.1073080099 | AZ16: 1.399995275 | BA16: 1.519700994 | BB16: 0.1077958807 | BC16: 0.104047855 | BD16: 1.362906491 | BE16: 1.455231529 | BF16: 0.1045155867
B17: 江 苏 | K17: 8.648365428 | L17: 97.74294801 | M17: 130.2607155 | N17: 8.689626695 | O17: 8.392965794 | P17: 93.79082239 | Q17: 126.8549854 | R17: 8.43311335 | S17: 8.152374878 | T17: 90.35033229 | U17: 123.7284538 | V17: 8.191504716 | W17: 8.003628323 | X17: 88.76881654 | Y17: 120.8819421 | Z17: 8.041870362 | AA17: 7.735690485 | AB17: 81.49805121 | AC17: 114.2227872 | AD17: 7.771766327 | AE17: 7.84565096 | AF17: 85.05322496 | AG17: 119.8504744 | AH17: 7.883492732 | AI17: 0.1209971688 | AJ17: 1.471085742 | AK17: 1.659997802 | AL17: 0.1215286253 | AM17: 0.1134981137 | AN17: 1.318984902 | AO17: 1.62564484 | AP17: 0.1140155304 | AQ17: 0.116103907 | AR17: 1.358117772 | AS17: 1.656625576 | AT17: 0.1166315344 | AU17: 0.1123755838 | AV17: 1.276000092 | AW17: 1.665300052 | AX17: 0.1129037432 | AY17: 0.1081424298 | AZ17: 1.107122977 | BA17: 1.577635147 | BB17: 0.1086402432 | BC17: 0.1070584164 | BD17: 1.146714962 | BE17: 1.673227838 | BF17: 0.1075857062
B18: 浙 江 | K18: 8.648365428 | L18: 97.74294801 | M18: 130.2607155 | N18: 8.689626695 | O18: 8.392965794 | P18: 93.79082239 | Q18: 126.8549854 | R18: 8.43311335 | S18: 8.152374878 | T18: 90.35033229 | U18: 123.7284538 | V18: 8.191504716 | W18: 8.003628323 | X18: 88.76881654 | Y18: 120.8819421 | Z18: 8.041870362 | AA18: 7.735690485 | AB18: 81.49805121 | AC18: 114.2227872 | AD18: 7.771766327 | AE18: 7.84565096 | AF18: 85.05322496 | AG18: 119.8504744 | AH18: 7.883492732 | AI18: 0.1057495865 | AJ18: 1.157110698 | AK18: 1.660989287 | AL18: 0.1062734891 | AM18: 0.1069334258 | AN18: 1.130722472 | AO18: 1.689490544 | AP18: 0.1074651621 | AQ18: 0.1061783777 | AR18: 1.123069356 | AS18: 1.677221537 | AT18: 0.1067062665 | AU18: 0.1042378909 | AV18: 1.102572907 | AW18: 1.646348849 | AX18: 0.1047560671 | AY18: 0.1044974009 | AZ18: 1.116207401 | BA18: 1.635731033 | BB18: 0.1050127539 | BC18: 0.1228534039 | BD18: 1.359688405 | BE18: 2.000433536 | BF18: 0.1234835253
B19: 安 徽 | K19: 8.648365428 | L19: 97.74294801 | M19: 130.2607155 | N19: 8.689626695 | O19: 8.392965794 | P19: 93.79082239 | Q19: 126.8549854 | R19: 8.43311335 | S19: 8.152374878 | T19: 90.35033229 | U19: 123.7284538 | V19: 8.191504716 | W19: 8.003628323 | X19: 88.76881654 | Y19: 120.8819421 | Z19: 8.041870362 | AA19: 7.735690485 | AB19: 81.49805121 | AC19: 114.2227872 | AD19: 7.771766327 | AE19: 7.84565096 | AF19: 85.05322496 | AG19: 119.8504744 | AH19: 7.883492732 | AI19: 0.09824319935 | AJ19: 1.043283426 | AK19: 1.534945457 | AL19: 0.09872669519 | AM19: 0.1154193014 | AN19: 1.39282614 | AO19: 1.56816282 | AP19: 0.1159214346 | AQ19: 0.1103292789 | AR19: 1.204477458 | AS19: 1.678493737 | AT19: 0.110859582 | AU19: 0.1114027296 | AV19: 1.209017816 | AW19: 1.702155521 | AX19: 0.1119401974 | AY19: 0.1441490182 | AZ19: 1.310557883 | BA19: 1.669590823 | BB19: 0.1446793202 | BC19: 0.1056440004 | BD19: 1.142719319 | BE19: 1.627267597 | BF19: 0.1061574941
B20: 福 建 | K20: 8.648365428 | L20: 97.74294801 | M20: 130.2607155 | N20: 8.689626695 | O20: 8.392965794 | P20: 93.79082239 | Q20: 126.8549854 | R20: 8.43311335 | S20: 8.152374878 | T20: 90.35033229 | U20: 123.7284538 | V20: 8.191504716 | W20: 8.003628323 | X20: 88.76881654 | Y20: 120.8819421 | Z20: 8.041870362 | AA20: 7.735690485 | AB20: 81.49805121 | AC20: 114.2227872 | AD20: 7.771766327 | AE20: 7.84565096 | AF20: 85.05322496 | AG20: 119.8504744 | AH20: 7.883492732 | AI20: 0.1348918771 | AJ20: 1.682541062 | AK20: 1.862830545 | AL20: 0.1354890641 | AM20: 0.1263117052 | AN20: 1.605880739 | AO20: 1.594261841 | AP20: 0.1268269422 | AQ20: 0.1390453136 | AR20: 1.855598594 | AS20: 1.651136554 | AT20: 0.1395837423 | AU20: 0.1200705912 | AV20: 2.028097229 | AW20: 1.381455816 | AX20: 0.1205329675 | AY20: 0.129412302 | AZ20: 1.611434987 | BA20: 1.450760831 | BB20: 0.1298849146 | BC20: 0.131595677 | BD20: 1.503565085 | BE20: 1.532750415 | BF20: 0.1320900257
B21: 江 西 | K21: 7.838382061 | L21: 84.14918028 | M21: 122.0859022 | N21: 7.876867389 | O21: 7.662363422 | P21: 82.98180297 | Q21: 118.5734103 | R21: 7.699772844 | S21: 6.814863882 | T21: 73.89548459 | U21: 105.2490191 | V21: 6.848075477 | W21: 6.474098516 | X21: 70.76965399 | Y21: 98.97475967 | Z21: 6.505362236 | AA21: 6.660381777 | AB21: 69.10055428 | AC21: 98.64806922 | AD21: 6.691506416 | AE21: 7.029970224 | AF21: 72.31335806 | AG21: 104.5045933 | AH21: 7.062920427 | AI21: 0.1248187859 | AJ21: 1.492856646 | AK21: 1.801539438 | AL21: 0.125392966 | AM21: 0.1694271275 | AN21: 1.91403195 | AO21: 2.54918888 | AP21: 0.1702346366 | AQ21: 0.1514080149 | AR21: 1.844738709 | AS21: 2.228361936 | AT21: 0.1521181852 | AU21: 0.1380782472 | AV21: 1.571479958 | AW21: 2.024301258 | AX21: 0.1387207759 | AY21: 0.1380036363 | AZ21: 1.652305535 | BA21: 2.015185059 | BB21: 0.1386454691 | BC21: 0.1530072799 | BD21: 1.920853131 | BE21: 2.096788177 | BF21: 0.1536801441
B22: 山 东 | K22: 10.96326181 | L22: 118.6351782 | M22: 169.798133 | N22: 11.01682753 | O22: 10.72768252 | P22: 117.1162142 | Q22: 164.5239357 | R22: 10.77963856 | S22: 11.10558714 | T22: 121.8200726 | U22: 169.2640538 | V22: 11.15907333 | W22: 10.61739287 | X22: 117.4268053 | Y22: 160.8184469 | Z22: 10.66825243 | AA22: 10.9077006 | AB22: 112.469349 | AC22: 161.839152 | AD22: 10.9587404 | AE22: 11.28163753 | AF22: 116.8758829 | AG22: 169.2222215 | AH22: 11.33498764 | AI22: 0.1234280364 | AJ22: 1.406649814 | AK22: 1.891779732 | AL22: 0.124026953 | AM22: 0.1213937237 | AN22: 1.326497673 | AO22: 1.889177986 | AP22: 0.1219898611 | AQ22: 0.1213339988 | AR22: 1.284936998 | AS22: 1.903422154 | AT22: 0.121933342 | AU22: 0.1177736178 | AV22: 1.326974266 | AW22: 1.800701306 | AX22: 0.1183434012 | AY22: 0.1203412792 | AZ22: 1.327702852 | BA22: 1.818235473 | BB22: 0.1209163059 | BC22: 0.120434827 | BD22: 1.296101407 | BE22: 1.807031313 | BF22: 0.1210057249
B23: 河 南 | K23: 7.838382061 | L23: 84.14918028 | M23: 122.0859022 | N23: 7.876867389 | O23: 7.662363422 | P23: 82.98180297 | Q23: 118.5734103 | R23: 7.699772844 | S23: 6.814863882 | T23: 73.89548459 | U23: 105.2490191 | V23: 6.848075477 | W23: 6.474098516 | X23: 70.76965399 | Y23: 98.97475967 | Z23: 6.505362236 | AA23: 6.660381777 | AB23: 69.10055428 | AC23: 98.64806922 | AD23: 6.691506416 | AE23: 7.029970224 | AF23: 72.31335806 | AG23: 104.5045933 | AH23: 7.062920427 | AI23: 0.1278487427 | AJ23: 1.353586685 | AK23: 2.021885619 | AL23: 0.1284851043 | AM23: 0.1191109954 | AN23: 1.26317982 | AO23: 1.8795224 | AP23: 0.1197026726 | AQ23: 0.124415162 | AR23: 1.32963762 | AS23: 1.951411802 | AT23: 0.1250299237 | AU23: 0.1341120511 | AV23: 1.444837841 | AW23: 2.097848254 | AX23: 0.1347733308 | AY23: 0.1346736222 | AZ23: 1.565350655 | BA23: 2.052576531 | BB23: 0.1353244237 | BC23: 0.1324168676 | BD23: 1.449431021 | BE23: 2.064987697 | BF23: 0.1330684697
B24: 湖 北 | K24: 7.838382061 | L24: 84.14918028 | M24: 122.0859022 | N24: 7.876867389 | O24: 7.662363422 | P24: 82.98180297 | Q24: 118.5734103 | R24: 7.699772844 | S24: 6.814863882 | T24: 73.89548459 | U24: 105.2490191 | V24: 6.848075477 | W24: 6.474098516 | X24: 70.76965399 | Y24: 98.97475967 | Z24: 6.505362236 | AA24: 6.660381777 | AB24: 69.10055428 | AC24: 98.64806922 | AD24: 6.691506416 | AE24: 7.029970224 | AF24: 72.31335806 | AG24: 104.5045933 | AH24: 7.062920427 | AI24: 0.1135482681 | AJ24: 1.546634305 | AK24: 1.289384617 | AL24: 0.1139711706 | AM24: 0.1170409334 | AN24: 1.718051303 | AO24: 1.312917064 | AP24: 0.117475134 | AQ24: 0.1349281738 | AR24: 1.826111975 | AS24: 1.571245082 | AT24: 0.1354420576 | AU24: 0.143127043 | AV24: 2.010424988 | AW24: 1.537038598 | AX24: 0.1436353411 | AY24: 0.1677846782 | AZ24: 2.033880076 | BA24: 1.720785765 | BB24: 0.1683483194 | BC24: 0.1628083163 | BD24: 1.917158481 | BE24: 1.686274305 | BF24: 0.163358755
B25: 湖 南 | K25: 7.838382061 | L25: 84.14918028 | M25: 122.0859022 | N25: 7.876867389 | O25: 7.662363422 | P25: 82.98180297 | Q25: 118.5734103 | R25: 7.699772844 | S25: 6.814863882 | T25: 73.89548459 | U25: 105.2490191 | V25: 6.848075477 | W25: 6.474098516 | X25: 70.76965399 | Y25: 98.97475967 | Z25: 6.505362236 | AA25: 6.660381777 | AB25: 69.10055428 | AC25: 98.64806922 | AD25: 6.691506416 | AE25: 7.029970224 | AF25: 72.31335806 | AG25: 104.5045933 | AH25: 7.062920427 | AI25: 0.1120014404 | AJ25: 1.303780219 | AK25: 1.711889727 | AL25: 0.112544178 | AM25: 0.1386586066 | AN25: 1.574192168 | AO25: 2.139736581 | AP25: 0.1393356029 | AQ25: 0.1093534212 | AR25: 1.229138015 | AS25: 1.657354596 | AT25: 0.1098780413 | AU25: 0.1045734314 | AV25: 1.148806667 | AW25: 1.595428994 | AX25: 0.1050775894 | AY25: 0.163947469 | AZ25: 1.517126323 | BA25: 1.6629414 | BB25: 0.1644809537 | BC25: 0.1306647164 | BD25: 1.474623503 | BE25: 1.582657474 | BF25: 0.1311732139
B26: 广 东 | K26: 7.521183972 | L26: 94.12738295 | M26: 113.78256 | N26: 7.557444359 | O26: 7.383864067 | P26: 88.3275763 | Q26: 110.8123684 | R26: 7.419094342 | S26: 6.537522843 | T26: 76.93933468 | U26: 97.77202655 | V26: 6.568582391 | W26: 6.663416915 | X26: 75.92906769 | Y26: 99.95907094 | Z26: 6.695102945 | AA26: 6.660884533 | AB26: 72.13316132 | AC26: 99.36775661 | AD26: 6.692299453 | AE26: 6.693711478 | AF26: 71.75135912 | AG26: 100.4370822 | AH26: 6.725435512 | AI26: 0.09725315966 | AJ26: 1.900424103 | AK26: 1.20473076 | AL26: 0.09765968003 | AM26: 0.1210830253 | AN26: 2.413433903 | AO26: 1.49936976 | AP26: 0.1215901733 | AQ26: 0.1217919387 | AR26: 1.53937772 | AS26: 1.714311502 | AT26: 0.1223412879 | AU26: 0.1179035504 | AV26: 1.423058408 | AW26: 1.72381741 | AX26: 0.1184528245 | AY26: 0.1094522045 | AZ26: 1.761010377 | BA26: 1.474595391 | BB26: 0.1099356592 | BC26: 0.114095276 | BD26: 1.883418516 | BE26: 1.529733593 | BF26: 0.1145982221
B27: 广 西 | K27: 7.521183972 | L27: 94.12738295 | M27: 113.78256 | N27: 7.557444359 | O27: 7.383864067 | P27: 88.3275763 | Q27: 110.8123684 | R27: 7.419094342 | S27: 6.537522843 | T27: 76.93933468 | U27: 97.77202655 | V27: 6.568582391 | W27: 6.663416915 | X27: 75.92906769 | Y27: 99.95907094 | Z27: 6.695102945 | AA27: 6.660884533 | AB27: 72.13316132 | AC27: 99.36775661 | AD27: 6.692299453 | AE27: 6.693711478 | AF27: 71.75135912 | AG27: 100.4370822 | AH27: 6.725435512 | AI27: 0.1659811768 | AJ27: 1.758348008 | AK27: 2.606623716 | AL27: 0.1668019093 | AM27: 0.1290725932 | AN27: 1.367431074 | AO27: 2.030059215 | AP27: 0.1297117366 | AQ27: 0.1381613079 | AR27: 1.461106067 | AS27: 2.177627443 | AT27: 0.1388467686 | AU27: 0.1187564788 | AV27: 1.27955183 | AW27: 1.851818097 | AX27: 0.1193403094 | AY27: 0.1595923388 | AZ27: 1.688866901 | BA27: 2.516003066 | BB27: 0.1603843294 | BC27: 0.1650390087 | BD27: 1.742216798 | BE27: 2.612462327 | BF27: 0.1658610779
B28: 海 南 | K28: 7.521183972 | L28: 94.12738295 | M28: 113.78256 | N28: 7.557444359 | O28: 7.383864067 | P28: 88.3275763 | Q28: 110.8123684 | R28: 7.419094342 | S28: 6.537522843 | T28: 76.93933468 | U28: 97.77202655 | V28: 6.568582391 | W28: 6.663416915 | X28: 75.92906769 | Y28: 99.95907094 | Z28: 6.695102945 | AA28: 6.660884533 | AB28: 72.13316132 | AC28: 99.36775661 | AD28: 6.692299453 | AE28: 6.693711478 | AF28: 71.75135912 | AG28: 100.4370822 | AH28: 6.725435512 | AI28: 0.141929785 | AJ28: 5.089993417 | AK28: 0.9652321018 | AL28: 0.142344674 | AM28: 0.09074964174 | AN28: 1.909489261 | AO28: 0.2533076158 | AP28: 0.09087286465 | AQ28: 0.1081346702 | AR28: 1.962233316 | AS28: 0.2457081221 | AT28: 0.1082569471 | AU28: 0.1262794061 | AV28: 2.108358505 | AW28: 0.2427321129 | AX28: 0.1264044492 | AY28: 0.02489323665 | AZ28: 0.3767934589 | BA28: 0.03767934589 | BB28: 0.02491388494 | BC28: 0.03463902551 | BD28: 0.5243094105 | BE28: 0.05243094105 | BF28: 0.03466775767
B29: 重 庆 | K29: 7.838382061 | L29: 84.14918028 | M29: 122.0859022 | N29: 7.876867389 | O29: 7.662363422 | P29: 82.98180297 | Q29: 118.5734103 | R29: 7.699772844 | S29: 6.814863882 | T29: 73.89548459 | U29: 105.2490191 | V29: 6.848075477 | W29: 6.474098516 | X29: 70.76965399 | Y29: 98.97475967 | Z29: 6.505362236 | AA29: 6.660381777 | AB29: 69.10055428 | AC29: 98.64806922 | AD29: 6.691506416 | AE29: 7.029970224 | AF29: 72.31335806 | AG29: 104.5045933 | AH29: 7.062920427 | AI29: 0.1318180477 | AJ29: 1.456696514 | AK29: 2.004319106 | AL29: 0.1324517522 | AM29: 0.1146778965 | AN29: 1.222785848 | AO29: 1.809579675 | AP29: 0.1152477209 | AQ29: 0.1390035512 | AR29: 1.475236203 | AS29: 2.184806612 | AT29: 0.1396915045 | AU29: 0.1231315802 | AV29: 1.309643183 | AW29: 1.929943444 | AX29: 0.1237394444 | AY29: 0.1338301005 | AZ29: 1.423781818 | BA29: 2.098273107 | BB29: 0.1344909804 | BC29: 0.1331533087 | BD29: 1.421450522 | BE29: 2.082738056 | BF29: 0.1338095009
B30: 四 川 | K30: 7.838382061 | L30: 84.14918028 | M30: 122.0859022 | N30: 7.876867389 | O30: 7.662363422 | P30: 82.98180297 | Q30: 118.5734103 | R30: 7.699772844 | S30: 6.814863882 | T30: 73.89548459 | U30: 105.2490191 | V30: 6.848075477 | W30: 6.474098516 | X30: 70.76965399 | Y30: 98.97475967 | Z30: 6.505362236 | AA30: 6.660381777 | AB30: 69.10055428 | AC30: 98.64806922 | AD30: 6.691506416 | AE30: 7.029970224 | AF30: 72.31335806 | AG30: 104.5045933 | AH30: 7.062920427 | AI30: 0.1046061227 | AJ30: 1.172525978 | AK30: 1.47790475 | AL30: 0.1050758514 | AM30: 0.108456458 | AN30: 1.20494601 | AO30: 1.641548727 | AP30: 0.1089757631 | AQ30: 0.1110328538 | AR30: 1.239841693 | AS30: 1.732157836 | AT30: 0.1115800329 | AU30: 0.1015228041 | AV30: 1.127173544 | AW30: 1.548184707 | AX30: 0.1020123425 | AY30: 0.1074484785 | AZ30: 0.9924968884 | BA30: 1.021463827 | BB30: 0.1077776871 | BC30: 0.147311532 | BD30: 1.437133112 | BE30: 1.654608307 | BF30: 0.1478405336
B31: 贵 州 | K31: 7.521183972 | L31: 94.12738295 | M31: 113.78256 | N31: 7.557444359 | O31: 7.383864067 | P31: 88.3275763 | Q31: 110.8123684 | R31: 7.419094342 | S31: 6.537522843 | T31: 76.93933468 | U31: 97.77202655 | V31: 6.568582391 | W31: 6.663416915 | X31: 75.92906769 | Y31: 99.95907094 | Z31: 6.695102945 | AA31: 6.660884533 | AB31: 72.13316132 | AC31: 99.36775661 | AD31: 6.692299453 | AE31: 6.693711478 | AF31: 71.75135912 | AG31: 100.4370822 | AH31: 6.725435512 | AI31: 0.1628145282 | AJ31: 1.718246703 | AK31: 2.577370054 | AL31: 0.1636255406 | AM31: 0.2235577139 | AN31: 2.359293787 | AO31: 3.53894068 | AP31: 0.2246713006 | AQ31: 0.1265225165 | AR31: 1.335242617 | AS31: 2.002863926 | AT31: 0.127152751 | AU31: 0.1261419744 | AV31: 1.331226604 | AW31: 1.996839907 | AX31: 0.1267703133 | AY31: 0.1451876628 | AZ31: 1.532223356 | BA31: 2.298335035 | BB31: 0.1459108722 | BC31: 0.1509205879 | BD31: 1.592725203 | BE31: 2.389087804 | BF31: 0.1516723542
B32: 云 南 | K32: 7.521183972 | L32: 94.12738295 | M32: 113.78256 | N32: 7.557444359 | O32: 7.383864067 | P32: 88.3275763 | Q32: 110.8123684 | R32: 7.419094342 | S32: 6.537522843 | T32: 76.93933468 | U32: 97.77202655 | V32: 6.568582391 | W32: 6.663416915 | X32: 75.92906769 | Y32: 99.95907094 | Z32: 6.695102945 | AA32: 6.660884533 | AB32: 72.13316132 | AC32: 99.36775661 | AD32: 6.692299453 | AE32: 6.693711478 | AF32: 71.75135912 | AG32: 100.4370822 | AH32: 6.725435512 | AI32: 0.09949903328 | AJ32: 1.050053013 | AK32: 1.575079519 | AL32: 0.0999946583 | AM32: 0.1990020925 | AN32: 2.103109195 | AO32: 3.154663792 | AP32: 0.19999476 | AQ32: 0.2208318953 | AR32: 2.330527134 | AS32: 3.495790702 | AT32: 0.2219319041 | AU32: 0.1755260081 | AV32: 1.852396023 | AW32: 2.778594035 | AX32: 0.176400339 | AY32: 0.1415975335 | AZ32: 1.499009148 | BA32: 2.240354264 | BB32: 0.1423026343 | BC32: 0.176277091 | BD32: 1.86424113 | BE32: 2.789800755 | BF32: 0.1771550577
B33: 陕 西 | K33: 8.409030849 | L33: 89.83064664 | M33: 131.4506722 | N33: 8.450448915 | O33: 8.618825383 | P33: 92.783266 | Q33: 133.6412458 | R33: 8.660970055 | S33: 8.423840485 | T33: 90.57275233 | U33: 130.7957172 | V33: 8.465081928 | W33: 8.192452622 | X33: 88.03163497 | Y33: 127.1637976 | Z33: 8.232548225 | AA33: 8.135581773 | AB33: 86.16190184 | AC33: 126.2426052 | AD33: 8.175356117 | AE33: 8.118876905 | AF33: 86.50639748 | AG33: 126.9188099 | AH33: 8.15886137 | AI33: 0.1211032611 | AJ33: 1.27852107 | AK33: 1.912791322 | AL33: 0.1217052359 | AM33: 0.1227566469 | AN33: 1.339217246 | AO33: 1.873018092 | AP33: 0.1233482868 | AQ33: 0.1268110661 | AR33: 1.399733541 | AS33: 1.903323363 | AT33: 0.1274132498 | AU33: 0.1349102026 | AV33: 1.610662916 | AW33: 1.856862526 | AX33: 0.1355038142 | AY33: 0.1312340328 | AZ33: 1.328996872 | BA33: 1.838471542 | BB33: 0.1318151222 | BC33: 0.1271441254 | BD33: 1.360382201 | BE33: 1.975441159 | BF33: 0.1277668164
B34: 甘 肃 | K34: 8.409030849 | L34: 89.83064664 | M34: 131.4506722 | N34: 8.450448915 | O34: 8.618825383 | P34: 92.783266 | Q34: 133.6412458 | R34: 8.660970055 | S34: 8.423840485 | T34: 90.57275233 | U34: 130.7957172 | V34: 8.465081928 | W34: 8.192452622 | X34: 88.03163497 | Y34: 127.1637976 | Z34: 8.232548225 | AA34: 8.135581773 | AB34: 86.16190184 | AC34: 126.2426052 | AD34: 8.175356117 | AE34: 8.118876905 | AF34: 86.50639748 | AG34: 126.9188099 | AH34: 8.15886137 | AI34: 0.1106643121 | AJ34: 1.274147539 | AK34: 1.62338597 | AL34: 0.1111799348 | AM34: 0.1170328997 | AN34: 1.336832464 | AO34: 1.704963005 | AP34: 0.1175743995 | AQ34: 0.1113986445 | AR34: 1.257735696 | AS34: 1.65674843 | AT34: 0.1119237989 | AU34: 0.1125262605 | AV34: 1.233125679 | AW34: 1.704271013 | AX34: 0.1130649614 | AY34: 0.1177743243 | AZ34: 1.270021078 | BA34: 1.714547609 | BB34: 0.11831701 | BC34: 0.1219423446 | BD34: 1.285800367 | BE34: 1.708605685 | BF34: 0.1224836541
B35: 青 海 | K35: 8.409030849 | L35: 89.83064664 | M35: 131.4506722 | N35: 8.450448915 | O35: 8.618825383 | P35: 92.783266 | Q35: 133.6412458 | R35: 8.660970055 | S35: 8.423840485 | T35: 90.57275233 | U35: 130.7957172 | V35: 8.465081928 | W35: 8.192452622 | X35: 88.03163497 | Y35: 127.1637976 | Z35: 8.232548225 | AA35: 8.135581773 | AB35: 86.16190184 | AC35: 126.2426052 | AD35: 8.175356117 | AE35: 8.118876905 | AF35: 86.50639748 | AG35: 126.9188099 | AH35: 8.15886137 | AI35: 0.1600893673 | AJ35: 1.791481473 | AK35: 2.348330362 | AL35: 0.1608339567 | AM35: 0.2056228801 | AN35: 2.700976597 | AO35: 2.252086232 | AP35: 0.2063615262 | AQ35: 0.1679631602 | AR35: 3.128171833 | AS35: 1.032348698 | AT35: 0.1683490044 | AU35: 0.1445904503 | AV35: 2.481008915 | AW35: 0.7988618536 | AX35: 0.1448905363 | AY35: 0.1284527161 | AZ35: 1.31349724 | BA35: 0.6247038701 | BB35: 0.1286717153 | BC35: 0.1618433231 | BD35: 1.317138946 | BE35: 0.7949490825 | BF35: 0.1621131464
B36: 宁 夏 | K36: 8.409030849 | L36: 89.83064664 | M36: 131.4506722 | N36: 8.450448915 | O36: 8.618825383 | P36: 92.783266 | Q36: 133.6412458 | R36: 8.660970055 | S36: 8.423840485 | T36: 90.57275233 | U36: 130.7957172 | V36: 8.465081928 | W36: 8.192452622 | X36: 88.03163497 | Y36: 127.1637976 | Z36: 8.232548225 | AA36: 8.135581773 | AB36: 86.16190184 | AC36: 126.2426052 | AD36: 8.175356117 | AE36: 8.118876905 | AF36: 86.50639748 | AG36: 126.9188099 | AH36: 8.15886137 | AI36: 0.1209309203 | AJ36: 1.307168557 | AK36: 1.860904315 | AL36: 0.121518149 | AM36: 0.1163032149 | AN36: 1.254562025 | AO36: 1.791685585 | AP36: 0.1168685012 | AQ36: 0.1240848185 | AR36: 1.334753838 | AS36: 1.919328026 | AT36: 0.1246901471 | AU36: 0.1142018145 | AV36: 1.227472254 | AW36: 1.769410013 | AX36: 0.1147597855 | AY36: 0.1275294588 | AZ36: 1.357956179 | BA36: 2.000727249 | BB36: 0.1281596244 | BC36: 0.1339587457 | BD36: 1.437285031 | BE36: 2.080195638 | BF36: 0.1346145761
B37: 新 疆 | K37: 8.409030849 | L37: 89.83064664 | M37: 131.4506722 | N37: 8.450448915 | O37: 8.618825383 | P37: 92.783266 | Q37: 133.6412458 | R37: 8.660970055 | S37: 8.423840485 | T37: 90.57275233 | U37: 130.7957172 | V37: 8.465081928 | W37: 8.192452622 | X37: 88.03163497 | Y37: 127.1637976 | Z37: 8.232548225 | AA37: 8.135581773 | AB37: 86.16190184 | AC37: 126.2426052 | AD37: 8.175356117 | AE37: 8.118876905 | AF37: 86.50639748 | AG37: 126.9188099 | AH37: 8.15886137 | AI37: 0.1045534053 | AJ37: 1.208695062 | AK37: 1.457895715 | AL37: 0.1050180756 | AM37: 0.1209059129 | AN37: 1.630234075 | AO37: 1.654379428 | AP37: 0.1214396738 | AQ37: 0.1103181549 | AR37: 1.202367739 | AS37: 1.672264296 | AT37: 0.1108465488 | AU37: 0.119258128 | AV37: 1.289951142 | AW37: 1.810695211 | AX37: 0.1198299639 | AY37: 0.1271810976 | AZ37: 1.30190382 | BA37: 1.723840269 | BB37: 0.1277273496 | BC37: 0.1315517196 | BD37: 1.318269054 | BE37: 1.781517704 | BF37: 0.1321155686
B38: 数据来源： | K38: WRI，《能源消耗引起的温室气体排放计算工具指南（2.1版）》

Sheet 生物燃料排放因子
B1: 生物质燃料排放因子
C2: 自定义排放因子（克/千克燃料） | E2: 默认排放因子（克/千克燃料） | I2: 必填
C3: CH4排放因子 | D3: N2O排放因子 | E3: CH4排放因子 | F3: N2O排放因子 | I3: 选填
B4: 秸秆 | E4: 5.2 | F4: 0.13 | I4: 不填
B5: 薪柴 | E5: 2.7 | F5: 0.08 | I5: 锁定
B6: 木炭 | E6: 6 | F6: 0.03
B7: 动物粪便 | E7: 3.6 | F7: 0.05
B8: 数据来源：《省级温室气体排放清单编制指南（试行）》

Sheet 逃逸排放排放因子
B1: 逃逸排放排放因子
B2: 煤炭开采和矿后活动逃逸排放 | O2: 必填
C3: 实测排放因子（立方米CH4/吨） | H3: 默认排放因子（立方米CH4/吨） | O3: 选填
C4: 井工开采 | D4: 露天开采 | E4: 矿后活动 | H4: 井工开采 | I4: 露天开采 | J4: 矿后活动 | O4: 不填
E5: 高瓦斯矿 | F5: 低瓦斯矿 | G5: 露天矿 | J5: 高瓦斯矿 | K5: 低瓦斯矿 | L5: 露天矿 | O5: 锁定
B6: 国有重点 | H6: 8.37 | I6: 2 | J6: 3 | K6: 0.9 | L6: 0.5
B7: 国有地方 | H7: 8.35 | I7: 2 | J7: 3 | K7: 0.9 | L7: 0.5
B8: 乡镇（包括个体） | H8: 6.93 | I8: 2 | J8: 3 | K8: 0.9 | L8: 0.5
B9: 数据来源：《省级温室气体排放清单编制指南（试行）》
B11: 石油和天然气系统逃逸排放
B12: 活动水平 | E12: 实测 排放因子 | F12: 默认 排放因子 | G12: 单位
B13: 石油系统 | C13: 常规油开采 | D13: 井口装置 | F13: 0.2 | G13: 吨CH4/个.年
D14: 单井储油装置 | F14: 0.6 | G14: 吨CH4/个.年
D15: 转接站 | F15: 0.3 | G15: 吨CH4/个.年
D16: 联合站 | F16: 1.8 | G16: 吨CH4/个.年
C17: 稠油开采量 | F17: 14 | G17: 吨CH4/万吨
C18: 原油储运量 | F18: 753 | G18: 吨CH4/亿吨
C19: 原油炼制量 | F19: 5000 | G19: 吨CH4/亿吨
B20: 天然气系统 | C20: 天然气开采 | D20: 井口装置 | F20: 2.5 | G20: 吨CH4/个.年
D21: 常规集气系统 | F21: 51.5 | G21: 吨CH4/个.年
D22: 计量/配气站 | F22: 8.5 | G22: 吨CH4/个.年
D23: 储气总站 | F23: 68.4 | G23: 吨CH4/个.年
C24: 天然气加工处理量 | F24: 54.2 | G24: 吨CH4/亿立方米
C25: 天然气输送 | D25: 增压站 | F25: 95.1 | G25: 吨CH4/个.年
D26: 计量站 | F26: 45 | G26: 吨CH4/个.年
D27: 管线（逆止阀） | F27: 6.3 | G27: 吨CH4/个.年
C28: 天然气消费量 | F28: 133 | G28: 吨CH4/亿立方米
B29: 数据来源：《省级温室气体排放清单编制指南（试行）》

Sheet 工业过程排放因子
B1: 工业生产过程排放因子
B2: 类别 | D2: 实测排放因子 | E2: 默认排放因子 | F2: 单位
B3: 1.水泥生产 | C3: 水泥熟料 | E3: 0.538 | F3: 吨CO2/吨熟料 | I3: 必填
C4: 电石渣生产的熟料 | E4: 0.538 | F4: 吨CO2/吨熟料 | I4: 选填
B5: 2.石灰生产 | E5: 0.683 | F5: 吨CO2/吨石灰 | I5: 不填
B6: 3.钢铁生产 | C6: 石灰石 | E6: 0.43 | F6: 吨CO2/吨石灰石 | I6: 锁定
C7: 白云石 | E7: 0.474 | F7: 吨CO2/吨白云石
C8: 炼钢用生铁含碳率 | E8: 0.041 | F8: %
C9: 钢材含碳率 | E9: 0.00248 | F9: %
B10: 4.电石生产 | E10: 1.154 | F10: 千克CO2/吨电石
B11: 5.己二酸生产 | E11: 0.293 | F11: 吨N2O/吨己二酸
B12: 6.硝酸生产 | C12: 高压法，无尾气处理装置 | E12: 0.0139 | F12: 千克N2O/吨硝酸
C13: 高压法，有尾气处理装置 | E13: 0.002 | F13: 千克N2O/吨硝酸
C14: 中压法 | E14: 0.01177 | F14: 千克N2O/吨硝酸
C15: 常压法 | E15: 0.00972 | F15: 千克N2O/吨硝酸
C16: 双加压 | E16: 0.008 | F16: 千克N2O/吨硝酸
C17: 综合法 | E17: 0.0075 | F17: 千克N2O/吨硝酸
C18: 低压法 | E18: 0.005 | F18: 千克N2O/吨硝酸
B19: 7.HCFC-22生产 | E19: 0.0292 | F19: 吨HFC-23/吨HCFC-22
B20: 8.铝生产 | C20: 点式下料预焙槽技术 | E20: 0.0888 | F20: 千克CF4/吨铝
C21: 侧插阳极棒自焙槽技术 | E21: 0.6 | F21: 千克CF4/吨铝
C22: 点式下料预焙槽技术 | E22: 0.0114 | F22: 千克C2F6/吨铝
C23: 侧插阳极棒自焙槽技术 | E23: 0.06 | F23: 千克C2F6/吨铝
B24: 9.镁生产 | C24: SF6保护剂的原镁 | E24: 0.49 | F24: 千克SF6/吨镁
C25: 镁加工 | E25: 0.114 | F25: 千克SF6/吨镁
B26: 10.电力设备生产 | C26: SF6排放因子 | E26: 0.086 | F26: %
B27: 11.半导体生产 | C27: CHF3排放因子 | E27: 0.2095 | F27: %
C28: CF4排放因子 | E28: 0.4356 | F28: %
C29: C2F6排放因子 | E29: 0.0376 | F29: %
C30: SF6排放因子 | E30: 0.1951 | F30: %
B31: 12.氢氟烃生产 | C31: HFC-23 | E31: 0.005 | F31: %
C32: HFC-32 | E32: 0.005 | F32: %
C33: HFC-125 | E33: 0.005 | F33: %
C34: HFC-134a | E34: 0.005 | F34: %
C35: HFC-143a | E35: 0.005 | F35: %
C36: HFC-152a | E36: 0.005 | F36: %
C37: HFC-227ea | E37: 0.005 | F37: %
C38: HFC-236fa | E38: 0.005 | F38: %
C39: HFC-245fa | E39: 0.005 | F39: %
B40: 数据来源：《省级温室气体清单编制指南（试行）》

Sheet 农业活动排放因子
B1: 农业活动排放因子
B2: 1. 稻田活动CH4排放因子（千克CH4/公顷） | N2: 必填
B3: 区域 | C3: 实测排放因子 | F3: 默认排放因子 | N3: 选填
C4: 单季稻 | D4: 双季稻 | E4: 双季晚稻 | F4: 单季稻 | H4: 双季早稻 | J4: 双季晚稻 | N4: 不填
F5: 范围 | G5: 推荐值 | H5: 范围 | I5: 推荐值 | J5: 范围 | K5: 推荐值 | N5: 锁定
B6: 华北 | F6: 134.4~341.9 | G6: 234
B7: 华东 | F7: 158.2~255.9 | G7: 215.5 | H7: 153.1~259.0 | I7: 211.4 | J7: 143.4~261.3 | K7: 224
B8: 华中 | F8: 170.2~320.1 | G8: 236.7 | H8: 169.5~387.2 | I8: 241 | J8: 185.3~357.9 | K8: 273.2
B9: 华南 | F9: 170.2~320.1 | G9: 236.7 | H9: 169.5~387.2 | I9: 241 | J9: 185.3~357.9 | K9: 273.2
B10: 西南 | F10: 75.0~246.5 | G10: 156.2 | H10: 73.7~276.6 | I10: 156.2 | J10: 75.1~265.1 | K10: 171.7
B11: 东北 | F11: 112.6~230.3 | G11: 168
B12: 西北 | F12: 175.9~319.5 | G12: 231.2
B14: 2. 农田N2O排放因子相关参数
B15: 2.1 N2O直接排放因子（千克N2O-N/千克氮输入）
B16: 区域 | C16: 省份 | H16: 实测值 | I16: 推荐值 | J16: 范围
B17: I区 | C17: 内蒙、新疆，甘肃、 青海、西藏、宁夏、陕西、山西 | I17: 0.0056 | J17: 0.0015~0.0085
B18: II区 | C18: 黑龙江，吉林，辽宁 | I18: 0.0114 | J18: 0.0021~ 0.0258
B19: III区 | C19: 北京，天津，河北，河南，山东 | I19: 0.0057 | J19: 0.0014 ~ 0.0081
B20: IV区 | C20: 浙江，上海，江苏，安徽，江西，湖南，湖北，四川，重庆 | I20: 0.0109 | J20: 0.0026 ~ 0.022
B21: V区 | C21: 广东，广西，海南，福建 | I21: 0.0178 | J21: 0.0046 ~ 0.0228
B22: VI区 | C22: 云南、贵州 | I22: 0.0106 | J22: 0.0025 ~ 0.0218
B23: 当地所在区域 | D23: =VLOOKUP(主菜单!L11,名称代码!E10:F40,2) -> IV区
B25: 2.2 动物氮排泄量（千克氮/头.年）
B26: 动物种类 | C26: 实测 | D26: 默认值
B27: 奶牛 | D27: 60
B28: 非奶牛 | D28: 40
B29: 水牛 | D29: 40
B30: 绵羊 | D30: 12
B31: 山羊 | D31: 2
B32: 猪 | D32: 16
B33: 家禽 | D33: 0.6
B34: 马 | D34: 40
B35: 驴/骡 | D35: 40
B36: 骆驼 | D36: 40
B38: 秸秆还田排放相关参数
B39: 农作物名称 | C39: 干重比 | D39: 籽粒含氮量 | E39: 秸秆含氮量 | F39: 经济系数 | G39: 根冠比 | H39: 干重比 | I39: 籽粒含氮量 | J39: 秸秆含氮量 | K39: 经济系数 | L39: 根冠比
B40: 水稻 | H40: 0.855 | I40: 0.01 | J40: 0.00753 | K40: 0.489 | L40: 0.125
B41: 小麦 | H41: 0.87 | I41: 0.014 | J41: 0.00516 | K41: 0.434 | L41: 0.166
B42: 玉米 | H42: 0.86 | I42: 0.017 | J42: 0.0058 | K42: 0.438 | L42: 0.17
B43: 高粱 | H43: 0.87 | I43: 0.017 | J43: 0.0073 | K43: 0.393 | L43: 0.185
B44: 谷子 | H44: 0.83 | I44: 0.07 | J44: 0.0085 | K44: 0.385 | L44: 0.166
B45: 其他谷类 | H45: 0.83 | I45: 0.014 | J45: 0.0056 | K45: 0.455 | L45: 0.166
B46: 大豆 | H46: 0.86 | I46: 0.06 | J46: 0.0181 | K46: 0.425 | L46: 0.13
B47: 其他豆类 | H47: 0.82 | I47: 0.05 | J47: 0.022 | K47: 0.385 | L47: 0.13
B48: 油菜籽 | H48: 0.82 | I48: 0.00548 | J48: 0.00548 | K48: 0.271 | L48: 0.15
B49: 花生 | H49: 0.9 | I49: 0.05 | J49: 0.0182 | K49: 0.556 | L49: 0.2
B50: 芝麻 | H50: 0.9 | I50: 0.05 | J50: 0.0131 | K50: 0.417 | L50: 0.2
B51: 籽棉 | H51: 0.83 | I51: 0.00548 | J51: 0.00548 | K51: 0.383 | L51: 0.2
B52: 甜菜 | H52: 0.4 | I52: 0.004 | J52: 0.00507 | K52: 0.667 | L52: 0.05
B53: 甘蔗 | H53: 0.32 | I53: 0.004 | J53: 0.83 | K53: 0.75 | L53: 0.26
B54: 麻类 | H54: 0.83 | I54: 0.0131 | J54: 0.0131 | K54: 0.83 | L54: 0.2
B55: 薯类 | H55: 0.45 | I55: 0.004 | J55: 0.011 | K55: 0.667 | L55: 0.05
B56: 蔬菜 | H56: 0.15 | I56: 0.008 | J56: 0.008 | K56: 0.83 | L56: 0.25
B57: 烟叶 | H57: 0.83 | I57: 0.041 | J57: 0.0144 | K57: 0.83 | L57: 0.2
B59: 2.2 N2O间接排放排放因子
B60: 分类 | C60: 实测值 | D60: 默认值
B61: 大气氮沉降 | D61: 0.001
B62: 氮淋溶引起 | D62: 0.0075
B64: 3. 动物肠道发酵CH4排放因子（千克CH4/头.年）
C65: 实测排放因子 | F65: 默认排放因子
B66: 动物种类 | C66: 规模化饲养 | D66: 农户散养 | E66: 放牧饲养 | F66: 规模化饲养 | G66: 农户散养 | H66: 放牧饲养
B67: 奶牛 | F67: 88.1 | G67: 89.3 | H67: 99.3
B68: 非奶牛 | F68: 52.9 | G68: 67.9 | H68: 85.3
B69: 水牛 | F69: 70.5 | G69: 87.7
B70: 绵羊 | F70: 8.2 | G70: 8.7 | H70: 7.5
B71: 山羊 | F71: 8.9 | G71: 9.4 | H71: 6.7
B72: 猪 | F72: 1
B73: 家禽
B74: 马 | F74: 18
B75: 驴/骡 | F75: 10
B76: 骆驼 | F76: 46
B78: 4. 动物粪便管理
B79: 4.1 动物粪便管理CH4排放因子（千克CH4/头.年）
C80: 实测排放因子 | J80: 默认排放因子 | Q80: 当地取值
B81: 地区 | C81: 华北 | D81: 东北 | E81: 华东 | F81: 华中 | G81: 华南 | H81: 西南 | I81: 西北 | J81: 华北 | K81: 东北 | L81: 华东 | M81: 华中 | N81: 华南 | O81: 西南 | P81: 西北 | Q81: =主菜单!L12 -> 华东
B82: 奶牛 | J82: 7.46 | K82: 2.23 | L82: 8.33 | M82: 8.45 | N82: 8.45 | O82: 6.51 | P82: 5.93 | Q82: =HLOOKUP(主菜单!L12,$J$81:$P$91,2) -> 8.33
B83: 非奶牛 | J83: 2.82 | K83: 1.02 | L83: 3.31 | M83: 4.72 | N83: 4.72 | O83: 3.21 | P83: 1.86 | Q83: =HLOOKUP(主菜单!$L$12,$J$81:$P$91,3) -> 3.31
B84: 水牛 | L84: 5.55 | M84: 8.24 | N84: 8.24 | O84: 1.53 | Q84: =HLOOKUP(主菜单!$L$12,$J$81:$P$91,4) -> 5.55
B85: 绵羊 | J85: 0.15 | K85: 0.15 | L85: 0.26 | M85: 0.34 | N85: 0.34 | O85: 0.48 | P85: 0.28 | Q85: =HLOOKUP(主菜单!$L$12,$J$81:$P$91,5) -> 0.26
B86: 山羊 | J86: 0.17 | K86: 0.16 | L86: 0.28 | M86: 0.31 | N86: 0.31 | O86: 0.53 | P86: 0.32 | Q86: =HLOOKUP(主菜单!$L$12,$J$81:$P$91,6) -> 0.28
B87: 猪 | J87: 3.12 | K87: 1.12 | L87: 5.08 | M87: 5.85 | N87: 5.85 | O87: 4.18 | P87: 1.38 | Q87: =HLOOKUP(主菜单!$L$12,$J$81:$P$91,7) -> 5.08
B88: 家禽 | J88: 0.01 | K88: 0.01 | L88: 0.02 | M88: 0.02 | N88: 0.02 | O88: 0.02 | P88: 0.01 | Q88: =HLOOKUP(主菜单!$L$12,$J$81:$P$91,8) -> 0.02
B89: 马 | J89: 1.09 | K89: 1.09 | L89: 1.64 | M89: 1.64 | N89: 1.64 | O89: 1.64 | P89: 1.09 | Q89: =HLOOKUP(主菜单!$L$12,$J$81:$P$91,9) -> 1.64
B90: 驴/骡 | J90: 0.6 | K90: 0.6 | L90: 0.9 | M90: 0.9 | N90: 0.9 | O90: 0.9 | P90: 0.6 | Q90: =HLOOKUP(主菜单!$L$12,$J$81:$P$91,10) -> 0.9
B91: 骆驼 | J91: 1.28 | K91: 1.28 | L91: 1.92 | M91: 1.92 | N91: 1.92 | O91: 1.92 | P91: 1.28 | Q91: =HLOOKUP(主菜单!$L$12,$J$81:$P$91,11) -> 1.92
B93: 4.2 动物粪便管理N2O排放因子（千克N2O/头.年）
C94: 实测排放因子 | J94: 默认排放因子 | Q94: 当地取值
B95: 地区 | C95: 华北 | D95: 东北 | E95: 华东 | F95: 华中 | G95: 华南 | H95: 西南 | I95: 西北 | J95: 华北 | K95: 东北 | L95: 华东 | M95: 华中 | N95: 华南 | O95: 西南 | P95: 西北 | Q95: =主菜单!L12 -> 华东
B96: 奶牛 | J96: 1.846 | K96: 1.096 | L96: 2.065 | M96: 1.71 | N96: 1.71 | O96: 1.884 | P96: 1.447 | Q96: =HLOOKUP($Q$95,$J$95:$P$105,2,FALSE) -> 2.065
B97: 非奶牛 | J97: 0.794 | K97: 0.913 | L97: 0.846 | M97: 0.805 | N97: 0.805 | O97: 0.691 | P97: 0.545 | Q97: =HLOOKUP($Q$95,$J$95:$P$105,3,FALSE) -> 0.846
B98: 水牛 | L98: 0.875 | M98: 0.86 | N98: 0.86 | O98: 1.197 | Q98: =HLOOKUP($Q$95,$J$95:$P$105,4,FALSE) -> 0.875
B99: 绵羊 | J99: 0.093 | K99: 0.057 | L99: 0.113 | M99: 0.106 | N99: 0.106 | O99: 0.064 | P99: 0.074 | Q99: =HLOOKUP($Q$95,$J$95:$P$105,5,FALSE) -> 0.113
B100: 山羊 | J100: 0.093 | K100: 0.057 | L100: 0.113 | M100: 0.106 | N100: 0.106 | O100: 0.064 | P100: 0.074 | Q100: =HLOOKUP($Q$95,$J$95:$P$105,6,FALSE) -> 0.113
B101: 猪 | J101: 0.227 | K101: 0.266 | L101: 0.175 | M101: 0.157 | N101: 0.157 | O101: 0.159 | P101: 0.195 | Q101: =HLOOKUP($Q$95,$J$95:$P$105,7,FALSE) -> 0.175
B102: 家禽 | J102: 0.007 | K102: 0.007 | L102: 0.007 | M102: 0.007 | N102: 0.007 | O102: 0.007 | P102: 0.007 | Q102: =HLOOKUP($Q$95,$J$95:$P$105,8,FALSE) -> 0.007
B103: 马 | J103: 0.33 | K103: 0.33 | L103: 0.33 | M103: 0.33 | N103: 0.33 | O103: 0.33 | P103: 0.33 | Q103: =HLOOKUP($Q$95,$J$95:$P$105,9,FALSE) -> 0.33
B104: 驴/骡 | J104: 0.188 | K104: 0.188 | L104: 0.188 | M104: 0.188 | N104: 0.188 | O104: 0.188 | P104: 0.188 | Q104: =HLOOKUP($Q$95,$J$95:$P$105,10,FALSE) -> 0.188
B105: 骆驼 | J105: 0.33 | K105: 0.33 | L105: 0.33 | M105: 0.33 | N105: 0.33 | O105: 0.33 | P105: 0.33 | Q105: =HLOOKUP($Q$95,$J$95:$P$105,11,FALSE) -> 0.33
B106: 数据来源：上述所有默认排放因子数据来自《省级温室气体清单编制指南（试行）》

Sheet 土地利用变化和林业排放因子
B1: 土地利用变化和林业排放因子
B2: 1. 森林和其他木质生物质生物量碳储量变化排放因子
B3: 1.1 活立木相关排放因子构成系数
B4: 省区市 | C4: 自定义排放因子构成系数 | H4: 默认排放因子构成系数
C5: 活立木蓄积量生长率 | D5: 活立木蓄积量消耗率 | E5: 基本木材密度 | F5: 生物量转换系数（全林） | G5: 生物量转换系数（地上） | H5: 活立木蓄积量生长率 | I5: 活立木蓄积量消耗率 | J5: 基本木材密度加权平均值 | K5: 生物量转换系数（全林） | L5: 生物量转换系数（地上） | M5: 生物量含碳率
C6: % | D6: % | E6: 吨/立方米 | F6: - | G6: - | H6: - | I6: % | J6: 吨/立方米 | K6: - | L6: - | M6: - | P6: 必填
B7: 全国 | H7: 0.0482 | I7: 0.0272 | J7: 0.462 | K7: 1.787 | L7: 1.431 | M7: 0.5 | P7: 选填
B8: 北京 | H8: 0.0639 | I8: 0.0431 | J8: 0.484 | K8: 1.771 | L8: 1.427 | M8: 0.5 | P8: 不填
B9: 天津 | H9: 0.1166 | I9: 0.0944 | J9: 0.423 | K9: 1.821 | L9: 1.47 | M9: 0.5 | P9: 锁定
B10: 河北 | H10: 0.0783 | I10: 0.0489 | J10: 0.478 | K10: 1.782 | L10: 1.43 | M10: 0.5
B11: 山西 | H11: 0.0532 | I11: 0.0221 | J11: 0.484 | K11: 1.839 | L11: 1.467 | M11: 0.5
B12: 内蒙古 | H12: 0.0268 | I12: 0.0088 | J12: 0.505 | K12: 1.69 | L12: 1.364 | M12: 0.5
B13: 辽宁 | H13: 0.0558 | I13: 0.0323 | J13: 0.504 | K13: 1.803 | L13: 1.434 | M13: 0.5
B14: 吉林 | H14: 0.0367 | I14: 0.0191 | J14: 0.505 | K14: 1.784 | L14: 1.411 | M14: 0.5
B15: 黑龙江 | H15: 0.0387 | I15: 0.0167 | J15: 0.499 | K15: 1.751 | L15: 1.393 | M15: 0.5
B16: 上海 | H16: 0.0962 | I16: 0.0671 | J16: 0.392 | K16: 1.874 | L16: 1.461 | M16: 0.5
B17: 江苏 | H17: 0.1319 | I17: 0.1016 | J17: 0.395 | K17: 1.603 | L17: 1.309 | M17: 0.5
B18: 浙江 | H18: 0.0935 | I18: 0.0446 | J18: 0.406 | K18: 1.755 | L18: 1.421 | M18: 0.5
B19: 安徽 | H19: 0.0978 | I19: 0.0614 | J19: 0.416 | K19: 1.742 | L19: 1.408 | M19: 0.5
B20: 福建 | H20: 0.0668 | I20: 0.0563 | J20: 0.436 | K20: 1.806 | L20: 1.441 | M20: 0.5
B21: 江西 | H21: 0.0828 | I21: 0.0535 | J21: 0.422 | K21: 1.795 | L21: 1.435 | M21: 0.5
B22: 山东 | H22: 0.1528 | I22: 0.0951 | J22: 0.412 | K22: 1.774 | L22: 1.428 | M22: 0.5
B23: 河南 | H23: 0.1168 | I23: 0.0686 | J23: 0.488 | K23: 1.74 | L23: 1.392 | M23: 0.5
B24: 湖北 | H24: 0.0829 | I24: 0.0494 | J24: 0.459 | K24: 1.848 | L24: 1.477 | M24: 0.5
B25: 湖南 | H25: 0.099 | I25: 0.0638 | J25: 0.394 | K25: 1.712 | L25: 1.387 | M25: 0.5
B26: 广东 | H26: 0.0824 | I26: 0.0718 | J26: 0.474 | K26: 1.915 | L26: 1.513 | M26: 0.5
B27: 广西 | H27: 0.0894 | I27: 0.059 | J27: 0.43 | K27: 1.819 | L27: 1.448 | M27: 0.5
B28: 海南 | H28: 0.0501 | I28: 0.0407 | J28: 0.488 | K28: 1.813 | L28: 1.419 | M28: 0.5
B29: 重庆 | H29: 0.0738 | I29: 0.0293 | J29: 0.431 | K29: 1.736 | L29: 1.419 | M29: 0.5
B30: 四川 | H30: 0.0304 | I30: 0.0106 | J30: 0.425 | K30: 1.744 | L30: 1.419 | M30: 0.5
B31: 贵州 | H31: 0.0845 | I31: 0.037 | J31: 0.425 | K31: 1.842 | L31: 1.48 | M31: 0.5
B32: 云南 | H32: 0.0412 | I32: 0.0225 | J32: 0.501 | K32: 1.87 | L32: 1.488 | M32: 0.5
B33: 西藏 | H33: 0.009 | I33: 0.0047 | J33: 0.427 | K33: 1.805 | L33: 1.449 | M33: 0.5
B34: 陕西 | H34: 0.041 | I34: 0.0228 | J34: 0.558 | K34: 1.947 | L34: 1.517 | M34: 0.5
B35: 甘肃 | H35: 0.0354 | I35: 0.0189 | J35: 0.462 | K35: 1.789 | L35: 1.433 | M35: 0.5
B36: 青海 | H36: 0.024 | I36: 0.0127 | J36: 0.408 | K36: 1.827 | L36: 1.483 | M36: 0.5
B37: 宁夏 | H37: 0.0739 | I37: 0.033 | J37: 0.444 | K37: 1.798 | L37: 1.445 | M37: 0.5
B38: 新疆 | H38: 0.0295 | I38: 0.0155 | J38: 0.393 | K38: 1.683 | L38: 1.356 | M38: 0.5
B40: 1.2 竹林、经济林、灌木林平均单位面积生物量
C41: 自定义输入值 | E41: 默认值 | F41: 单位
B42: 竹林 | C42: 地上部 | E42: 45.29 | F42: 吨/公顷
C43: 地下部 | E43: 24.64 | F43: 吨/公顷
C44: 全林 | E44: 68.48 | F44: 吨/公顷
B45: 经济林 | C45: 地上部 | E45: 29.35 | F45: 吨/公顷
C46: 地下部 | E46: 7.55 | F46: 吨/公顷
C47: 全林 | E47: 35.21 | F47: 吨/公顷
B48: 灌木林 | C48: 地上部 | E48: 12.51 | F48: 吨/公顷
C49: 地下部 | E49: 6.72 | F49: 吨/公顷
C50: 全林 | E50: 17.99 | F50: 吨/公顷
B52: 2. 森林转化排放因子
B53: 2.1 燃烧和分解CO2排放相关排放因子
D54: 转化前单位面积地上生物量 | H54: 转化后单位面积地上生物量 | I54: 现地/异地燃烧生物量比例 | J54: 现地/异地燃烧生物量氧化系数 | K54: 地上物生量碳含量 | L54: 被分解部分比例
E55: 单位面积蓄积量 | F55: 基本木材密度 | G55: 生物量转换系数（地上）
D56: 吨/公顷 | E56: 立方米/公顷 | F56: 吨/立方米 | G56: - | H56: 吨/公顷 | I56: % | J56: - | K56: -
B57: 现地燃烧 | C57: 乔木林 | D57: =E57*F57*G57 ->  | E57: =土地利用变化和林业活动水平!C4/土地利用变化和林业活动水平!G4 ->  | F57: =VLOOKUP(主菜单!L11,土地利用变化和林业排放因子!B7:M38,9) -> 0.392 | G57: =VLOOKUP(主菜单!L11,土地利用变化和林业排放因子!B7:M38,11) -> 1.461 | H57: 0 | I57: 0.15 | J57: 0.9 | K57: =M7 -> 0.5 | L57: 0.15
C58: 竹林 | D58: =IF(D42>0,D42,E42) -> 45.29 | E58: - | F58: - | G58: -
C59: 经济林 | D59: =IF(D45>0,D45,E45) -> 29.35 | E59: - | F59: - | G59: -
B60: 异地燃烧 | C60: 乔木林 | D60: =E60*F60*G60 ->  | E60: =E57 ->  | F60: =F57 -> 0.392 | G60: =G57 -> 1.461 | I60: 0.2
C61: 竹林 | D61: =D58 -> 45.29 | E61: - | F61: - | G61: -
C62: 经济林 | D62: =D59 -> 29.35 | E62: - | F62: - | G62: -
B64: 2.1 燃烧CH4，N2O排放相关排放因子
D65: 默认值
B66: CH4-C比例 | D66: 0.012
B67: N2O-N比例 | D67: 0.007
B68: 碳氮比例 | D68: 0.01
B69: 数据来源：上述所有默认排放因子数据来自《省级温室气体清单编制指南（试行）》
B71: 活立木相关排放因子构成系数
B72: 省区市 | C72: 实际取值
C73: 活立木蓄积量生长率 | D73: 活立木蓄积量消耗率 | E73: 基本木材密度 | F73: 生物量转换系数（全林） | G73: 生物量转换系数（地上）
C74: % | D74: % | E74: 吨/立方米 | F74: - | G74: -
B75: 全国 | C75: =IF(C7>0,C7,H7) -> 0.0482 | D75: =IF(D7>0,D7,I7) -> 0.0272 | E75: 0.462 | F75: 1.787 | G75: 1.431
B76: 北京 | C76: =IF(C8>0,C8,H8) -> 0.0639 | D76: 0.0431 | E76: 0.484 | F76: 1.771 | G76: 1.427
B77: 天津 | C77: 0.1166 | D77: 0.0944 | E77: 0.423 | F77: 1.821 | G77: 1.47
B78: 河北 | C78: 0.0783 | D78: 0.0489 | E78: 0.478 | F78: 1.782 | G78: 1.43
B79: 山西 | C79: 0.0532 | D79: 0.0221 | E79: 0.484 | F79: 1.839 | G79: 1.467
B80: 内蒙古 | C80: 0.0268 | D80: 0.0088 | E80: 0.505 | F80: 1.69 | G80: 1.364
B81: 辽宁 | C81: 0.0558 | D81: 0.0323 | E81: 0.504 | F81: 1.803 | G81: 1.434
B82: 吉林 | C82: 0.0367 | D82: 0.0191 | E82: 0.505 | F82: 1.784 | G82: 1.411
B83: 黑龙江 | C83: 0.0387 | D83: 0.0167 | E83: 0.499 | F83: 1.751 | G83: 1.393
B84: 上海 | C84: 0.0962 | D84: 0.0671 | E84: 0.392 | F84: 1.874 | G84: 1.461
B85: 江苏 | C85: 0.1319 | D85: 0.1016 | E85: 0.395 | F85: 1.603 | G85: 1.309
B86: 浙江 | C86: 0.0935 | D86: 0.0446 | E86: 0.406 | F86: 1.755 | G86: 1.421
B87: 安徽 | C87: 0.0978 | D87: 0.0614 | E87: 0.416 | F87: 1.742 | G87: 1.408
B88: 福建 | C88: 0.0668 | D88: 0.0563 | E88: 0.436 | F88: 1.806 | G88: 1.441
B89: 江西 | C89: 0.0828 | D89: 0.0535 | E89: 0.422 | F89: 1.795 | G89: 1.435
B90: 山东 | C90: 0.1528 | D90: 0.0951 | E90: 0.412 | F90: 1.774 | G90: 1.428
B91: 河南 | C91: 0.1168 | D91: =IF(D23>0,D23,I23) -> 0.0686 | E91: =IF(E23>0,E23,J23) -> 0.488 | F91: =IF(F23>0,F23,K23) -> 1.74 | G91: =IF(G23>0,G23,L23) -> 1.392
B92: 湖北 | C92: 0.0829 | D92: 0.0494 | E92: 0.459 | F92: 1.848 | G92: 1.477
B93: 湖南 | C93: 0.099 | D93: 0.0638 | E93: 0.394 | F93: 1.712 | G93: 1.387
B94: 广东 | C94: 0.0824 | D94: 0.0718 | E94: 0.474 | F94: 1.915 | G94: 1.513
B95: 广西 | C95: 0.0894 | D95: 0.059 | E95: 0.43 | F95: 1.819 | G95: 1.448
B96: 海南 | C96: 0.0501 | D96: 0.0407 | E96: 0.488 | F96: 1.813 | G96: 1.419
B97: 重庆 | C97: 0.0738 | D97: 0.0293 | E97: 0.431 | F97: 1.736 | G97: 1.419
B98: 四川 | C98: 0.0304 | D98: 0.0106 | E98: 0.425 | F98: 1.744 | G98: 1.419
B99: 贵州 | C99: 0.0845 | D99: 0.037 | E99: 0.425 | F99: 1.842 | G99: 1.48
B100: 云南 | C100: 0.0412 | D100: 0.0225 | E100: 0.501 | F100: 1.87 | G100: 1.488
B101: 西藏 | C101: 0.009 | D101: 0.0047 | E101: 0.427 | F101: 1.805 | G101: 1.449
B102: 陕西 | C102: 0.041 | D102: 0.0228 | E102: 0.558 | F102: 1.947 | G102: 1.517
B103: 甘肃 | C103: 0.0354 | D103: 0.0189 | E103: 0.462 | F103: 1.789 | G103: 1.433
B104: 青海 | C104: 0.024 | D104: 0.0127 | E104: 0.408 | F104: 1.827 | G104: 1.483
B105: 宁夏 | C105: 0.0739 | D105: 0.033 | E105: 0.444 | F105: 1.798 | G105: 1.445
B106: 新疆 | C106: 0.0295 | D106: 0.0155 | E106: 0.393 | F106: 1.683 | G106: 1.356

Sheet 废弃物处理排放因子
B1: 废弃物排放因子
B2: 1. 垃圾填埋CH4排放因子构成因素
D3: 实测系数 | E3: 默认系数 | J3: 必填
B4: 甲烷修正因子 | C4: 管理 | E4: 1 | J4: 选填
C5: 非管理--深埋（>5米） | E5: 0.8 | J5: 不填
C6: 非管理--浅埋（<5米） | E6: 0.4 | J6: 锁定
C7: 未分类 | E7: 0.4
B8: DOC含量比例 | E8: 范围 | F8: 推荐值
C9: 食品废弃物 | E9: 8~20% | F9: 0.15
C10: 纺织品 | E10: 20~40% | F10: 0.24
C11: 花园、公园废弃物 | E11: 18~22% | F11: 0.2
C12: 纸张 | E12: 36~45% | F12: 0.4
C13: 木材或秸秆 | E13: 39~46% | F13: 0.43
B14: 可分解DOC比例 | E14: 0.5
B15: 填埋气中CH4比例 | E15: 0.5
B16: CH4/C比 | E16: =16/12 -> 1.333333333
B17: 氧化因子 | C17: 管理型填埋场 | E17: 0.1
C18: 非管理填埋场所 | E18: 0
B20: 2. 垃圾焚烧CO2排放因子构成因素
D21: 实测排放因子构成因素 | E21: 默认排放因子构成因素 | G21: 排放因子值 （吨CO2/吨垃圾）
E22: 范围 | F22: 推荐值
B23: 城市生活垃圾 | C23: 含碳量比例 | E23: （湿）33~35% | F23: 0.2 | G23: =F23*F24*F25*E26 -> 0.2717
C24: 矿物碳比例 | E24: 30~50% | F24: 0.39
C25: 燃烧效率 | E25: 95~99% | F25: 0.95
C26: CO2-C转换系数 | E26: =44/12 -> 3.666666667
B27: 危险废弃物 | C27: 含碳量比例 | E27: （湿）1~95% | F27: 0.01 | G27: =F27*F28*F29*E30 -> 0.03201
C28: 矿物碳比例 | E28: 90~100% | F28: 0.9
C29: 燃烧效率 | E29: 95~99.5% | F29: 0.97
C30: CO2-C转换系数 | E30: =44/12 -> 3.666666667
B31: 污泥 | C31: 含碳量比例 | E31: （干物质）10~40% | F31: 0.3 | G31: =F31*F32*F33*E34 -> 0
C32: 矿物碳比例 | E32: 0 | F32: 0
C33: 燃烧效率 | E33: 0.95 | F33: 0.95
C34: CO2-C转换系数 | E34: =44/12 -> 3.666666667
B36: 3. 生活污水CH4排放因子构成因素
C37: 实测排放因子构成因素 | E37: 默认排放因子构成因素 | G37: 排放因子值
C38: 甲烷最大生产力 | D38: 甲烷修正因子 | E38: 甲烷最大生产力 | F38: 甲烷修正因子 | G38: 千克CH4/千克BOD
C39: 千克CH4/千克BOD | E39: 千克CH4/千克BOD
B40: 生活污水 | E40: 0.6 | F40: 0.165 | G40: =E40*F40 -> 0.099
B42: 4. 工业废水CH4排放因子构成因素
C43: 实测排放因子构成因素 | E43: 默认排放因子构成因素 | G43: 排放因子值
C44: 甲烷最大生产力 | D44: 甲烷修正因子 | E44: 甲烷最大生产力 | F44: 甲烷修正因子
C45: 千克CH4千克COD | E45: 千克CH4/千克COD | G45: 千克CH4/千克COD
B46: 工业废水 | E46: 0.25 | F46: 0.165 | G46: =E46*F46 -> 0.04125
B48: 5. 生活污水和工业废水N2O排放因子构成因素
C49: 实测值 | D49: 默认值 | E49: 单位
B50: 排放因子 | D50: 0.005 | E50: 千克N2O/千克氮
B51: 数据来源：上述默认排放因子数据均来自《省级温室气体清单编制指南（试行）》

Sheet 报告列表
B1: 核算结果
B2: 核算结果报告列表 | C2: 1. GPC报告模式
C3: 2. 省级清单报告模式
C4: 3. 重点领域排放
C5: 工业
C6: 建筑
C7: 交通
C8: 废弃物处理
C9: 4. 产业排放
C10: 5. 排放强度
C11: 6. 信息项
C19: 校对数据计算结果
C20: 能源平衡表计算结果
C21: 其他能源活动补充数据计算结果

Sheet GPC报告
B1: 城市温室气体排放清单（GPC报告模式）
B2: 编号 | C2: 范围 | D2: 排放源 | E2: 标记 | I2: 温室气体种类（万吨） | P2: 数据质量
E4: IE | F4: NE | G4: NO | H4: NA | I4: CO2 | J4: CH4 | K4: N2O | L4: HFC | M4: PFC | N4: SF6 | O4: CO2e | P4: 高 | Q4: 中 | R4: 低
B5: I. | D5: 固定排放源
B6: I.1 | D6: 居民住宅
B7: I.1.1 | C7: 1 | D7: 直接排放 | I7: 0 | J7: 0 | K7: 0 | O7: 0
B8: I.1.2 | C8: 2 | D8: 能源间接排放 | I8: 0 | J8: 0 | K8: 0 | O8: 0
B9: I.2 | D9: 商业、公共设施
B10: I.2.1 | C10: 1 | D10: 直接排放 | I10: 0 | J10: 0 | K10: 0 | O10: 0
B11: I.2.2 | C11: 2 | D11: 能源间接排放 | I11: 0 | J11: 0 | K11: 0 | O11: 0
B12: I.3 | D12: 发电和供热
B13: I.3.1. | C13: 1 | D13: 直接排放 | I13: 0 | J13: 0 | K13: 0 | O13: 0
B14: I.3.2 | C14: 2 | D14: 能源间接排放 | I14: 0 | J14: 0 | K14: 0 | O14: 0
B15: I.4 | D15: 工业和建筑业
B16: I.4.1 | C16: 1 | D16: 直接排放 | I16: 0 | J16: 0 | K16: 0 | O16: 0
B17: I.4.2 | C17: 2 | D17: 能源间接排放 | I17: 0 | J17: 0 | K17: 0 | O17: 0
B18: I.5 | D18: 逸散性排放
B19: I.5.1 | C19: 1 | D19: 直接排放 | J19: 0 | O19: 0
D20: 其他
B21: I.6 | C21: 1 | D21: 直接排放 | I21: 0 | J21: 0 | K21: 0 | O21: 0
B22: II. | D22: 移动排放源
B23: II.1 | D23: 路面交通
B24: II.1.1 | C24: 1 | D24: 直接排放 | I24: 0 | J24: 0 | K24: 0 | O24: 0
B25: II.1.2 | C25: 2 | D25: 能源间接排放 | I25: 0 | J25: 0 | K25: 0 | O25: 0
B26: II.1.3 | C26: 3 | D26: 其他间接排放 (始于或结束于市内的跨边界交通)
B27: II.2 | D27: 铁路交通
B28: II.2.1 | C28: 1 | D28: 直接排放
B29: II.2.2 | C29: 2 | D29: 能源间接排放
B30: II.2.3 | C30: 3 | D30: 其他间接排放(始于或结束于市内的跨边界交通)
B31: II.3 | D31: 水运
B32: II.3.1. | C32: 1 | D32: 直接排放
B33: II.3.2 | C33: 2 | D33: 能源间接排放
B34: II.3.3 | C34: 3 | D34: 其他间接排放(始于或结束于市内的跨边界交通)
B35: II.4 | D35: 空运
B36: II.4.1 | C36: 1 | D36: 直接排放
B37: II.4.2 | C37: 2 | D37: 能源间接排放
B38: II.4.3 | C38: 3 | D38: 其他间接排放(始于或结束于市内的跨边界交通)
B39: II.5 | D39: 非公路交通（建筑机械等）
B40: II.5.1 | C40: 1 | D40: 直接排放
B41: III. | D41: 废弃物
B42: III.1 | D42: 填埋
B43: III.1.1 | C43: 1 | D43: 方法一: 一阶衰减法
B44: III.1.2 | C44: 1 | D44: 方法二: 缺省估算法 | J44: 0 | O44: 0
B45: III.1.3 | C45: 3 | D45: 间接排放 | J45: 0 | O45: 0
B46: III.3 | D46: 生物处理
B47: III.3.1 | C47: 1 | D47: 直接排放
B48: III.3.2 | C48: 3 | D48: 间接排放
B49: III.4 | D49: 燃烧
B50: III.4.1 | C50: 1 | D50: 直接排放 | I50: 0 | O50: 0
B51: III.4.2 | C51: 3 | D51: 间接排放 | I51: 0 | O51: 0
B52: III.5 | D52: 污水处理
B53: III.5.1 | C53: 1 | D53: 直接排放 | J53: 0 | K53: 0 | O53: 0
B54: III.5.2 | C54: 3 | D54: 间接排放 | J54: 0 | O54: 0
B55: IV. | D55: 工业生产过程和产品使用
B56: IV.1 | C56: 1 | D56: 工业过程 | I56: 0 | K56: 0 | L56: 0 | M56: 0 | N56: 0 | O56: 0
B57: IV.2 | C57: 1 | D57: 产品使用
B58: V. | D58: 农业、林业和其他土地利用
B59: V.1 | C59: 1 | D59: 农业 | J59: 0
C60: 1 | D60: 林业与土地利用变化
B61: VI. | D61: 其他间接排放源
B62: VI.1 | C62: 3 | D62: 以上排放源的其他间接排放
B63: VI.2 | C63: 3 | D63: 其他产品消耗和服务利用产生的间接排放
E64: 标记数量
D65: BASIC（初级核算） | O65: =O7+O10+O13+O16+O19+O21+O24+O28+O32+O36+O40+O44+O45+O50+O51+O53+O54+O56+(O8+O11+O14+O17+O25+O29+O33+O37-O13) -> 0
D66: BASIC+（中级核算） | O66: =O65+O59+O60+O26+O30+O34+O38 -> 
D67: EXPANDED （高级核算）
D68: "范围一"排放 | I68: =I7+I10+I13+I16+I21+I24+I28+I32+I36+I40+I50+I56+I60 ->  | J68: =J7+J10+J13+J16+J19+J21+J24+J28+J32+J36+J40+J44+J53+J56+J59 -> 0 | K68: =K7+K10+K13+K16+K21+K24+K28+K32+K36+K40+K53+K56+K59 ->  | L68: =L56 -> 0 | M68: =M56 -> 0 | N68: =N56 -> 0 | O68: =O7+O10+O13+O16+O19+O21+O24+O28+O32+O36+O40+O44+O50+O53+O56+O59+O60 -> 
D69: "范围二"排放 | I69: =I8+I11+I14+I17+I25+I29+I33+I37 -> 0 | J69: =J8+J11+J14+J17+J25+J29+J33+J37 -> 0 | K69: =K8+K11+K14+K17+K25+K29+K33+K37 -> 0 | O69: =O8+O11+O14+O17+O25+O29+O33+O37 -> 0
D70: "范围三"排放 | I70: =I26+I30+I34+I38+I51 -> 0 | J70: =J26+J30+J34+J38+J45+J54 -> 0 | K70: =K26+K30+K34+K38 -> 0 | O70: =O26+O30+O34+O38+O45+O51+O54 -> 0
B71: 说明：1.“标记”的含义
C72: IE | D72: Included Elsewhere。在别处包括：该排放源/吸收汇活动引起的排放/吸收在其他类别下计算和报告。需说明涵盖这些排放/吸收的类别。
C73: NE | D73: Not Estimated。未计算：存在此排放源/吸收汇活动，但是未进行计算和报告。需解释原因。
C74: NA | D74: Not Applicable。不适用：存在此排放源/吸收汇活动，但未引起排放。需解释原因。
C75: NO | D75: Not Occurring。未发生：城市无此排放源/吸收汇活动。
B76: 2.需要在“数据质量”一栏标记该类排放源/吸收汇的数据质量为“高”、“中”或“低”。

Sheet 省级清单模板报告
B1: 城市温室气体排放清单（省级清单报告模式）
B2: 排放源与吸收汇种类 | C2: CO2 （万吨） | D2: CH4 （万吨） | E2: N2O （万吨） | F2: HFCs （万吨当量） | G2: PFCs （万吨当量） | H2: SF6 （万吨当量） | I2: GHG （万吨CO2e）
B3: 总排放量（净排放） | C3: =C4+C15+C26+C31+C42 ->  | F3: 0 | G3: 0 | H3: 0
B4: 能源总计 | C4: =C5+C12+C13+C14 -> 0 | D4: =D5+D12+D13+D14 -> 0 | E4: =E5+E12+E13+E14 -> 0 | I4: =I5+I12+I13+I14 -> 0
B5: 1.化石燃料燃烧小计 | C5: =SUM(C6:C11) -> 0 | D5: =SUM(D6:D11) -> 0 | E5: =SUM(E6:E11) -> 0 | I5: =SUM(I6:I11) -> 0
B6: 能源工业 | C6: =其他部门汇总!E8 -> 0 | E6: =其他部门汇总!G8 -> 0 | I6: =C6+D6*VLOOKUP(主菜单!$J$29,GPA,3)+E6*VLOOKUP(主菜单!$J$29,GPA,4) -> 0
B7: 农业 | C7: =其他部门汇总!E5 -> 0 | I7: =C7+D7*VLOOKUP(主菜单!$J$29,GPA,3)+E7*VLOOKUP(主菜单!$J$29,GPA,4) -> 0
B8: 工业和建筑业 | C8: =其他部门汇总!E6+其他部门汇总!E7+其他部门汇总!E9 -> 0 | I8: =C8+D8*VLOOKUP(主菜单!$J$29,GPA,3)+E8*VLOOKUP(主菜单!$J$29,GPA,4) -> 0
B9: 交通运输 | C9: =其他部门汇总!E10 -> 0 | D9: =其他部门汇总!F10 -> 0 | E9: =其他部门汇总!G10 -> 0 | I9: =C9+D9*VLOOKUP(主菜单!$J$29,GPA,3)+E9*VLOOKUP(主菜单!$J$29,GPA,4) -> 0
B10: 服务业 | C10: =其他部门汇总!E11+其他部门汇总!E12 -> 0 | I10: =C10+D10*VLOOKUP(主菜单!$J$29,GPA,3)+E10*VLOOKUP(主菜单!$J$29,GPA,4) -> 0
B11: 居民生活 | C11: =其他部门汇总!E13 -> 0 | I11: =C11+D11*VLOOKUP(主菜单!$J$29,GPA,3)+E11*VLOOKUP(主菜单!$J$29,GPA,4) -> 0
B12: 2.生物质燃烧 | D12: =其他部门汇总!F14 -> 0 | E12: =其他部门汇总!G14 -> 0 | I12: =C12+D12*VLOOKUP(主菜单!$J$29,GPA,3)+E12*VLOOKUP(主菜单!$J$29,GPA,4) -> 0
B13: 3.煤炭开采逃逸 | D13: =其他部门汇总!F15 -> 0 | I13: =C13+D13*VLOOKUP(主菜单!$J$29,GPA,3)+E13*VLOOKUP(主菜单!$J$29,GPA,4) -> 0
B14: 4.油气系统逃逸 | D14: =其他部门汇总!F16 -> 0 | I14: =C14+D14*VLOOKUP(主菜单!$J$29,GPA,3)+E14*VLOOKUP(主菜单!$J$29,GPA,4) -> 0
B15: 工业生产过程总计 | C15: =SUM(C16:C19) -> 0 | E15: 0 | G15: 0 | H15: 0 | I15: =SUM(I16:I25) -> 0
B16: 1.水泥生产过程 | C16: =其他部门汇总!D22 -> 0 | I16: =其他部门汇总!S22 -> 0
B17: 2.石灰生产过程 | C17: =其他部门汇总!D23 -> 0 | I17: =其他部门汇总!S23 -> 0
B18: 3.钢铁生产过程 | C18: =其他部门汇总!D24 -> 0 | I18: =其他部门汇总!S24 -> 0
B19: 4.电石生产过程 | C19: =其他部门汇总!D25 -> 0 | I19: =其他部门汇总!S25 -> 0
B20: 5.己二酸生产过程 | E20: =其他部门汇总!F26 -> 0 | I20: =其他部门汇总!S26 -> 0
B21: 6.硝酸生产过程 | E21: =其他部门汇总!F27 -> 0 | I21: =其他部门汇总!S27 -> 0
B22: 7.铝生产过程 | G22: =其他部门汇总!P29+其他部门汇总!Q29 -> 0 | I22: =其他部门汇总!S29 -> 0
B23: 8.镁生产过程 | H23: =其他部门汇总!R30 -> 0 | I23: =其他部门汇总!S30 -> 0
B24: 9.电力设备生产过程 | H24: =其他部门汇总!R31 -> 0 | I24: =其他部门汇总!S31 -> 0
B25: 10.其他生产过程 | F25: =其他部门汇总!G28+其他部门汇总!G32 -> 0 | G25: =其他部门汇总!P32+其他部门汇总!Q32 -> 0 | H25: =其他部门汇总!R32 -> 0 | I25: =其他部门汇总!S28+其他部门汇总!S32+其他部门汇总!S33 -> 0
B26: 农业总计 | D26: =SUM(D27:D30) -> 0 | E26: =SUM(E27:E30) -> 0 | I26: =SUM(I27:I30) -> 0
B27: 1.稻田 | D27: =SUM(其他部门汇总!E39:E41) -> 0 | I27: =SUM(其他部门汇总!J39:J41) -> 0
B28: 2.农田 | E28: =其他部门汇总!F42+其他部门汇总!F46 -> 0 | I28: =其他部门汇总!J42+其他部门汇总!J46 -> 0
B29: 3.动物肠道发酵 | D29: =其他部门汇总!E49 -> 0 | I29: =其他部门汇总!J49 -> 0
B30: 4.动物粪便管理系统 | D30: =其他部门汇总!E50 -> 0 | E30: =其他部门汇总!F50 -> 0 | I30: =其他部门汇总!J50 -> 0
B31: 土地利用变化与林业总计 | C31: =C32+C39 ->  | D31: =D39+D40 ->  | E31: =E39+E40 ->  | I31: =SUM(I32:I41) -> 
B32: 1.森林和其他木质生物质碳储量变化小计 | C32: =其他部门汇总!D56 -> 0 | I32: =其他部门汇总!J56 -> 0
B33: 乔木林 （林分） | C33: =其他部门汇总!D57 -> 0 | I33: =其他部门汇总!J57 -> 0
B34: 经济林 | C34: =其他部门汇总!D58 -> 0 | I34: =其他部门汇总!J58 -> 0
B35: 竹林 | C35: =其他部门汇总!D59 -> 0 | I35: =其他部门汇总!J59 -> 0
B36: 灌木林 | C36: =其他部门汇总!D60 -> 0 | I36: =其他部门汇总!J60 -> 0
B37: 疏林、散生木和四旁树 | C37: =其他部门汇总!D61 -> 0 | I37: =其他部门汇总!J61 -> 0
B38: 活立木消耗 | C38: =其他部门汇总!D62 -> 0 | I38: =其他部门汇总!J62 -> 0
B39: 2.森林转化碳排放小计 | C39: =其他部门汇总!D63 ->  | D39: =其他部门汇总!E63 ->  | E39: =其他部门汇总!F63 ->  | I39: =其他部门汇总!J63 -> 
B40: 燃烧排放 | C40: =其他部门汇总!D64 ->  | D40: =其他部门汇总!E64 ->  | E40: =其他部门汇总!F64 ->  | I40: =其他部门汇总!J64 -> 
B41: 分解排放 | C41: =其他部门汇总!D65 ->  | I41: =其他部门汇总!J65 -> 
B42: 废弃物处理总计 | C42: =C43 -> 0 | D42: =D43+D44 -> 0 | E42: =E44 -> 0 | I42: =SUM(I43:I44) -> 0
B43: 1.固体废弃物 | C43: =其他部门汇总!D72+其他部门汇总!D76 -> 0 | D43: =其他部门汇总!E71+其他部门汇总!E75 -> 0 | I43: =SUM(其他部门汇总!J71:J72)+SUM(其他部门汇总!J75:J76) -> 0
B44: 2.废水 | D44: =其他部门汇总!E73+其他部门汇总!E74+其他部门汇总!E77+其他部门汇总!E78 -> 0 | E44: =其他部门汇总!F73 -> 0 | I44: =SUM(其他部门汇总!J73:J74)+SUM(其他部门汇总!J77:J78) -> 0
B45: 注1：表中正数表示温室气体排放源，负数表示温室气体吸收汇。
B46: 注2：浅灰色表示无该项排放。

Sheet 重点领域——工业
B1: 重点领域排放——工业
C2: “范围一”排放 | G2: “范围二”排放
C3: 万吨CO2e | D3: 万吨CO2 | E3: 万吨CH4 | F3: 万吨N2O | G3: 万吨CO2e | H3: 万吨CO2 | I3: 万吨CH4 | J3: 万吨N2O
B4: 排放总量 | C4: =C5+C10+C20 -> 0 | D4: =D5+D10+D20 -> 0 | E4: 0 | F4: 0 | G4: 0 | H4: 0 | I4: 0 | J4: =J5+J10+J20 -> 0
B5: 能源工业 | C5: =SUM(C6:C9) -> 0 | D5: =SUM(D6:D9) -> 0 | E5: 0 | F5: 0 | G5: 0 | H5: 0 | I5: 0 | J5: =SUM(J6:J9) -> 0
B6: ='D1'!B1 -> 公用电力部门 | C6: =能源汇总!O42 -> 0 | D6: =能源汇总!O43 -> 0 | E6: =能源汇总!O44 -> 0 | F6: =能源汇总!O45 -> 0 | G6: =能源汇总!O46 -> 0 | H6: =能源汇总!O47 -> 0 | I6: =能源汇总!O48 -> 0 | J6: =能源汇总!O49 -> 0
B7: 公用热力部门 | C7: =能源汇总!P42 -> 0 | D7: =能源汇总!P43 -> 0 | E7: =能源汇总!P44 -> 0 | F7: =能源汇总!P45 -> 0 | G7: =能源汇总!P46 -> 0 | H7: =能源汇总!P47 -> 0 | I7: =能源汇总!P48 -> 0 | J7: =能源汇总!P49 -> 0
B8: 石油、天然气开采与加工 | C8: =能源汇总!Q42 -> 0 | D8: =能源汇总!Q43 -> 0 | E8: =能源汇总!Q44 -> 0 | F8: =能源汇总!Q45 -> 0 | G8: =能源汇总!Q46 -> 0 | H8: =能源汇总!Q47 -> 0 | I8: =能源汇总!Q48 -> 0 | J8: =能源汇总!Q49 -> 0
B9: 固体燃料和其他能源工业 | C9: =能源汇总!R42 -> 0 | D9: =能源汇总!R43 -> 0 | E9: =能源汇总!R44 -> 0 | F9: =能源汇总!R45 -> 0 | G9: =能源汇总!R46 -> 0 | H9: =能源汇总!R47 -> 0 | I9: =能源汇总!R48 -> 0 | J9: =能源汇总!R49 -> 0
B10: 制造业 | C10: =SUM(C11:C19) -> 0 | D10: =SUM(D11:D19) -> 0 | E10: 0 | F10: 0 | G10: 0 | H10: 0 | I10: 0 | J10: =SUM(J11:J19) -> 0
B11: 钢铁 | C11: =能源汇总!S42 -> 0 | D11: =能源汇总!S43 -> 0 | E11: =能源汇总!S44 -> 0 | F11: =能源汇总!S45 -> 0 | G11: =能源汇总!S46 -> 0 | H11: =能源汇总!S47 -> 0 | I11: =能源汇总!S48 -> 0 | J11: =能源汇总!S49 -> 0
B12: 水泥 | C12: =能源汇总!T42 -> 0 | D12: =能源汇总!T43 -> 0 | E12: =能源汇总!T44 -> 0 | F12: =能源汇总!T45 -> 0 | G12: =能源汇总!T46 -> 0 | H12: =能源汇总!T47 -> 0 | I12: =能源汇总!T48 -> 0 | J12: =能源汇总!T49 -> 0
B13: 有色金属 | C13: =能源汇总!U42 -> 0 | D13: =能源汇总!U43 -> 0 | E13: =能源汇总!U44 -> 0 | F13: =能源汇总!U45 -> 0 | G13: =能源汇总!U46 -> 0 | H13: =能源汇总!U47 -> 0 | I13: =能源汇总!U48 -> 0 | J13: =能源汇总!U49 -> 0
B14: 化工 | C14: =能源汇总!V42 -> 0 | D14: =能源汇总!V43 -> 0 | E14: =能源汇总!V44 -> 0 | F14: =能源汇总!V45 -> 0 | G14: =能源汇总!V46 -> 0 | H14: =能源汇总!V47 -> 0 | I14: =能源汇总!V48 -> 0 | J14: =能源汇总!V49 -> 0
B15: 食品、饮料、烟草 | C15: =能源汇总!W42 -> 0 | D15: =能源汇总!W43 -> 0 | E15: =能源汇总!W44 -> 0 | F15: =能源汇总!W45 -> 0 | G15: =能源汇总!W46 -> 0 | H15: =能源汇总!W47 -> 0 | I15: =能源汇总!W48 -> 0 | J15: =能源汇总!W49 -> 0
B16: 造纸、纸浆 | C16: =能源汇总!X42 -> 0 | D16: =能源汇总!X43 -> 0 | E16: =能源汇总!X44 -> 0 | F16: =能源汇总!X45 -> 0 | G16: =能源汇总!X46 -> 0 | H16: =能源汇总!X47 -> 0 | I16: =能源汇总!X48 -> 0 | J16: =能源汇总!X49 -> 0
B17: 机械、电子 | C17: =能源汇总!Y42 -> 0 | D17: =能源汇总!Y43 -> 0 | E17: =能源汇总!Y44 -> 0 | F17: =能源汇总!Y45 -> 0 | G17: =能源汇总!Y46 -> 0 | H17: =能源汇总!Y47 -> 0 | I17: =能源汇总!Y48 -> 0 | J17: =能源汇总!Y49 -> 0
B18: 纺织 | C18: =能源汇总!Z42 -> 0 | D18: =能源汇总!Z43 -> 0 | E18: =能源汇总!Z44 -> 0 | F18: =能源汇总!Z45 -> 0 | G18: =能源汇总!Z46 -> 0 | H18: =能源汇总!Z47 -> 0 | I18: =能源汇总!Z48 -> 0 | J18: =能源汇总!Z49 -> 0
B19: 其他 | C19: =IF(SUM(C11:C18)>0,能源汇总!AA42,0) -> 0 | D19: =IF(SUM(D11:D18)>0,能源汇总!AA43,0) -> 0 | E19: =IF(SUM(E11:E18)>0,能源汇总!AA44,0) -> 0 | F19: =IF(SUM(F11:F18)>0,能源汇总!AA45,0) -> 0 | G19: =IF(SUM(G11:G18)>0,能源汇总!AA46,0) -> 0 | H19: =IF(SUM(H11:H18)>0,能源汇总!AA47,0) -> 0 | I19: =IF(SUM(I11:I18)>0,能源汇总!AA48,0) -> 0 | J19: =IF(SUM(J11:J18)>0,能源汇总!AA49,0) -> 0
B20: 建筑业 | C20: =能源汇总!G42 -> 0 | D20: =能源汇总!G43 -> 0 | E20: =能源汇总!G44 -> 0 | F20: =能源汇总!G45 -> 0 | G20: =能源汇总!G46 -> 0 | H20: =能源汇总!G47 -> 0 | I20: =能源汇总!G48 -> 0 | J20: =能源汇总!G49 -> 0
B21: 注：表中排放仅指工业中能源消费引起的排放。其中“建筑业”数据为“简单数据收集”的核算结果。
B23: 简化版
B24: 万吨CO2-e | C24: “范围一”排放 | D24: “范围二”排放
B25: 排放总量 | C25: =C4 -> 0 | D25: =G4 -> 0
B26: 能源工业 | C26: =C5 -> 0 | D26: =G5 -> 0
B27: 公用电力部门 | C27: 0 | D27: 0
B28: 公用热力部门 | C28: =C7 -> 0 | D28: =G7 -> 0
B29: 石油、天然气开采与加工 | C29: =C8 -> 0 | D29: =G8 -> 0
B30: 固体燃料和其他能源工业 | C30: =C9 -> 0 | D30: =G9 -> 0
B31: 制造业 | C31: =C10 -> 0 | D31: =G10 -> 0
B32: 钢铁 | C32: =C11 -> 0 | D32: =G11 -> 0
B33: 水泥 | C33: =C12 -> 0 | D33: =G12 -> 0
B34: 有色金属 | C34: 0 | D34: 0
B35: 化工 | C35: 0 | D35: 0
B36: 食品、饮料、烟草 | C36: 0 | D36: 0
B37: 造纸、纸浆 | C37: 0 | D37: 0
B38: 机械、电子 | C38: 0 | D38: 0
B39: 纺织 | C39: 0 | D39: 0
B40: 其他 | C40: 0 | D40: 0
B41: 建筑业 | C41: =C20 -> 0 | D41: =G20 -> 0

Sheet 建筑详细数据
B1: 建筑能耗统计表
B2: 指标名称 | D2: 计量单位 | E2: 全市 总计 | F2: 公共建筑 | R2: 住宅建筑 | W2: 折标系数
F3: 大型公共建筑 | L3: 一般公共建筑 | R3: 城镇居住建筑 | V3: 农村居住 建筑
G4: 国家机关建筑 | H4: 写字楼 建筑 | I4: 商场建筑 | J4: 宾馆饭店建筑 | K4: 其他建筑 | M4: 国家机关建筑 | N4: 写字楼 建筑 | O4: 商场建筑 | P4: 宾馆饭店建筑 | Q4: 其他建筑 | S4: 低层建筑 | T4: 多层建筑 | U4: 中高层和高层建筑 | W4: 采用折标系数 | X4: 参考折标系数
B5: 建筑总量 | C5: 总栋数 | D5: 栋 | E5: =F5+L5+R5+V5 -> 0 | F5: =SUM(G5:K5) -> 0 | L5: =SUM(M5:Q5) -> 0 | R5: =SUM(S5:V5) -> 0 | AA5: 必填
C6: 总建筑面积 | D6: 万平方米 | E6: =F6+L6+R6+V6 -> 0 | F6: =SUM(G6:K6) -> 0 | L6: =SUM(M6:Q6) -> 0 | R6: =SUM(S6:V6) -> 0 | AA6: 选填
B7: 全年总能耗量 | C7: 总能耗 | D7: 万吨标煤 | E7: 0 | F7: 0 | G7: =SUM(G8:G13)+G14 -> 0 | H7: =SUM(H8:H13)+H14 -> 0 | I7: =SUM(I8:I13)+I14 -> 0 | J7: 0 | K7: 0 | L7: 0 | M7: =SUM(M8:M13)+M14 -> 0 | N7: =SUM(N8:N13)+N14 -> 0 | O7: =SUM(O8:O13)+O14 -> 0 | P7: 0 | Q7: 0 | R7: 0 | S7: =SUM(S8:S13)+S14 -> 0 | T7: =SUM(T8:T13)+T14 -> 0 | U7: =SUM(U8:U13)+U14 -> 0 | V7: =SUM(V8:V13)+V14 -> 0 | X7: 1 | AA7: 不填
C8: 电力 | D8: 亿千瓦时 | E8: 0 | F8: 0 | L8: 0 | R8: 0 | X8: =A!H34 -> 3.66 | AA8: 锁定
C9: 煤炭 | D9: 万吨 | E9: 0 | F9: 0 | L9: 0 | R9: 0 | X9: =A!H5 -> 0.9
C10: 天然气 | D10: 亿立方米 | E10: 0 | F10: 0 | L10: 0 | R10: 0 | X10: =A!H29 -> 11.0-13.3
C11: 液化石油气 | D11: 万吨 | E11: 0 | F11: 0 | L11: 0 | R11: 0 | X11: =A!H26 -> 1.7143
C12: 人工煤气 | D12: 亿立方米 | E12: 0 | F12: 0 | L12: 0 | R12: 0 | X12: =A!H13 -> 1.7-12.1
C13: 其他能源（ ） | D13: 万吨标煤 | E13: 0 | F13: 0 | L13: 0 | R13: 0 | X13: 1
C14: 集中供热耗热量 | D14: 万百万千焦耳 | E14: 0 | F14: 0 | L14: 0 | R14: 0 | X14: =A!H31 -> 0.0341
C15: 其中：边界外供热源 | D15: 万百万千焦耳 | E15: 0 | F15: 0 | L15: 0 | R15: 0 | X15: =A!H31 -> 0.0341
C16: 集中供冷耗冷量 | D16: 万百万千焦耳
B17: 全年单位建筑面积能耗量 | C17: 总能耗 | D17: 千克标煤/平方米 | E17: =E7/E6/10 -> 
C18: 其中：电力 | D18: 千克标煤/平方米 | E18: =E8/E6/10 -> 
B19: 说明：1.建筑能耗统计表参考《民用建筑能耗和节能信息统计报表制度》中的“城镇民用建筑能耗信息统计综合表“，但为了计算“范围二”排放，加入了“其中：边界外供热源”一项（“范围二”定义只包括电力和集中供热）。
B20: 2. 表中“煤炭”、“天然气”、“液化石油气”、“人工煤气”和“其他能源”用于计算“范围一”排放，“电力”和“其中：边界外供热源”用于计算“范围二”排放。
B21: 3. 此表适用于“详细数据收集”中的建筑领域。
B22: 4. 表中逻辑关系为：“全市总计”＝“大型公共建筑”＋“一般公共建筑”＋“城镇住宅建筑”＋“农村住宅建筑”，
B23: “大型公共建筑”或“一般公共建筑”＝“国家机关建筑”+“写字楼建筑”+“商场建筑”+“宾馆饭店建筑”+“其他建筑”，
B24: “城镇住宅建筑”＝“低层建筑”+“多层建筑”+“中高层和高层建筑”。
B25: “总能耗”=“电力”+“煤炭”+“天然气”+“液化石油气”+“人工煤气”+“其他能源”+“集中供热耗热量”+“集中供冷耗冷量”。
B26: 全面单位建筑面积能耗量中的“总能耗”＝全面总能耗量中的“总能耗”/建筑总量中的“总建筑面积”。

Sheet 重点领域——建筑
B1: 重点领域排放——建筑
C2: “范围一”排放 | G2: “范围二”排放
C3: 万吨CO2e | D3: 万吨CO2 | E3: 万吨CH4 | F3: 万吨N2O | G3: 万吨CO2e | H3: 万吨CO2 | I3: 万吨CH4 | J3: 万吨N2O
B4: 排放总量 | C4: =C5+C18 -> 0 | D4: =D5+D18 -> 0 | E4: 0 | F4: 0 | G4: 0 | H4: 0 | I4: 0 | J4: 0
B5: 公共建筑 | C5: =C6+C12 -> 0 | D5: =D6+D12 -> 0 | E5: 0 | F5: 0 | G5: 0 | H5: 0 | I5: 0 | J5: 0
B6: 大型公共建筑 | C6: =SUM(C7:C11) -> 0 | D6: 0 | E6: 0 | F6: 0 | G6: 0 | H6: 0 | I6: 0 | J6: 0
B7: 国家机关建筑 | C7: =D7+E7*VLOOKUP(主菜单!$J$29,GPA,3,FALSE)+F7*VLOOKUP(主菜单!$J$29,GPA,4,FALSE) -> 0 | D7: =建筑详细数据!G9*IF(能源排放因子!G4>0,能源排放因子!G4,能源排放因子!J4)+建筑详细数据!G10*IF(能源排放因子!G29>0,能源排放因子!G29,能源排放因子!J29)+建筑详细数据!G11*IF(能源排放因子!G26>0,能源排放因子!G26,能源排放因子!J26)+建筑详细数据!G12*IF(能源排放因子!G13>0,能源排放因子!G13,能源排放因子!J13)+建筑详细数据!G13*IF(能源排放因子!G35>0,能源排放因子!G35,能源排放因子!J35) -> 0 | E7: =(建筑详细数据!G9*IF(能源排放因子!H4>0,能源排放因子!H4,能源排放因子!M4)+建筑详细数据!G10*IF(能源排放因子!H29>0,能源排放因子!H29,能源排放因子!M29)+建筑详细数据!G11*IF(能源排放因子!H26>0,能源排放因子!H26,能源排放因子!M26)+建筑详细数据!G12*IF(能源排放因子!H13>0,能源排放因子!H13,能源排放因子!M13)+建筑详细数据!G13*IF(能源排放因子!H35>0,能源排放因子!H35,能源排放因子!M35))/10000 -> 0 | F7: =(建筑详细数据!G9*IF(能源排放因子!I4>0,能源排放因子!I4,能源排放因子!O4)+建筑详细数据!G10*IF(能源排放因子!I29>0,能源排放因子!I29,能源排放因子!O29)+建筑详细数据!G11*IF(能源排放因子!I26>0,能源排放因子!I26,能源排放因子!O26)+建筑详细数据!G12*IF(能源排放因子!I13>0,能源排放因子!I13,能源排放因子!O13)+建筑详细数据!G13*IF(能源排放因子!I35>0,能源排放因子!I35,能源排放因子!O35))/10000 -> 0 | G7: =H7+I7*VLOOKUP(主菜单!$J$29,GPA,3,FALSE)+J7*VLOOKUP(主菜单!$J$29,GPA,4,FALSE) -> 0 | H7: =建筑详细数据!G8*IF(能源排放因子!G33>0,能源排放因子!G33,能源排放因子!J33)+建筑详细数据!G15*IF(能源排放因子!G32>0,能源排放因子!G32,能源排放因子!J32) -> 0 | I7: =(建筑详细数据!G8*IF(能源排放因子!H33>0,能源排放因子!H33,能源排放因子!M33)+建筑详细数据!G15*IF(能源排放因子!H32>0,能源排放因子!H32,能源排放因子!M32))/10000 -> 0 | J7: =(建筑详细数据!G8*IF(能源排放因子!I33>0,能源排放因子!I33,能源排放因子!O33)+建筑详细数据!G15*IF(能源排放因子!I32>0,能源排放因子!I32,能源排放因子!O32))/10000 -> 0
B8: 写字楼建筑 | C8: =D8+E8*VLOOKUP(主菜单!$J$29,GPA,3,FALSE)+F8*VLOOKUP(主菜单!$J$29,GPA,4,FALSE) -> 0 | D8: =建筑详细数据!H9*IF(能源排放因子!G4>0,能源排放因子!G4,能源排放因子!J4)+建筑详细数据!H10*IF(能源排放因子!G29>0,能源排放因子!G29,能源排放因子!J29)+建筑详细数据!H11*IF(能源排放因子!G26>0,能源排放因子!G26,能源排放因子!J26)+建筑详细数据!H12*IF(能源排放因子!G13>0,能源排放因子!G13,能源排放因子!J13)+建筑详细数据!H13*IF(能源排放因子!G35>0,能源排放因子!G35,能源排放因子!J35) -> 0 | E8: =(建筑详细数据!H9*IF(能源排放因子!H4>0,能源排放因子!H4,能源排放因子!M4)+建筑详细数据!H10*IF(能源排放因子!H29>0,能源排放因子!H29,能源排放因子!M29)+建筑详细数据!H11*IF(能源排放因子!H26>0,能源排放因子!H26,能源排放因子!M26)+建筑详细数据!H12*IF(能源排放因子!H13>0,能源排放因子!H13,能源排放因子!M13)+建筑详细数据!H13*IF(能源排放因子!H35>0,能源排放因子!H35,能源排放因子!M35))/10000 -> 0 | F8: =(建筑详细数据!H9*IF(能源排放因子!I4>0,能源排放因子!I4,能源排放因子!O4)+建筑详细数据!H10*IF(能源排放因子!I29>0,能源排放因子!I29,能源排放因子!O29)+建筑详细数据!H11*IF(能源排放因子!I26>0,能源排放因子!I26,能源排放因子!O26)+建筑详细数据!H12*IF(能源排放因子!I13>0,能源排放因子!I13,能源排放因子!O13)+建筑详细数据!H13*IF(能源排放因子!I35>0,能源排放因子!I35,能源排放因子!O35))/10000 -> 0 | G8: =H8+I8*VLOOKUP(主菜单!$J$29,GPA,3,FALSE)+J8*VLOOKUP(主菜单!$J$29,GPA,4,FALSE) -> 0 | H8: =建筑详细数据!H8*IF(能源排放因子!G33>0,能源排放因子!G33,能源排放因子!J33)+建筑详细数据!H15*IF(能源排放因子!G32>0,能源排放因子!G32,能源排放因子!J32) -> 0 | I8: =(建筑详细数据!H8*IF(能源排放因子!H33>0,能源排放因子!H33,能源排放因子!M33)+建筑详细数据!H15*IF(能源排放因子!H32>0,能源排放因子!H32,能源排放因子!M32))/10000 -> 0 | J8: =(建筑详细数据!I8*IF(能源排放因子!I33>0,能源排放因子!O33,能源排放因子!M33)+建筑详细数据!H15*IF(能源排放因子!I32>0,能源排放因子!I32,能源排放因子!O32))/10000 -> 0
B9: 商场建筑 | C9: =D9+E9*VLOOKUP(主菜单!$J$29,GPA,3,FALSE)+F9*VLOOKUP(主菜单!$J$29,GPA,4,FALSE) -> 0 | D9: =建筑详细数据!I9*IF(能源排放因子!G4>0,能源排放因子!G4,能源排放因子!J4)+建筑详细数据!I10*IF(能源排放因子!G29>0,能源排放因子!G29,能源排放因子!J29)+建筑详细数据!I11*IF(能源排放因子!G26>0,能源排放因子!G26,能源排放因子!J26)+建筑详细数据!I12*IF(能源排放因子!G13>0,能源排放因子!G13,能源排放因子!J13)+建筑详细数据!I13*IF(能源排放因子!G35>0,能源排放因子!G35,能源排放因子!J35) -> 0 | E9: =(建筑详细数据!I9*IF(能源排放因子!H4>0,能源排放因子!H4,能源排放因子!M4)+建筑详细数据!I10*IF(能源排放因子!H29>0,能源排放因子!H29,能源排放因子!M29)+建筑详细数据!I11*IF(能源排放因子!H26>0,能源排放因子!H26,能源排放因子!M26)+建筑详细数据!I12*IF(能源排放因子!H13>0,能源排放因子!H13,能源排放因子!M13)+建筑详细数据!I13*IF(能源排放因子!H35>0,能源排放因子!H35,能源排放因子!M35))/10000 -> 0 | F9: =(建筑详细数据!I9*IF(能源排放因子!I4>0,能源排放因子!I4,能源排放因子!O4)+建筑详细数据!I10*IF(能源排放因子!I29>0,能源排放因子!I29,能源排放因子!O29)+建筑详细数据!I11*IF(能源排放因子!I26>0,能源排放因子!I26,能源排放因子!O26)+建筑详细数据!I12*IF(能源排放因子!I13>0,能源排放因子!I13,能源排放因子!O13)+建筑详细数据!I13*IF(能源排放因子!I35>0,能源排放因子!I35,能源排放因子!O35))/10000 -> 0 | G9: =H9+I9*VLOOKUP(主菜单!$J$29,GPA,3,FALSE)+J9*VLOOKUP(主菜单!$J$29,GPA,4,FALSE) -> 0 | H9: =建筑详细数据!I8*IF(能源排放因子!G33>0,能源排放因子!G33,能源排放因子!J33)+建筑详细数据!I15*IF(能源排放因子!G32>0,能源排放因子!G32,能源排放因子!J32) -> 0 | I9: =(建筑详细数据!I8*IF(能源排放因子!H33>0,能源排放因子!H33,能源排放因子!M33)+建筑详细数据!I15*IF(能源排放因子!H32>0,能源排放因子!H32,能源排放因子!M32))/10000 -> 0 | J9: =(建筑详细数据!I8*IF(能源排放因子!I33>0,能源排放因子!I33,能源排放因子!O33)+建筑详细数据!I15*IF(能源排放因子!I32>0,能源排放因子!I32,能源排放因子!O32))/10000 -> 0
B10: 宾饭店建筑 | C10: =D10+E10*VLOOKUP(主菜单!$J$29,GPA,3,FALSE)+F10*VLOOKUP(主菜单!$J$29,GPA,4,FALSE) -> 0 | D10: =建筑详细数据!J9*IF(能源排放因子!G4>0,能源排放因子!G4,能源排放因子!J4)+建筑详细数据!J10*IF(能源排放因子!G29>0,能源排放因子!G29,能源排放因子!J29)+建筑详细数据!J11*IF(能源排放因子!G26>0,能源排放因子!G26,能源排放因子!J26)+建筑详细数据!J12*IF(能源排放因子!G13>0,能源排放因子!G13,能源排放因子!J13)+建筑详细数据!J13*IF(能源排放因子!G35>0,能源排放因子!G35,能源排放因子!J35) -> 0 | E10: =(建筑详细数据!J9*IF(能源排放因子!H4>0,能源排放因子!H4,能源排放因子!M4)+建筑详细数据!J10*IF(能源排放因子!H29>0,能源排放因子!H29,能源排放因子!M29)+建筑详细数据!J11*IF(能源排放因子!H26>0,能源排放因子!H26,能源排放因子!M26)+建筑详细数据!J12*IF(能源排放因子!H13>0,能源排放因子!H13,能源排放因子!M13)+建筑详细数据!J13*IF(能源排放因子!H35>0,能源排放因子!H35,能源排放因子!M35))/10000 -> 0 | F10: =(建筑详细数据!J9*IF(能源排放因子!I4>0,能源排放因子!I4,能源排放因子!O4)+建筑详细数据!J10*IF(能源排放因子!I29>0,能源排放因子!I29,能源排放因子!O29)+建筑详细数据!J11*IF(能源排放因子!I26>0,能源排放因子!I26,能源排放因子!O26)+建筑详细数据!J12*IF(能源排放因子!I13>0,能源排放因子!I13,能源排放因子!O13)+建筑详细数据!J13*IF(能源排放因子!I35>0,能源排放因子!I35,能源排放因子!O35))/10000 -> 0 | G10: =H10+I10*VLOOKUP(主菜单!$J$29,GPA,3,FALSE)+J10*VLOOKUP(主菜单!$J$29,GPA,4,FALSE) -> 0 | H10: =建筑详细数据!J8*IF(能源排放因子!G33>0,能源排放因子!G33,能源排放因子!J33)+建筑详细数据!J15*IF(能源排放因子!G32>0,能源排放因子!G32,能源排放因子!J32) -> 0 | I10: =(建筑详细数据!J8*IF(能源排放因子!H33>0,能源排放因子!H33,能源排放因子!M33)+建筑详细数据!J15*IF(能源排放因子!H32>0,能源排放因子!H32,能源排放因子!M32))/10000 -> 0 | J10: =(建筑详细数据!J8*IF(能源排放因子!I33>0,能源排放因子!I33,能源排放因子!O33)+建筑详细数据!J15*IF(能源排放因子!I32>0,能源排放因子!I32,能源排放因子!O32))/10000 -> 0
B11: 其他建筑 | C11: =D11+E11*VLOOKUP(主菜单!$J$29,GPA,3,FALSE)+F11*VLOOKUP(主菜单!$J$29,GPA,4,FALSE) -> 0 | D11: =建筑详细数据!K9*IF(能源排放因子!G4>0,能源排放因子!G4,能源排放因子!J4)+建筑详细数据!K10*IF(能源排放因子!G29>0,能源排放因子!G29,能源排放因子!J29)+建筑详细数据!K11*IF(能源排放因子!G26>0,能源排放因子!G26,能源排放因子!J26)+建筑详细数据!K12*IF(能源排放因子!G13>0,能源排放因子!G13,能源排放因子!J13)+建筑详细数据!K13*IF(能源排放因子!G35>0,能源排放因子!G35,能源排放因子!J35) -> 0 | E11: =(建筑详细数据!K9*IF(能源排放因子!H4>0,能源排放因子!H4,能源排放因子!M4)+建筑详细数据!K10*IF(能源排放因子!H29>0,能源排放因子!H29,能源排放因子!M29)+建筑详细数据!K11*IF(能源排放因子!H26>0,能源排放因子!H26,能源排放因子!M26)+建筑详细数据!K12*IF(能源排放因子!H13>0,能源排放因子!H13,能源排放因子!M13)+建筑详细数据!K13*IF(能源排放因子!H35>0,能源排放因子!H35,能源排放因子!M35))/10000 -> 0 | F11: =(建筑详细数据!K9*IF(能源排放因子!I4>0,能源排放因子!I4,能源排放因子!O4)+建筑详细数据!K10*IF(能源排放因子!I29>0,能源排放因子!I29,能源排放因子!O29)+建筑详细数据!K11*IF(能源排放因子!I26>0,能源排放因子!I26,能源排放因子!O26)+建筑详细数据!K12*IF(能源排放因子!I13>0,能源排放因子!I13,能源排放因子!O13)+建筑详细数据!K13*IF(能源排放因子!I35>0,能源排放因子!I35,能源排放因子!O35))/10000 -> 0 | G11: =H11+I11*VLOOKUP(主菜单!$J$29,GPA,3,FALSE)+J11*VLOOKUP(主菜单!$J$29,GPA,4,FALSE) -> 0 | H11: =建筑详细数据!K8*IF(能源排放因子!G33>0,能源排放因子!G33,能源排放因子!J33)+建筑详细数据!K15*IF(能源排放因子!G32>0,能源排放因子!G32,能源排放因子!J32) -> 0 | I11: =(建筑详细数据!K8*IF(能源排放因子!H33>0,能源排放因子!H33,能源排放因子!M33)+建筑详细数据!K15*IF(能源排放因子!H32>0,能源排放因子!H32,能源排放因子!M32))/10000 -> 0 | J11: =(建筑详细数据!K8*IF(能源排放因子!I33>0,能源排放因子!I33,能源排放因子!O33)+建筑详细数据!K15*IF(能源排放因子!I32>0,能源排放因子!I32,能源排放因子!O32))/10000 -> 0
B12: 一般公共建筑 | C12: =SUM(C13:C17) -> 0 | D12: 0 | E12: 0 | F12: 0 | G12: 0 | H12: 0 | I12: 0 | J12: 0
B13: 国家机关建筑 | C13: =D13+E13*VLOOKUP(主菜单!$J$29,GPA,3,FALSE)+F13*VLOOKUP(主菜单!$J$29,GPA,4,FALSE) -> 0 | D13: =建筑详细数据!M9*IF(能源排放因子!G4>0,能源排放因子!G4,能源排放因子!J4)+建筑详细数据!M10*IF(能源排放因子!G29>0,能源排放因子!G29,能源排放因子!J29)+建筑详细数据!M11*IF(能源排放因子!G26>0,能源排放因子!G26,能源排放因子!J26)+建筑详细数据!M12*IF(能源排放因子!G13>0,能源排放因子!G13,能源排放因子!J13)+建筑详细数据!M13*IF(能源排放因子!G35>0,能源排放因子!G35,能源排放因子!J35) -> 0 | E13: =(建筑详细数据!M9*IF(能源排放因子!H4>0,能源排放因子!H4,能源排放因子!M4)+建筑详细数据!M10*IF(能源排放因子!H29>0,能源排放因子!H29,能源排放因子!M29)+建筑详细数据!M11*IF(能源排放因子!H26>0,能源排放因子!H26,能源排放因子!M26)+建筑详细数据!M12*IF(能源排放因子!H13>0,能源排放因子!H13,能源排放因子!M13)+建筑详细数据!M13*IF(能源排放因子!H35>0,能源排放因子!H35,能源排放因子!M35))/10000 -> 0 | F13: =(建筑详细数据!M9*IF(能源排放因子!I4>0,能源排放因子!I4,能源排放因子!O4)+建筑详细数据!M10*IF(能源排放因子!I29>0,能源排放因子!I29,能源排放因子!O29)+建筑详细数据!M11*IF(能源排放因子!I26>0,能源排放因子!I26,能源排放因子!O26)+建筑详细数据!M12*IF(能源排放因子!I13>0,能源排放因子!I13,能源排放因子!O13)+建筑详细数据!M13*IF(能源排放因子!I35>0,能源排放因子!I35,能源排放因子!O35))/10000 -> 0 | G13: =H13+I13*VLOOKUP(主菜单!$J$29,GPA,3,FALSE)+J13*VLOOKUP(主菜单!$J$29,GPA,4,FALSE) -> 0 | H13: =建筑详细数据!M8*IF(能源排放因子!G33>0,能源排放因子!G33,能源排放因子!J33)+建筑详细数据!M15*IF(能源排放因子!G32>0,能源排放因子!G32,能源排放因子!J32) -> 0 | I13: =(建筑详细数据!M8*IF(能源排放因子!H33>0,能源排放因子!H33,能源排放因子!M33)+建筑详细数据!M15*IF(能源排放因子!H32>0,能源排放因子!H32,能源排放因子!M32))/10000 -> 0 | J13: =(建筑详细数据!M8*IF(能源排放因子!I33>0,能源排放因子!I33,能源排放因子!O33)+建筑详细数据!M15*IF(能源排放因子!I32>0,能源排放因子!I32,能源排放因子!O32))/10000 -> 0
B14: 写字楼建筑 | C14: =D14+E14*VLOOKUP(主菜单!$J$29,GPA,3,FALSE)+F14*VLOOKUP(主菜单!$J$29,GPA,4,FALSE) -> 0 | D14: =建筑详细数据!N9*IF(能源排放因子!G4>0,能源排放因子!G4,能源排放因子!J4)+建筑详细数据!N10*IF(能源排放因子!G29>0,能源排放因子!G29,能源排放因子!J29)+建筑详细数据!N11*IF(能源排放因子!G26>0,能源排放因子!G26,能源排放因子!J26)+建筑详细数据!N12*IF(能源排放因子!G13>0,能源排放因子!G13,能源排放因子!J13)+建筑详细数据!N13*IF(能源排放因子!G35>0,能源排放因子!G35,能源排放因子!J35) -> 0 | E14: =(建筑详细数据!N9*IF(能源排放因子!H4>0,能源排放因子!H4,能源排放因子!M4)+建筑详细数据!N10*IF(能源排放因子!H29>0,能源排放因子!H29,能源排放因子!M29)+建筑详细数据!N11*IF(能源排放因子!H26>0,能源排放因子!H26,能源排放因子!M26)+建筑详细数据!N12*IF(能源排放因子!H13>0,能源排放因子!H13,能源排放因子!M13)+建筑详细数据!N13*IF(能源排放因子!H35>0,能源排放因子!H35,能源排放因子!M35))/10000 -> 0 | F14: =(建筑详细数据!N9*IF(能源排放因子!I4>0,能源排放因子!I4,能源排放因子!O4)+建筑详细数据!N10*IF(能源排放因子!I29>0,能源排放因子!I29,能源排放因子!O29)+建筑详细数据!N11*IF(能源排放因子!I26>0,能源排放因子!I26,能源排放因子!O26)+建筑详细数据!N12*IF(能源排放因子!I13>0,能源排放因子!I13,能源排放因子!O13)+建筑详细数据!N13*IF(能源排放因子!I35>0,能源排放因子!I35,能源排放因子!O35))/10000 -> 0 | G14: =H14+I14*VLOOKUP(主菜单!$J$29,GPA,3,FALSE)+J14*VLOOKUP(主菜单!$J$29,GPA,4,FALSE) -> 0 | H14: =建筑详细数据!N8*IF(能源排放因子!G33>0,能源排放因子!G33,能源排放因子!J33)+建筑详细数据!N15*IF(能源排放因子!G32>0,能源排放因子!G32,能源排放因子!J32) -> 0 | I14: =(建筑详细数据!N8*IF(能源排放因子!H33>0,能源排放因子!H33,能源排放因子!M33)+建筑详细数据!N15*IF(能源排放因子!H32>0,能源排放因子!H32,能源排放因子!M32))/10000 -> 0 | J14: =(建筑详细数据!N8*IF(能源排放因子!I33>0,能源排放因子!I33,能源排放因子!O33)+建筑详细数据!N15*IF(能源排放因子!I32>0,能源排放因子!I32,能源排放因子!O32))/10000 -> 0
B15: 商场建筑 | C15: =D15+E15*VLOOKUP(主菜单!$J$29,GPA,3,FALSE)+F15*VLOOKUP(主菜单!$J$29,GPA,4,FALSE) -> 0 | D15: =建筑详细数据!O9*IF(能源排放因子!G4>0,能源排放因子!G4,能源排放因子!J4)+建筑详细数据!O10*IF(能源排放因子!G29>0,能源排放因子!G29,能源排放因子!J29)+建筑详细数据!O11*IF(能源排放因子!G26>0,能源排放因子!G26,能源排放因子!J26)+建筑详细数据!O12*IF(能源排放因子!G13>0,能源排放因子!G13,能源排放因子!J13)+建筑详细数据!O13*IF(能源排放因子!G35>0,能源排放因子!G35,能源排放因子!J35) -> 0 | E15: =(建筑详细数据!O9*IF(能源排放因子!H4>0,能源排放因子!H4,能源排放因子!M4)+建筑详细数据!O10*IF(能源排放因子!H29>0,能源排放因子!H29,能源排放因子!M29)+建筑详细数据!O11*IF(能源排放因子!H26>0,能源排放因子!H26,能源排放因子!M26)+建筑详细数据!O12*IF(能源排放因子!H13>0,能源排放因子!H13,能源排放因子!M13)+建筑详细数据!O13*IF(能源排放因子!H35>0,能源排放因子!H35,能源排放因子!M35))/10000 -> 0 | F15: =(建筑详细数据!O9*IF(能源排放因子!I4>0,能源排放因子!I4,能源排放因子!O4)+建筑详细数据!O10*IF(能源排放因子!I29>0,能源排放因子!I29,能源排放因子!O29)+建筑详细数据!O11*IF(能源排放因子!I26>0,能源排放因子!I26,能源排放因子!O26)+建筑详细数据!O12*IF(能源排放因子!I13>0,能源排放因子!I13,能源排放因子!O13)+建筑详细数据!O13*IF(能源排放因子!I35>0,能源排放因子!I35,能源排放因子!O35))/10000 -> 0 | G15: =H15+I15*VLOOKUP(主菜单!$J$29,GPA,3,FALSE)+J15*VLOOKUP(主菜单!$J$29,GPA,4,FALSE) -> 0 | H15: =建筑详细数据!O8*IF(能源排放因子!G33>0,能源排放因子!G33,能源排放因子!J33)+建筑详细数据!O15*IF(能源排放因子!G32>0,能源排放因子!G32,能源排放因子!J32) -> 0 | I15: =(建筑详细数据!O8*IF(能源排放因子!H33>0,能源排放因子!H33,能源排放因子!M33)+建筑详细数据!O15*IF(能源排放因子!H32>0,能源排放因子!H32,能源排放因子!M32))/10000 -> 0 | J15: =(建筑详细数据!O8*IF(能源排放因子!I33>0,能源排放因子!I33,能源排放因子!O33)+建筑详细数据!O15*IF(能源排放因子!I32>0,能源排放因子!I32,能源排放因子!O32))/10000 -> 0
B16: 宾馆饭店建筑 | C16: =D16+E16*VLOOKUP(主菜单!$J$29,GPA,3,FALSE)+F16*VLOOKUP(主菜单!$J$29,GPA,4,FALSE) -> 0 | D16: =建筑详细数据!P9*IF(能源排放因子!G4>0,能源排放因子!G4,能源排放因子!J4)+建筑详细数据!P10*IF(能源排放因子!G29>0,能源排放因子!G29,能源排放因子!J29)+建筑详细数据!P11*IF(能源排放因子!G26>0,能源排放因子!G26,能源排放因子!J26)+建筑详细数据!P12*IF(能源排放因子!G13>0,能源排放因子!G13,能源排放因子!J13)+建筑详细数据!P13*IF(能源排放因子!G35>0,能源排放因子!G35,能源排放因子!J35) -> 0 | E16: =(建筑详细数据!P9*IF(能源排放因子!H4>0,能源排放因子!H4,能源排放因子!M4)+建筑详细数据!P10*IF(能源排放因子!H29>0,能源排放因子!H29,能源排放因子!M29)+建筑详细数据!P11*IF(能源排放因子!H26>0,能源排放因子!H26,能源排放因子!M26)+建筑详细数据!P12*IF(能源排放因子!H13>0,能源排放因子!H13,能源排放因子!M13)+建筑详细数据!P13*IF(能源排放因子!H35>0,能源排放因子!H35,能源排放因子!M35))/10000 -> 0 | F16: =(建筑详细数据!P9*IF(能源排放因子!I4>0,能源排放因子!I4,能源排放因子!O4)+建筑详细数据!P10*IF(能源排放因子!I29>0,能源排放因子!I29,能源排放因子!O29)+建筑详细数据!P11*IF(能源排放因子!I26>0,能源排放因子!I26,能源排放因子!O26)+建筑详细数据!P12*IF(能源排放因子!I13>0,能源排放因子!I13,能源排放因子!O13)+建筑详细数据!P13*IF(能源排放因子!I35>0,能源排放因子!I35,能源排放因子!O35))/10000 -> 0 | G16: =H16+I16*VLOOKUP(主菜单!$J$29,GPA,3,FALSE)+J16*VLOOKUP(主菜单!$J$29,GPA,4,FALSE) -> 0 | H16: =建筑详细数据!P8*IF(能源排放因子!G33>0,能源排放因子!G33,能源排放因子!J33)+建筑详细数据!P15*IF(能源排放因子!G32>0,能源排放因子!G32,能源排放因子!J32) -> 0 | I16: =(建筑详细数据!P8*IF(能源排放因子!H33>0,能源排放因子!H33,能源排放因子!M33)+建筑详细数据!P15*IF(能源排放因子!H32>0,能源排放因子!H32,能源排放因子!M32))/10000 -> 0 | J16: =(建筑详细数据!P8*IF(能源排放因子!I33>0,能源排放因子!I33,能源排放因子!O33)+建筑详细数据!P15*IF(能源排放因子!I32>0,能源排放因子!I32,能源排放因子!O32))/10000 -> 0
B17: 其他建筑 | C17: =D17+E17*VLOOKUP(主菜单!$J$29,GPA,3,FALSE)+F17*VLOOKUP(主菜单!$J$29,GPA,4,FALSE) -> 0 | D17: =建筑详细数据!Q9*IF(能源排放因子!G4>0,能源排放因子!G4,能源排放因子!J4)+建筑详细数据!Q10*IF(能源排放因子!G29>0,能源排放因子!G29,能源排放因子!J29)+建筑详细数据!Q11*IF(能源排放因子!G26>0,能源排放因子!G26,能源排放因子!J26)+建筑详细数据!Q12*IF(能源排放因子!G13>0,能源排放因子!G13,能源排放因子!J13)+建筑详细数据!Q13*IF(能源排放因子!G35>0,能源排放因子!G35,能源排放因子!J35) -> 0 | E17: =(建筑详细数据!Q9*IF(能源排放因子!H4>0,能源排放因子!H4,能源排放因子!M4)+建筑详细数据!Q10*IF(能源排放因子!H29>0,能源排放因子!H29,能源排放因子!M29)+建筑详细数据!Q11*IF(能源排放因子!H26>0,能源排放因子!H26,能源排放因子!M26)+建筑详细数据!Q12*IF(能源排放因子!H13>0,能源排放因子!H13,能源排放因子!M13)+建筑详细数据!Q13*IF(能源排放因子!H35>0,能源排放因子!H35,能源排放因子!M35))/10000 -> 0 | F17: =(建筑详细数据!Q9*IF(能源排放因子!I4>0,能源排放因子!I4,能源排放因子!O4)+建筑详细数据!Q10*IF(能源排放因子!I29>0,能源排放因子!I29,能源排放因子!O29)+建筑详细数据!Q11*IF(能源排放因子!I26>0,能源排放因子!I26,能源排放因子!O26)+建筑详细数据!Q12*IF(能源排放因子!I13>0,能源排放因子!I13,能源排放因子!O13)+建筑详细数据!Q13*IF(能源排放因子!I35>0,能源排放因子!I35,能源排放因子!O35))/10000 -> 0 | G17: =H17+I17*VLOOKUP(主菜单!$J$29,GPA,3,FALSE)+J17*VLOOKUP(主菜单!$J$29,GPA,4,FALSE) -> 0 | H17: =建筑详细数据!Q8*IF(能源排放因子!G33>0,能源排放因子!G33,能源排放因子!J33)+建筑详细数据!Q15*IF(能源排放因子!G32>0,能源排放因子!G32,能源排放因子!J32) -> 0 | I17: =(建筑详细数据!Q8*IF(能源排放因子!H33>0,能源排放因子!H33,能源排放因子!M33)+建筑详细数据!Q15*IF(能源排放因子!H32>0,能源排放因子!H32,能源排放因子!M32))/10000 -> 0 | J17: =(建筑详细数据!Q8*IF(能源排放因子!I33>0,能源排放因子!I33,能源排放因子!O33)+建筑详细数据!Q15*IF(能源排放因子!I32>0,能源排放因子!I32,能源排放因子!O32))/10000 -> 0
B18: 住宅建筑 | C18: =C19+C23 -> 0 | D18: =D19+D23 -> 0 | E18: 0 | F18: 0 | G18: 0 | H18: 0 | I18: 0 | J18: 0
B19: 城镇 | C19: =SUM(C20:C22) -> 0 | D19: =SUM(D20:D22) -> 0 | E19: 0 | F19: 0 | G19: 0 | H19: 0 | I19: 0 | J19: 0
B20: 低层建筑 | C20: =D20+E20*VLOOKUP(主菜单!$J$29,GPA,3,FALSE)+F20*VLOOKUP(主菜单!$J$29,GPA,4,FALSE) -> 0 | D20: =建筑详细数据!S9*IF(能源排放因子!G4>0,能源排放因子!G4,能源排放因子!J4)+建筑详细数据!S10*IF(能源排放因子!G29>0,能源排放因子!G29,能源排放因子!J29)+建筑详细数据!S11*IF(能源排放因子!G26>0,能源排放因子!G26,能源排放因子!J26)+建筑详细数据!S12*IF(能源排放因子!G13>0,能源排放因子!G13,能源排放因子!J13)+建筑详细数据!S13*IF(能源排放因子!G35>0,能源排放因子!G35,能源排放因子!J35) -> 0 | E20: =(建筑详细数据!S9*IF(能源排放因子!H4>0,能源排放因子!H4,能源排放因子!N4)+建筑详细数据!S10*IF(能源排放因子!H29>0,能源排放因子!H29,能源排放因子!N29)+建筑详细数据!S11*IF(能源排放因子!H26>0,能源排放因子!H26,能源排放因子!N26)+建筑详细数据!S12*IF(能源排放因子!H13>0,能源排放因子!H13,能源排放因子!N13)+建筑详细数据!S13*IF(能源排放因子!H35>0,能源排放因子!H35,能源排放因子!N35))/10000 -> 0 | F20: =(建筑详细数据!S9*IF(能源排放因子!I4>0,能源排放因子!I4,能源排放因子!O4)+建筑详细数据!S10*IF(能源排放因子!I29>0,能源排放因子!I29,能源排放因子!O29)+建筑详细数据!S11*IF(能源排放因子!I26>0,能源排放因子!I26,能源排放因子!O26)+建筑详细数据!S12*IF(能源排放因子!I13>0,能源排放因子!I13,能源排放因子!O13)+建筑详细数据!S13*IF(能源排放因子!I35>0,能源排放因子!I35,能源排放因子!O35))/10000 -> 0 | G20: =H20+I20*VLOOKUP(主菜单!$J$29,GPA,3,FALSE)+J20*VLOOKUP(主菜单!$J$29,GPA,4,FALSE) -> 0 | H20: =建筑详细数据!S8*IF(能源排放因子!G33>0,能源排放因子!G33,能源排放因子!J33)+建筑详细数据!S15*IF(能源排放因子!G32>0,能源排放因子!G32,能源排放因子!J32) -> 0 | I20: =(建筑详细数据!S8*IF(能源排放因子!H33>0,能源排放因子!H33,能源排放因子!N33)+建筑详细数据!S15*IF(能源排放因子!H32>0,能源排放因子!H32,能源排放因子!N32))/10000 -> 0 | J20: =(建筑详细数据!S8*IF(能源排放因子!I33>0,能源排放因子!I33,能源排放因子!O33)+建筑详细数据!S15*IF(能源排放因子!I32>0,能源排放因子!I32,能源排放因子!O32))/10000 -> 0
B21: 多层建筑 | C21: =D21+E21*VLOOKUP(主菜单!$J$29,GPA,3,FALSE)+F21*VLOOKUP(主菜单!$J$29,GPA,4,FALSE) -> 0 | D21: =建筑详细数据!T9*IF(能源排放因子!G4>0,能源排放因子!G4,能源排放因子!J4)+建筑详细数据!T10*IF(能源排放因子!G29>0,能源排放因子!G29,能源排放因子!J29)+建筑详细数据!T11*IF(能源排放因子!G26>0,能源排放因子!G26,能源排放因子!J26)+建筑详细数据!T12*IF(能源排放因子!G13>0,能源排放因子!G13,能源排放因子!J13)+建筑详细数据!T13*IF(能源排放因子!G35>0,能源排放因子!G35,能源排放因子!J35) -> 0 | E21: =(建筑详细数据!T9*IF(能源排放因子!H4>0,能源排放因子!H4,能源排放因子!N4)+建筑详细数据!T10*IF(能源排放因子!H29>0,能源排放因子!H29,能源排放因子!N29)+建筑详细数据!T11*IF(能源排放因子!H26>0,能源排放因子!H26,能源排放因子!N26)+建筑详细数据!T12*IF(能源排放因子!H13>0,能源排放因子!H13,能源排放因子!N13)+建筑详细数据!T13*IF(能源排放因子!H35>0,能源排放因子!H35,能源排放因子!N35))/10000 -> 0 | F21: =(建筑详细数据!T9*IF(能源排放因子!I4>0,能源排放因子!I4,能源排放因子!O4)+建筑详细数据!T10*IF(能源排放因子!I29>0,能源排放因子!I29,能源排放因子!O29)+建筑详细数据!T11*IF(能源排放因子!I26>0,能源排放因子!I26,能源排放因子!O26)+建筑详细数据!T12*IF(能源排放因子!I13>0,能源排放因子!I13,能源排放因子!O13)+建筑详细数据!T13*IF(能源排放因子!I35>0,能源排放因子!I35,能源排放因子!O35))/10000 -> 0 | G21: =H21+I21*VLOOKUP(主菜单!$J$29,GPA,3,FALSE)+J21*VLOOKUP(主菜单!$J$29,GPA,4,FALSE) -> 0 | H21: =建筑详细数据!T8*IF(能源排放因子!G33>0,能源排放因子!G33,能源排放因子!J33)+建筑详细数据!T15*IF(能源排放因子!G32>0,能源排放因子!G32,能源排放因子!J32) -> 0 | I21: =(建筑详细数据!T8*IF(能源排放因子!H33>0,能源排放因子!H33,能源排放因子!N33)+建筑详细数据!T15*IF(能源排放因子!H32>0,能源排放因子!H32,能源排放因子!N32))/10000 -> 0 | J21: =(建筑详细数据!T8*IF(能源排放因子!I33>0,能源排放因子!I33,能源排放因子!O33)+建筑详细数据!T15*IF(能源排放因子!I32>0,能源排放因子!I32,能源排放因子!O32))/10000 -> 0
B22: 中高层和高层建筑 | C22: =D22+E22*VLOOKUP(主菜单!$J$29,GPA,3,FALSE)+F22*VLOOKUP(主菜单!$J$29,GPA,4,FALSE) -> 0 | D22: =建筑详细数据!U9*IF(能源排放因子!G4>0,能源排放因子!G4,能源排放因子!J4)+建筑详细数据!U10*IF(能源排放因子!G29>0,能源排放因子!G29,能源排放因子!J29)+建筑详细数据!U11*IF(能源排放因子!G26>0,能源排放因子!G26,能源排放因子!J26)+建筑详细数据!U12*IF(能源排放因子!G13>0,能源排放因子!G13,能源排放因子!J13)+建筑详细数据!U13*IF(能源排放因子!G35>0,能源排放因子!G35,能源排放因子!J35) -> 0 | E22: =(建筑详细数据!U9*IF(能源排放因子!H4>0,能源排放因子!H4,能源排放因子!N4)+建筑详细数据!U10*IF(能源排放因子!H29>0,能源排放因子!H29,能源排放因子!N29)+建筑详细数据!U11*IF(能源排放因子!H26>0,能源排放因子!H26,能源排放因子!N26)+建筑详细数据!U12*IF(能源排放因子!H13>0,能源排放因子!H13,能源排放因子!N13)+建筑详细数据!U13*IF(能源排放因子!H35>0,能源排放因子!H35,能源排放因子!N35))/10000 -> 0 | F22: =(建筑详细数据!U9*IF(能源排放因子!I4>0,能源排放因子!I4,能源排放因子!O4)+建筑详细数据!U10*IF(能源排放因子!I29>0,能源排放因子!I29,能源排放因子!O29)+建筑详细数据!U11*IF(能源排放因子!I26>0,能源排放因子!I26,能源排放因子!O26)+建筑详细数据!U12*IF(能源排放因子!I13>0,能源排放因子!I13,能源排放因子!O13)+建筑详细数据!U13*IF(能源排放因子!I35>0,能源排放因子!I35,能源排放因子!O35))/10000 -> 0 | G22: =H22+I22*VLOOKUP(主菜单!$J$29,GPA,3,FALSE)+J22*VLOOKUP(主菜单!$J$29,GPA,4,FALSE) -> 0 | H22: =建筑详细数据!U8*IF(能源排放因子!G33>0,能源排放因子!G33,能源排放因子!J33)+建筑详细数据!U15*IF(能源排放因子!G32>0,能源排放因子!G32,能源排放因子!J32) -> 0 | I22: =(建筑详细数据!U8*IF(能源排放因子!H33>0,能源排放因子!H33,能源排放因子!N33)+建筑详细数据!U15*IF(能源排放因子!H32>0,能源排放因子!H32,能源排放因子!N32))/10000 -> 0 | J22: =(建筑详细数据!U8*IF(能源排放因子!I33>0,能源排放因子!I33,能源排放因子!O33)+建筑详细数据!U15*IF(能源排放因子!I32>0,能源排放因子!I32,能源排放因子!O32))/10000 -> 0
B23: 农村 | C23: =D23+E23*VLOOKUP(主菜单!$J$29,GPA,3,FALSE)+F23*VLOOKUP(主菜单!$J$29,GPA,4,FALSE) -> 0 | D23: =建筑详细数据!V9*IF(能源排放因子!G4>0,能源排放因子!G4,能源排放因子!J4)+建筑详细数据!V10*IF(能源排放因子!G29>0,能源排放因子!G29,能源排放因子!J29)+建筑详细数据!V11*IF(能源排放因子!G26>0,能源排放因子!G26,能源排放因子!J26)+建筑详细数据!V12*IF(能源排放因子!G13>0,能源排放因子!G13,能源排放因子!J13)+建筑详细数据!V13*IF(能源排放因子!G35>0,能源排放因子!G35,能源排放因子!J35) -> 0 | E23: =(建筑详细数据!V9*IF(能源排放因子!H4>0,能源排放因子!H4,能源排放因子!N4)+建筑详细数据!V10*IF(能源排放因子!H29>0,能源排放因子!H29,能源排放因子!N29)+建筑详细数据!V11*IF(能源排放因子!H26>0,能源排放因子!H26,能源排放因子!N26)+建筑详细数据!V12*IF(能源排放因子!H13>0,能源排放因子!H13,能源排放因子!N13)+建筑详细数据!V13*IF(能源排放因子!H35>0,能源排放因子!H35,能源排放因子!N35))/10000 -> 0 | F23: =(建筑详细数据!V9*IF(能源排放因子!I4>0,能源排放因子!I4,能源排放因子!O4)+建筑详细数据!V10*IF(能源排放因子!I29>0,能源排放因子!I29,能源排放因子!O29)+建筑详细数据!V11*IF(能源排放因子!I26>0,能源排放因子!I26,能源排放因子!O26)+建筑详细数据!V12*IF(能源排放因子!I13>0,能源排放因子!I13,能源排放因子!O13)+建筑详细数据!V13*IF(能源排放因子!I35>0,能源排放因子!I35,能源排放因子!O35))/10000 -> 0 | G23: =H23+I23*VLOOKUP(主菜单!$J$29,GPA,3,FALSE)+J23*VLOOKUP(主菜单!$J$29,GPA,4,FALSE) -> 0 | H23: =建筑详细数据!V8*IF(能源排放因子!G33>0,能源排放因子!G33,能源排放因子!J33)+建筑详细数据!V15*IF(能源排放因子!G32>0,能源排放因子!G32,能源排放因子!J32) -> 0 | I23: =(建筑详细数据!V8*IF(能源排放因子!H33>0,能源排放因子!H33,能源排放因子!N33)+建筑详细数据!V15*IF(能源排放因子!H32>0,能源排放因子!H32,能源排放因子!N32))/10000 -> 0 | J23: =(建筑详细数据!V8*IF(能源排放因子!I33>0,能源排放因子!I33,能源排放因子!O33)+建筑详细数据!V15*IF(能源排放因子!I32>0,能源排放因子!I32,能源排放因子!O32))/10000 -> 0
B25: 简化版
C26: “范围一”排放 | D26: “范围二”排放
C27: 万吨CO2e | D27: 万吨CO2e
B28: 排放总量 | C28: =C4 -> 0 | D28: =G4 -> 0
B29: 公共建筑 | C29: 0 | D29: =G5 -> 0
B30: 大型公共建筑 | C30: 0 | D30: 0
B31: 国家机关建筑 | C31: 0 | D31: 0
B32: 写字楼建筑 | C32: 0 | D32: 0
B33: 商场建筑 | C33: 0 | D33: 0
B34: 宾饭店建筑 | C34: 0 | D34: 0
B35: 其他建筑 | C35: 0 | D35: 0
B36: 一般公共建筑 | C36: 0 | D36: 0
B37: 国家机关建筑 | C37: 0 | D37: 0
B38: 写字楼建筑 | C38: 0 | D38: 0
B39: 商场建筑 | C39: 0 | D39: 0
B40: 宾馆饭店建筑 | C40: 0 | D40: 0
B41: 其他建筑 | C41: 0 | D41: 0
B42: 住宅建筑 | C42: 0 | D42: 0
B43: 城镇住宅建筑 | C43: 0 | D43: 0
B44: 低层建筑 | C44: 0 | D44: 0
B45: 多层建筑 | C45: 0 | D45: 0
B46: 中高层和高层建筑 | C46: 0 | D46: 0
B47: 农村住宅建筑 | C47: 0 | D47: 0

Sheet 重点领域——交通
B1: 重点领域排放——交通
C2: “范围一”排放 | G2: “范围二”排放 | K2: “范围三”排放
C3: 万吨CO2e | D3: 万吨CO2 | E3: 万吨CH4 | F3: 万吨N2O | G3: 万吨CO2e | H3: 万吨CO2 | I3: 万吨CH4 | J3: 万吨N2O | K3: 万吨CO2e | L3: 万吨CO2 | M3: 万吨CH4 | N3: 万吨N2O
B4: 排放总量 | C4: =D4+E4*VLOOKUP(主菜单!$J$29,GPA,3,FALSE)+F4*VLOOKUP(主菜单!$J$29,GPA,4,FALSE) -> 0 | D4: =D5+D6 -> 0 | E4: =E5+E6 -> 0 | F4: 0 | G4: =H4+I4*VLOOKUP(主菜单!$J$29,GPA,3,FALSE)+J4*VLOOKUP(主菜单!$J$29,GPA,4,FALSE) -> 0 | H4: 0 | I4: 0 | J4: 0 | K4: =L4+M4*VLOOKUP(主菜单!$J$29,GPA,3,FALSE)+N4*VLOOKUP(主菜单!$J$29,GPA,4,FALSE) -> 0 | L4: 0 | M4: 0 | N4: 0
B5: 运营交通 | C5: =D5+E5*VLOOKUP(主菜单!$J$29,GPA,3,FALSE)+F5*VLOOKUP(主菜单!$J$29,GPA,4,FALSE) -> 0 | D5: =D12+D13+D16+D17+D18+D20+D21+D22+D23+D25+D26+D29+D30+D31 -> 0 | E5: =E12+E13+E16+E17+E18+E20+E21+E22+E23+E25+E26+E29+E30+E31 -> 0 | F5: 0 | G5: =H5+I5*VLOOKUP(主菜单!$J$29,GPA,3,FALSE)+J5*VLOOKUP(主菜单!$J$29,GPA,4,FALSE) -> 0 | H5: 0 | I5: 0 | J5: 0 | K5: =L5+M5*VLOOKUP(主菜单!$J$29,GPA,3,FALSE)+N5*VLOOKUP(主菜单!$J$29,GPA,4,FALSE) -> 0 | L5: 0 | M5: 0 | N5: 0
B6: 非运营交通 | C6: =D6+E6*VLOOKUP(主菜单!$J$29,GPA,3,FALSE)+F6*VLOOKUP(主菜单!$J$29,GPA,4,FALSE) -> 0 | D6: =D7+D8 -> 0 | E6: =E7+E8 -> 0 | F6: 0 | G6: =H6+I6*VLOOKUP(主菜单!$J$29,GPA,3,FALSE)+J6*VLOOKUP(主菜单!$J$29,GPA,4,FALSE) -> 0 | H6: 0 | I6: 0 | J6: 0 | K6: =L6+M6*VLOOKUP(主菜单!$J$29,GPA,3,FALSE)+N6*VLOOKUP(主菜单!$J$29,GPA,4,FALSE) -> 0 | L6: 0 | M6: 0 | N6: 0
B7: 私家车 | C7: =D7+E7*VLOOKUP(主菜单!$J$29,GPA,3,FALSE)+F7*VLOOKUP(主菜单!$J$29,GPA,4,FALSE) -> 0 | D7: =D14 -> 0 | E7: =E14 -> 0 | F7: =F14 -> 0 | G7: =H7+I7*VLOOKUP(主菜单!$J$29,GPA,3,FALSE)+J7*VLOOKUP(主菜单!$J$29,GPA,4,FALSE) -> 0 | H7: =H14 -> 0 | I7: =I14 -> 0 | J7: =J14 -> 0 | K7: =L7+M7*VLOOKUP(主菜单!$J$29,GPA,3,FALSE)+N7*VLOOKUP(主菜单!$J$29,GPA,4,FALSE) -> 0 | L7: =L14 -> 0 | M7: =M14 -> 0 | N7: =N14 -> 0
B8: 其他 | C8: =D8+E8*VLOOKUP(主菜单!$J$29,GPA,3,FALSE)+F8*VLOOKUP(主菜单!$J$29,GPA,4,FALSE) -> 0 | D8: =D11+D15+D27 -> 0 | E8: =E11+E15+E27 -> 0 | F8: 0 | G8: =H8+I8*VLOOKUP(主菜单!$J$29,GPA,3,FALSE)+J8*VLOOKUP(主菜单!$J$29,GPA,4,FALSE) -> 0 | H8: 0 | I8: 0 | J8: 0 | K8: =L8+M8*VLOOKUP(主菜单!$J$29,GPA,3,FALSE)+N8*VLOOKUP(主菜单!$J$29,GPA,4,FALSE) -> 0 | L8: 0 | M8: 0 | N8: 0
B9: 排放总量 | C9: =D9+E9*VLOOKUP(主菜单!$J$29,GPA,3,FALSE)+F9*VLOOKUP(主菜单!$J$29,GPA,4,FALSE) -> 0 | D9: =D10+D19+D24+D28 -> 0 | E9: =E10+E19+E24+E28 -> 0 | F9: 0 | G9: =H9+I9*VLOOKUP(主菜单!$J$29,GPA,3,FALSE)+J9*VLOOKUP(主菜单!$J$29,GPA,4,FALSE) -> 0 | H9: 0 | I9: 0 | J9: 0 | K9: =L9+M9*VLOOKUP(主菜单!$J$29,GPA,3,FALSE)+N9*VLOOKUP(主菜单!$J$29,GPA,4,FALSE) -> 0 | L9: 0 | M9: 0 | N9: 0
B10: 道路 | C10: =D10+E10*VLOOKUP(主菜单!$J$29,GPA,3,FALSE)+F10*VLOOKUP(主菜单!$J$29,GPA,4,FALSE) -> 0 | D10: =SUM(D11:D18) -> 0 | E10: =SUM(E11:E18) -> 0 | F10: 0 | G10: =H10+I10*VLOOKUP(主菜单!$J$29,GPA,3,FALSE)+J10*VLOOKUP(主菜单!$J$29,GPA,4,FALSE) -> 0 | H10: =SUM(H11:H18) -> 0 | I10: =SUM(I11:I18) -> 0 | J10: =SUM(J11:J18) -> 0 | K10: =L10+M10*VLOOKUP(主菜单!$J$29,GPA,3,FALSE)+N10*VLOOKUP(主菜单!$J$29,GPA,4,FALSE) -> 0 | L10: =SUM(L11:L18) -> 0 | M10: =SUM(M11:M18) -> 0 | N10: =SUM(N11:N18) -> 0
B11: 摩托车 | C11: =D11+E11*VLOOKUP(主菜单!$J$29,GPA,3,FALSE)+F11*VLOOKUP(主菜单!$J$29,GPA,4,FALSE) -> 0 | D11: =SUM(IF(能源排放因子!G4:G35,能源排放因子!G4:G35,能源排放因子!J4:J35)*交通详细数据!Y7:Y38) -> 0 | E11: =SUM(IF(能源排放因子!H4:H35,能源排放因子!H4:H35,能源排放因子!K4:K35)*交通详细数据!Y7:Y38)/1000000 -> 0 | F11: =SUM(IF(能源排放因子!I4:I35,能源排放因子!I4:I35,能源排放因子!O4:O35)*交通详细数据!Y7:Y38)/1000000 -> 0 | G11: =H11+I11*VLOOKUP(主菜单!$J$29,GPA,3,FALSE)+J11*VLOOKUP(主菜单!$J$29,GPA,4,FALSE) -> 0 | K11: =L11+M11*VLOOKUP(主菜单!$J$29,GPA,3,FALSE)+N11*VLOOKUP(主菜单!$J$29,GPA,4,FALSE) -> 0 | L11: =SUM(IF(能源排放因子!G4:G35,能源排放因子!G4:G35,能源排放因子!J4:J35)*交通详细数据!Z7:Z38) -> 0 | M11: =SUMPRODUCT(交通详细数据!Z7:Z38,能源排放因子!K4:K35)/1000000 -> 0 | N11: =SUMPRODUCT(交通详细数据!Z7:Z38,能源排放因子!O4:O35)/1000000 -> 0
B12: 公交车 | C12: =D12+E12*VLOOKUP(主菜单!$J$29,GPA,3,FALSE)+F12*VLOOKUP(主菜单!$J$29,GPA,4,FALSE) -> 0 | D12: =SUM(IF(能源排放因子!G4:G35,能源排放因子!G4:G35,能源排放因子!J4:J35)*交通详细数据!I7:I38) -> 0 | E12: =SUM(IF(能源排放因子!H4:H35,能源排放因子!H4:H35,能源排放因子!K4:K35)*交通详细数据!I7:I38)/1000000 -> 0 | F12: =SUM(IF(能源排放因子!I4:I35,能源排放因子!I4:I35,能源排放因子!O4:O35)*交通详细数据!I7:I38)/1000000 -> 0 | G12: =H12+I12*VLOOKUP(主菜单!$J$29,GPA,3,FALSE)+J12*VLOOKUP(主菜单!$J$29,GPA,4,FALSE) -> 0 | H12: =交通详细数据!I36*IF(能源排放因子!G33>0,能源排放因子!G33,能源排放因子!J33 ) -> 0 | I12: =交通详细数据!I36*IF(能源排放因子!H33>0,能源排放因子!H33,能源排放因子!K33)/1000000 -> 0 | J12: =交通详细数据!I36*IF(能源排放因子!I33>0,能源排放因子!I33,能源排放因子!O33)/1000000 -> 0 | K12: =L12+M12*VLOOKUP(主菜单!$J$29,GPA,3,FALSE)+N12*VLOOKUP(主菜单!$J$29,GPA,4,FALSE) -> 0 | L12: =SUM(IF(能源排放因子!G4:G35,能源排放因子!G4:G35,能源排放因子!J4:J35)*交通详细数据!J7:J38) -> 0 | M12: =SUMPRODUCT(交通详细数据!J7:J38,能源排放因子!K4:K35)/1000000 -> 0 | N12: =SUMPRODUCT(交通详细数据!J7:J38,能源排放因子!O4:O35)/1000000 -> 0
B13: 出租车 | C13: =D13+E13*VLOOKUP(主菜单!$J$29,GPA,3,FALSE)+F13*VLOOKUP(主菜单!$J$29,GPA,4,FALSE) -> 0 | D13: =SUM(IF(能源排放因子!G4:G35,能源排放因子!G4:G35,能源排放因子!J4:J35)*交通详细数据!G7:G38) -> 0 | E13: =SUM(IF(能源排放因子!H4:H35,能源排放因子!H4:H35,能源排放因子!K4:K35)*交通详细数据!G7:G38)/1000000 -> 0 | F13: =SUM(IF(能源排放因子!I4:I35,能源排放因子!I4:I35,能源排放因子!O4:O35)*交通详细数据!G7:G38)/1000000 -> 0 | G13: =H13+I13*VLOOKUP(主菜单!$J$29,GPA,3,FALSE)+J13*VLOOKUP(主菜单!$J$29,GPA,4,FALSE) -> 0 | H13: =交通详细数据!G36*IF(能源排放因子!G33>0,能源排放因子!G33,能源排放因子!J33 ) -> 0 | I13: =交通详细数据!G36*IF(能源排放因子!H33>0,能源排放因子!H33,能源排放因子!K33)/1000000 -> 0 | J13: =交通详细数据!G36*IF(能源排放因子!I33>0,能源排放因子!I33,能源排放因子!O33)/1000000 -> 0 | K13: =L13+M13*VLOOKUP(主菜单!$J$29,GPA,3,FALSE)+N13*VLOOKUP(主菜单!$J$29,GPA,4,FALSE) -> 0 | L13: =SUM(IF(能源排放因子!G4:G35,能源排放因子!G4:G35,能源排放因子!J4:J35)*交通详细数据!H7:H38) -> 0 | M13: =SUMPRODUCT(交通详细数据!H7:H38,能源排放因子!K4:K35)/1000000 -> 0 | N13: =SUMPRODUCT(交通详细数据!H7:H38,能源排放因子!O4:O35)/1000000 -> 0
B14: 私家车 | C14: =D14+E14*VLOOKUP(主菜单!$J$29,GPA,3,FALSE)+F14*VLOOKUP(主菜单!$J$29,GPA,4,FALSE) -> 0 | D14: =SUM(IF(能源排放因子!G4:G35,能源排放因子!G4:G35,能源排放因子!J4:J35)*交通详细数据!AA7:AA38) -> 0 | E14: =SUM(IF(能源排放因子!H4:H35,能源排放因子!H4:H35,能源排放因子!K4:K35)*交通详细数据!AA7:AA38)/1000000 -> 0 | F14: =SUM(IF(能源排放因子!I4:I35,能源排放因子!I4:I35,能源排放因子!O4:O35)*交通详细数据!AA7:AA38)/1000000 -> 0 | G14: =H14+I14*VLOOKUP(主菜单!$J$29,GPA,3,FALSE)+J14*VLOOKUP(主菜单!$J$29,GPA,4,FALSE) -> 0 | H14: =交通详细数据!AA36*IF(能源排放因子!G33>0,能源排放因子!G33,能源排放因子!J33 ) -> 0 | I14: =交通详细数据!AA36*IF(能源排放因子!H33>0,能源排放因子!H33,能源排放因子!K33)/1000000 -> 0 | J14: =交通详细数据!AA36*IF(能源排放因子!I33>0,能源排放因子!I33,能源排放因子!O33)/1000000 -> 0 | K14: =L14+M14*VLOOKUP(主菜单!$J$29,GPA,3,FALSE)+N14*VLOOKUP(主菜单!$J$29,GPA,4,FALSE) -> 0 | L14: =SUM(IF(能源排放因子!G4:G35,能源排放因子!G4:G35,能源排放因子!J4:J35)*交通详细数据!AB7:AB38) -> 0 | M14: =SUMPRODUCT(交通详细数据!AB7:AB38,能源排放因子!K4:K35)/1000000 -> 0 | N14: =SUMPRODUCT(交通详细数据!AB7:AB38,能源排放因子!O4:O35)/1000000 -> 0
B15: 机构用车 | C15: =D15+E15*VLOOKUP(主菜单!$J$29,GPA,3,FALSE)+F15*VLOOKUP(主菜单!$J$29,GPA,4,FALSE) -> 0 | D15: =SUM(IF(能源排放因子!G4:G35,能源排放因子!G4:G35,能源排放因子!J4:J35)*交通详细数据!AC7:AC38) -> 0 | E15: =SUM(IF(能源排放因子!H4:H35,能源排放因子!H4:H35,能源排放因子!K4:K35)*交通详细数据!AC7:AC38)/1000000 -> 0 | F15: =SUM(IF(能源排放因子!I4:I35,能源排放因子!I4:I35,能源排放因子!O4:O35)*交通详细数据!AC7:AC38)/1000000 -> 0 | G15: =H15+I15*VLOOKUP(主菜单!$J$29,GPA,3,FALSE)+J15*VLOOKUP(主菜单!$J$29,GPA,4,FALSE) -> 0 | H15: =交通详细数据!AC36*IF(能源排放因子!G33>0,能源排放因子!G33,能源排放因子!J33 ) -> 0 | I15: =交通详细数据!AC36*IF(能源排放因子!H33>0,能源排放因子!H33,能源排放因子!K33)/1000000 -> 0 | J15: =交通详细数据!AC36*IF(能源排放因子!I33>0,能源排放因子!I33,能源排放因子!O33)/1000000 -> 0 | K15: =L15+M15*VLOOKUP(主菜单!$J$29,GPA,3,FALSE)+N15*VLOOKUP(主菜单!$J$29,GPA,4,FALSE) -> 0 | L15: =SUM(IF(能源排放因子!G4:G35,能源排放因子!G4:G35,能源排放因子!J4:J35)*交通详细数据!AD7:AD38) -> 0 | M15: =SUMPRODUCT(交通详细数据!AD7:AD38,能源排放因子!K4:K35)/1000000 -> 0 | N15: =SUMPRODUCT(交通详细数据!AD7:AD38,能源排放因子!O4:O35)/1000000 -> 0
B16: 城市内其他 | C16: =D16+E16*VLOOKUP(主菜单!$J$29,GPA,3,FALSE)+F16*VLOOKUP(主菜单!$J$29,GPA,4,FALSE) -> 0 | D16: =SUM(IF(能源排放因子!G4:G35,能源排放因子!G4:G35,能源排放因子!J4:J35)*交通详细数据!K7:K38) -> 0 | E16: =SUM(IF(能源排放因子!H4:H35,能源排放因子!H4:H35,能源排放因子!K4:K35)*交通详细数据!K7:K38)/1000000 -> 0 | F16: =SUM(IF(能源排放因子!I4:I35,能源排放因子!I4:I35,能源排放因子!O4:O35)*交通详细数据!K7:K38)/1000000 -> 0 | G16: =H16+I16*VLOOKUP(主菜单!$J$29,GPA,3,FALSE)+J16*VLOOKUP(主菜单!$J$29,GPA,4,FALSE) -> 0 | H16: =交通详细数据!K36*IF(能源排放因子!G33>0,能源排放因子!G33,能源排放因子!J33 ) -> 0 | I16: =交通详细数据!K36*IF(能源排放因子!H33>0,能源排放因子!H33,能源排放因子!K33)/1000000 -> 0 | J16: =交通详细数据!K36*IF(能源排放因子!I33>0,能源排放因子!I33,能源排放因子!O33)/1000000 -> 0 | K16: =L16+M16*VLOOKUP(主菜单!$J$29,GPA,3,FALSE)+N16*VLOOKUP(主菜单!$J$29,GPA,4,FALSE) -> 0 | L16: =SUM(IF(能源排放因子!G4:G35,能源排放因子!G4:G35,能源排放因子!J4:J35)*交通详细数据!L7:L38) -> 0 | M16: =SUMPRODUCT(交通详细数据!L7:L38,能源排放因子!K4:K35)/1000000 -> 0 | N16: =SUMPRODUCT(交通详细数据!L7:L38,能源排放因子!O4:O35)/1000000 -> 0
B17: 城际客运 | K17: =L17+M17*VLOOKUP(主菜单!$J$29,GPA,3,FALSE)+N17*VLOOKUP(主菜单!$J$29,GPA,4,FALSE) -> 0 | L17: =SUM(IF(能源排放因子!G4:G35,能源排放因子!G4:G35,能源排放因子!J4:J35)*交通详细数据!M7:M38) -> 0 | M17: =SUMPRODUCT(交通详细数据!M7:M38,能源排放因子!K4:K35)/1000000 -> 0 | N17: =SUMPRODUCT(交通详细数据!M7:M38,能源排放因子!O4:O35)/1000000 -> 0
B18: 城际货运 | K18: =L18+M18*VLOOKUP(主菜单!$J$29,GPA,3,FALSE)+N18*VLOOKUP(主菜单!$J$29,GPA,4,FALSE) -> 0 | L18: =SUM(IF(能源排放因子!G4:G35,能源排放因子!G4:G35,能源排放因子!J4:J35)*交通详细数据!N7:N38) -> 0 | M18: =SUMPRODUCT(交通详细数据!N7:N38, 能源排放因子!K4:K35)/1000000 -> 0 | N18: =SUMPRODUCT(交通详细数据!N7:N38, 能源排放因子!O4:O35)/1000000 -> 0
B19: 轨道 | G19: =H19+I19*VLOOKUP(主菜单!$J$29,GPA,3,FALSE)+J19*VLOOKUP(主菜单!$J$29,GPA,4,FALSE) -> 0 | H19: =H20 -> 0 | I19: =I20 -> 0 | J19: 0 | K19: =L19+M19*VLOOKUP(主菜单!$J$29,GPA,3,FALSE)+N19*VLOOKUP(主菜单!$J$29,GPA,4,FALSE) -> 0 | L19: =SUM(L21:L23) -> 0 | M19: =SUM(M21:M23) -> 0 | N19: 0
B20: 市内地铁/轻轨 | G20: =H20+I20*VLOOKUP(主菜单!$J$29,GPA,3,FALSE)+J20*VLOOKUP(主菜单!$J$29,GPA,4,FALSE) -> 0 | H20: =交通详细数据!O36*IF(能源排放因子!G33>0,能源排放因子!G33>0,能源排放因子!J33) -> 0 | I20: =交通详细数据!O36*IF(能源排放因子!H33>0,能源排放因子!H33>0,能源排放因子!K33)/1000000 -> 0 | J20: =交通详细数据!O36*IF(能源排放因子!I33>0,能源排放因子!I33>0,能源排放因子!O33)/1000000 -> 0
B21: 城际轻轨 | K21: =L21+M21*VLOOKUP(主菜单!$J$29,GPA,3,FALSE)+N21*VLOOKUP(主菜单!$J$29,GPA,4,FALSE) -> 0 | L21: =SUM(IF(能源排放因子!G4:G35,能源排放因子!G4:G35,能源排放因子!J4:J35)*交通详细数据!P7:P38) -> 0 | M21: =SUMPRODUCT(交通详细数据!P7:P38, 能源排放因子!K4:K35)/1000000 -> 0 | N21: =SUMPRODUCT(交通详细数据!P7:P38,能源排放因子!O4:O35)/1000000 -> 0
B22: 火车客运 | K22: =L22+M22*VLOOKUP(主菜单!$J$29,GPA,3,FALSE)+N22*VLOOKUP(主菜单!$J$29,GPA,4,FALSE) -> 0 | L22: =SUM(IF(能源排放因子!G4:G35,能源排放因子!G4:G35,能源排放因子!J4:J35)*交通详细数据!Q7:Q38) -> 0 | M22: =SUMPRODUCT(交通详细数据!Q7:Q38, 能源排放因子!K4:K35)/1000000 -> 0 | N22: =SUMPRODUCT(交通详细数据!Q7:Q38, 能源排放因子!O4:O35)/1000000 -> 0
B23: 火车货运 | K23: =L23+M23*VLOOKUP(主菜单!$J$29,GPA,3,FALSE)+N23*VLOOKUP(主菜单!$J$29,GPA,4,FALSE) -> 0 | L23: =SUM(IF(能源排放因子!G4:G35,能源排放因子!G4:G35,能源排放因子!J4:J35)*交通详细数据!R7:R38) -> 0 | M23: =SUMPRODUCT(交通详细数据!R7:R38, 能源排放因子!K4:K35)/1000000 -> 0 | N23: =SUMPRODUCT(交通详细数据!R7:R38, 能源排放因子!O4:O35)/1000000 -> 0
B24: 民航 | K24: =L24+M24*VLOOKUP(主菜单!$J$29,GPA,3,FALSE)+N24*VLOOKUP(主菜单!$J$29,GPA,4,FALSE) -> 0 | L24: =SUM(L25:L27) -> 0 | M24: =SUM(M25:M27) -> 0 | N24: 0
B25: 客运 | K25: =L25+M25*VLOOKUP(主菜单!$J$29,GPA,3,FALSE)+N25*VLOOKUP(主菜单!$J$29,GPA,4,FALSE) -> 0 | L25: =SUM(IF(能源排放因子!G4:G35,能源排放因子!G4:G35,能源排放因子!J4:J35)*交通详细数据!S7:S38) -> 0 | M25: =SUMPRODUCT(交通详细数据!S7:S38, 能源排放因子!K4:K35)/1000000 -> 0 | N25: =SUMPRODUCT(交通详细数据!S7:S38,能源排放因子!O4:O35)/1000000 -> 0
B26: 货运 | K26: =L26+M26*VLOOKUP(主菜单!$J$29,GPA,3,FALSE)+N26*VLOOKUP(主菜单!$J$29,GPA,4,FALSE) -> 0 | L26: =SUM(IF(能源排放因子!G4:G35,能源排放因子!G4:G35,能源排放因子!J4:J35)*交通详细数据!T7:T38) -> 0 | M26: =SUMPRODUCT(交通详细数据!T7:T38, 能源排放因子!K4:K35)/1000000 -> 0 | N26: =SUMPRODUCT(交通详细数据!T7:T38,能源排放因子!O4:O35)/1000000 -> 0
B27: 私人飞机 | K27: =L27+M27*VLOOKUP(主菜单!$J$29,GPA,3,FALSE)+N27*VLOOKUP(主菜单!$J$29,GPA,4,FALSE) -> 0 | L27: =SUM(IF(能源排放因子!G4:G35,能源排放因子!G4:G35,能源排放因子!J4:J35)*交通详细数据!AE7:AE38) -> 0 | M27: =SUMPRODUCT(交通详细数据!AE7:AE38, 能源排放因子!K4:K35)/1000000 -> 0 | N27: =SUMPRODUCT(交通详细数据!AE7:AE38,能源排放因子!O4:O35)/1000000 -> 0
B28: 水运 | C28: =D28+E28*VLOOKUP(主菜单!$J$29,GPA,3,FALSE)+F28*VLOOKUP(主菜单!$J$29,GPA,4,FALSE) -> 0 | D28: =D29 -> 0 | E28: =E29 -> 0 | F28: 0 | K28: =L28+M28*VLOOKUP(主菜单!$J$29,GPA,3,FALSE)+N28*VLOOKUP(主菜单!$J$29,GPA,4,FALSE) -> 0 | L28: =SUM(L30:L31) -> 0 | M28: =SUM(M30:M31) -> 0 | N28: 0
B29: 城市内水运 | C29: =D29+E29*VLOOKUP(主菜单!$J$29,GPA,3,FALSE)+F29*VLOOKUP(主菜单!$J$29,GPA,4,FALSE) -> 0 | D29: =SUMPRODUCT(交通详细数据!U7:U38,能源排放因子!J4:J35) -> 0 | E29: =SUMPRODUCT(交通详细数据!U7:U38,能源排放因子!K4:K35)/1000000 -> 0 | F29: =SUMPRODUCT(交通详细数据!U7:U38,能源排放因子!O4:O35)/1000000 -> 0
B30: 城际客运 | K30: =L30+M30*VLOOKUP(主菜单!$J$29,GPA,3,FALSE)+N30*VLOOKUP(主菜单!$J$29,GPA,4,FALSE) -> 0 | L30: =SUM(IF(能源排放因子!G4:G35,能源排放因子!G4:G35,能源排放因子!J4:J35)*交通详细数据!V7:V38) -> 0 | M30: =SUMPRODUCT(交通详细数据!V7:V38, 能源排放因子!K4:K35)/1000000 -> 0 | N30: =SUMPRODUCT(交通详细数据!V7:V38,能源排放因子!O4:O35)/1000000 -> 0
B31: 城际货运 | K31: =L31+M31*VLOOKUP(主菜单!$J$29,GPA,3,FALSE)+N31*VLOOKUP(主菜单!$J$29,GPA,4,FALSE) -> 0 | L31: =SUM(IF(能源排放因子!G4:G35,能源排放因子!G4:G35,能源排放因子!J4:J35)*交通详细数据!W7:W38) -> 0 | M31: =SUMPRODUCT(交通详细数据!W7:W38, 能源排放因子!K4:K35)/1000000 -> 0 | N31: =SUMPRODUCT(交通详细数据!W7:W38,能源排放因子!O4:O35)/1000000 -> 0
B33: 简化版
B34: 单位：万吨CO2e | C34: “范围一”排放 | D34: “范围二”排放 | E34: “范围三”排放 | F34: 总计
B35: 排放总量 | C35: =C4 -> 0 | D35: =G4 -> 0 | E35: =K4 -> 0 | F35: =SUM(C35:E35) -> 0
B36: 运营交通 | C36: =C5 -> 0 | D36: =G5 -> 0 | E36: =K5 -> 0 | F36: =SUM(C36:E36) -> 0
B37: 非运营交通 | C37: 0 | D37: 0 | E37: 0 | F37: 0
B38: 私家车 | C38: 0 | D38: 0 | E38: 0 | F38: 0
B39: 其他 | C39: 0 | D39: 0 | E39: 0 | F39: 0
B40: 排放总量 | C40: 0 | D40: 0 | E40: 0 | F40: 0
B41: 道路 | C41: 0 | D41: 0 | E41: 0 | F41: 0
B42: 摩托车 | C42: 0 | E42: 0 | F42: 0
B43: 公交车 | C43: 0 | D43: 0 | E43: 0 | F43: 0
B44: 出租车 | C44: 0 | D44: 0 | E44: 0 | F44: 0
B45: 私家车 | C45: 0 | D45: 0 | E45: 0 | F45: 0
B46: 机构用车 | C46: 0 | D46: 0 | E46: 0 | F46: 0
B47: 城市内其他 | C47: 0 | D47: 0 | E47: 0 | F47: 0
B48: 城际客运 | E48: 0 | F48: 0
B49: 城际货运 | E49: 0 | F49: 0
B50: 轨道 | D50: 0 | E50: 0 | F50: 0
B51: 市内地铁/轻轨 | D51: 0 | F51: 0
B52: 城际轻轨 | E52: 0 | F52: =SUM(C52:E52) -> 0
B53: 火车客运 | E53: 0 | F53: 0
B54: 火车货运 | E54: 0 | F54: 0
B55: 民航 | E55: 0 | F55: 0
B56: 客运 | E56: 0 | F56: 0
B57: 货运 | E57: 0 | F57: 0
B58: 私人飞机 | E58: 0 | F58: 0
B59: 水运 | C59: 0 | E59: 0 | F59: 0
B60: 城市内水运 | C60: 0 | F60: 0
B61: 城际客运 | E61: 0 | F61: =SUM(C61:E61) -> 0
B62: 城际货运 | E62: 0 | F62: =SUM(C62:E62) -> 0

Sheet 重点领域——废弃物
B1: 重点领域排放——废弃物处理
E2: “范围一”排放 | H2: “范围三”排放
E3: （万吨CO2e） | H3: （万吨CO2e）
F4: 边界内产生 边界内处理 | G4: 边界外产生 边界内处理 | H4: 边界内产生 边界外处理
B5: 边界内处理的废弃物 | C5: 固体废弃物 | D5: 垃圾填埋 | E5: =F5+G5 -> 0 | F5: =其他部门汇总!J71 -> 0 | G5: =其他部门汇总!J75 -> 0
D6: 垃圾焚烧 | E6: =F6+G6 -> 0 | F6: =其他部门汇总!J72 -> 0 | G6: =其他部门汇总!J76 -> 0
C7: 污水/废水 | D7: 生活污水 | E7: 0 | F7: =其他部门汇总!J73 -> 0 | G7: =其他部门汇总!J77 -> 0
D8: 工业废水 | E8: =F8+G8 -> 0 | F8: =其他部门汇总!J74 -> 0 | G8: =其他部门汇总!J78 -> 0
B9: 边界外处理的废弃物 | C9: 固体废弃物 | D9: 垃圾填埋 | H9: =其他部门汇总!J79 -> 0
D10: 垃圾焚烧 | H10: =其他部门汇总!J80 -> 0
C11: 污水/废水 | D11: 生活污水 | H11: =其他部门汇总!J81 -> 0
D12: 工业废水 | H12: =其他部门汇总!J82 -> 0
B13: 总计 | E13: =SUM(E5:E8) -> 0 | F13: =SUM(F5:F8) -> 0 | G13: =SUM(G5:G8) -> 0 | H13: =SUM(H9:H12) -> 0

Sheet 按产业分
B1: 产业排放
C2: “范围一”排放 | J2: “范围二”排放 | N2: “范围三”排放
C3: 万吨CO2e | D3: CO2 | E3: CH4 | F3: N2O | G3: HFCs | H3: PFCs | I3: SF6 | J3: 万吨CO2e | K3: CO2 | L3: CH4 | M3: N2O | N3: 万吨CO2e | O3: CO2 | P3: CH4 | Q3: N2O
D4: 万吨 | E4: 万吨 | F4: 万吨 | G4: 万吨CO2e | H4: 万吨CO2e | I4: 万吨CO2e | K4: 万吨 | L4: 万吨 | M4: 万吨 | O4: 万吨 | P4: 万吨 | Q4: 万吨
B5: 第一产业 | C5: =SUM(C6:C8) ->  | D5: =SUM(D6:D8) ->  | J5: =J6 -> 0 | K5: =K6 -> 0 | L5: 0 | M5: 0
B6: 能源活动 | C6: =能源汇总!AB42 -> 0 | D6: =能源汇总!AB43 -> 0 | E6: =能源汇总!AB44 -> 0 | F6: =能源汇总!AB45 -> 0 | J6: =能源汇总!AB46 -> 0 | K6: =能源汇总!AB47 -> 0 | L6: =能源汇总!AB48 -> 0 | M6: =能源汇总!AB49 -> 0
B7: 农业活动 | C7: =其他部门汇总!J51 -> 0 | E7: =其他部门汇总!E51 -> 0 | F7: =其他部门汇总!F51 -> 0
B8: 土地利用变化和林业 | C8: =其他部门汇总!J66 ->  | D8: =其他部门汇总!D66 ->  | E8: =其他部门汇总!E66 ->  | F8: =其他部门汇总!F66 -> 
B9: 第二产业 | C9: =SUM(C10:C12) -> 0 | D9: =SUM(D10:D12) -> 0 | E9: 0 | F9: 0 | G9: 0 | H9: 0 | I9: 0 | J9: 0 | K9: 0 | L9: 0 | M9: 0
B10: 能源活动 | C10: =能源汇总!AC42 -> 0 | D10: =能源汇总!AC43 -> 0 | E10: =能源汇总!AC44 -> 0 | F10: =能源汇总!AC45 -> 0 | J10: =能源汇总!AC46 -> 0 | K10: =能源汇总!AC47 -> 0 | L10: =能源汇总!AC48 -> 0 | M10: =能源汇总!AC49 -> 0
B11: 工业生产过程 | C11: =其他部门汇总!S34 -> 0 | D11: =其他部门汇总!D34 -> 0 | F11: =其他部门汇总!F34 -> 0 | G11: =SUM(其他部门汇总!G34:O34) -> 0 | H11: =其他部门汇总!P34+其他部门汇总!Q34 -> 0 | I11: =其他部门汇总!R34 -> 0
B12: 废弃物处理 | C12: =SUM(其他部门汇总!J71:J78) -> 0 | D12: =其他部门汇总!D72+其他部门汇总!D76 -> 0 | E12: =其他部门汇总!E71+其他部门汇总!E73+其他部门汇总!E74+其他部门汇总!E75+其他部门汇总!E77+其他部门汇总!E78 -> 0 | F12: =其他部门汇总!F73 -> 0 | N12: =SUM(其他部门汇总!J79:J82) -> 0 | O12: =其他部门汇总!D80 -> 0 | P12: =其他部门汇总!E79+其他部门汇总!E81+其他部门汇总!E82 -> 0
B13: 第三产业（能源活动） | C13: =能源汇总!AD42 -> 0 | D13: =能源汇总!AD43 -> 0 | E13: =能源汇总!AD44 -> 0 | F13: =能源汇总!AD45 -> 0 | J13: =能源汇总!AD46 -> 0 | K13: =能源汇总!AD47 -> 0 | L13: =能源汇总!AD48 -> 0 | M13: =能源汇总!AD49 -> 0
B14: 居民生活（能源活动） | C14: =能源汇总!AE42 -> 0 | D14: =能源汇总!AE43 -> 0 | E14: =能源汇总!AE44 -> 0 | F14: =能源汇总!AE45 -> 0 | J14: =能源汇总!AE46 -> 0 | K14: =能源汇总!AE47 -> 0 | L14: =能源汇总!AE48 -> 0 | M14: =能源汇总!AE49 -> 0
B15: 注：第一产业中可能包含能源活动、农业活动、土地利用变化和林业几个部门产生的排放；第二产业中可能包含能源活动、工业生产过程、废弃物处理几个部门产生的排放；第三产业和居民生活只包括能源活动产生的排放。
B17: 简化版
C18: “范围一”排放 | D18: “范围二”排放 | E18: “范围三”排放
C19: 万吨CO2e | D19: 万吨CO2e | E19: 万吨CO2e
B20: 第一产业 | C20: =C5 ->  | D20: =J5 -> 0 | E20: =N5 -> 0
B21: 能源活动 | C21: =C6 -> 0 | D21: =J6 -> 0 | E21: =N6 -> 0
B22: 农业活动 | C22: 0
B23: 土地利用变化和林业
B24: 第二产业 | C24: 0 | D24: 0 | E24: 0
B25: 能源活动 | C25: 0 | D25: 0 | E25: 0
B26: 工业生产过程 | C26: 0
B27: 废弃物处理 | C27: 0 | E27: 0
B28: 第三产业 | C28: 0 | D28: 0 | E28: 0
B29: 居民生活 | C29: 0 | D29: 0 | E29: 0

Sheet 温室气体排放强度
B1: 温室气体排放强度
C2: “范围一”排放
C3: 排放总量相关 | D3: 净排放总量相关 | E3: 单位
B4: 温室气体排放* | C4: =GPC报告!O68-其他部门汇总!D57-其他部门汇总!D58-其他部门汇总!D59-其他部门汇总!D60-其他部门汇总!D61 ->  | D4: =GPC报告!O68 ->  | E4: 万吨CO2e
B5: 人均排放量 | C5: =C4/主菜单!L14 ->  | D5: =D4/主菜单!L14 ->  | E5: 吨CO2e /人
B6: 单位GDP排放量 | C6: =C4/主菜单!L19 ->  | D6: =D4/主菜单!L19 ->  | E6: 吨CO2e /万元
B7: 单位土地面积排放量 | C7: =C4/主菜单!L17*100 ->  | D7: =D4/主菜单!L17*100 ->  | E7: 吨CO2e /公顷
B8: CO2排放** | C8: =GPC报告!I68-其他部门汇总!D57-其他部门汇总!D58-其他部门汇总!D59-其他部门汇总!D60-其他部门汇总!D61 ->  | D8: =GPC报告!I68 ->  | E8: 万吨CO2
B9: 人均排放量 | C9: =C8/主菜单!L14 ->  | D9: =D8/主菜单!L14 ->  | E9: 吨CO2 /人
B10: 单位GDP排放量 | C10: =C8/主菜单!L19 ->  | D10: =D8/主菜单!L19 ->  | E10: 吨CO2 /万元
B11: 单位土地面积排放量 | C11: =C8/主菜单!L17*100 ->  | D11: =D8/主菜单!L17*100 ->  | E11: 吨CO2 /公顷
B12: 说明：* 包括CO2、CH4、N2O、HFCs、PFCs、SF6六种温室气体。
B13: ** 国家2020年单位GDP二氧化碳排放下降40%～45%目标只针对CO2一种气体，因此将CO2单独列出。
B14: *** 排放强度均为“范围一”排放计算结果，温室气体排放量和CO2排放量取自GPC报告模式。
B16: 参考信息
B17: 世界各国2009年人均CO2排放（吨CO2/人） | E17: 中国的单位GDP排放和单位面积排放
B18: 国家 | C18: 人均CO2排放 | E18: 指标 | G18: 数值 | H18: 单位
B19: 卡塔尔 | C19: 45 | E19: 2005年全国单位GDP温室气体排放 | G19: =704629/182321 -> 3.864771474 | H19: 吨CO2e /万元
B20: 特里尼达和多巴哥 | C20: 36.1 | E20: 2005年全国单位GDP CO2排放 | G20: =555404/182321 -> 3.046297464 | H20: 吨CO2 /万元
B21: 科威特 | C21: 28.1 | E21: 2005年全国单位土地面积温室气体排放 | G21: =704629/960/100 -> 7.339885417 | H21: 吨CO2e /公顷
B22: 文莱达鲁萨兰国 | C22: 23.5 | E22: 2005年全国单位土地面积CO2排放 | G22: =555404/960/100 -> 5.785458333 | H22: 吨CO2 /公顷
B23: 阿鲁巴 | C23: 22.6 | E23: 2005年人均排放 | G23: =704629/130000 -> 5.420223077 | H23: 吨CO2e /人
B24: 卢森堡 | C24: 20.4 | E24: 2005年人均排放 | G24: =555404/130000 -> 4.272338462 | H24: 吨CO2 /人
B25: 巴林 | C25: 20.3 | E25: 使用参数：2005年中国温室气体排放70.5亿吨二氧化碳当量，二氧化碳排放55.5亿吨，
B26: 阿拉伯联合大公国 | C26: 20.3 | E26: 人口按照12亿计算。
B27: 澳大利亚 | C27: 18.4
B28: 美国 | C28: 17.3
B29: 沙特阿拉伯 | C29: 16.2
B30: 阿曼 | C30: 15.4
B31: 加拿大 | C31: 15.2
B32: 法罗群岛 | C32: 14.3
B33: 哈萨克斯坦 | C33: 14
B34: 新喀里多尼亚 | C34: 12.1
B35: 爱沙尼亚 | C35: 11.9
B36: 俄罗斯联邦 | C36: 11.1
B37: 利比亚 | C37: 10.5
B38: 韩国 | C38: 10.4
B39: 捷克共和国 | C39: 10.3
B40: 荷兰 | C40: 10.3
B41: 帕劳 | C41: 10.3
B42: 格陵兰 | C42: 10.2
B43: 南非 | C43: 10.1
B44: 芬兰 | C44: 10
B45: 挪威 | C45: 9.7
B46: 土库曼斯坦 | C46: 9.7
B47: 比利时 | C47: 9.6
B48: 开曼群岛 | C48: 9.5
B49: 爱尔兰 | C49: 9.3
B50: 德国 | C50: 9
B51: 以色列 | C51: 9
B52: 日本 | C52: 8.6
B53: 希腊 | C53: 8.4
B54: 塞舌尔 | C54: 8.4
B55: 丹麦 | C55: 8.3
B56: 伊朗伊斯兰共和国 | C56: 8.2
B57: 波斯尼亚和黑塞哥维那 | C57: 7.8
B58: 波兰 | C58: 7.8
B59: 联合王国 | C59: 7.7
B60: 塞浦路斯 | C60: 7.5
B61: 斯洛文尼亚 | C61: 7.5
B62: 奥地利 | C62: 7.4
B63: 新西兰 | C63: 7.4
B64: 巴哈马， | C64: 7.3
B65: 百慕大 | C65: 7.1
B66: 赤道几内亚 | C66: 7.1
B67: 马来西亚 | C67: 7.1
B68: 意大利 | C68: 6.7
B69: 安道​​尔 | C69: 6.6
B70: 委内瑞拉 | C70: 6.5
B71: 冰岛 | C71: 6.4
B72: 新加坡 | C72: 6.4
B73: 白俄罗斯 | C73: 6.3
B74: 塞尔维亚 | C74: 6.3
B75: 斯洛伐克共和国 | C75: 6.3
B76: 西班牙 | C76: 6.3
B77: 马耳他 | C77: 6
B78: 乌克兰 | C78: 5.9
B79: 中国 | C79: 5.8
B80: 巴巴多斯 | C80: 5.6
B81: 保加利亚 | C81: 5.6
B82: 法国 | C82: 5.6
B83: 阿塞拜疆 | C83: 5.5
B84: 安提瓜和巴布达 | C84: 5.4
B85: 马其顿，前南斯拉夫 | C85: 5.4
B86: 蒙古 | C86: 5.4
B87: 葡萄牙 | C87: 5.4
B88: 瑞士 | C88: 5.4
B89: 中国香港特区 | C89: 5.3
B90: 特克斯和凯科斯群岛 | C90: 5.3
B91: 圣基茨和尼维斯 | C91: 5
B92: 克罗地亚 | C92: 4.9
B93: 匈牙利 | C93: 4.9
B94: 黎巴嫩 | C94: 4.9
B95: 黑山 | C95: 4.9
B96: 苏里南 | C96: 4.8
B97: 瑞典 | C97: 4.7
B98: 阿根廷 | C98: 4.4
B99: 乌兹别克斯坦 | C99: 4.2
B100: 泰国 | C100: 4.1
B101: 智利 | C101: 3.9
B102: 土耳其 | C102: 3.9
B103: 约旦 | C103: 3.8
B104: 立陶宛 | C104: 3.8
B105: 墨西哥 | C105: 3.8
B106: 罗马尼亚 | C106: 3.7
B107: 伊拉克 | C107: 3.6
B108: 法属波利尼西亚 | C108: 3.4
B109: 阿尔及利亚 | C109: 3.3
B110: 牙买加 | C110: 3.2
B111: 马尔代夫 | C111: 3.2
B112: 韩国，DEM。众议员 | C112: 3.1
B113: 阿拉伯叙利亚共和国 | C113: 3.1
B114: 拉脱维亚 | C114: 3
B115: 毛里求斯 | C115: 3
B116: 古巴 | C116: 2.8
B117: 阿拉伯埃及共和国 | C117: 2.8
B118: 中国澳门特别行政区 | C118: 2.8
B119: 格林纳达 | C119: 2.4
B120: 突尼斯 | C120: 2.4
B121: 博茨瓦纳 | C121: 2.3
B122: 乌拉圭 | C122: 2.3
B123: 巴拿马 | C123: 2.2
B124: 圣卢西亚 | C124: 2.2
B125: 多明尼加共和国 | C125: 2.1
B126: 厄瓜多尔 | C126: 2
B127: 圭亚那 | C127: 2
B128: 马绍尔群岛 | C128: 2
B129: 巴西 | C129: 1.9
B130: 印尼 | C130: 1.9
B131: 哥斯达黎加 | C131: 1.8
B132: 多米尼加 | C132: 1.8
B133: 圣文森特和格林纳丁斯 | C133: 1.8
B134: 印度 | C134: 1.7
B135: 纳米比亚 | C135: 1.7
B136: 汤加 | C136: 1.7
B137: 越南 | C137: 1.7
B138: 哥伦比亚 | C138: 1.6
B139: 摩洛哥 | C139: 1.6
B140: 秘鲁 | C140: 1.6
B141: 亚美尼亚 | C141: 1.5
B142: 安哥拉 | C142: 1.4
B143: 伯利兹 | C143: 1.4
B144: 玻利维亚 | C144: 1.4
B145: 格鲁吉亚 | C145: 1.3
B146: 摩尔多瓦 | C146: 1.3
B147: 吉尔吉斯共和国 | C147: 1.2
B148: 加蓬 | C148: 1.1
B149: 危地马拉 | C149: 1.1
B150: 也门，众议员 | C150: 1.1
B151: 阿尔巴尼亚 | C151: 1
B152: 萨尔瓦多 | C152: 1
B153: 斐 | C153: 1
B154: 洪都拉斯 | C154: 1
B155: 巴基斯坦 | C155: 0.9
B156: 萨摩亚 | C156: 0.9
B157: 斯威士兰 | C157: 0.9
B158: 尼加拉瓜 | C158: 0.8
B159: 巴拉圭 | C159: 0.7
B160: 菲律宾 | C160: 0.7
B161: 圣多美和普林西比 | C161: 0.7
B162: 津巴布韦 | C162: 0.7
B163: 不丹 | C163: 0.6
B164: 佛得角 | C164: 0.6
B165: 吉布提 | C165: 0.6
B166: 毛里塔尼亚 | C166: 0.6
B167: 密克罗尼西亚联邦 | C167: 0.6
B168: 斯里兰卡 | C168: 0.6
B169: 约旦河西岸和加沙 | C169: 0.6
B170: 贝宁 | C170: 0.5
B171: 刚果共和国 | C171: 0.5
B172: 基里巴斯 | C172: 0.5
B173: 尼日利亚 | C173: 0.5
B174: 巴布亚新几内亚 | C174: 0.5
B175: 瓦努阿图 | C175: 0.5
B176: 科特迪瓦 | C176: 0.4
B177: 塞内加尔 | C177: 0.4
B178: 所罗门群岛 | C178: 0.4
B179: 塔吉克斯坦 | C179: 0.4
B180: 孟加拉国 | C180: 0.3
B181: 柬埔寨 | C181: 0.3
B182: 喀麦隆 | C182: 0.3
B183: 冈比亚 | C183: 0.3
B184: 加纳 | C184: 0.3
B185: 肯尼亚 | C185: 0.3
B186: 老挝人民民主共和国 | C186: 0.3
B187: 塞拉利昂 | C187: 0.3
B188: 苏丹 | C188: 0.3
B189: 阿富汗 | C189: 0.2
B190: 科摩罗 | C190: 0.2
B191: 几内亚比绍 | C191: 0.2
B192: 海地 | C192: 0.2
B193: 缅甸 | C193: 0.2
B194: 坦桑尼亚 | C194: 0.2
B195: 东帝汶 | C195: 0.2
B196: 多哥 | C196: 0.2
B197: 赞比亚 | C197: 0.2
B198: 布基纳法索 | C198: 0.1
B199: 中非共和国 | C199: 0.1
B200: 厄立特里亚 | C200: 0.1
B201: 埃塞俄比亚 | C201: 0.1
... 32 more rows

Sheet 信息项计算结果
B1: 信息项
D2: 活动水平 | E2: 单位 | F2: 排放 | G2: 单位
B3: 城市电力净调入 | D3: =信息项!D3 -> 0 | E3: 亿千万时 | F3: =其他部门汇总!F86 -> 0 | G3: 万吨CO2e
B4: 城市热力净调入 | D4: =信息项!D4 -> 0 | E4: 万百万千焦 | F4: =其他部门汇总!F87 -> 0 | G4: 万吨CO2e
B5: 加油/气站数据 | C5: 汽油 | D5: =信息项!D5 -> 0 | E5: 万吨 | F5: =其他部门汇总!F88 -> 0 | G5: 万吨CO2e
C6: 柴油 | D6: =信息项!D6 -> 0 | E6: 万吨 | F6: =其他部门汇总!F89 -> 0 | G6: 万吨CO2e
C7: 液化石油气 | D7: =信息项!D7 -> 0 | E7: 万吨 | F7: =其他部门汇总!F90 -> 0 | G7: 万吨CO2e
C8: 液化天然气 | D8: =信息项!D8 -> 0 | E8: 万吨 | F8: =其他部门汇总!F91 -> 0 | G8: 万吨CO2e
B9: 城市边界外产生、边界内处理的废弃物排放 | F9: =其他部门汇总!F92 -> 0 | G9: 万吨CO2e
B10: 不 包括吸收汇的总排放 | F10: =其他部门汇总!F93 -> 0 | G10: 万吨CO2e
B11: 土地利用变化和林业产生的吸收汇 | F11: =其他部门汇总!F94 -> 0 | G11: 万吨CO2e
B13: 城市温室气体排放总览
B14: 万吨CO2e | C14: “范围一”排放 | E14: “范围二”排放 | G14: “范围三”排放
C15: 排放量 | D15: 比例 | E15: 排放量 | F15: 比例 | G15: 排放量 | H15: 比例
B16: 能源活动 | C16: =GPC报告!O7+GPC报告!O10+GPC报告!O13+GPC报告!O16+GPC报告!O19+GPC报告!O21+GPC报告!O24+GPC报告!O28+GPC报告!O32+GPC报告!O36+GPC报告!O40 -> 0 | D16: =C16/$C$21 ->  | E16: =GPC报告!O8+GPC报告!O11+GPC报告!O14+GPC报告!O17+GPC报告!O25+GPC报告!O29+GPC报告!O33+GPC报告!O37 -> 0 | F16: =E16/E21 ->  | G16: =GPC报告!O26+GPC报告!O30+GPC报告!O34+GPC报告!O38 -> 0 | H16: =G16/G21 -> 
B17: 工业生产过程 | C17: =GPC报告!O56 -> 0 | D17: =C17/$C$21 -> 
B18: 农业活动 | C18: =GPC报告!O59 -> 
B19: 土地利用变化和林业 | C19: =GPC报告!O60 -> 
B20: 废弃物处理 | C20: =GPC报告!O43+GPC报告!O44+GPC报告!O45+GPC报告!O47+GPC报告!O50+GPC报告!O53 -> 0 | G20: =GPC报告!O45+GPC报告!O48+GPC报告!O51+GPC报告!O54 -> 0 | H20: =G20/G21 -> 
B21: 总计 | C21: =SUM(C16:C20) ->  | E21: =E16 -> 0 | F21: =E21/E21 ->  | G21: =G16+G20 -> 0 | H21: =G21/G21 -> 
B22: 注：土地利用变化和林业的“范围一”排放为包含了碳吸收的净排放。

Sheet 其他部门汇总 (hidden)
B1: 能源+其他部门排放汇总
B2: 1.能源排放汇总 | D2: 范围一 | K2: 范围二 | O2: 范围三
D3: CO2e | E3: CO2 | F3: CH4 | G3: N2O | H3: HFCs | I3: PFCs | J3: SF6 | K3: CO2e | L3: CO2 | M3: CH4 | N3: N2O | O3: CO2e | P3: CO2 | Q3: CH4 | R3: N2O
D4: 万吨 | E4: 万吨 | F4: 万吨 | G4: 万吨 | H4: 万吨 | I4: 万吨 | J4: 万吨 | K4: 万吨 | L4: 万吨 | M4: 万吨 | N4: 万吨 | O4: 万吨 | P4: 万吨 | Q4: 万吨 | R4: 万吨
B5: 化石燃料燃烧 | C5: 农林牧渔 | D5: =能源汇总!E42 -> 0 | E5: =能源汇总!E43 -> 0 | F5: =能源汇总!E44 -> 0 | G5: =能源汇总!E45 -> 0 | K5: =能源汇总!E46 -> 0 | L5: =能源汇总!E47 -> 0 | M5: =能源汇总!E48 -> 0 | N5: =能源汇总!E49 -> 0
C6: 采矿业 | D6: =能源汇总!F42 -> 0 | E6: =能源汇总!F43 -> 0 | F6: =能源汇总!F44 -> 0 | G6: =能源汇总!F45 -> 0 | K6: =能源汇总!F46 -> 0 | L6: =能源汇总!F47 -> 0 | M6: =能源汇总!F48 -> 0 | N6: =能源汇总!F49 -> 0
C7: 制造业 | D7: =能源汇总!G42 -> 0 | E7: =能源汇总!G43 -> 0 | F7: =能源汇总!G44 -> 0 | G7: =能源汇总!G45 -> 0 | K7: =能源汇总!G46 -> 0 | L7: =能源汇总!G47 -> 0 | M7: =能源汇总!G48 -> 0 | N7: =能源汇总!G49 -> 0
C8: 能源加工转换 | D8: =能源汇总!H42 -> 0 | E8: =能源汇总!H43 -> 0 | F8: =能源汇总!H44 -> 0 | G8: =能源汇总!H45 -> 0 | K8: =能源汇总!H46 -> 0 | L8: =能源汇总!H47 -> 0 | M8: =能源汇总!H48 -> 0 | N8: =能源汇总!H49 -> 0
C9: 建筑业 | D9: =能源汇总!I42 -> 0 | E9: =能源汇总!I43 -> 0 | F9: =能源汇总!I44 -> 0 | G9: =能源汇总!I45 -> 0 | K9: =能源汇总!I46 -> 0 | L9: =能源汇总!I47 -> 0 | M9: =能源汇总!I48 -> 0 | N9: =能源汇总!I49 -> 0
C10: 交通运输业 | D10: =能源汇总!J42 -> 0 | E10: =能源汇总!J43 -> 0 | F10: =能源汇总!J44 -> 0 | G10: =能源汇总!J45 -> 0 | K10: =能源汇总!J46 -> 0 | L10: =能源汇总!J47 -> 0 | M10: =能源汇总!J48 -> 0 | N10: =能源汇总!J49 -> 0
C11: 住宿餐饮 | D11: =能源汇总!K42 -> 0 | E11: =能源汇总!K43 -> 0 | F11: =能源汇总!K44 -> 0 | G11: =能源汇总!K45 -> 0 | K11: =能源汇总!K46 -> 0 | L11: =能源汇总!K47 -> 0 | M11: =能源汇总!K48 -> 0 | N11: =能源汇总!K49 -> 0
C12: 其他 | D12: =能源汇总!L42 -> 0 | E12: =能源汇总!L43 -> 0 | F12: =能源汇总!L44 -> 0 | G12: =能源汇总!L45 -> 0 | K12: =能源汇总!L46 -> 0 | L12: =能源汇总!L47 -> 0 | M12: =能源汇总!L48 -> 0 | N12: =能源汇总!L49 -> 0
C13: 居民生活 | D13: =能源汇总!M42 -> 0 | E13: =能源汇总!M43 -> 0 | F13: =能源汇总!M44 -> 0 | G13: =能源汇总!M45 -> 0 | K13: =能源汇总!M46 -> 0 | L13: =能源汇总!M47 -> 0 | M13: =能源汇总!M48 -> 0 | N13: =能源汇总!M49 -> 0
B14: 生物质燃料燃烧 | D14: =F14*VLOOKUP(主菜单!$J$29,GPA,3)+G14*VLOOKUP(主菜单!$J$29,GPA,4) -> 0 | F14: =SUMPRODUCT(J!C3:C6,生物燃料排放因子!E4:E7)/10000000 -> 0 | G14: =SUMPRODUCT(J!C3:C6,生物燃料排放因子!F4:F7)/10000000 -> 0
B15: 逃逸排放 | C15: 煤炭开采 | D15: =F15*VLOOKUP(主菜单!$J$29,GPA,3) -> 0 | F15: =(K!E4*(IF(逃逸排放排放因子!C6>0, 逃逸排放排放因子!C6,逃逸排放排放因子!H6)+IF(逃逸排放排放因子!E6>0, 逃逸排放排放因子!E6, 逃逸排放排放因子!J6))+K!E5*(IF(逃逸排放排放因子!C6>0, 逃逸排放排放因子!C6,逃逸排放排放因子!H6)+IF(逃逸排放排放因子!F6>0, 逃逸排放排放因子!F6, 逃逸排放排放因子!K6))+K!E6*(IF(逃逸排放排放因子!D6>0, 逃逸排放排放因子!D6, 逃逸排放排放因子!I6)+IF(逃逸排放排放因子!G6>0, 逃逸排放排放因子!G6, 逃逸排放排放因子!L6))+K!E8*(IF(逃逸排放排放因子!C7>0, 逃逸排放排放因子!C7, 逃逸排放排放因子!H7)+IF(逃逸排放排放因子!E7>0, 逃逸排放排放因子!E7, 逃逸排放排放因子!J7))+K!E9*(IF(逃逸排放排放因子!C7>0, 逃逸排放排放因子!C7, 逃逸排放排放因子!H7)+IF(逃逸排放排放因子!F7>0, 逃逸排放排放因子!F7, 逃逸排放排放因子!K7))+K!E10*(IF(逃逸排放排放因子!D7>0, 逃逸排放排放因子!D7, 逃逸排放排放因子!I7) +IF(逃逸排放排放因子!G7>0, 逃逸排放排放因子!G7, 逃逸排放排放因子!L7))+K!E12*(IF(逃逸排放排放因子!C8>0, 逃逸排放排放因子!C8, 逃逸排放排放因子!H8)+IF(逃逸排放排放因子!E8>0, 逃逸排放排放因子!E8, 逃逸排放排放因子!J8))+K!E13*(IF(逃逸排放排放因子!C8>0, 逃逸排放排放因子!C8, 逃逸排放排放因子!H8)+IF(逃逸排放排放因子!F8>0, 逃逸排放排放因子!F8, 逃逸排放排放因子!K8))+K!E14*(IF(逃逸排放排放因子!D8>0, 逃逸排放排放因子!D8, 逃逸排放排放因子!I8)+IF(逃逸排放排放因子!G8>0, 逃逸排放排放因子!G8, 逃逸排放排放因子!L8))-(K!E7+K!E11+K!E15)/10000)*0.77/1000 -> 0
C16: 油气开采 | D16: =F16*VLOOKUP(主菜单!$J$29,GPA,3) -> 0 | F16: =(K!E18*IF(逃逸排放排放因子!E13>0,逃逸排放排放因子!E13,逃逸排放排放因子!F13)+K!E19*IF(逃逸排放排放因子!E14>0,逃逸排放排放因子!E14,逃逸排放排放因子!F14)+K!E20*IF(逃逸排放排放因子!E15>0,逃逸排放排放因子!E15,逃逸排放排放因子!F15)+K!E21*IF(逃逸排放排放因子!E16>0,逃逸排放排放因子!E16,逃逸排放排放因子!F16)+K!E22*IF(逃逸排放排放因子!E17>0,逃逸排放排放因子!E17,逃逸排放排放因子!F17)+K!E23*IF(逃逸排放排放因子!E18>0,逃逸排放排放因子!E18,逃逸排放排放因子!F18)+K!E24*IF(逃逸排放排放因子!E19>0,逃逸排放排放因子!E19,逃逸排放排放因子!F19)+K!E25*IF(逃逸排放排放因子!E20>0,逃逸排放排放因子!E20,逃逸排放排放因子!F20)+K!E26*IF(逃逸排放排放因子!E21>0,逃逸排放排放因子!E21,逃逸排放排放因子!F21)+K!E27*IF(逃逸排放排放因子!E22>0,逃逸排放排放因子!E22,逃逸排放排放因子!F22)+K!E28*IF(逃逸排放排放因子!E23>0,逃逸排放排放因子!E23,逃逸排放排放因子!F23)+K!E29*IF(逃逸排放排放因子!E24>0,逃逸排放排放因子!E24,逃逸排放排放因子!F24)/10+K!E30*IF(逃逸排放排放因子!E25>0,逃逸排放排放因子!E25,逃逸排放排放因子!F25)+K!E31*IF(逃逸排放排放因子!E26>0,逃逸排放排放因子!E26,逃逸排放排放因子!F26)+K!E32*IF(逃逸排放排放因子!E27>0,逃逸排放排放因子!E27,逃逸排放排放因子!F27)+K!E33*IF(逃逸排放排放因子!E28>0,逃逸排放排放因子!E28,逃逸排放排放因子!F28))/10000 -> 0
B18: 2.工业过程排放汇总
D19: CO2 | E19: CH4 | F19: N2O | G19: HFCs | P19: PFCs | R19: SF6 | S19: CO2-e
G20: HFC-23 | H20: HFC-32 | I20: HFC-125 | J20: HFC-134a | K20: HFC-143a | L20: HFC-152a | M20: HFC-227ea | N20: HFC-236fa | O20: HFC-245fa | P20: CF4 | Q20: C2F6
B21: 工业过程 | D21: 万吨 | E21: 万吨 | F21: 万吨 | G21: 万吨 | H21: 万吨 | I21: 万吨 | J21: 万吨 | K21: 万吨 | L21: 万吨 | M21: 万吨 | N21: 万吨 | O21: 万吨 | P21: 万吨 | Q21: 万吨 | R21: 万吨 | S21: 万吨当量
C22: 水泥生产过程 | D22: =(工业过程活动水平!D3-工业过程活动水平!D4)*IF(工业过程排放因子!D3>0,工业过程排放因子!D3,工业过程排放因子!E3) -> 0 | S22: =D22 -> 0
C23: 石灰生产过程 | D23: =工业过程活动水平!D5*IF(工业过程排放因子!D5>0,工业过程排放因子!D5,工业过程排放因子!E5) -> 0 | S23: =D23 -> 0
C24: 钢铁生产过程 | D24: =(工业过程活动水平!D6*IF(工业过程排放因子!D6>0,工业过程排放因子!D6,工业过程排放因子!E6)+ 工业过程活动水平!D7*IF(工业过程排放因子!D7>0,工业过程排放因子!D7,工业过程排放因子!E7)+ (工业过程活动水平!D8*IF(工业过程排放因子!D8>0,工业过程排放因子!D8,工业过程排放因子!E8)-工业过程活动水平!D9*IF(工业过程排放因子!D9>0,工业过程排放因子!D9,工业过程排放因子!E9))*44/12)*10000 -> 0 | S24: =D24 -> 0
C25: 电石生产过程 | D25: =工业过程活动水平!D10*IF(工业过程排放因子!D10>0,工业过程排放因子!D10,工业过程排放因子!E10) -> 0 | S25: =D25 -> 0
C26: 己二酸生产过程 | F26: =工业过程活动水平!D11*IF(工业过程排放因子!D11>0,工业过程排放因子!D11,工业过程排放因子!E11)/10000 -> 0 | S26: =F26*VLOOKUP(主菜单!J29,GPA,4) -> 0
C27: 硝酸生产过程 | F27: =(工业过程活动水平!D12*IF(工业过程排放因子!D12>0,工业过程排放因子!D12,工业过程排放因子!E12)+工业过程活动水平!D13*IF(工业过程排放因子!D13>0,工业过程排放因子!D13,工业过程排放因子!E13)+工业过程活动水平!D14*IF(工业过程排放因子!D14>0,工业过程排放因子!D14,工业过程排放因子!E14)+工业过程活动水平!D15*IF(工业过程排放因子!D15>0,工业过程排放因子!D15,工业过程排放因子!E15)+工业过程活动水平!D16*IF(工业过程排放因子!D16>0,工业过程排放因子!D16,工业过程排放因子!E16)+工业过程活动水平!D17*IF(工业过程排放因子!D17>0,工业过程排放因子!D17,工业过程排放因子!E17)+工业过程活动水平!D18*IF(工业过程排放因子!D18>0,工业过程排放因子!D18,工业过程排放因子!E18))/10000000 -> 0 | S27: =F27*VLOOKUP(主菜单!J29,GPA,4) -> 0
C28: 一氯二氯甲烷生产 | G28: =工业过程活动水平!D19*IF(工业过程排放因子!D19>0,工业过程排放因子!D19,工业过程排放因子!E19)/10000 -> 0 | S28: =G28*VLOOKUP(主菜单!J29,GPA,5) -> 0
C29: 铝生产过程 | P29: =(工业过程活动水平!D20*IF(工业过程排放因子!D20>0,工业过程排放因子!D20,工业过程排放因子!E20)+工业过程活动水平!D21*IF(工业过程排放因子!D21>0,工业过程排放因子!D21,工业过程排放因子!E21))/1000 -> 0 | Q29: =(工业过程活动水平!D20*IF(工业过程排放因子!D22>0,工业过程排放因子!D22,工业过程排放因子!E22)+工业过程活动水平!D21*IF(工业过程排放因子!D23>0,工业过程排放因子!D23,工业过程排放因子!E23))/1000 -> 0 | S29: =P29*VLOOKUP(主菜单!J29,GPA,14)+Q29*VLOOKUP(主菜单!J29,GPA,15) -> 0
C30: 镁生产过程 | R30: =(工业过程活动水平!D22*IF(工业过程排放因子!D24>0,工业过程排放因子!D24,工业过程排放因子!E24)+工业过程活动水平!D23*IF(工业过程排放因子!D25>0,工业过程排放因子!D25,工业过程排放因子!E25))/1000 -> 0 | S30: =R30*VLOOKUP(主菜单!J29,GPA,16) -> 0
C31: 电力设备生产过程 | R31: =工业过程活动水平!D24*IF(工业过程排放因子!D26>0,工业过程排放因子!D26,工业过程排放因子!E26)/10000 -> 0 | S31: =R31*VLOOKUP(主菜单!J29,GPA,16) -> 0
C32: 半导体 | G32: =工业过程活动水平!D25*IF(工业过程排放因子!D27>0,工业过程排放因子!D27,工业过程排放因子!E27)/10000000 -> 0 | P32: =工业过程活动水平!D26*IF(工业过程排放因子!D28>0,工业过程排放因子!D28,工业过程排放因子!E28)/10000000 -> 0 | Q32: =工业过程活动水平!D27*IF(工业过程排放因子!D29>0,工业过程排放因子!D29,工业过程排放因子!E29)/10000000 -> 0 | R32: =工业过程活动水平!D28*IF(工业过程排放因子!D30>0,工业过程排放因子!D30,工业过程排放因子!E30)/10000000 -> 0 | S32: =G32*VLOOKUP(主菜单!J29,GPA,5)+P32*VLOOKUP(主菜单!J29,GPA,14)+Q32*VLOOKUP(主菜单!J29,GPA,15)+R32*VLOOKUP(主菜单!J29,GPA,16) -> 0
C33: 氢氟烃生产 | H33: =工业过程活动水平!D30*IF(工业过程排放因子!D32>0,工业过程排放因子!D32,工业过程排放因子!E32)/10000000 -> 0 | I33: =工业过程活动水平!D31*IF(工业过程排放因子!D33>0,工业过程排放因子!D33,工业过程排放因子!E33)/10000000 -> 0 | J33: =工业过程活动水平!D32*IF(工业过程排放因子!D34>0,工业过程排放因子!D34,工业过程排放因子!E34)/10000000 -> 0 | K33: =工业过程活动水平!D33*IF(工业过程排放因子!D35>0,工业过程排放因子!D35,工业过程排放因子!E35)/10000000 -> 0 | L33: =工业过程活动水平!D34*IF(工业过程排放因子!D36>0,工业过程排放因子!D36,工业过程排放因子!E36)/10000000 -> 0 | M33: =工业过程活动水平!D35*IF(工业过程排放因子!D37>0,工业过程排放因子!D37,工业过程排放因子!E37)/10000000 -> 0 | N33: =工业过程活动水平!D36*IF(工业过程排放因子!D38>0,工业过程排放因子!D38,工业过程排放因子!E38)/10000000 -> 0 | O33: =工业过程活动水平!D37*IF(工业过程排放因子!D39>0,工业过程排放因子!D39,工业过程排放因子!E39)/10000000 -> 0 | S33: =H33*VLOOKUP(主菜单!J29,GPA,6)+I33*VLOOKUP(主菜单!J29,GPA,7)+J33*VLOOKUP(主菜单!J29,GPA,8)+K33*VLOOKUP(主菜单!J29,GPA,9)+L33*VLOOKUP(主菜单!J29,GPA,10)+M33*VLOOKUP(主菜单!J29,GPA,11)+N33*VLOOKUP(主菜单!J29,GPA,12)+O33*VLOOKUP(主菜单!J29,GPA,13) -> 0
B34: 总计 | D34: =SUM(D22:D33) -> 0 | F34: =SUM(F22:F33) -> 0 | G34: 0 | H34: 0 | I34: 0 | J34: 0 | K34: 0 | L34: 0 | M34: 0 | N34: 0 | O34: 0 | P34: 0 | Q34: 0 | R34: 0 | S34: =SUM(S22:S33) -> 0
B36: 3.农业排放汇总 | L36: 3.1 农业排放附表
D37: CO2 | E37: CH4 | F37: N2O | G37: HFCs | H37: PFCs | I37: SF6 | J37: CO2-e | M37: 秸秆还田氮输入（吨）
D38: 万吨 | E38: 万吨 | F38: 万吨 | G38: 万吨 | H38: 万吨 | I38: 万吨 | J38: 万吨当量 | L38: 农作物 | M38: 地上 | N38: 地下
B39: 稻田甲烷 | C39: 单季稻 | E39: =农业活动水平!C4*IF(VLOOKUP(主菜单!L12,农业活动排放因子!B6:K12,2)>0,VLOOKUP(主菜单!L12,农业活动排放因子!B6:K12,2), VLOOKUP(主菜单!L12,农业活动排放因子!B6:K12,6))/10000000 -> 0 | J39: =D39*VLOOKUP(主菜单!$J$29,GPA,2)+E39*VLOOKUP(主菜单!$J$29,GPA,3)+F39*VLOOKUP(主菜单!$J$29,GPA,4)+G39*VLOOKUP(主菜单!$J$29,GPA,5)+H39*VLOOKUP(主菜单!$J$29,GPA,6)+I39*VLOOKUP(主菜单!$J$29,GPA,7) -> 0 | L39: 水稻 | M39: =(农业活动水平!D11/农业活动排放因子!K40-农业活动水平!D11)*农业活动水平!G11*农业活动排放因子!J40 -> 0 | N39: =农业活动水平!D11/农业活动排放因子!K40*农业活动排放因子!L40*农业活动排放因子!J40 -> 0
C40: 双季早稻 | E40: =农业活动水平!C5*IF(VLOOKUP(主菜单!L12,农业活动排放因子!B6:K12,3)>0,VLOOKUP(主菜单!L12,农业活动排放因子!B6:K12,3), VLOOKUP(主菜单!L12,农业活动排放因子!B6:K12,8))/10000000 -> 0 | J40: =D40*VLOOKUP(主菜单!$J$29,GPA,2)+E40*VLOOKUP(主菜单!$J$29,GPA,3)+F40*VLOOKUP(主菜单!$J$29,GPA,4)+G40*VLOOKUP(主菜单!$J$29,GPA,5)+H40*VLOOKUP(主菜单!$J$29,GPA,6)+I40*VLOOKUP(主菜单!$J$29,GPA,7) -> 0 | L40: 小麦 | M40: =(农业活动水平!D12/农业活动排放因子!K41-农业活动水平!D12)*农业活动水平!G12*农业活动排放因子!J41 -> 0 | N40: =农业活动水平!D12/农业活动排放因子!K41*农业活动排放因子!L41*农业活动排放因子!J41 -> 0
C41: 双季晚稻 | E41: =农业活动水平!C6*IF(VLOOKUP(主菜单!L12,农业活动排放因子!B6:K12,4)>0,VLOOKUP(主菜单!L12,农业活动排放因子!B6:K12,4), VLOOKUP(主菜单!L12,农业活动排放因子!B6:K12,10))/10000000 -> 0 | J41: =D41*VLOOKUP(主菜单!$J$29,GPA,2)+E41*VLOOKUP(主菜单!$J$29,GPA,3)+F41*VLOOKUP(主菜单!$J$29,GPA,4)+G41*VLOOKUP(主菜单!$J$29,GPA,5)+H41*VLOOKUP(主菜单!$J$29,GPA,6)+I41*VLOOKUP(主菜单!$J$29,GPA,7) -> 0 | L41: 玉米 | M41: =(农业活动水平!D13/农业活动排放因子!K42-农业活动水平!D13)*农业活动水平!G13*农业活动排放因子!J42 -> 0 | N41: =农业活动水平!D13/农业活动排放因子!K42*农业活动排放因子!L42*农业活动排放因子!J42 -> 0
B42: 农田氧化亚氮 | C42: 直接排放 | F42: =SUM(F43:F45) -> 0 | J42: =D42*VLOOKUP(主菜单!$J$29,GPA,2)+E42*VLOOKUP(主菜单!$J$29,GPA,3)+F42*VLOOKUP(主菜单!$J$29,GPA,4)+G42*VLOOKUP(主菜单!$J$29,GPA,5)+H42*VLOOKUP(主菜单!$J$29,GPA,6)+I42*VLOOKUP(主菜单!$J$29,GPA,7) -> 0 | L42: 高粱 | M42: =(农业活动水平!D14/农业活动排放因子!K43-农业活动水平!D14)*农业活动水平!G14*农业活动排放因子!J43 -> 0 | N42: =农业活动水平!D14/农业活动排放因子!K43*农业活动排放因子!L43*农业活动排放因子!J43 -> 0
C43: 化肥 | F43: =SUMPRODUCT(农业活动水平!C11:C28,农业活动水平!F11:F28)*VLOOKUP(农业活动排放因子!D23,农业活动排放因子!B17:K22,8)*44/28/10000 -> 0 | J43: =D43*VLOOKUP(主菜单!$J$29,GPA,2)+E43*VLOOKUP(主菜单!$J$29,GPA,3)+F43*VLOOKUP(主菜单!$J$29,GPA,4)+G43*VLOOKUP(主菜单!$J$29,GPA,5)+H43*VLOOKUP(主菜单!$J$29,GPA,6)+I43*VLOOKUP(主菜单!$J$29,GPA,7) -> 0 | L43: 谷子 | M43: =(农业活动水平!D15/农业活动排放因子!K44-农业活动水平!D15)*农业活动水平!G15*农业活动排放因子!J44 -> 0 | N43: =农业活动水平!D15/农业活动排放因子!K44*农业活动排放因子!L44*农业活动排放因子!J44 -> 0
C44: 粪肥 | F44: =SUMPRODUCT(农业活动水平!F33:F42,农业活动排放因子!D27:D36)*VLOOKUP(农业活动排放因子!D23,农业活动排放因子!B17:K22,8)/1000*44/28/10000 -> 0 | J44: =D44*VLOOKUP(主菜单!$J$29,GPA,2)+E44*VLOOKUP(主菜单!$J$29,GPA,3)+F44*VLOOKUP(主菜单!$J$29,GPA,4)+G44*VLOOKUP(主菜单!$J$29,GPA,5)+H44*VLOOKUP(主菜单!$J$29,GPA,6)+I44*VLOOKUP(主菜单!$J$29,GPA,7) -> 0 | L44: 其他谷类 | M44: =(农业活动水平!D16/农业活动排放因子!K45-农业活动水平!D16)*农业活动水平!G16*农业活动排放因子!J45 -> 0 | N44: =农业活动水平!D16/农业活动排放因子!K45*农业活动排放因子!L45*农业活动排放因子!J45 -> 0
C45: 秸秆还田 | F45: =(M58+N58)*VLOOKUP(农业活动排放因子!D23,农业活动排放因子!B17:K22,8)*44/28/10000 -> 0 | J45: =D45*VLOOKUP(主菜单!$J$29,GPA,2)+E45*VLOOKUP(主菜单!$J$29,GPA,3)+F45*VLOOKUP(主菜单!$J$29,GPA,4)+G45*VLOOKUP(主菜单!$J$29,GPA,5)+H45*VLOOKUP(主菜单!$J$29,GPA,6)+I45*VLOOKUP(主菜单!$J$29,GPA,7) -> 0 | L45: 大豆 | M45: =(农业活动水平!D17/农业活动排放因子!K46-农业活动水平!D17)*农业活动水平!G17*农业活动排放因子!J46 -> 0 | N45: =农业活动水平!D17/农业活动排放因子!K46*农业活动排放因子!L46*农业活动排放因子!J46 -> 0
C46: 间接排放 | F46: =SUM(F47:F48) -> 0 | J46: =D46*VLOOKUP(主菜单!$J$29,GPA,2)+E46*VLOOKUP(主菜单!$J$29,GPA,3)+F46*VLOOKUP(主菜单!$J$29,GPA,4)+G46*VLOOKUP(主菜单!$J$29,GPA,5)+H46*VLOOKUP(主菜单!$J$29,GPA,6)+I46*VLOOKUP(主菜单!$J$29,GPA,7) -> 0 | L46: 其他豆类 | M46: =(农业活动水平!D18/农业活动排放因子!K47-农业活动水平!D18)*农业活动水平!G18*农业活动排放因子!J47 -> 0 | N46: =农业活动水平!D18/农业活动排放因子!K47*农业活动排放因子!L47*农业活动排放因子!J47 -> 0
C47: 大气氮沉降 | F47: =((SUMPRODUCT(农业活动水平!C11:C28,农业活动水平!F11:F28)+ M58+N58)*10%+SUMPRODUCT(农业活动水平!F33:F42,农业活动排放因子!D27:D36)/1000*20%)*农业活动排放因子!D61*44/28/10000 -> 0 | J47: =D47*VLOOKUP(主菜单!$J$29,GPA,2)+E47*VLOOKUP(主菜单!$J$29,GPA,3)+F47*VLOOKUP(主菜单!$J$29,GPA,4)+G47*VLOOKUP(主菜单!$J$29,GPA,5)+H47*VLOOKUP(主菜单!$J$29,GPA,6)+I47*VLOOKUP(主菜单!$J$29,GPA,7) -> 0 | L47: 油菜籽 | M47: =(农业活动水平!D19/农业活动排放因子!K48-农业活动水平!D19)*农业活动水平!G19*农业活动排放因子!J48 -> 0 | N47: =农业活动水平!D19/农业活动排放因子!K48*农业活动排放因子!L48*农业活动排放因子!J48 -> 0
C48: 淋溶径流 | F48: =( SUMPRODUCT(农业活动水平!C11:C28,农业活动水平!F11:F28)+ M58+N58)*20%*农业活动排放因子!D62*44/28/10000 -> 0 | J48: =D48*VLOOKUP(主菜单!$J$29,GPA,2)+E48*VLOOKUP(主菜单!$J$29,GPA,3)+F48*VLOOKUP(主菜单!$J$29,GPA,4)+G48*VLOOKUP(主菜单!$J$29,GPA,5)+H48*VLOOKUP(主菜单!$J$29,GPA,6)+I48*VLOOKUP(主菜单!$J$29,GPA,7) -> 0 | L48: 花生 | M48: =(农业活动水平!D20/农业活动排放因子!K49-农业活动水平!D20)*农业活动水平!G20*农业活动排放因子!J49 -> 0 | N48: =农业活动水平!D20/农业活动排放因子!K49*农业活动排放因子!L49*农业活动排放因子!J49 -> 0
B49: 动物肠道发酵 | E49: =SUMPRODUCT(农业活动水平!C33:E42,农业活动排放因子!F67:H76)/10000000 -> 0 | J49: =D49*VLOOKUP(主菜单!$J$29,GPA,2)+E49*VLOOKUP(主菜单!$J$29,GPA,3)+F49*VLOOKUP(主菜单!$J$29,GPA,4)+G49*VLOOKUP(主菜单!$J$29,GPA,5)+H49*VLOOKUP(主菜单!$J$29,GPA,6)+I49*VLOOKUP(主菜单!$J$29,GPA,7) -> 0 | L49: 芝麻 | M49: =(农业活动水平!D21/农业活动排放因子!K50-农业活动水平!D21)*农业活动水平!G21*农业活动排放因子!J50 -> 0 | N49: =农业活动水平!D21/农业活动排放因子!K50*农业活动排放因子!L50*农业活动排放因子!J50 -> 0
B50: 动物粪便管理 | E50: =SUMPRODUCT(农业活动水平!F33:F42,农业活动排放因子!Q82:Q91)/10000000 -> 0 | F50: =SUMPRODUCT(农业活动水平!F33:F42,农业活动排放因子!Q96:Q105)/10000000 -> 0 | J50: =D50*VLOOKUP(主菜单!$J$29,GPA,2)+E50*VLOOKUP(主菜单!$J$29,GPA,3)+F50*VLOOKUP(主菜单!$J$29,GPA,4)+G50*VLOOKUP(主菜单!$J$29,GPA,5)+H50*VLOOKUP(主菜单!$J$29,GPA,6)+I50*VLOOKUP(主菜单!$J$29,GPA,7) -> 0 | L50: 籽棉 | M50: =(农业活动水平!D22/农业活动排放因子!K51-农业活动水平!D22)*农业活动水平!G22*农业活动排放因子!J51 -> 0 | N50: =农业活动水平!D22/农业活动排放因子!K51*农业活动排放因子!L51*农业活动排放因子!J51 -> 0
B51: 总计 | E51: =SUM(E39:E41)+SUM(E49:E50) -> 0 | F51: =F42+F46+F50 -> 0 | J51: =SUM(J39:J50) -> 0 | L51: 甜菜 | M51: =(农业活动水平!D23/农业活动排放因子!K52-农业活动水平!D23)*农业活动水平!G23*农业活动排放因子!J52 -> 0 | N51: =农业活动水平!D23/农业活动排放因子!K52*农业活动排放因子!L52*农业活动排放因子!J52 -> 0
B53: 4.土地利用变化和林业排放汇总 | L53: 甘蔗 | M53: =(农业活动水平!D24/农业活动排放因子!K53-农业活动水平!D24)*农业活动水平!G24*农业活动排放因子!J53 -> 0 | N53: =农业活动水平!D24/农业活动排放因子!K53*农业活动排放因子!L53*农业活动排放因子!J53 -> 0
D54: CO2 | E54: CH4 | F54: N2O | G54: HFCs | H54: PFCs | I54: SF6 | J54: CO2-e | L54: 麻类 | M54: =(农业活动水平!D25/农业活动排放因子!K54-农业活动水平!D25)*农业活动水平!G25*农业活动排放因子!J54 -> 0 | N54: =农业活动水平!D25/农业活动排放因子!K54*农业活动排放因子!L54*农业活动排放因子!J54 -> 0
D55: 万吨 | E55: 万吨 | F55: 万吨 | G55: 万吨 | H55: 万吨 | I55: 万吨 | J55: 万吨当量 | L55: 薯类 | M55: =(农业活动水平!D26/农业活动排放因子!K55-农业活动水平!D26)*农业活动水平!G26*农业活动排放因子!J55 -> 0 | N55: =农业活动水平!D26/农业活动排放因子!K55*农业活动排放因子!L55*农业活动排放因子!J55 -> 0
B56: 1.森林和其他木质生物质碳储量变化 | D56: =SUM(D57:D62) -> 0 | J56: =D56 -> 0 | L56: 蔬菜 | M56: =(农业活动水平!D27/农业活动排放因子!K56-农业活动水平!D27)*农业活动水平!G27*农业活动排放因子!J56 -> 0 | N56: =农业活动水平!D27/农业活动排放因子!K56*农业活动排放因子!L56*农业活动排放因子!J56 -> 0
B57: 乔木林 （林分） | D57: =-(土地利用变化和林业活动水平!C4*VLOOKUP(主菜单!L11,土地利用变化和林业排放因子!B75:G106,2)*VLOOKUP(主菜单!L11,土地利用变化和林业排放因子!B75:G106,4)*VLOOKUP(主菜单!L11,土地利用变化和林业排放因子!B75:G106,5)*VLOOKUP(主菜单!L11,土地利用变化和林业排放因子!B7:M38,12)/10000)*44/12 -> 0 | J57: 0 | L57: 烟叶 | M57: =(农业活动水平!D28/农业活动排放因子!K57-农业活动水平!D28)*农业活动水平!G28*农业活动排放因子!J57 -> 0 | N57: =农业活动水平!D28/农业活动排放因子!K57*农业活动排放因子!L57*农业活动排放因子!J57 -> 0
B58: 经济林 | D58: =-土地利用变化和林业活动水平!E7*IF(土地利用变化和林业排放因子!D47>0, 土地利用变化和林业排放因子!D47, 土地利用变化和林业排放因子!E47)*VLOOKUP(主菜单!L11,土地利用变化和林业排放因子!B7:M38,12)/10000*44/12 -> 0 | J58: 0 | L58: 总计 | M58: =SUM(M39:M57) -> 0 | N58: =SUM(N39:N57) -> 0
B59: 竹林 | D59: =-土地利用变化和林业活动水平!E6*IF(土地利用变化和林业排放因子!D44>0, 土地利用变化和林业排放因子!D44, 土地利用变化和林业排放因子!E44)*VLOOKUP(主菜单!L11,土地利用变化和林业排放因子!B7:M38,12)/10000*44/12 -> 0 | J59: 0
B60: 灌木林 | D60: =-土地利用变化和林业活动水平!E8*IF(土地利用变化和林业排放因子!D50>0, 土地利用变化和林业排放因子!D50, 土地利用变化和林业排放因子!E50)*VLOOKUP(主菜单!L11,土地利用变化和林业排放因子!B7:M38,12)/10000*44/12 -> 0 | J60: 0
B61: 疏林、散生木和四旁树 | D61: =-(土地利用变化和林业活动水平!C5*VLOOKUP(主菜单!L11,土地利用变化和林业排放因子!B75:G106,2)*VLOOKUP(主菜单!L11,土地利用变化和林业排放因子!B75:G106,4)*VLOOKUP(主菜单!L11,土地利用变化和林业排放因子!B75:G106,5)*VLOOKUP(主菜单!L11,土地利用变化和林业排放因子!B7:M38,12)/10000)*44/12 -> 0 | J61: 0 | L61: 4.1 林业排放附表
B62: 活立木消耗 | D62: =土地利用变化和林业活动水平!C9*VLOOKUP(主菜单!L11, 土地利用变化和林业排放因子!B75:G106,3)*VLOOKUP(主菜单!L11,土地利用变化和林业排放因子!B75:G106,4)*VLOOKUP(主菜单!L11,土地利用变化和林业排放因子!B75:G106,5)*VLOOKUP(主菜单!L11,土地利用变化和林业排放因子!B7:M38,12)/10000*44/12 -> 0 | J62: 0 | L62: 森林转化(吨碳） | N62: 现地 | O62: 异地
B63: 2.森林转化碳排放 | D63: =SUM(D64:D65) ->  | E63: =E64 ->  | F63: =F64 ->  | J63: =D63*VLOOKUP(主菜单!$J$29,GPA,2)+E63*VLOOKUP(主菜单!$J$29,GPA,3)+F63*VLOOKUP(主菜单!$J$29,GPA,4) ->  | L63: 燃烧 | M63: 乔木林 | N63: =土地利用变化和林业活动水平!C14*(土地利用变化和林业排放因子!D57-土地利用变化和林业排放因子!H57)*土地利用变化和林业排放因子!I57*土地利用变化和林业排放因子!J57*土地利用变化和林业排放因子!K57 ->  | O63: =土地利用变化和林业活动水平!C14*(土地利用变化和林业排放因子!D60-土地利用变化和林业排放因子!H57)*土地利用变化和林业排放因子!I60*土地利用变化和林业排放因子!J57*土地利用变化和林业排放因子!K57 -> 
B64: 燃烧排放 | D64: =SUM(N63:O65)*44/12/10000 ->  | E64: =D64*土地利用变化和林业排放因子!D66*16/12 ->  | F64: =D64*土地利用变化和林业排放因子!D67*土地利用变化和林业排放因子!D68*44/12 ->  | J64: =D64*VLOOKUP(主菜单!$J$29,GPA,2)+E64*VLOOKUP(主菜单!$J$29,GPA,3)+F64*VLOOKUP(主菜单!$J$29,GPA,4) ->  | M64: 竹林 | N64: =土地利用变化和林业活动水平!C15*(土地利用变化和林业排放因子!D58-土地利用变化和林业排放因子!H57)*土地利用变化和林业排放因子!I57*土地利用变化和林业排放因子!J57*土地利用变化和林业排放因子!K57 -> 0 | O64: =土地利用变化和林业活动水平!C15*(土地利用变化和林业排放因子!D61-土地利用变化和林业排放因子!H57)*土地利用变化和林业排放因子!I60*土地利用变化和林业排放因子!J57*土地利用变化和林业排放因子!K57 -> 0
B65: 分解排放 | D65: =(土地利用变化和林业活动水平!E14*(土地利用变化和林业排放因子!D57-土地利用变化和林业排放因子!H57)*土地利用变化和林业排放因子!L57*土地利用变化和林业排放因子!K57+土地利用变化和林业活动水平!E15*(土地利用变化和林业排放因子!D58-土地利用变化和林业排放因子!H57)*土地利用变化和林业排放因子!L57*土地利用变化和林业排放因子!K57+土地利用变化和林业活动水平!E16*(土地利用变化和林业排放因子!D59-土地利用变化和林业排放因子!H57)*土地利用变化和林业排放因子!L57*土地利用变化和林业排放因子!K57)*44/12/10000 ->  | J65: =D65 ->  | M65: 经济林 | N65: =土地利用变化和林业活动水平!C16*(土地利用变化和林业排放因子!D59-土地利用变化和林业排放因子!H57)*土地利用变化和林业排放因子!I57*土地利用变化和林业排放因子!J57*土地利用变化和林业排放因子!K57 -> 0 | O65: =土地利用变化和林业活动水平!C16*(土地利用变化和林业排放因子!D62-土地利用变化和林业排放因子!H57)*土地利用变化和林业排放因子!I60*土地利用变化和林业排放因子!J57*土地利用变化和林业排放因子!K57 -> 0
B66: 总计 | D66: =D56+D63 ->  | E66: =E63 ->  | F66: =F63 ->  | J66: =J56+J63 -> 
B68: 5.废弃物处理排放汇总 | L68: 5.1 废弃物排放附表
D69: CO2 | E69: CH4 | F69: N2O | G69: HFCs | H69: PFCs | I69: SF6 | J69: CO2-e | M69: 垃圾填埋CH4排放
D70: 万吨 | E70: 万吨 | F70: 万吨 | G70: 万吨 | H70: 万吨 | I70: 万吨 | J70: 万吨当量 | M70: 万吨
B71: 边界内产生 边界内处理 | C71: 垃圾填埋 | E71: =SUM(O71:O74) -> 0 | J71: =D71*VLOOKUP(主菜单!$J$29,GPA,2)+E71*VLOOKUP(主菜单!$J$29,GPA,3)+F71*VLOOKUP(主菜单!$J$29,GPA,4) -> 0 | L71: 边界内产生 边界内处理 | M71: 管理 | O71: =(废弃物活动水平!D4*废弃物活动水平!G4*废弃物处理排放因子!E4*SUMPRODUCT(废弃物活动水平!D16:D20,废弃物处理排放因子!F9:F13)*废弃物处理排放因子!E14*废弃物处理排放因子!E15*废弃物处理排放因子!E16-废弃物活动水平!I4)*(1-废弃物处理排放因子!E17) -> 0
C72: 垃圾焚烧 | D72: =废弃物活动水平!D24*(废弃物活动水平!D27*废弃物处理排放因子!G23+废弃物活动水平!D28*废弃物处理排放因子!G27+废弃物活动水平!D29*废弃物处理排放因子!G31) -> 0 | J72: =D72*VLOOKUP(主菜单!$J$29,GPA,2)+E72*VLOOKUP(主菜单!$J$29,GPA,3)+F72*VLOOKUP(主菜单!$J$29,GPA,4) -> 0 | M72: 非管理-深埋 | O72: =(废弃物活动水平!D4*废弃物活动水平!G5*废弃物处理排放因子!E5*SUMPRODUCT(废弃物活动水平!D16:D20,废弃物处理排放因子!F9:F13)*废弃物处理排放因子!E14*废弃物处理排放因子!E15*废弃物处理排放因子!E16)*(1-废弃物处理排放因子!E18) -> 0
C73: 生活污水 | E73: =((废弃物活动水平!D33+废弃物活动水平!D36)*VLOOKUP(主菜单!L12,废弃物活动水平!B42:D49,3)*废弃物处理排放因子!G40)/10000000-废弃物活动水平!F36 -> 0 | F73: =(废弃物活动水平!D70*废弃物活动水平!D71*废弃物活动水平!E72*废弃物活动水平!E73*废弃物活动水平!E74-废弃物活动水平!E75/10000000)*废弃物处理排放因子!D50/1000 -> 0 | J73: =D73*VLOOKUP(主菜单!$J$29,GPA,2)+E73*VLOOKUP(主菜单!$J$29,GPA,3)+F73*VLOOKUP(主菜单!$J$29,GPA,4) -> 0 | M73: 非管理-浅埋 | O73: =(废弃物活动水平!D4*废弃物活动水平!G6*废弃物处理排放因子!E6*SUMPRODUCT(废弃物活动水平!D16:D20,废弃物处理排放因子!F9:F13)*废弃物处理排放因子!E14*废弃物处理排放因子!E15*废弃物处理排放因子!E16)*(1-废弃物处理排放因子!E18) -> 0
C74: 工业废水 | E74: =废弃物活动水平!D63*废弃物处理排放因子!G46/10000000-废弃物活动水平!F57 -> 0 | J74: =D74*VLOOKUP(主菜单!$J$29,GPA,2)+E74*VLOOKUP(主菜单!$J$29,GPA,3)+F74*VLOOKUP(主菜单!$J$29,GPA,4) -> 0 | M74: 未分类 | O74: =(废弃物活动水平!D4*废弃物活动水平!G7*废弃物处理排放因子!E7*SUMPRODUCT(废弃物活动水平!D16:D20,废弃物处理排放因子!F9:F13)*废弃物处理排放因子!E14*废弃物处理排放因子!E15*废弃物处理排放因子!E16)*(1-废弃物处理排放因子!E18) -> 0
B75: 边界外产生 边界内处理 | C75: 垃圾填埋 | E75: =SUM(O75:O78) -> 0 | J75: =D75*VLOOKUP(主菜单!$J$29,GPA,2)+E75*VLOOKUP(主菜单!$J$29,GPA,3)+F75*VLOOKUP(主菜单!$J$29,GPA,4) -> 0 | L75: 边界外产生 边界内处理 | M75: 管理 | O75: =(废弃物活动水平!D8*废弃物活动水平!G8*废弃物处理排放因子!E4*SUMPRODUCT(废弃物活动水平!D16:D20,废弃物处理排放因子!F9:F13)*废弃物处理排放因子!E14*废弃物处理排放因子!E15*废弃物处理排放因子!E16-废弃物活动水平!I8)*(1-废弃物处理排放因子!E17) -> 0
C76: 垃圾焚烧 | D76: =废弃物活动水平!D25*(废弃物活动水平!D27*废弃物处理排放因子!G23+废弃物活动水平!D28*废弃物处理排放因子!G27+废弃物活动水平!D29*废弃物处理排放因子!G31) -> 0 | J76: =D76*VLOOKUP(主菜单!$J$29,GPA,2)+E76*VLOOKUP(主菜单!$J$29,GPA,3)+F76*VLOOKUP(主菜单!$J$29,GPA,4) -> 0 | M76: 非管理-深埋 | O76: =(废弃物活动水平!D8*废弃物活动水平!G9*废弃物处理排放因子!E5*SUMPRODUCT(废弃物活动水平!D16:D20,废弃物处理排放因子!F9:F13)*废弃物处理排放因子!E14*废弃物处理排放因子!E15*废弃物处理排放因子!E16)*(1-废弃物处理排放因子!E18) -> 0
C77: 生活污水 | E77: =((废弃物活动水平!D34+废弃物活动水平!D37)*VLOOKUP(主菜单!L12,废弃物活动水平!B42:D49,3)*废弃物处理排放因子!G40)/ 10000000-废弃物活动水平!F37 -> 0 | J77: =D77*VLOOKUP(主菜单!$J$29,GPA,2)+E77*VLOOKUP(主菜单!$J$29,GPA,3)+F77*VLOOKUP(主菜单!$J$29,GPA,4) -> 0 | M77: 非管理-浅埋 | O77: =(废弃物活动水平!D8*废弃物活动水平!G10*废弃物处理排放因子!E6*SUMPRODUCT(废弃物活动水平!D16:D20,废弃物处理排放因子!F9:F13)*废弃物处理排放因子!E14*废弃物处理排放因子!E15*废弃物处理排放因子!E16)*(1-废弃物处理排放因子!E18) -> 0
C78: 工业废水 | E78: =废弃物活动水平!D64*废弃物处理排放因子!G46/10000000-废弃物活动水平!F58 -> 0 | J78: =D78*VLOOKUP(主菜单!$J$29,GPA,2)+E78*VLOOKUP(主菜单!$J$29,GPA,3)+F78*VLOOKUP(主菜单!$J$29,GPA,4) -> 0 | M78: 未分类 | O78: =(废弃物活动水平!D8*废弃物活动水平!G11*废弃物处理排放因子!E7*SUMPRODUCT(废弃物活动水平!D16:D20,废弃物处理排放因子!F9:F13)*废弃物处理排放因子!E14*废弃物处理排放因子!E15*废弃物处理排放因子!E16)*(1-废弃物处理排放因子!E18) -> 0
B79: 边界内产生 边界外处理 | C79: 垃圾填埋 | E79: =SUM(O79:O82) -> 0 | J79: =D79*VLOOKUP(主菜单!$J$29,GPA,2)+E79*VLOOKUP(主菜单!$J$29,GPA,3)+F79*VLOOKUP(主菜单!$J$29,GPA,4) -> 0 | L79: 边界内产生 边界外处理 | M79: 管理 | O79: =(废弃物活动水平!D12*废弃物活动水平!G12*废弃物处理排放因子!E4*SUMPRODUCT(废弃物活动水平!D16:D20,废弃物处理排放因子!F9:F13)*废弃物处理排放因子!E14*废弃物处理排放因子!E15*废弃物处理排放因子!E16-废弃物活动水平!I12)*(1-废弃物处理排放因子!E17) -> 0
C80: 垃圾焚烧 | D80: =废弃物活动水平!D26*(废弃物活动水平!D27*废弃物处理排放因子!G23+废弃物活动水平!D28*废弃物处理排放因子!G27+废弃物活动水平!D29*废弃物处理排放因子!G31) -> 0 | J80: =D80*VLOOKUP(主菜单!$J$29,GPA,2)+E80*VLOOKUP(主菜单!$J$29,GPA,3)+F80*VLOOKUP(主菜单!$J$29,GPA,4) -> 0 | M80: 非管理-深埋 | O80: =(废弃物活动水平!D12*废弃物活动水平!G13*废弃物处理排放因子!E5*SUMPRODUCT(废弃物活动水平!D16:D20,废弃物处理排放因子!F9:F13)*废弃物处理排放因子!E14*废弃物处理排放因子!E15*废弃物处理排放因子!E16)*(1-废弃物处理排放因子!E18) -> 0
C81: 生活污水 | E81: =((废弃物活动水平!D35+废弃物活动水平!D38)*VLOOKUP(主菜单!L12,废弃物活动水平!B42:D49,3)*废弃物处理排放因子!G40)/ 10000000-废弃物活动水平!F38 -> 0 | J81: =D81*VLOOKUP(主菜单!$J$29,GPA,2)+E81*VLOOKUP(主菜单!$J$29,GPA,3)+F81*VLOOKUP(主菜单!$J$29,GPA,4) -> 0 | M81: 非管理-浅埋 | O81: =(废弃物活动水平!D12*废弃物活动水平!G14*废弃物处理排放因子!E6*SUMPRODUCT(废弃物活动水平!D16:D20,废弃物处理排放因子!F9:F13)*废弃物处理排放因子!E14*废弃物处理排放因子!E15*废弃物处理排放因子!E16)*(1-废弃物处理排放因子!E18) -> 0
C82: 工业废水 | E82: =废弃物活动水平!D65*废弃物处理排放因子!G46/10000000-废弃物活动水平!F59 -> 0 | J82: =D82*VLOOKUP(主菜单!$J$29,GPA,2)+E82*VLOOKUP(主菜单!$J$29,GPA,3)+F82*VLOOKUP(主菜单!$J$29,GPA,4) -> 0 | M82: 未分类 | O82: =(废弃物活动水平!D12*废弃物活动水平!G15*废弃物处理排放因子!E7*SUMPRODUCT(废弃物活动水平!D16:D20,废弃物处理排放因子!F9:F13)*废弃物处理排放因子!E14*废弃物处理排放因子!E15*废弃物处理排放因子!E16)*(1-废弃物处理排放因子!E18) -> 0
B84: 6. 信息项
D85: 活动水平 | E85: 单位 | F85: 排放 | G85: 单位
B86: 城市电力净调入 | D86: =信息项!D3 -> 0 | E86: 亿千万时 | F86: =D86*(能源排放因子!J33+能源排放因子!K33/1000000*VLOOKUP(主菜单!J11,GPA, 3)+能源排放因子!O33/1000000*VLOOKUP(主菜单!J11,GPA, 4)) -> 0 | G86: 万吨CO2e
B87: 城市热力净调入 | D87: =信息项!D4 -> 0 | E87: 万百万千焦 | F87: =D87*(能源排放因子!J31+能源排放因子!K31/1000000*VLOOKUP(主菜单!J11,GPA, 3)+能源排放因子!O31/1000000*VLOOKUP(主菜单!J11,GPA, 4)) -> 0 | G87: 万吨CO2e
B88: 加油/气站数据 | C88: 汽油 | D88: =信息项!D5 -> 0 | E88: 万吨 | F88: =D88*(能源排放因子!J16+能源排放因子!K16/1000000*VLOOKUP(主菜单!J11,GPA, 3)+能源排放因子!O16/1000000*VLOOKUP(主菜单!J11,GPA, 4)) -> 0 | G88: 万吨CO2e
C89: 柴油 | D89: =信息项!D6 -> 0 | E89: 万吨 | F89: =D89*(能源排放因子!J18+能源排放因子!K18/1000000*VLOOKUP(主菜单!J11,GPA, 3)+能源排放因子!O18/1000000*VLOOKUP(主菜单!J11,GPA, 4)) -> 0 | G89: 万吨CO2e
C90: 液化石油气 | D90: =信息项!D7 -> 0 | E90: 万吨 | F90: =D90*(能源排放因子!J26+能源排放因子!K26/1000000*VLOOKUP(主菜单!J11,GPA, 3)+能源排放因子!O26/1000000*VLOOKUP(主菜单!J11,GPA, 4)) -> 0 | G90: 万吨CO2e
C91: 液化天然气 | D91: =信息项!D8 -> 0 | E91: 万吨 | F91: =D91*(能源排放因子!J30+能源排放因子!K30/1000000*VLOOKUP(主菜单!J11,GPA, 3)+能源排放因子!O30/1000000*VLOOKUP(主菜单!J11,GPA, 4)) -> 0 | G91: 万吨CO2e
B92: 城市边界外产生、边界内处理的废弃物排放 | F92: =SUM(J75:J78) -> 0 | G92: 万吨CO2e
B93: 不包括吸收汇的总排放 | F93: =D5+D6+D7+D8+D9+D10+D11+D12+D13+D14+D15+D16 -> 0 | G93: 万吨CO2e
B94: 土地利用变化和林业产生的吸收汇 | F94: =SUM(D57:D61) -> 0 | G94: 万吨CO2e

Sheet 能源汇总 (hidden)
B1: 汇总及计算
B2: 能源消费量汇总 | E2: 简单数据收集 | O2: 工业领域详细数据收集 | AB2: 产业能源汇总 | AF2: 必填排放
B3: 能源名称 | D3: 计量单位 | E3: 农林牧渔业 | F3: 采矿业 | G3: 制造业 | H3: 电力、热力和水生产及供应业 | I3: 建筑业 | J3: 交通运输、仓储和邮政业 | K3: 批发零售、住宿餐饮业 | L3: 其他 | M3: 居民生活 | N3: 总计 | O3: 公用电力 | P3: 公用热力 | Q3: 石油天然气开采加工 | R3: 固体燃料和其他能源工业 | S3: 钢铁 | T3: 水泥 | U3: 有色金属 | V3: 石油和化工 | W3: 食品、饮料、烟草 | X3: 造纸、纸浆 | Y3: 机械、电子 | Z3: 纺织 | AA3: 其他 | AB3: 一产 | AC3: 二产 | AD3: 三产 | AE3: 居民生活 | AF3: CO2（吨） | AG3: CH4（吨） | AH3: N2O（吨） | AI3: CO2e（吨当量）
B4: 原煤 | D4: 万吨 | E4: 0 | F4: 0 | G4: 0 | H4: 0 | I4: 0 | J4: 0 | K4: 0 | L4: 0 | M4: 0 | N4: 0 | O4: 0 | P4: 0 | Q4: 0 | R4: 0 | S4: 0 | T4: 0 | U4: 0 | V4: 0 | W4: 0 | X4: 0 | Y4: 0 | Z4: 0 | AB4: =A!E4 -> 0 | AC4: =(B!E4-B!F4-B!G4-B!H4)+('C'!E4-'C'!F4-'C'!G4-'C'!H4)+(D!E4-D!F4-D!G4-D!H4)+E!E4 -> 0 | AD4: =F!E4+G!E4+H!E4 -> 0 | AE4: =I!E4 -> 0 | AF4: =N4*能源排放因子!J4 -> 0 | AG4: =(E4*能源排放因子!N4+F4*能源排放因子!K4+G4*能源排放因子!L4+H4*能源排放因子!K4+I4*能源排放因子!L4+J4*能源排放因子!K4+L4*能源排放因子!M4+M4*能源排放因子!N4)/1000000 -> 0 | AH4: =(N4*能源排放因子!O4)/1000000 -> 0 | AI4: =AF4+AG4*(VLOOKUP(主菜单!$J$29,名称代码!$A$4:'名称代码'!$P$6,3))+AH4*(VLOOKUP(主菜单!$J$29,名称代码!$A$4:'名称代码'!$P$6,4)) -> 0
B5: 洗精煤 | D5: 万吨 | E5: 0 | F5: 0 | G5: 0 | H5: 0 | I5: 0 | J5: 0 | K5: 0 | L5: 0 | M5: 0 | N5: 0 | O5: 0 | P5: 0 | Q5: 0 | R5: 0 | S5: 0 | T5: 0 | U5: 0 | V5: 0 | W5: 0 | X5: 0 | Y5: 0 | Z5: 0 | AB5: =A!E5 -> 0 | AC5: =(B!E5-B!F5-B!G5-B!H5)+('C'!E5-'C'!F5-'C'!G5-'C'!H5)+(D!E5-D!F5-D!G5-D!H5)+E!E5 -> 0 | AD5: =F!E5+G!E5+H!E5 -> 0 | AE5: =I!E5 -> 0 | AF5: =N5*能源排放因子!J5 -> 0 | AG5: =(E5*能源排放因子!N5+F5*能源排放因子!K5+G5*能源排放因子!L5+H5*能源排放因子!K5+I5*能源排放因子!L5+J5*能源排放因子!K5+L5*能源排放因子!M5+M5*能源排放因子!N5)/1000000 -> 0 | AH5: =(N5*能源排放因子!O5)/1000000 -> 0 | AI5: =AF5+AG5*(VLOOKUP(主菜单!$J$29,名称代码!$A$4:'名称代码'!$P$6,3))+AH5*(VLOOKUP(主菜单!$J$29,名称代码!$A$4:'名称代码'!$P$6,4)) -> 0
B6: 其它洗煤 | D6: 万吨 | E6: 0 | F6: 0 | G6: 0 | H6: 0 | I6: 0 | J6: 0 | K6: 0 | L6: 0 | M6: 0 | N6: 0 | O6: 0 | P6: 0 | Q6: 0 | R6: 0 | S6: 0 | T6: 0 | U6: 0 | V6: 0 | W6: 0 | X6: 0 | Y6: 0 | Z6: 0 | AB6: =A!E6 -> 0 | AC6: =(B!E6-B!F6-B!G6-B!H6)+('C'!E6-'C'!F6-'C'!G6-'C'!H6)+(D!E6-D!F6-D!G6-D!H6)+E!E6 -> 0 | AD6: =F!E6+G!E6+H!E6 -> 0 | AE6: =I!E6 -> 0 | AF6: =N6*能源排放因子!J6 -> 0 | AG6: =(E6*能源排放因子!N6+F6*能源排放因子!K6+G6*能源排放因子!L6+H6*能源排放因子!K6+I6*能源排放因子!L6+J6*能源排放因子!K6+L6*能源排放因子!M6+M6*能源排放因子!N6)/1000000 -> 0 | AH6: =(N6*能源排放因子!O6)/1000000 -> 0 | AI6: =AF6+AG6*(VLOOKUP(主菜单!$J$29,名称代码!$A$4:'名称代码'!$P$6,3))+AH6*(VLOOKUP(主菜单!$J$29,名称代码!$A$4:'名称代码'!$P$6,4)) -> 0
B7: 型煤 | D7: 万吨 | E7: 0 | F7: 0 | G7: 0 | H7: 0 | I7: 0 | J7: 0 | K7: 0 | L7: 0 | M7: 0 | N7: 0 | O7: 0 | P7: 0 | Q7: 0 | R7: 0 | S7: 0 | T7: 0 | U7: 0 | V7: 0 | W7: 0 | X7: 0 | Y7: 0 | Z7: 0 | AB7: =A!E7 -> 0 | AC7: =(B!E7-B!F7-B!G7-B!H7)+('C'!E7-'C'!F7-'C'!G7-'C'!H7)+(D!E7-D!F7-D!G7-D!H7)+E!E7 -> 0 | AD7: =F!E7+G!E7+H!E7 -> 0 | AE7: =I!E7 -> 0 | AF7: =N7*能源排放因子!J7 -> 0 | AG7: =(E7*能源排放因子!N39+F7*能源排放因子!K39+G7*能源排放因子!L39+H7*能源排放因子!K39+I7*能源排放因子!L39+J7*能源排放因子!K39+L7*能源排放因子!M39+M7*能源排放因子!N39)/1000000 -> 0 | AH7: =(N7*能源排放因子!O39)/1000000 -> 0 | AI7: =AF7+AG7*(VLOOKUP(主菜单!$J$29,名称代码!$A$4:'名称代码'!$P$6,3))+AH7*(VLOOKUP(主菜单!$J$29,名称代码!$A$4:'名称代码'!$P$6,4)) -> 0
B8: 煤矸石 | D8: 万吨标煤 | E8: 0 | F8: 0 | G8: 0 | H8: 0 | I8: 0 | J8: 0 | K8: 0 | L8: 0 | M8: 0 | N8: 0 | O8: 0 | P8: 0 | Q8: 0 | R8: 0 | S8: 0 | T8: 0 | U8: 0 | V8: 0 | W8: 0 | X8: 0 | Y8: 0 | Z8: 0 | AB8: =A!E8 -> 0 | AC8: =(B!E8-B!F8-B!G8-B!H8)+('C'!E8-'C'!F8-'C'!G8-'C'!H8)+(D!E8-D!F8-D!G8-D!H8)+E!E8 -> 0 | AD8: =F!E8+G!E8+H!E8 -> 0 | AE8: =I!E8 -> 0 | AF8: =N8*能源排放因子!J8 -> 0 | AG8: =(E8*能源排放因子!N7+F8*能源排放因子!K7+G8*能源排放因子!L7+H8*能源排放因子!K7+I8*能源排放因子!L7+J8*能源排放因子!K7+L8*能源排放因子!M7+M8*能源排放因子!N7)/1000000 -> 0 | AH8: =(N8*能源排放因子!O7)/1000000 -> 0 | AI8: =AF8+AG8*(VLOOKUP(主菜单!$J$29,名称代码!$A$4:'名称代码'!$P$6,3))+AH8*(VLOOKUP(主菜单!$J$29,名称代码!$A$4:'名称代码'!$P$6,4)) -> 0
B9: 焦炭 | D9: 万吨 | E9: 0 | F9: 0 | G9: 0 | H9: 0 | I9: 0 | J9: 0 | K9: 0 | L9: 0 | M9: 0 | N9: 0 | O9: 0 | P9: 0 | Q9: 0 | R9: 0 | S9: 0 | T9: 0 | U9: 0 | V9: 0 | W9: 0 | X9: 0 | Y9: 0 | Z9: 0 | AB9: =A!E9 -> 0 | AC9: =(B!E9-B!F9-B!G9-B!H9)+('C'!E9-'C'!F9-'C'!G9-'C'!H9)+(D!E9-D!F9-D!G9-D!H9)+E!E9 -> 0 | AD9: =F!E9+G!E9+H!E9 -> 0 | AE9: =I!E9 -> 0 | AF9: =N9*能源排放因子!J9 -> 0 | AG9: =(E9*能源排放因子!N40+F9*能源排放因子!K40+G9*能源排放因子!L40+H9*能源排放因子!K40+I9*能源排放因子!L40+J9*能源排放因子!K40+L9*能源排放因子!M40+M9*能源排放因子!N40)/1000000 -> 0 | AH9: =(N9*能源排放因子!O40)/1000000 -> 0 | AI9: =AF9+AG9*(VLOOKUP(主菜单!$J$29,名称代码!$A$4:'名称代码'!$P$6,3))+AH9*(VLOOKUP(主菜单!$J$29,名称代码!$A$4:'名称代码'!$P$6,4)) -> 0
B10: 焦炉煤气 | D10: 亿立方米 | E10: 0 | F10: 0 | G10: 0 | H10: 0 | I10: 0 | J10: 0 | K10: 0 | L10: 0 | M10: 0 | N10: 0 | O10: 0 | P10: 0 | Q10: 0 | R10: 0 | S10: 0 | T10: 0 | U10: 0 | V10: 0 | W10: 0 | X10: 0 | Y10: 0 | Z10: 0 | AB10: =A!E10 -> 0 | AC10: =(B!E10-B!F10-B!G10-B!H10)+('C'!E10-'C'!F10-'C'!G10-'C'!H10)+(D!E10-D!F10-D!G10-D!H10)+E!E10 -> 0 | AD10: =F!E10+G!E10+H!E10 -> 0 | AE10: =I!E10 -> 0 | AF10: =N10*能源排放因子!J10 -> 0 | AG10: =(E10*能源排放因子!N41+F10*能源排放因子!K41+G10*能源排放因子!L41+H10*能源排放因子!K41+I10*能源排放因子!L41+J10*能源排放因子!K41+L10*能源排放因子!M41+M10*能源排放因子!N41)/1000000 -> 0 | AH10: =(N10*能源排放因子!O41)/1000000 -> 0 | AI10: =AF10+AG10*(VLOOKUP(主菜单!$J$29,名称代码!$A$4:'名称代码'!$P$6,3))+AH10*(VLOOKUP(主菜单!$J$29,名称代码!$A$4:'名称代码'!$P$6,4)) -> 0
B11: 高炉煤气 | D11: 亿立方米 | E11: 0 | F11: 0 | G11: 0 | H11: 0 | I11: 0 | J11: 0 | K11: 0 | L11: 0 | M11: 0 | N11: 0 | O11: 0 | P11: 0 | Q11: 0 | R11: 0 | S11: 0 | T11: 0 | U11: 0 | V11: 0 | W11: 0 | X11: 0 | Y11: 0 | Z11: 0 | AB11: =A!E11 -> 0 | AC11: =(B!E11-B!F11-B!G11-B!H11)+('C'!E11-'C'!F11-'C'!G11-'C'!H11)+(D!E11-D!F11-D!G11-D!H11)+E!E11 -> 0 | AD11: =F!E11+G!E11+H!E11 -> 0 | AE11: =I!E11 -> 0 | AF11: =N11*能源排放因子!J11 -> 0 | AG11: =(E11*能源排放因子!N9+F11*能源排放因子!K9+G11*能源排放因子!L9+H11*能源排放因子!K9+I11*能源排放因子!L9+J11*能源排放因子!K9+L11*能源排放因子!M9+M11*能源排放因子!N9)/1000000 -> 0 | AH11: =(N11*能源排放因子!O9)/1000000 -> 0 | AI11: =AF11+AG11*(VLOOKUP(主菜单!$J$29,名称代码!$A$4:'名称代码'!$P$6,3))+AH11*(VLOOKUP(主菜单!$J$29,名称代码!$A$4:'名称代码'!$P$6,4)) -> 0
B12: 转炉煤气 | D12: 亿立方米 | E12: 0 | F12: 0 | G12: 0 | H12: 0 | I12: 0 | J12: 0 | K12: 0 | L12: 0 | M12: 0 | N12: 0 | O12: 0 | P12: 0 | Q12: 0 | R12: 0 | S12: 0 | T12: 0 | U12: 0 | V12: 0 | W12: 0 | X12: 0 | Y12: 0 | Z12: 0 | AB12: =A!E12 -> 0 | AC12: =(B!E12-B!F12-B!G12-B!H12)+('C'!E12-'C'!F12-'C'!G12-'C'!H12)+(D!E12-D!F12-D!G12-D!H12)+E!E12 -> 0 | AD12: =F!E12+G!E12+H!E12 -> 0 | AE12: =I!E12 -> 0 | AF12: =N12*能源排放因子!J12 -> 0 | AG12: =(E12*能源排放因子!N14+F12*能源排放因子!K14+G12*能源排放因子!L14+H12*能源排放因子!K14+I12*能源排放因子!L14+J12*能源排放因子!K14+L12*能源排放因子!M14+M12*能源排放因子!N14)/1000000 -> 0 | AH12: =(N12*能源排放因子!O14)/1000000 -> 0 | AI12: =AF12+AG12*(VLOOKUP(主菜单!$J$29,名称代码!$A$4:'名称代码'!$P$6,3))+AH12*(VLOOKUP(主菜单!$J$29,名称代码!$A$4:'名称代码'!$P$6,4)) -> 0
B13: 其他煤气 | D13: 亿立方米 | E13: 0 | F13: 0 | G13: 0 | H13: 0 | I13: 0 | J13: 0 | K13: 0 | L13: 0 | M13: 0 | N13: 0 | O13: 0 | P13: 0 | Q13: 0 | R13: 0 | S13: 0 | T13: 0 | U13: 0 | V13: 0 | W13: 0 | X13: 0 | Y13: 0 | Z13: 0 | AB13: =A!E13 -> 0 | AC13: =(B!E13-B!F13-B!G13-B!H13)+('C'!E13-'C'!F13-'C'!G13-'C'!H13)+(D!E13-D!F13-D!G13-D!H13)+E!E13 -> 0 | AD13: =F!E13+G!E13+H!E13 -> 0 | AE13: =I!E13 -> 0 | AF13: =N13*能源排放因子!J13 -> 0 | AG13: =(E13*能源排放因子!N10+F13*能源排放因子!K10+G13*能源排放因子!L10+H13*能源排放因子!K10+I13*能源排放因子!L10+J13*能源排放因子!K10+L13*能源排放因子!M10+M13*能源排放因子!N10)/1000000 -> 0 | AH13: =(N13*能源排放因子!O10)/1000000 -> 0 | AI13: =AF13+AG13*(VLOOKUP(主菜单!$J$29,名称代码!$A$4:'名称代码'!$P$6,3))+AH13*(VLOOKUP(主菜单!$J$29,名称代码!$A$4:'名称代码'!$P$6,4)) -> 0
B14: 其他焦化产品 | D14: 万吨 | E14: 0 | F14: 0 | G14: 0 | H14: 0 | I14: 0 | J14: 0 | K14: 0 | L14: 0 | M14: 0 | N14: 0 | O14: 0 | P14: 0 | Q14: 0 | R14: 0 | S14: 0 | T14: 0 | U14: 0 | V14: 0 | W14: 0 | X14: 0 | Y14: 0 | Z14: 0 | AB14: =A!E14 -> 0 | AC14: =(B!E14-B!F14-B!G14-B!H14)+('C'!E14-'C'!F14-'C'!G14-'C'!H14)+(D!E14-D!F14-D!G14-D!H14)+E!E14 -> 0 | AD14: =F!E14+G!E14+H!E14 -> 0 | AE14: =I!E14 -> 0 | AF14: =N14*能源排放因子!J14 -> 0 | AG14: =(E14*能源排放因子!N11+F14*能源排放因子!K11+G14*能源排放因子!L11+H14*能源排放因子!K11+I14*能源排放因子!L11+J14*能源排放因子!K11+L14*能源排放因子!M11+M14*能源排放因子!N11)/1000000 -> 0 | AH14: =(N14*能源排放因子!O11)/1000000 -> 0 | AI14: =AF14+AG14*(VLOOKUP(主菜单!$J$29,名称代码!$A$4:'名称代码'!$P$6,3))+AH14*(VLOOKUP(主菜单!$J$29,名称代码!$A$4:'名称代码'!$P$6,4)) -> 0
B15: 原油 | D15: 万吨 | E15: 0 | F15: 0 | G15: 0 | H15: 0 | I15: 0 | J15: 0 | K15: 0 | L15: 0 | M15: 0 | N15: 0 | O15: 0 | P15: 0 | Q15: 0 | R15: 0 | S15: 0 | T15: 0 | U15: 0 | V15: 0 | W15: 0 | X15: 0 | Y15: 0 | Z15: 0 | AB15: =A!E15 -> 0 | AC15: =(B!E15-B!F15-B!G15-B!H15)+('C'!E15-'C'!F15-'C'!G15-'C'!H15)+(D!E15-D!F15-D!G15-D!H15)+E!E15 -> 0 | AD15: =F!E15+G!E15+H!E15 -> 0 | AE15: =I!E15 -> 0 | AF15: =N15*能源排放因子!J15 -> 0 | AG15: =(E15*能源排放因子!N12+F15*能源排放因子!K12+G15*能源排放因子!L12+H15*能源排放因子!K12+I15*能源排放因子!L12+J15*能源排放因子!K12+L15*能源排放因子!M12+M15*能源排放因子!N12)/1000000 -> 0 | AH15: =(N15*能源排放因子!O12)/1000000 -> 0 | AI15: =AF15+AG15*(VLOOKUP(主菜单!$J$29,名称代码!$A$4:'名称代码'!$P$6,3))+AH15*(VLOOKUP(主菜单!$J$29,名称代码!$A$4:'名称代码'!$P$6,4)) -> 0
B16: 汽油 | D16: 万吨 | E16: 0 | F16: 0 | G16: 0 | H16: 0 | I16: 0 | J16: 0 | K16: 0 | L16: 0 | M16: 0 | N16: 0 | O16: 0 | P16: 0 | Q16: 0 | R16: 0 | S16: 0 | T16: 0 | U16: 0 | V16: 0 | W16: 0 | X16: 0 | Y16: 0 | Z16: 0 | AB16: =A!E16 -> 0 | AC16: =(B!E16-B!F16-B!G16-B!H16)+('C'!E16-'C'!F16-'C'!G16-'C'!H16)+(D!E16-D!F16-D!G16-D!H16)+E!E16 -> 0 | AD16: =F!E16+G!E16+H!E16 -> 0 | AE16: =I!E16 -> 0 | AF16: =N16*能源排放因子!J16 -> 0 | AG16: =(E16*能源排放因子!N29+F16*能源排放因子!K29+G16*能源排放因子!L29+H16*能源排放因子!K29+I16*能源排放因子!L29+J16*能源排放因子!K29+L16*能源排放因子!M29+M16*能源排放因子!N29)/1000000 -> 0 | AH16: =(N16*能源排放因子!O29)/1000000 -> 0 | AI16: =AF16+AG16*(VLOOKUP(主菜单!$J$29,名称代码!$A$4:'名称代码'!$P$6,3))+AH16*(VLOOKUP(主菜单!$J$29,名称代码!$A$4:'名称代码'!$P$6,4)) -> 0
B17: 煤油 | D17: 万吨 | E17: 0 | F17: 0 | G17: 0 | H17: 0 | I17: 0 | J17: 0 | K17: 0 | L17: 0 | M17: 0 | N17: 0 | O17: 0 | P17: 0 | Q17: 0 | R17: 0 | S17: 0 | T17: 0 | U17: 0 | V17: 0 | W17: 0 | X17: 0 | Y17: 0 | Z17: 0 | AB17: =A!E17 -> 0 | AC17: =(B!E17-B!F17-B!G17-B!H17)+('C'!E17-'C'!F17-'C'!G17-'C'!H17)+(D!E17-D!F17-D!G17-D!H17)+E!E17 -> 0 | AD17: =F!E17+G!E17+H!E17 -> 0 | AE17: =I!E17 -> 0 | AF17: =N17*能源排放因子!J17 -> 0 | AG17: =(E17*能源排放因子!N30+F17*能源排放因子!K30+G17*能源排放因子!L30+H17*能源排放因子!K30+I17*能源排放因子!L30+J17*能源排放因子!K30+L17*能源排放因子!M30+M17*能源排放因子!N30)/1000000 -> 0 | AH17: =(N17*能源排放因子!O30)/1000000 -> 0 | AI17: =AF17+AG17*(VLOOKUP(主菜单!$J$29,名称代码!$A$4:'名称代码'!$P$6,3))+AH17*(VLOOKUP(主菜单!$J$29,名称代码!$A$4:'名称代码'!$P$6,4)) -> 0
B18: 柴油 | D18: 万吨 | E18: 0 | F18: 0 | G18: 0 | H18: 0 | I18: 0 | J18: 0 | K18: 0 | L18: 0 | M18: 0 | N18: 0 | O18: 0 | P18: 0 | Q18: 0 | R18: 0 | S18: 0 | T18: 0 | U18: 0 | V18: 0 | W18: 0 | X18: 0 | Y18: 0 | Z18: 0 | AB18: =A!E18 -> 0 | AC18: =(B!E18-B!F18-B!G18-B!H18)+('C'!E18-'C'!F18-'C'!G18-'C'!H18)+(D!E18-D!F18-D!G18-D!H18)+E!E18 -> 0 | AD18: =F!E18+G!E18+H!E18 -> 0 | AE18: =I!E18 -> 0 | AF18: =N18*能源排放因子!J18 -> 0 | AG18: =(E18*能源排放因子!N15+F18*能源排放因子!K15+G18*能源排放因子!L15+H18*能源排放因子!K15+I18*能源排放因子!L15+J18*能源排放因子!K15+L18*能源排放因子!M15+M18*能源排放因子!N15)/1000000 -> 0 | AH18: =(N18*能源排放因子!O15)/1000000 -> 0 | AI18: =AF18+AG18*(VLOOKUP(主菜单!$J$29,名称代码!$A$4:'名称代码'!$P$6,3))+AH18*(VLOOKUP(主菜单!$J$29,名称代码!$A$4:'名称代码'!$P$6,4)) -> 0
B19: 燃料油 | D19: 万吨 | E19: 0 | F19: 0 | G19: 0 | H19: 0 | I19: 0 | J19: 0 | K19: 0 | L19: 0 | M19: 0 | N19: 0 | O19: 0 | P19: 0 | Q19: 0 | R19: 0 | S19: 0 | T19: 0 | U19: 0 | V19: 0 | W19: 0 | X19: 0 | Y19: 0 | Z19: 0 | AB19: =A!E19 -> 0 | AC19: =(B!E19-B!F19-B!G19-B!H19)+('C'!E19-'C'!F19-'C'!G19-'C'!H19)+(D!E19-D!F19-D!G19-D!H19)+E!E19 -> 0 | AD19: =F!E19+G!E19+H!E19 -> 0 | AE19: =I!E19 -> 0 | AF19: =N19*能源排放因子!J19 -> 0 | AG19: =(E19*能源排放因子!N16+F19*能源排放因子!K16+G19*能源排放因子!L16+H19*能源排放因子!K16+I19*能源排放因子!L16+J19*能源排放因子!K16+L19*能源排放因子!M16+M19*能源排放因子!N16)/1000000 -> 0 | AH19: =(N19*能源排放因子!O16)/1000000 -> 0 | AI19: =AF19+AG19*(VLOOKUP(主菜单!$J$29,名称代码!$A$4:'名称代码'!$P$6,3))+AH19*(VLOOKUP(主菜单!$J$29,名称代码!$A$4:'名称代码'!$P$6,4)) -> 0
B20: 石脑油 | D20: 万吨 | E20: 0 | F20: 0 | G20: 0 | H20: 0 | I20: 0 | J20: 0 | K20: 0 | L20: 0 | M20: 0 | N20: 0 | O20: 0 | P20: 0 | Q20: 0 | R20: 0 | S20: 0 | T20: 0 | U20: 0 | V20: 0 | W20: 0 | X20: 0 | Y20: 0 | Z20: 0 | AB20: =A!E20 -> 0 | AC20: =(B!E20-B!F20-B!G20-B!H20)+('C'!E20-'C'!F20-'C'!G20-'C'!H20)+(D!E20-D!F20-D!G20-D!H20)+E!E20 -> 0 | AD20: =F!E20+G!E20+H!E20 -> 0 | AE20: =I!E20 -> 0 | AF20: =N20*能源排放因子!J20 -> 0 | AG20: =(E20*能源排放因子!N17+F20*能源排放因子!K17+G20*能源排放因子!L17+H20*能源排放因子!K17+I20*能源排放因子!L17+J20*能源排放因子!K17+L20*能源排放因子!M17+M20*能源排放因子!N17)/1000000 -> 0 | AH20: =(N20*能源排放因子!O17)/1000000 -> 0 | AI20: =AF20+AG20*(VLOOKUP(主菜单!$J$29,名称代码!$A$4:'名称代码'!$P$6,3))+AH20*(VLOOKUP(主菜单!$J$29,名称代码!$A$4:'名称代码'!$P$6,4)) -> 0
B21: 润滑油 | D21: 万吨 | E21: 0 | F21: 0 | G21: 0 | H21: 0 | I21: 0 | J21: 0 | K21: 0 | L21: 0 | M21: 0 | N21: 0 | O21: 0 | P21: 0 | Q21: 0 | R21: 0 | S21: 0 | T21: 0 | U21: 0 | V21: 0 | W21: 0 | X21: 0 | Y21: 0 | Z21: 0 | AB21: =A!E21 -> 0 | AC21: =(B!E21-B!F21-B!G21-B!H21)+('C'!E21-'C'!F21-'C'!G21-'C'!H21)+(D!E21-D!F21-D!G21-D!H21)+E!E21 -> 0 | AD21: =F!E21+G!E21+H!E21 -> 0 | AE21: =I!E21 -> 0 | AF21: =N21*能源排放因子!J21 -> 0 | AG21: =(E21*能源排放因子!N18+F21*能源排放因子!K18+G21*能源排放因子!L18+H21*能源排放因子!K18+I21*能源排放因子!L18+J21*能源排放因子!K18+L21*能源排放因子!M18+M21*能源排放因子!N18)/1000000 -> 0 | AH21: =(N21*能源排放因子!O18)/1000000 -> 0 | AI21: =AF21+AG21*(VLOOKUP(主菜单!$J$29,名称代码!$A$4:'名称代码'!$P$6,3))+AH21*(VLOOKUP(主菜单!$J$29,名称代码!$A$4:'名称代码'!$P$6,4)) -> 0
B22: 石蜡 | D22: 万吨 | E22: 0 | F22: 0 | G22: 0 | H22: 0 | I22: 0 | J22: 0 | K22: 0 | L22: 0 | M22: 0 | N22: 0 | O22: 0 | P22: 0 | Q22: 0 | R22: 0 | S22: 0 | T22: 0 | U22: 0 | V22: 0 | W22: 0 | X22: 0 | Y22: 0 | Z22: 0 | AB22: =A!E22 -> 0 | AC22: =(B!E22-B!F22-B!G22-B!H22)+('C'!E22-'C'!F22-'C'!G22-'C'!H22)+(D!E22-D!F22-D!G22-D!H22)+E!E22 -> 0 | AD22: =F!E22+G!E22+H!E22 -> 0 | AE22: =I!E22 -> 0 | AF22: =N22*能源排放因子!J22 -> 0 | AG22: =(E22*能源排放因子!N19+F22*能源排放因子!K19+G22*能源排放因子!L19+H22*能源排放因子!K19+I22*能源排放因子!L19+J22*能源排放因子!K19+L22*能源排放因子!M19+M22*能源排放因子!N19)/1000000 -> 0 | AH22: =(N22*能源排放因子!O19)/1000000 -> 0 | AI22: =AF22+AG22*(VLOOKUP(主菜单!$J$29,名称代码!$A$4:'名称代码'!$P$6,3))+AH22*(VLOOKUP(主菜单!$J$29,名称代码!$A$4:'名称代码'!$P$6,4)) -> 0
B23: 溶剂油 | D23: 万吨 | E23: 0 | F23: 0 | G23: 0 | H23: 0 | I23: 0 | J23: 0 | K23: 0 | L23: 0 | M23: 0 | N23: 0 | O23: 0 | P23: 0 | Q23: 0 | R23: 0 | S23: 0 | T23: 0 | U23: 0 | V23: 0 | W23: 0 | X23: 0 | Y23: 0 | Z23: 0 | AB23: =A!E23 -> 0 | AC23: =(B!E23-B!F23-B!G23-B!H23)+('C'!E23-'C'!F23-'C'!G23-'C'!H23)+(D!E23-D!F23-D!G23-D!H23)+E!E23 -> 0 | AD23: =F!E23+G!E23+H!E23 -> 0 | AE23: =I!E23 -> 0 | AF23: =N23*能源排放因子!J23 -> 0 | AG23: =(E23*能源排放因子!N26+F23*能源排放因子!K26+G23*能源排放因子!L26+H23*能源排放因子!K26+I23*能源排放因子!L26+J23*能源排放因子!K26+L23*能源排放因子!M26+M23*能源排放因子!N26)/1000000 -> 0 | AH23: =(N23*能源排放因子!O26)/1000000 -> 0 | AI23: =AF23+AG23*(VLOOKUP(主菜单!$J$29,名称代码!$A$4:'名称代码'!$P$6,3))+AH23*(VLOOKUP(主菜单!$J$29,名称代码!$A$4:'名称代码'!$P$6,4)) -> 0
B24: 石油沥青 | D24: 万吨 | E24: 0 | F24: 0 | G24: 0 | H24: 0 | I24: 0 | J24: 0 | K24: 0 | L24: 0 | M24: 0 | N24: 0 | O24: 0 | P24: 0 | Q24: 0 | R24: 0 | S24: 0 | T24: 0 | U24: 0 | V24: 0 | W24: 0 | X24: 0 | Y24: 0 | Z24: 0 | AB24: =A!E24 -> 0 | AC24: =(B!E24-B!F24-B!G24-B!H24)+('C'!E24-'C'!F24-'C'!G24-'C'!H24)+(D!E24-D!F24-D!G24-D!H24)+E!E24 -> 0 | AD24: =F!E24+G!E24+H!E24 -> 0 | AE24: =I!E24 -> 0 | AF24: =N24*能源排放因子!J24 -> 0 | AG24: =(E24*能源排放因子!N27+F24*能源排放因子!K27+G24*能源排放因子!L27+H24*能源排放因子!K27+I24*能源排放因子!L27+J24*能源排放因子!K27+L24*能源排放因子!M27+M24*能源排放因子!N27)/1000000 -> 0 | AH24: =(N24*能源排放因子!O27)/1000000 -> 0 | AI24: =AF24+AG24*(VLOOKUP(主菜单!$J$29,名称代码!$A$4:'名称代码'!$P$6,3))+AH24*(VLOOKUP(主菜单!$J$29,名称代码!$A$4:'名称代码'!$P$6,4)) -> 0
B25: 石油焦 | D25: 万吨 | E25: 0 | F25: 0 | G25: 0 | H25: 0 | I25: 0 | J25: 0 | K25: 0 | L25: 0 | M25: 0 | N25: 0 | O25: 0 | P25: 0 | Q25: 0 | R25: 0 | S25: 0 | T25: 0 | U25: 0 | V25: 0 | W25: 0 | X25: 0 | Y25: 0 | Z25: 0 | AB25: =A!E25 -> 0 | AC25: =(B!E25-B!F25-B!G25-B!H25)+('C'!E25-'C'!F25-'C'!G25-'C'!H25)+(D!E25-D!F25-D!G25-D!H25)+E!E25 -> 0 | AD25: =F!E25+G!E25+H!E25 -> 0 | AE25: =I!E25 -> 0 | AF25: =N25*能源排放因子!J25 -> 0 | AG25: =(E25*能源排放因子!N28+F25*能源排放因子!K28+G25*能源排放因子!L28+H25*能源排放因子!K28+I25*能源排放因子!L28+J25*能源排放因子!K28+L25*能源排放因子!M28+M25*能源排放因子!N28)/1000000 -> 0 | AH25: =(N25*能源排放因子!O28)/1000000 -> 0 | AI25: =AF25+AG25*(VLOOKUP(主菜单!$J$29,名称代码!$A$4:'名称代码'!$P$6,3))+AH25*(VLOOKUP(主菜单!$J$29,名称代码!$A$4:'名称代码'!$P$6,4)) -> 0
B26: 液化石油气 | D26: 万吨 | E26: 0 | F26: 0 | G26: 0 | H26: 0 | I26: 0 | J26: 0 | K26: 0 | L26: 0 | M26: 0 | N26: 0 | O26: 0 | P26: 0 | Q26: 0 | R26: 0 | S26: 0 | T26: 0 | U26: 0 | V26: 0 | W26: 0 | X26: 0 | Y26: 0 | Z26: 0 | AB26: =A!E26 -> 0 | AC26: =(B!E26-B!F26-B!G26-B!H26)+('C'!E26-'C'!F26-'C'!G26-'C'!H26)+(D!E26-D!F26-D!G26-D!H26)+E!E26 -> 0 | AD26: =F!E26+G!E26+H!E26 -> 0 | AE26: =I!E26 -> 0 | AF26: =N26*能源排放因子!J26 -> 0 | AG26: =(E26*能源排放因子!N31+F26*能源排放因子!K31+G26*能源排放因子!L31+H26*能源排放因子!K31+I26*能源排放因子!L31+J26*能源排放因子!K31+L26*能源排放因子!M31+M26*能源排放因子!N31)/1000000 -> 0 | AH26: =(N26*能源排放因子!O31)/1000000 -> 0 | AI26: =AF26+AG26*(VLOOKUP(主菜单!$J$29,名称代码!$A$4:'名称代码'!$P$6,3))+AH26*(VLOOKUP(主菜单!$J$29,名称代码!$A$4:'名称代码'!$P$6,4)) -> 0
B27: 炼厂干气 | D27: 万吨 | E27: 0 | F27: 0 | G27: 0 | H27: 0 | I27: 0 | J27: 0 | K27: 0 | L27: 0 | M27: 0 | N27: 0 | O27: 0 | P27: 0 | Q27: 0 | R27: 0 | S27: 0 | T27: 0 | U27: 0 | V27: 0 | W27: 0 | X27: 0 | Y27: 0 | Z27: 0 | AB27: =A!E27 -> 0 | AC27: =(B!E27-B!F27-B!G27-B!H27)+('C'!E27-'C'!F27-'C'!G27-'C'!H27)+(D!E27-D!F27-D!G27-D!H27)+E!E27 -> 0 | AD27: =F!E27+G!E27+H!E27 -> 0 | AE27: =I!E27 -> 0 | AF27: =N27*能源排放因子!J27 -> 0 | AG27: =(E27*能源排放因子!N33+F27*能源排放因子!K33+G27*能源排放因子!L33+H27*能源排放因子!K33+I27*能源排放因子!L33+J27*能源排放因子!K33+L27*能源排放因子!M33+M27*能源排放因子!N33)/1000000 -> 0 | AH27: =(N27*能源排放因子!O33)/1000000 -> 0 | AI27: =AF27+AG27*(VLOOKUP(主菜单!$J$29,名称代码!$A$4:'名称代码'!$P$6,3))+AH27*(VLOOKUP(主菜单!$J$29,名称代码!$A$4:'名称代码'!$P$6,4)) -> 0
B28: 其他石油制品 | D28: 万吨 | E28: 0 | F28: 0 | G28: 0 | H28: 0 | I28: 0 | J28: 0 | K28: 0 | L28: 0 | M28: 0 | N28: 0 | O28: 0 | P28: 0 | Q28: 0 | R28: 0 | S28: 0 | T28: 0 | U28: 0 | V28: 0 | W28: 0 | X28: 0 | Y28: 0 | Z28: 0 | AB28: =A!E28 -> 0 | AC28: =(B!E28-B!F28-B!G28-B!H28)+('C'!E28-'C'!F28-'C'!G28-'C'!H28)+(D!E28-D!F28-D!G28-D!H28)+E!E28 -> 0 | AD28: =F!E28+G!E28+H!E28 -> 0 | AE28: =I!E28 -> 0 | AF28: =N28*能源排放因子!J28 -> 0 | AG28: =(E28*能源排放因子!N34+F28*能源排放因子!K34+G28*能源排放因子!L34+H28*能源排放因子!K34+I28*能源排放因子!L34+J28*能源排放因子!K34+L28*能源排放因子!M34+M28*能源排放因子!N34)/1000000 -> 0 | AH28: =(N28*能源排放因子!O34)/1000000 -> 0 | AI28: =AF28+AG28*(VLOOKUP(主菜单!$J$29,名称代码!$A$4:'名称代码'!$P$6,3))+AH28*(VLOOKUP(主菜单!$J$29,名称代码!$A$4:'名称代码'!$P$6,4)) -> 0
B29: 天然气 | D29: 亿立方米 | E29: 0 | F29: 0 | G29: 0 | H29: 0 | I29: 0 | J29: 0 | K29: 0 | L29: 0 | M29: 0 | N29: 0 | O29: 0 | P29: 0 | Q29: 0 | R29: 0 | S29: 0 | T29: 0 | U29: 0 | V29: 0 | W29: 0 | X29: 0 | Y29: 0 | Z29: 0 | AB29: =A!E29 -> 0 | AC29: =(B!E29-B!F29-B!G29-B!H29)+('C'!E29-'C'!F29-'C'!G29-'C'!H29)+(D!E29-D!F29-D!G29-D!H29)+E!E29 -> 0 | AD29: =F!E29+G!E29+H!E29 -> 0 | AE29: =I!E29 -> 0 | AF29: =N29*能源排放因子!J29 -> 0 | AG29: =(E29*能源排放因子!N59+F29*能源排放因子!K59+G29*能源排放因子!L59+H29*能源排放因子!K59+I29*能源排放因子!L59+J29*能源排放因子!K59+L29*能源排放因子!M59+M29*能源排放因子!N59)/1000000 -> 0 | AH29: =(N29*能源排放因子!O59)/1000000 -> 0 | AI29: =AF29+AG29*(VLOOKUP(主菜单!$J$29,名称代码!$A$4:'名称代码'!$P$6,3))+AH29*(VLOOKUP(主菜单!$J$29,名称代码!$A$4:'名称代码'!$P$6,4)) -> 0
B30: 液化天然气 | D30: 万吨 | E30: 0 | F30: 0 | G30: 0 | H30: 0 | I30: 0 | J30: 0 | K30: 0 | L30: 0 | M30: 0 | N30: 0 | O30: 0 | P30: 0 | Q30: 0 | R30: 0 | S30: 0 | T30: 0 | U30: 0 | V30: 0 | W30: 0 | X30: 0 | Y30: 0 | Z30: 0 | AB30: =A!E30 -> 0 | AC30: =(B!E30-B!F30-B!G30-B!H30)+('C'!E30-'C'!F30-'C'!G30-'C'!H30)+(D!E30-D!F30-D!G30-D!H30)+E!E30 -> 0 | AD30: =F!E30+G!E30+H!E30 -> 0 | AE30: =I!E30 -> 0 | AF30: =N30*能源排放因子!J30 -> 0 | AG30: =(E30*能源排放因子!N8+F30*能源排放因子!K8+G30*能源排放因子!L8+H30*能源排放因子!K8+I30*能源排放因子!L8+J30*能源排放因子!K8+L30*能源排放因子!M8+M30*能源排放因子!N8)/1000000 -> 0 | AH30: =(N30*能源排放因子!O8)/1000000 -> 0 | AI30: =AF30+AG30*(VLOOKUP(主菜单!$J$29,名称代码!$A$4:'名称代码'!$P$6,3))+AH30*(VLOOKUP(主菜单!$J$29,名称代码!$A$4:'名称代码'!$P$6,4)) -> 0
B31: 热力 | D31: 万百万千焦 | E31: 0 | F31: 0 | G31: 0 | H31: 0 | I31: 0 | J31: 0 | K31: 0 | L31: 0 | M31: 0 | N31: 0 | O31: 0 | P31: 0 | Q31: 0 | R31: 0 | S31: 0 | T31: 0 | U31: 0 | V31: 0 | W31: 0 | X31: 0 | Y31: 0 | Z31: 0 | AB31: =A!E31 -> 0 | AC31: =(B!E31-B!F31-B!G31-B!H31)+('C'!E31-'C'!F31-'C'!G31-'C'!H31)+(D!E31-D!F31-D!G31-D!H31)+E!E31 -> 0 | AD31: =F!E31+G!E31+H!E31 -> 0 | AE31: =I!E31 -> 0 | AF31: =N31*能源排放因子!J31 -> 0 | AG31: =(E31*能源排放因子!N61+F31*能源排放因子!K61+G31*能源排放因子!L61+H31*能源排放因子!K61+I31*能源排放因子!L61+J31*能源排放因子!K61+L31*能源排放因子!M61+M31*能源排放因子!N61)/1000000 -> 0 | AH31: =(N31*能源排放因子!O61)/1000000 -> 0 | AI31: =AF31+AG31*(VLOOKUP(主菜单!$J$29,名称代码!$A$4:'名称代码'!$P$6,3))+AH31*(VLOOKUP(主菜单!$J$29,名称代码!$A$4:'名称代码'!$P$6,4)) -> 0
B32: 调入热力 | D32: 万百万千焦 | E32: 0 | F32: 0 | G32: 0 | H32: 0 | I32: 0 | J32: 0 | K32: 0 | L32: 0 | M32: 0 | N32: 0 | O32: 0 | P32: 0 | Q32: 0 | R32: 0 | S32: 0 | T32: 0 | U32: 0 | V32: 0 | W32: 0 | X32: 0 | Y32: 0 | Z32: 0 | AB32: =A!E32 -> 0 | AC32: =(B!E32-B!F32-B!G32-B!H32)+('C'!E32-'C'!F32-'C'!G32-'C'!H32)+(D!E32-D!F32-D!G32-D!H32)+E!E32 -> 0 | AD32: =F!E32+G!E32+H!E32 -> 0 | AE32: =I!E32 -> 0 | AF32: =N32*能源排放因子!J32 -> 0
B33: 电力 | D33: 亿千瓦时 | E33: 0 | F33: 0 | G33: 0 | H33: 0 | I33: 0 | J33: 0 | K33: 0 | L33: 0 | M33: 0 | N33: 0 | O33: 0 | P33: 0 | Q33: 0 | R33: 0 | S33: 0 | T33: 0 | U33: 0 | V33: 0 | W33: 0 | X33: 0 | Y33: 0 | Z33: 0 | AB33: =A!E33 -> 0 | AC33: =(B!E33-B!F33-B!G33-B!H33)+('C'!E33-'C'!F33-'C'!G33-'C'!H33)+(D!E33-D!F33-D!G33-D!H33)+E!E33 -> 0 | AD33: =F!E33+G!E33+H!E33 -> 0 | AE33: =I!E33 -> 0 | AF33: =N33*能源排放因子!J62 -> 0 | AG33: =(E33*能源排放因子!N62+F33*能源排放因子!K62+G33*能源排放因子!L62+H33*能源排放因子!K62+I33*能源排放因子!L62+J33*能源排放因子!K62+L33*能源排放因子!M62+M33*能源排放因子!N62)/1000000 -> 0 | AH33: =(N33*能源排放因子!O62)/1000000 -> 0 | AI33: =AF33+AG33*(VLOOKUP(主菜单!$J$29,名称代码!$A$4:'名称代码'!$P$6,3))+AH33*(VLOOKUP(主菜单!$J$29,名称代码!$A$4:'名称代码'!$P$6,4)) -> 0
B35: 其他能源 | D35: 万吨标煤 | E35: 0 | F35: 0 | G35: 0 | H35: 0 | I35: 0 | J35: 0 | K35: 0 | L35: 0 | M35: 0 | O35: 0 | P35: 0 | Q35: 0 | R35: 0 | S35: 0 | T35: 0 | U35: 0 | V35: 0 | W35: 0 | X35: 0 | Y35: 0 | Z35: 0 | AB35: =A!E35 -> 0 | AC35: =(B!E35-B!F35-B!G35-B!H35)+('C'!E35-'C'!F35-'C'!G35-'C'!H35)+(D!E35-D!F35-D!G35-D!H35)+E!E35 -> 0 | AD35: =F!E35+G!E35+H!E35 -> 0 | AE35: =I!E35 -> 0 | AF35: =N35*能源排放因子!J63 -> 0 | AG35: =(E35*能源排放因子!N63+F35*能源排放因子!K63+G35*能源排放因子!L63+H35*能源排放因子!K63+I35*能源排放因子!L63+J35*能源排放因子!K63+L35*能源排放因子!M63+M35*能源排放因子!N63)/1000000 -> 0 | AH35: =(N35*能源排放因子!O63)/1000000 -> 0 | AI35: =AF35+AG35*(VLOOKUP(主菜单!$J$29,名称代码!$A$4:'名称代码'!$P$6,3))+AH35*(VLOOKUP(主菜单!$J$29,名称代码!$A$4:'名称代码'!$P$6,4)) -> 0
B36: 能源合计 | C36: 当量值 | D36: 吨标煤
C37: 等价值 | D37: 吨标煤
B39: 能源排放
D40: 计量单位 | E40: 农林牧渔 | F40: 采矿业 | G40: 制造业 | H40: 电力、热力和水生产及供应业 | I40: 建筑业 | J40: 交通运输、仓储和邮政业 | K40: 批发零售、住宿餐饮业 | L40: 其他 | M40: 居民生活 | N40: 总计 | O40: 公用电力 | P40: 公用热力 | Q40: 石油天然气开采加工 | R40: 固体燃料和其他能源工业 | S40: 钢铁 | T40: 水泥 | U40: 有色金属 | V40: 石油和化工 | W40: 食品、饮料、烟草 | X40: 造纸、纸浆 | Y40: 机械、电子 | Z40: 纺织 | AA40: 其他 | AB40: 一产 | AC40: 二产 | AD40: 三产 | AE40: 居民生活
B41: 总计 | D41: 万吨CO2-e | E41: =E42+E46 -> 0 | F41: =F42+F46 -> 0 | G41: 0 | H41: 0 | I41: 0 | J41: 0 | K41: 0 | L41: 0 | M41: 0 | N41: 0 | O41: =O42+O46 -> 0 | P41: =P42+P46 -> 0 | Q41: 0 | R41: 0 | S41: 0 | T41: 0 | U41: 0 | V41: 0 | W41: 0 | X41: 0 | Y41: 0 | Z41: 0 | AA41: =SUM(F41:H41)-SUM(O41:Z41) -> 0 | AB41: =AB42+AB46 -> 0 | AC41: =AC42+AC46 -> 0 | AD41: =AD42+AD46 -> 0 | AE41: =AE42+AE46 -> 0
B42: 范围一GHG | D42: 万吨CO2-e | E42: =E43+E44*VLOOKUP(主菜单!$J$29,GPA,3)+E45*VLOOKUP(主菜单!$J$29,GPA,4) -> 0 | F42: =F43+F44*VLOOKUP(主菜单!$J$29,GPA,3)+F45*VLOOKUP(主菜单!$J$29,GPA,4) -> 0 | G42: =G43+G44*VLOOKUP(主菜单!$J$29,GPA,3)+G45*VLOOKUP(主菜单!$J$29,GPA,4) -> 0 | H42: =H43+H44*VLOOKUP(主菜单!$J$29,GPA,3)+H45*VLOOKUP(主菜单!$J$29,GPA,4) -> 0 | I42: =I43+I44*VLOOKUP(主菜单!$J$29,GPA,3)+I45*VLOOKUP(主菜单!$J$29,GPA,4) -> 0 | J42: =J43+J44*VLOOKUP(主菜单!$J$29,GPA,3)+J45*VLOOKUP(主菜单!$J$29,GPA,4) -> 0 | K42: =K43+K44*VLOOKUP(主菜单!$J$29,GPA,3)+K45*VLOOKUP(主菜单!$J$29,GPA,4) -> 0 | L42: =L43+L44*VLOOKUP(主菜单!$J$29,GPA,3)+L45*VLOOKUP(主菜单!$J$29,GPA,4) -> 0 | M42: =M43+M44*VLOOKUP(主菜单!$J$29,GPA,3)+M45*VLOOKUP(主菜单!$J$29,GPA,4) -> 0 | N42: =SUM(E42:M42) -> 0 | O42: =O43+O44*VLOOKUP(主菜单!$J$29,GPA,3)+O45*VLOOKUP(主菜单!$J$29,GPA,4) -> 0 | P42: =P43+P44*VLOOKUP(主菜单!$J$29,GPA,3)+P45*VLOOKUP(主菜单!$J$29,GPA,4) -> 0 | Q42: =Q43+Q44*VLOOKUP(主菜单!$J$29,GPA,3)+Q45*VLOOKUP(主菜单!$J$29,GPA,4) -> 0 | R42: =R43+R44*VLOOKUP(主菜单!$J$29,GPA,3)+R45*VLOOKUP(主菜单!$J$29,GPA,4) -> 0 | S42: =S43+S44*VLOOKUP(主菜单!$J$29,GPA,3)+S45*VLOOKUP(主菜单!$J$29,GPA,4) -> 0 | T42: =T43+T44*VLOOKUP(主菜单!$J$29,GPA,3)+T45*VLOOKUP(主菜单!$J$29,GPA,4) -> 0 | U42: =U43+U44*VLOOKUP(主菜单!$J$29,GPA,3)+U45*VLOOKUP(主菜单!$J$29,GPA,4) -> 0 | V42: =V43+V44*VLOOKUP(主菜单!$J$29,GPA,3)+V45*VLOOKUP(主菜单!$J$29,GPA,4) -> 0 | W42: =W43+W44*VLOOKUP(主菜单!$J$29,GPA,3)+W45*VLOOKUP(主菜单!$J$29,GPA,4) -> 0 | X42: =X43+X44*VLOOKUP(主菜单!$J$29,GPA,3)+X45*VLOOKUP(主菜单!$J$29,GPA,4) -> 0 | Y42: =Y43+Y44*VLOOKUP(主菜单!$J$29,GPA,3)+Y45*VLOOKUP(主菜单!$J$29,GPA,4) -> 0 | Z42: =Z43+Z44*VLOOKUP(主菜单!$J$29,GPA,3)+Z45*VLOOKUP(主菜单!$J$29,GPA,4) -> 0 | AA42: 0 | AB42: =AB43+AB44*VLOOKUP(主菜单!$J$29,GPA,3)+AB45*VLOOKUP(主菜单!$J$29,GPA,4) -> 0 | AC42: =AC43+AC44*VLOOKUP(主菜单!$J$29,GPA,3)+AC45*VLOOKUP(主菜单!$J$29,GPA,4) -> 0 | AD42: =AD43+AD44*VLOOKUP(主菜单!$J$29,GPA,3)+AD45*VLOOKUP(主菜单!$J$29,GPA,4) -> 0 | AE42: =AE43+AE44*VLOOKUP(主菜单!$J$29,GPA,3)+AE45*VLOOKUP(主菜单!$J$29,GPA,4) -> 0
B43: CO2 | D43: 万吨 | E43: =E56-E47-E31*IF(能源排放因子!G31>0,能源排放因子!G31,能源排放因子!J31) -> 0 | F43: =F56-F47-F31*IF(能源排放因子!G31>0,能源排放因子!G31,能源排放因子!J31) -> 0 | G43: =G56-G47-G31*IF(能源排放因子!G31>0,能源排放因子!G31,能源排放因子!J31) -> 0 | H43: =H56-H47-H31*IF(能源排放因子!G31>0,能源排放因子!G31,能源排放因子!J31) -> 0 | I43: =I56-I47-I31*IF(能源排放因子!G31>0,能源排放因子!G31,能源排放因子!J31) -> 0 | J43: =J56-J47-J31*IF(能源排放因子!G31>0,能源排放因子!G31,能源排放因子!J31) -> 0 | K43: =K56-K47-K31*IF(能源排放因子!G31>0,能源排放因子!G31,能源排放因子!J31) -> 0 | L43: =L56-L47-L31*IF(能源排放因子!G31>0,能源排放因子!G31,能源排放因子!J31) -> 0 | M43: =M56-M47-M31*IF(能源排放因子!G31>0,能源排放因子!G31,能源排放因子!J31) -> 0 | N43: 0 | O43: =O56-O47-O31*IF(能源排放因子!G31>0,能源排放因子!G31,能源排放因子!J31) -> 0 | P43: =P56-P47-P31*IF(能源排放因子!G31>0,能源排放因子!G31,能源排放因子!J31) -> 0 | Q43: =Q56-Q47-Q31*IF(能源排放因子!G31>0,能源排放因子!G31,能源排放因子!J31) -> 0 | R43: =R56-R47-R31*IF(能源排放因子!G31>0,能源排放因子!G31,能源排放因子!J31) -> 0 | S43: =S56-S47-S31*IF(能源排放因子!G31>0,能源排放因子!G31,能源排放因子!J31) -> 0 | T43: =T56-T47-T31*IF(能源排放因子!G31>0,能源排放因子!G31,能源排放因子!J31) -> 0 | U43: =U56-U47-U31*IF(能源排放因子!G31>0,能源排放因子!G31,能源排放因子!J31) -> 0 | V43: =V56-V47-V31*IF(能源排放因子!G31>0,能源排放因子!G31,能源排放因子!J31) -> 0 | W43: =W56-W47-W31*IF(能源排放因子!G31>0,能源排放因子!G31,能源排放因子!J31) -> 0 | X43: =X56-X47-X31*IF(能源排放因子!G31>0,能源排放因子!G31,能源排放因子!J31) -> 0 | Y43: =Y56-Y47-Y31*IF(能源排放因子!G31>0,能源排放因子!G31,能源排放因子!J31) -> 0 | Z43: =Z56-Z47-Z31*IF(能源排放因子!G31>0,能源排放因子!G31,能源排放因子!J31) -> 0 | AA43: =SUM(F43:H43)-SUM(O43:Z43) -> 0 | AB43: =SUMPRODUCT(AB4:AB35,能源排放因子!J4:J35)-AB47-AB31*IF(能源排放因子!G31>0,能源排放因子!G31,能源排放因子!J31) -> 0 | AC43: =SUMPRODUCT(AC4:AC35,能源排放因子!J4:J35)-AC47-AC31*IF(能源排放因子!G31>0,能源排放因子!G31,能源排放因子!J31) -> 0 | AD43: =SUMPRODUCT(AD4:AD35,能源排放因子!J4:J35)-AD47-AD31*IF(能源排放因子!G31>0,能源排放因子!G31,能源排放因子!J31) -> 0 | AE43: =SUMPRODUCT(AE4:AE35,能源排放因子!J4:J35)-AE47-AE31*IF(能源排放因子!G31>0,能源排放因子!G31,能源排放因子!J31) -> 0
B44: CH4 | D44: 万吨 | E44: =E57-E48-E31*IF(能源排放因子!H31>0,能源排放因子!H31,能源排放因子!K31)/1000000 -> 0 | F44: =F57-F48-F31*IF(能源排放因子!H31>0,能源排放因子!H31,能源排放因子!K31)/1000000 -> 0 | G44: =G57-G48-G31*IF(能源排放因子!H31>0,能源排放因子!H31,能源排放因子!K31)/1000000 -> 0 | H44: =H57-H48-H31*IF(能源排放因子!H31>0,能源排放因子!H31,能源排放因子!K31)/1000000 -> 0 | I44: =I57-I48-I31*IF(能源排放因子!H31>0,能源排放因子!H31,能源排放因子!K31)/1000000 -> 0 | J44: =J57-J48-J31*IF(能源排放因子!H31>0,能源排放因子!H31,能源排放因子!K31)/1000000 -> 0 | K44: =K57-K48-K31*IF(能源排放因子!H31>0,能源排放因子!H31,能源排放因子!K31)/1000000 -> 0 | L44: =L57-L48-L31*IF(能源排放因子!H31>0,能源排放因子!H31,能源排放因子!K31)/1000000 -> 0 | M44: =M57-M48-M31*IF(能源排放因子!H31>0,能源排放因子!H31,能源排放因子!K31)/1000000 -> 0 | N44: 0 | O44: =O57-O48-O31*IF(能源排放因子!H31>0,能源排放因子!H31,能源排放因子!K31)/1000000 -> 0 | P44: =P57-P48-P31*IF(能源排放因子!H31>0,能源排放因子!H31,能源排放因子!K31)/1000000 -> 0 | Q44: =Q57-Q48-Q31*IF(能源排放因子!H31>0,能源排放因子!H31,能源排放因子!K31)/1000000 -> 0 | R44: =R57-R48-R31*IF(能源排放因子!H31>0,能源排放因子!H31,能源排放因子!K31)/1000000 -> 0 | S44: =S57-S48-S31*IF(能源排放因子!H31>0,能源排放因子!H31,能源排放因子!K31)/1000000 -> 0 | T44: =T57-T48-T31*IF(能源排放因子!H31>0,能源排放因子!H31,能源排放因子!K31)/1000000 -> 0 | U44: =U57-U48-U31*IF(能源排放因子!H31>0,能源排放因子!H31,能源排放因子!K31)/1000000 -> 0 | V44: =V57-V48-V31*IF(能源排放因子!H31>0,能源排放因子!H31,能源排放因子!K31)/1000000 -> 0 | W44: =W57-W48-W31*IF(能源排放因子!H31>0,能源排放因子!H31,能源排放因子!K31)/1000000 -> 0 | X44: =X57-X48-X31*IF(能源排放因子!H31>0,能源排放因子!H31,能源排放因子!K31)/1000000 -> 0 | Y44: =Y57-Y48-Y31*IF(能源排放因子!H31>0,能源排放因子!H31,能源排放因子!K31)/1000000 -> 0 | Z44: =Z57-Z48-Z31*IF(能源排放因子!H31>0,能源排放因子!H31,能源排放因子!K31)/1000000 -> 0 | AA44: 0 | AB44: =SUMPRODUCT(AB4:AB35,能源排放因子!K4:K35)/1000000-AB48-AB31*IF(能源排放因子!H31>0,能源排放因子!H31,能源排放因子!K31)/1000000 -> 0 | AC44: =SUMPRODUCT(AC4:AC35,能源排放因子!K4:K35)/1000000-AC48-AC31*IF(能源排放因子!H31>0,能源排放因子!H31,能源排放因子!K31)/1000000 -> 0 | AD44: =SUMPRODUCT(AD4:AD35,能源排放因子!K4:K35)/1000000-AD48-AD31*IF(能源排放因子!H31>0,能源排放因子!H31,能源排放因子!K31)/1000000 -> 0 | AE44: =SUMPRODUCT(AE4:AE35,能源排放因子!K4:K35)/1000000-AE48-AE31*IF(能源排放因子!H31>0,能源排放因子!H31,能源排放因子!K31)/1000000 -> 0
B45: N2O | D45: 万吨 | E45: =E58-E49-E31*IF(能源排放因子!I31>0,能源排放因子!I31,能源排放因子!O31)/1000000 -> 0 | F45: =F58-F49-F31*IF(能源排放因子!I31>0,能源排放因子!I31,能源排放因子!O31)/1000000 -> 0 | G45: =G58-G49-G31*IF(能源排放因子!I31>0,能源排放因子!I31,能源排放因子!O31)/1000000 -> 0 | H45: =H58-H49-H31*IF(能源排放因子!I31>0,能源排放因子!I31,能源排放因子!O31)/1000000 -> 0 | I45: =I58-I49-I31*IF(能源排放因子!I31>0,能源排放因子!I31,能源排放因子!O31)/1000000 -> 0 | J45: =J58-J49-J31*IF(能源排放因子!I31>0,能源排放因子!I31,能源排放因子!O31)/1000000 -> 0 | K45: =K58-K49-K31*IF(能源排放因子!I31>0,能源排放因子!I31,能源排放因子!O31)/1000000 -> 0 | L45: =L58-L49-L31*IF(能源排放因子!I31>0,能源排放因子!I31,能源排放因子!O31)/1000000 -> 0 | M45: =M58-M49-M31*IF(能源排放因子!I31>0,能源排放因子!I31,能源排放因子!O31)/1000000 -> 0 | N45: 0 | O45: =O58-O49-O31*IF(能源排放因子!I31>0,能源排放因子!I31,能源排放因子!O31)/1000000 -> 0 | P45: =P58-P49-P31*IF(能源排放因子!I31>0,能源排放因子!I31,能源排放因子!O31)/1000000 -> 0 | Q45: =Q58-Q49-Q31*IF(能源排放因子!I31>0,能源排放因子!I31,能源排放因子!O31)/1000000 -> 0 | R45: =R58-R49-R31*IF(能源排放因子!I31>0,能源排放因子!I31,能源排放因子!O31)/1000000 -> 0 | S45: =S58-S49-S31*IF(能源排放因子!I31>0,能源排放因子!I31,能源排放因子!O31)/1000000 -> 0 | T45: =T58-T49-T31*IF(能源排放因子!I31>0,能源排放因子!I31,能源排放因子!O31)/1000000 -> 0 | U45: =U58-U49-U31*IF(能源排放因子!I31>0,能源排放因子!I31,能源排放因子!O31)/1000000 -> 0 | V45: =V58-V49-V31*IF(能源排放因子!I31>0,能源排放因子!I31,能源排放因子!O31)/1000000 -> 0 | W45: =W58-W49-W31*IF(能源排放因子!I31>0,能源排放因子!I31,能源排放因子!O31)/1000000 -> 0 | X45: =X58-X49-X31*IF(能源排放因子!I31>0,能源排放因子!I31,能源排放因子!O31)/1000000 -> 0 | Y45: =Y58-Y49-E31*IF(能源排放因子!I31>0,能源排放因子!I31,能源排放因子!O31)/1000000 -> 0 | Z45: =Z58-Z49-Z31*IF(能源排放因子!I31>0,能源排放因子!I31,能源排放因子!O31)/1000000 -> 0 | AA45: 0 | AB45: =SUMPRODUCT(AB4:AB35,能源排放因子!O4:O35)/1000000-AB49-AB31*IF(能源排放因子!I31>0,能源排放因子!I31,能源排放因子!O31)/1000000 -> 0 | AC45: =SUMPRODUCT(AC4:AC35,能源排放因子!O4:O35)/1000000-AC49-AC31*IF(能源排放因子!I31>0,能源排放因子!I31,能源排放因子!O31)/1000000 -> 0 | AD45: =SUMPRODUCT(AD4:AD35,能源排放因子!O4:O35)/1000000-AD49-AD31*IF(能源排放因子!I31>0,能源排放因子!I31,能源排放因子!O31)/1000000 -> 0 | AE45: =SUMPRODUCT(AE4:AE35,能源排放因子!O4:O35)/1000000-AE49-AE31*IF(能源排放因子!I31>0,能源排放因子!I31,能源排放因子!O31)/1000000 -> 0
B46: 范围二GHG | D46: 万吨CO2-e | E46: =E47+E48*VLOOKUP(主菜单!$J$29,GPA,3)+E49*VLOOKUP(主菜单!$J$29,GPA,4) -> 0 | F46: =F47+F48*VLOOKUP(主菜单!$J$29,GPA,3)+F49*VLOOKUP(主菜单!$J$29,GPA,4) -> 0 | G46: =G47+G48*VLOOKUP(主菜单!$J$29,GPA,3)+G49*VLOOKUP(主菜单!$J$29,GPA,4) -> 0 | H46: =H47+H48*VLOOKUP(主菜单!$J$29,GPA,3)+H49*VLOOKUP(主菜单!$J$29,GPA,4) -> 0 | I46: =I47+I48*VLOOKUP(主菜单!$J$29,GPA,3)+I49*VLOOKUP(主菜单!$J$29,GPA,4) -> 0 | J46: =J47+J48*VLOOKUP(主菜单!$J$29,GPA,3)+J49*VLOOKUP(主菜单!$J$29,GPA,4) -> 0 | K46: =K47+K48*VLOOKUP(主菜单!$J$29,GPA,3)+K49*VLOOKUP(主菜单!$J$29,GPA,4) -> 0 | L46: =L47+L48*VLOOKUP(主菜单!$J$29,GPA,3)+L49*VLOOKUP(主菜单!$J$29,GPA,4) -> 0 | M46: =M47+M48*VLOOKUP(主菜单!$J$29,GPA,3)+M49*VLOOKUP(主菜单!$J$29,GPA,4) -> 0 | N46: 0 | O46: =O47+O48*VLOOKUP(主菜单!$J$29,GPA,3)+O49*VLOOKUP(主菜单!$J$29,GPA,4) -> 0 | P46: =P47+P48*VLOOKUP(主菜单!$J$29,GPA,3)+P49*VLOOKUP(主菜单!$J$29,GPA,4) -> 0 | Q46: =Q47+Q48*VLOOKUP(主菜单!$J$29,GPA,3)+Q49*VLOOKUP(主菜单!$J$29,GPA,4) -> 0 | R46: =R47+R48*VLOOKUP(主菜单!$J$29,GPA,3)+R49*VLOOKUP(主菜单!$J$29,GPA,4) -> 0 | S46: =S47+S48*VLOOKUP(主菜单!$J$29,GPA,3)+S49*VLOOKUP(主菜单!$J$29,GPA,4) -> 0 | T46: =T47+T48*VLOOKUP(主菜单!$J$29,GPA,3)+T49*VLOOKUP(主菜单!$J$29,GPA,4) -> 0 | U46: =U47+U48*VLOOKUP(主菜单!$J$29,GPA,3)+U49*VLOOKUP(主菜单!$J$29,GPA,4) -> 0 | V46: =V47+V48*VLOOKUP(主菜单!$J$29,GPA,3)+V49*VLOOKUP(主菜单!$J$29,GPA,4) -> 0 | W46: =W47+W48*VLOOKUP(主菜单!$J$29,GPA,3)+W49*VLOOKUP(主菜单!$J$29,GPA,4) -> 0 | X46: =X47+X48*VLOOKUP(主菜单!$J$29,GPA,3)+X49*VLOOKUP(主菜单!$J$29,GPA,4) -> 0 | Y46: =Y47+Y48*VLOOKUP(主菜单!$J$29,GPA,3)+Y49*VLOOKUP(主菜单!$J$29,GPA,4) -> 0 | Z46: =Z47+Z48*VLOOKUP(主菜单!$J$29,GPA,3)+Z49*VLOOKUP(主菜单!$J$29,GPA,4) -> 0 | AA46: 0 | AB46: =AB47+AB48*VLOOKUP(主菜单!$J$29,GPA,3)+AB49*VLOOKUP(主菜单!$J$29,GPA,4) -> 0 | AC46: =AC47+AC48*VLOOKUP(主菜单!$J$29,GPA,3)+AC49*VLOOKUP(主菜单!$J$29,GPA,4) -> 0 | AD46: =AD47+AD48*VLOOKUP(主菜单!$J$29,GPA,3)+AD49*VLOOKUP(主菜单!$J$29,GPA,4) -> 0 | AE46: =AE47+AE48*VLOOKUP(主菜单!$J$29,GPA,3)+AE49*VLOOKUP(主菜单!$J$29,GPA,4) -> 0
B47: CO2 | D47: 万吨 | E47: =E32*IF(能源排放因子!G32>0,能源排放因子!G32,能源排放因子!J32)+E33*IF(能源排放因子!G33>0,能源排放因子!G33,能源排放因子!J33) -> 0 | F47: =F32*IF(能源排放因子!G32>0,能源排放因子!G32,能源排放因子!J32)+F33*IF(能源排放因子!G33>0,能源排放因子!G33,能源排放因子!J33) -> 0 | G47: =G32*IF(能源排放因子!G32>0,能源排放因子!G32,能源排放因子!J32)+G33*IF(能源排放因子!G33>0,能源排放因子!G33,能源排放因子!J33) -> 0 | H47: =H32*IF(能源排放因子!G32>0,能源排放因子!G32,能源排放因子!J32)+H33*IF(能源排放因子!G33>0,能源排放因子!G33,能源排放因子!J33) -> 0 | I47: =I32*IF(能源排放因子!G32>0,能源排放因子!G32,能源排放因子!J32)+I33*IF(能源排放因子!G33>0,能源排放因子!G33,能源排放因子!J33) -> 0 | J47: =J32*IF(能源排放因子!G32>0,能源排放因子!G32,能源排放因子!J32)+J33*IF(能源排放因子!G33>0,能源排放因子!G33,能源排放因子!J33) -> 0 | K47: =K32*IF(能源排放因子!G32>0,能源排放因子!G32,能源排放因子!J32)+K33*IF(能源排放因子!G33>0,能源排放因子!G33,能源排放因子!J33) -> 0 | L47: =L32*IF(能源排放因子!G32>0,能源排放因子!G32,能源排放因子!J32)+L33*IF(能源排放因子!G33>0,能源排放因子!G33,能源排放因子!J33) -> 0 | M47: =M32*IF(能源排放因子!G32>0,能源排放因子!G32,能源排放因子!J32)+M33*IF(能源排放因子!G33>0,能源排放因子!G33,能源排放因子!J33) -> 0 | N47: 0 | O47: =O32*IF(能源排放因子!G32>0,能源排放因子!G32,能源排放因子!J32)+O33*IF(能源排放因子!G33>0,能源排放因子!G33,能源排放因子!J33) -> 0 | P47: =P32*IF(能源排放因子!G32>0,能源排放因子!G32,能源排放因子!J32)+P33*IF(能源排放因子!G33>0,能源排放因子!G33,能源排放因子!J33) -> 0 | Q47: =Q32*IF(能源排放因子!G32>0,能源排放因子!G32,能源排放因子!J32)+Q33*IF(能源排放因子!G33>0,能源排放因子!G33,能源排放因子!J33) -> 0 | R47: =R32*IF(能源排放因子!G32>0,能源排放因子!G32,能源排放因子!J32)+R33*IF(能源排放因子!G33>0,能源排放因子!G33,能源排放因子!J33) -> 0 | S47: =S32*IF(能源排放因子!G32>0,能源排放因子!G32,能源排放因子!J32)+S33*IF(能源排放因子!G33>0,能源排放因子!G33,能源排放因子!J33) -> 0 | T47: =T32*IF(能源排放因子!G32>0,能源排放因子!G32,能源排放因子!J32)+T33*IF(能源排放因子!G33>0,能源排放因子!G33,能源排放因子!J33) -> 0 | U47: =U32*IF(能源排放因子!G32>0,能源排放因子!G32,能源排放因子!J32)+U33*IF(能源排放因子!G33>0,能源排放因子!G33,能源排放因子!J33) -> 0 | V47: =V32*IF(能源排放因子!G32>0,能源排放因子!G32,能源排放因子!J32)+V33*IF(能源排放因子!G33>0,能源排放因子!G33,能源排放因子!J33) -> 0 | W47: =W32*IF(能源排放因子!G32>0,能源排放因子!G32,能源排放因子!J32)+W33*IF(能源排放因子!G33>0,能源排放因子!G33,能源排放因子!J33) -> 0 | X47: =X32*IF(能源排放因子!G32>0,能源排放因子!G32,能源排放因子!J32)+X33*IF(能源排放因子!G33>0,能源排放因子!G33,能源排放因子!J33) -> 0 | Y47: =Y32*IF(能源排放因子!G32>0,能源排放因子!G32,能源排放因子!J32)+Y33*IF(能源排放因子!G33>0,能源排放因子!G33,能源排放因子!J33) -> 0 | Z47: =Z32*IF(能源排放因子!G32>0,能源排放因子!G32,能源排放因子!J32)+Z33*IF(能源排放因子!G33>0,能源排放因子!G33,能源排放因子!J33) -> 0 | AA47: =SUM(F47:H47)-SUM(O47:Z47) -> 0 | AB47: =AB32*能源排放因子!J32+AB33*能源排放因子!J33 -> 0 | AC47: =AC32*能源排放因子!J32+AC33*能源排放因子!J33 -> 0 | AD47: =AD32*能源排放因子!J32+AD33*能源排放因子!J33 -> 0 | AE47: =AE32*能源排放因子!J32+AE33*能源排放因子!J33 -> 0
B48: CH4 | D48: 万吨 | E48: =(E32*IF(能源排放因子!H32>0,能源排放因子!H32>0,能源排放因子!N32)+E33*IF(能源排放因子!H33>0,能源排放因子!H33>0,能源排放因子!N33))/1000000 -> 0 | F48: =(F32*IF(能源排放因子!H32>0,能源排放因子!H32>0,能源排放因子!K32)+F33*IF(能源排放因子!H33>0,能源排放因子!H33>0,能源排放因子!K33))/1000000 -> 0 | G48: =(G32*IF(能源排放因子!H32>0,能源排放因子!H32>0,能源排放因子!L32)+G33*IF(能源排放因子!H33>0,能源排放因子!H33>0,能源排放因子!L33))/1000000 -> 0 | H48: =(H32*IF(能源排放因子!H32>0,能源排放因子!H32>0,能源排放因子!K32)+H33*IF(能源排放因子!H33>0,能源排放因子!H33>0,能源排放因子!K33))/1000000 -> 0 | I48: =(I32*IF(能源排放因子!H32>0,能源排放因子!H32>0,能源排放因子!L32)+I33*IF(能源排放因子!H33>0,能源排放因子!H33>0,能源排放因子!L33))/1000000 -> 0 | J48: =(J32*IF(能源排放因子!H32>0,能源排放因子!H32>0,能源排放因子!K32)+J33*IF(能源排放因子!H33>0,能源排放因子!H33>0,能源排放因子!K33))/1000000 -> 0 | K48: =(K32*IF(能源排放因子!H32>0,能源排放因子!H32>0,能源排放因子!M32)+K33*IF(能源排放因子!H33>0,能源排放因子!H33>0,能源排放因子!M33))/1000000 -> 0 | L48: =(L32*IF(能源排放因子!H32>0,能源排放因子!H32>0,能源排放因子!M32)+L33*IF(能源排放因子!H33>0,能源排放因子!H33>0,能源排放因子!M33))/1000000 -> 0 | M48: =(M32*IF(能源排放因子!H32>0,能源排放因子!H32>0,能源排放因子!N32)+M33*IF(能源排放因子!H33>0,能源排放因子!H33>0,能源排放因子!N33))/1000000 -> 0 | N48: 0 | O48: =(O32*IF(能源排放因子!H32>0,能源排放因子!H32,能源排放因子!K32)+O33*IF(能源排放因子!H33>0,能源排放因子!H33>0,能源排放因子!K33))/1000000 -> 0 | P48: =(P32*IF(能源排放因子!H32>0,能源排放因子!H32,能源排放因子!K32)+P33*IF(能源排放因子!H33>0,能源排放因子!H33>0,能源排放因子!K33))/1000000 -> 0 | Q48: =(Q32*IF(能源排放因子!H32>0,能源排放因子!H32,能源排放因子!K32)+Q33*IF(能源排放因子!H33>0,能源排放因子!H33>0,能源排放因子!K33))/1000000 -> 0 | R48: =(R32*IF(能源排放因子!H32>0,能源排放因子!H32,能源排放因子!K32)+R33*IF(能源排放因子!H33>0,能源排放因子!H33>0,能源排放因子!K33))/1000000 -> 0 | S48: =(S32*IF(能源排放因子!H32>0,能源排放因子!H32,能源排放因子!L32)+S33*IF(能源排放因子!H33>0,能源排放因子!H33>0,能源排放因子!L33))/1000000 -> 0 | T48: =(T32*IF(能源排放因子!H32>0,能源排放因子!H32,能源排放因子!L32)+T33*IF(能源排放因子!H33>0,能源排放因子!H33>0,能源排放因子!L33))/1000000 -> 0 | U48: =(U32*IF(能源排放因子!H32>0,能源排放因子!H32,能源排放因子!L32)+U33*IF(能源排放因子!H33>0,能源排放因子!H33>0,能源排放因子!L33))/1000000 -> 0 | V48: =(V32*IF(能源排放因子!H32>0,能源排放因子!H32,能源排放因子!L32)+V33*IF(能源排放因子!H33>0,能源排放因子!H33>0,能源排放因子!L33))/1000000 -> 0 | W48: =(W32*IF(能源排放因子!H32>0,能源排放因子!H32,能源排放因子!L32)+W33*IF(能源排放因子!H33>0,能源排放因子!H33>0,能源排放因子!L33))/1000000 -> 0 | X48: =(X32*IF(能源排放因子!H32>0,能源排放因子!H32,能源排放因子!L32)+X33*IF(能源排放因子!H33>0,能源排放因子!H33>0,能源排放因子!L33))/1000000 -> 0 | Y48: =(Y32*IF(能源排放因子!H32>0,能源排放因子!H32,能源排放因子!L32)+Y33*IF(能源排放因子!H33>0,能源排放因子!H33>0,能源排放因子!L33))/1000000 -> 0 | Z48: =(Z32*IF(能源排放因子!H32>0,能源排放因子!H32,能源排放因子!L32)+Z33*IF(能源排放因子!H33>0,能源排放因子!H33>0,能源排放因子!L33))/1000000 -> 0 | AA48: 0 | AB48: =(AB32*能源排放因子!L32+AB33*能源排放因子!L33)/1000000 -> 0 | AC48: =(AC32*能源排放因子!L32+AC33*能源排放因子!L33)/1000000 -> 0 | AD48: =(AD32*能源排放因子!L32+AD33*能源排放因子!L33)/1000000 -> 0 | AE48: =(AE32*能源排放因子!L32+AE33*能源排放因子!L33)/1000000 -> 0
B49: N2O | D49: 万吨 | E49: =(E32*IF(能源排放因子!I32>0,能源排放因子!I32>0,能源排放因子!O32)+E33*IF(能源排放因子!I33>0,能源排放因子!I33>0,能源排放因子!O33))/1000000 -> 0 | F49: =(F32*IF(能源排放因子!I32>0,能源排放因子!I32>0,能源排放因子!O32)+F33*IF(能源排放因子!I33>0,能源排放因子!I33>0,能源排放因子!O33))/1000000 -> 0 | G49: =(G32*IF(能源排放因子!I32>0,能源排放因子!I32>0,能源排放因子!O32)+G33*IF(能源排放因子!I33>0,能源排放因子!I33>0,能源排放因子!O33))/1000000 -> 0 | H49: =(H32*IF(能源排放因子!I32>0,能源排放因子!I32>0,能源排放因子!O32)+H33*IF(能源排放因子!I33>0,能源排放因子!I33>0,能源排放因子!O33))/1000000 -> 0 | I49: =(I32*IF(能源排放因子!I32>0,能源排放因子!I32>0,能源排放因子!O32)+I33*IF(能源排放因子!I33>0,能源排放因子!I33>0,能源排放因子!O33))/1000000 -> 0 | J49: =(J32*IF(能源排放因子!I32>0,能源排放因子!I32>0,能源排放因子!O32)+J33*IF(能源排放因子!I33>0,能源排放因子!I33>0,能源排放因子!O33))/1000000 -> 0 | K49: =(K32*IF(能源排放因子!I32>0,能源排放因子!I32>0,能源排放因子!O32)+K33*IF(能源排放因子!I33>0,能源排放因子!I33>0,能源排放因子!O33))/1000000 -> 0 | L49: =(L32*IF(能源排放因子!I32>0,能源排放因子!I32>0,能源排放因子!O32)+L33*IF(能源排放因子!I33>0,能源排放因子!I33>0,能源排放因子!O33))/1000000 -> 0 | M49: =(M32*IF(能源排放因子!I32>0,能源排放因子!I32>0,能源排放因子!O32)+M33*IF(能源排放因子!I33>0,能源排放因子!I33>0,能源排放因子!O33))/1000000 -> 0 | N49: 0 | O49: =(O32*IF(能源排放因子!I32>0,能源排放因子!I32>0,能源排放因子!O32)+O33*IF(能源排放因子!I33>0,能源排放因子!I33>0,能源排放因子!O33))/1000000 -> 0 | P49: =(P32*IF(能源排放因子!I32>0,能源排放因子!I32>0,能源排放因子!O32)+P33*IF(能源排放因子!I33>0,能源排放因子!I33>0,能源排放因子!O33))/1000000 -> 0 | Q49: =(Q32*IF(能源排放因子!I32>0,能源排放因子!I32>0,能源排放因子!O32)+Q33*IF(能源排放因子!I33>0,能源排放因子!I33>0,能源排放因子!O33))/1000000 -> 0 | R49: =(R32*IF(能源排放因子!I32>0,能源排放因子!I32>0,能源排放因子!O32)+R33*IF(能源排放因子!I33>0,能源排放因子!I33>0,能源排放因子!O33))/1000000 -> 0 | S49: =(S32*IF(能源排放因子!I32>0,能源排放因子!I32>0,能源排放因子!O32)+S33*IF(能源排放因子!I33>0,能源排放因子!I33>0,能源排放因子!O33))/1000000 -> 0 | T49: =(T32*IF(能源排放因子!I32>0,能源排放因子!I32>0,能源排放因子!O32)+T33*IF(能源排放因子!I33>0,能源排放因子!I33>0,能源排放因子!O33))/1000000 -> 0 | U49: =(U32*IF(能源排放因子!I32>0,能源排放因子!I32>0,能源排放因子!O32)+U33*IF(能源排放因子!I33>0,能源排放因子!I33>0,能源排放因子!O33))/1000000 -> 0 | V49: =(V32*IF(能源排放因子!I32>0,能源排放因子!I32>0,能源排放因子!O32)+V33*IF(能源排放因子!I33>0,能源排放因子!I33>0,能源排放因子!O33))/1000000 -> 0 | W49: =(W32*IF(能源排放因子!I32>0,能源排放因子!I32>0,能源排放因子!O32)+W33*IF(能源排放因子!I33>0,能源排放因子!I33>0,能源排放因子!O33))/1000000 -> 0 | X49: =(X32*IF(能源排放因子!I32>0,能源排放因子!I32>0,能源排放因子!O32)+X33*IF(能源排放因子!I33>0,能源排放因子!I33>0,能源排放因子!O33))/1000000 -> 0 | Y49: =(Y32*IF(能源排放因子!I32>0,能源排放因子!I32>0,能源排放因子!O32)+Y33*IF(能源排放因子!I33>0,能源排放因子!I33>0,能源排放因子!O33))/1000000 -> 0 | Z49: =(Z32*IF(能源排放因子!I32>0,能源排放因子!I32>0,能源排放因子!O32)+Z33*IF(能源排放因子!I33>0,能源排放因子!I33>0,能源排放因子!O33))/1000000 -> 0 | AA49: 0 | AB49: =(AB32*能源排放因子!O32+AB33*能源排放因子!O33)/1000000 -> 0 | AC49: =(AC32*能源排放因子!O32+AC33*能源排放因子!O33)/1000000 -> 0 | AD49: =(AD32*能源排放因子!O32+AD33*能源排放因子!O33)/1000000 -> 0 | AE49: =(AE32*能源排放因子!O32+AE33*能源排放因子!O33)/1000000 -> 0
B50: 注：关于“总计”，同时有自发电和电力消费的行业范围一、二不能相加。
B52: 能源排放sum（if（公式
D53: 计量单位 | E53: 农林牧渔 | F53: 采矿业 | G53: 制造业 | H53: 电力、热力和水生产及供应业 | I53: 建筑业 | J53: 交通运输、仓储和邮政业 | K53: 批发零售、住宿餐饮业 | L53: 其他 | M53: 居民生活 | N53: 总计 | O53: 公用电力 | P53: 公用热力 | Q53: 石油天然气开采加工 | R53: 固体燃料和其他能源工业 | S53: 钢铁 | T53: 水泥 | U53: 有色金属 | V53: 石油和化工 | W53: 食品、饮料、烟草 | X53: 造纸、纸浆 | Y53: 机械、电子 | Z53: 纺织 | AA53: 其他 | AB53: 一产 | AC53: 二产 | AD53: 三产 | AE53: 居民生活
B54: 总计 | D54: 万吨CO2-e
B55: 范围一GHG | D55: 万吨CO2-e
B56: CO2 | D56: 万吨 | E56: =SUM(IF(能源排放因子!G4:G35,能源排放因子!G4:G35,能源排放因子!J4:J35)*E4:E35) -> 0 | F56: =SUM(IF(能源排放因子!G4:G35,能源排放因子!G4:G35,能源排放因子!J4:J35)*F4:F35) -> 0 | G56: =SUM(IF(能源排放因子!G4:G35,能源排放因子!G4:G35,能源排放因子!J4:J35)*G4:G35) -> 0 | H56: =SUM(IF(能源排放因子!G4:G35,能源排放因子!G4:G35,能源排放因子!J4:J35)*H4:H35) -> 0 | I56: =SUM(IF(能源排放因子!G4:G35,能源排放因子!G4:G35,能源排放因子!J4:J35)*I4:I35) -> 0 | J56: =SUM(IF(能源排放因子!G4:G35,能源排放因子!G4:G35,能源排放因子!J4:J35)*J4:J35) -> 0 | K56: =SUM(IF(能源排放因子!G4:G35,能源排放因子!G4:G35,能源排放因子!J4:J35)*K4:K35) -> 0 | L56: =SUM(IF(能源排放因子!G4:G35,能源排放因子!G4:G35,能源排放因子!J4:J35)*L4:L35) -> 0 | M56: =SUM(IF(能源排放因子!G4:G35,能源排放因子!G4:G35,能源排放因子!J4:J35)*M4:M35) -> 0 | O56: =SUM(IF(能源排放因子!G4:G35,能源排放因子!G4:G35,能源排放因子!J4:J35)*O4:O35) -> 0 | P56: =SUM(IF(能源排放因子!G4:G35,能源排放因子!G4:G35,能源排放因子!J4:J35)*P4:P35) -> 0 | Q56: =SUM(IF(能源排放因子!G4:G35,能源排放因子!G4:G35,能源排放因子!J4:J35)*Q4:Q35) -> 0 | R56: =SUM(IF(能源排放因子!G4:G35,能源排放因子!G4:G35,能源排放因子!J4:J35)*R4:R35) -> 0 | S56: =SUM(IF(能源排放因子!G4:G35,能源排放因子!G4:G35,能源排放因子!J4:J35)*S4:S35) -> 0 | T56: =SUM(IF(能源排放因子!G4:G35,能源排放因子!G4:G35,能源排放因子!J4:J35)*T4:T35) -> 0 | U56: =SUM(IF(能源排放因子!G4:G35,能源排放因子!G4:G35,能源排放因子!J4:J35)*U4:U35) -> 0 | V56: =SUM(IF(能源排放因子!G4:G35,能源排放因子!G4:G35,能源排放因子!J4:J35)*V4:V35) -> 0 | W56: =SUM(IF(能源排放因子!G4:G35,能源排放因子!G4:G35,能源排放因子!J4:J35)*W4:W35) -> 0 | X56: =SUM(IF(能源排放因子!G4:G35,能源排放因子!G4:G35,能源排放因子!J4:J35)*X4:X35) -> 0 | Y56: =SUM(IF(能源排放因子!G4:G35,能源排放因子!G4:G35,能源排放因子!J4:J35)*Y4:Y35) -> 0 | Z56: =SUM(IF(能源排放因子!G4:G35,能源排放因子!G4:G35,能源排放因子!J4:J35)*Z4:Z35) -> 0
B57: CH4 | D57: 万吨 | E57: =SUM(IF(能源排放因子!H4:H35,能源排放因子!H4:H35,能源排放因子!N4:N35)*E4:E35)/1000000 -> 0 | F57: =SUM(IF(能源排放因子!H4:H35,能源排放因子!H4:H35,能源排放因子!K4:K35)*F4:F35)/1000000 -> 0 | G57: =SUM(IF(能源排放因子!H4:H35,能源排放因子!H4:H35,能源排放因子!L4:L35)*G4:G35)/1000000 -> 0 | H57: =SUM(IF(能源排放因子!H4:H35,能源排放因子!H4:H35,能源排放因子!K4:K35)*H4:H35)/1000000 -> 0 | I57: =SUM(IF(能源排放因子!H4:H35,能源排放因子!H4:H35,能源排放因子!L4:L35)*I4:I35)/1000000 -> 0 | J57: =SUM(IF(能源排放因子!H4:H35,能源排放因子!H4:H35,能源排放因子!K4:K35)*J4:J35)/1000000 -> 0 | K57: =SUM(IF(能源排放因子!H4:H35,能源排放因子!H4:H35,能源排放因子!M4:M35)*K4:K35)/1000000 -> 0 | L57: =SUM(IF(能源排放因子!H4:H35,能源排放因子!H4:H35,能源排放因子!M4:M35)*L4:L35)/1000000 -> 0 | M57: =SUM(IF(能源排放因子!H4:H35,能源排放因子!H4:H35,能源排放因子!N4:N35)*M4:M35)/1000000 -> 0 | O57: =SUM(IF(能源排放因子!H4:H35,能源排放因子!H4:H35,能源排放因子!K4:K35)*O4:O35)/1000000 -> 0 | P57: =SUM(IF(能源排放因子!H4:H35,能源排放因子!H4:H35,能源排放因子!K4:K35)*P4:P35)/1000000 -> 0 | Q57: =SUM(IF(能源排放因子!H4:H35,能源排放因子!H4:H35,能源排放因子!K4:K35)*Q4:Q35)/1000000 -> 0 | R57: =SUM(IF(能源排放因子!H4:H35,能源排放因子!H4:H35,能源排放因子!K4:K35)*R4:R35)/1000000 -> 0 | S57: =SUM(IF(能源排放因子!H4:H35,能源排放因子!H4:H35,能源排放因子!L4:L35)*S4:S35)/1000000 -> 0 | T57: =SUM(IF(能源排放因子!H4:H35,能源排放因子!H4:H35,能源排放因子!L4:L35)*T4:T35)/1000000 -> 0 | U57: =SUM(IF(能源排放因子!H4:H35,能源排放因子!H4:H35,能源排放因子!L4:L35)*U4:U35)/1000000 -> 0 | V57: =SUM(IF(能源排放因子!H4:H35,能源排放因子!H4:H35,能源排放因子!L4:L35)*V4:V35)/1000000 -> 0 | W57: =SUM(IF(能源排放因子!H4:H35,能源排放因子!H4:H35,能源排放因子!L4:L35)*W4:W35)/1000000 -> 0 | X57: =SUM(IF(能源排放因子!H4:H35,能源排放因子!H4:H35,能源排放因子!L4:L35)*X4:X35)/1000000 -> 0 | Y57: =SUM(IF(能源排放因子!H4:H35,能源排放因子!H4:H35,能源排放因子!L4:L35)*Y4:Y35)/1000000 -> 0 | Z57: =SUM(IF(能源排放因子!H4:H35,能源排放因子!H4:H35,能源排放因子!L4:L35)*Z4:Z35)/1000000 -> 0
B58: N2O | D58: 万吨 | E58: =SUM(IF(能源排放因子!I4:I35,能源排放因子!I4:I35,能源排放因子!O4:O35)*E4:E35)/1000000 -> 0 | F58: =SUM(IF(能源排放因子!I4:I35,能源排放因子!I4:I35,能源排放因子!O4:O35)*F4:F35)/1000000 -> 0 | G58: =SUM(IF(能源排放因子!I4:I35,能源排放因子!I4:I35,能源排放因子!O4:O35)*G4:G35)/1000000 -> 0 | H58: =SUM(IF(能源排放因子!I4:I35,能源排放因子!I4:I35,能源排放因子!O4:O35)*H4:H35)/1000000 -> 0 | I58: =SUM(IF(能源排放因子!I4:I35,能源排放因子!I4:I35,能源排放因子!O4:O35)*I4:I35)/1000000 -> 0 | J58: =SUM(IF(能源排放因子!I4:I35,能源排放因子!I4:I35,能源排放因子!O4:O35)*J4:J35)/1000000 -> 0 | K58: =SUM(IF(能源排放因子!I4:I35,能源排放因子!I4:I35,能源排放因子!O4:O35)*K4:K35)/1000000 -> 0 | L58: =SUM(IF(能源排放因子!I4:I35,能源排放因子!I4:I35,能源排放因子!O4:O35)*L4:L35)/1000000 -> 0 | M58: =SUM(IF(能源排放因子!I4:I35,能源排放因子!I4:I35,能源排放因子!O4:O35)*M4:M35)/1000000 -> 0 | O58: =SUM(IF(能源排放因子!I4:I35,能源排放因子!I4:I35,能源排放因子!O4:O35)*O4:O35)/1000000 -> 0 | P58: =SUM(IF(能源排放因子!I4:I35,能源排放因子!I4:I35,能源排放因子!O4:O35)*P4:P35)/1000000 -> 0 | Q58: =SUM(IF(能源排放因子!I4:I35,能源排放因子!I4:I35,能源排放因子!O4:O35)*Q4:Q35)/1000000 -> 0 | R58: =SUM(IF(能源排放因子!I4:I35,能源排放因子!I4:I35,能源排放因子!O4:O35)*R4:R35)/1000000 -> 0 | S58: =SUM(IF(能源排放因子!I4:I35,能源排放因子!I4:I35,能源排放因子!O4:O35)*S4:S35)/1000000 -> 0 | T58: =SUM(IF(能源排放因子!I4:I35,能源排放因子!I4:I35,能源排放因子!O4:O35)*T4:T35)/1000000 -> 0 | U58: =SUM(IF(能源排放因子!I4:I35,能源排放因子!I4:I35,能源排放因子!O4:O35)*U4:U35)/1000000 -> 0 | V58: =SUM(IF(能源排放因子!I4:I35,能源排放因子!I4:I35,能源排放因子!O4:O35)*V4:V35)/1000000 -> 0 | W58: =SUM(IF(能源排放因子!I4:I35,能源排放因子!I4:I35,能源排放因子!O4:O35)*W4:W35)/1000000 -> 0 | X58: =SUM(IF(能源排放因子!I4:I35,能源排放因子!I4:I35,能源排放因子!O4:O35)*X4:X35)/1000000 -> 0 | Y58: =SUM(IF(能源排放因子!I4:I35,能源排放因子!I4:I35,能源排放因子!O4:O35)*Y4:Y35)/1000000 -> 0 | Z58: =SUM(IF(能源排放因子!I4:I35,能源排放因子!I4:I35,能源排放因子!O4:O35)*Z4:Z35)/1000000 -> 0
B59: 此表中包含了电热排放
